Workbook

Sheet Berechnung
A1: ="PfarrPlan " & Parameter!A2 & ": Merkmalswerte und Zielzahlen " -> PfarrPlan 2024: Merkmalswerte und Zielzahlen | S1: Kursiv dargestellte Werte sind wegen Verschiebungen
A2: ="Stand der Gemeindeglieder- und Kirchengemeindedaten: 31.12."&Parameter!A8 -> Stand der Gemeindeglieder- und Kirchengemeindedaten: 31.12.2016 | S2: zwischen Kirchenbezirken nur bedingt vergleichbar
B3: =A3+1 -> 1 | C3: =B3+1 -> 2 | D3: 3 | E3: 4 | F3: 5 | G3: 5 | H3: 6 | I3: 7 | J3: 8 | K3: 9 | L3: 10 | M3: 11 | N3: 12 | O3: 13 | P3: 14 | Q3: 15 | R3: 16 | S3: 17 | T3: 18 | U3: 19 | V3: 20 | W3: 21
A4: =Parameter!B1 -> Dekanat/Kirchenbezirk | B4: Grundaufwand Kirchenbezirk (Sockel) | C4: Seelsorge, Kasualien, gemeindl. Leben (Zahl der Gemeindeglieder in Tausend) | D4: Verkündigung und Leitung (mod. Zahl der Kirchengemeinden) | E4: Weiterer Aufwand für Verkündigung (Anzahl zusätzliche Predigtstellen) | F4: Überdurchschnittliche Urbanität mit Zentralfunktion | G4: Überdurchschnittliche Ländlichkeit | H4: Klassische Diaspora | I4: Moderne Diaspora | J4: Religionsunterricht (aufgrund Formel) | K4: Stellenanteile für Krankenhausseelsorge | L4: Stellenanteile für Hochschulseelsorge | M4: Stellenanteile für Reha-Seelsorge | N4: Stellenanteile für überregionale Aufgaben im landeskirchl. Interesse | O4: ="Aus den vorigen Spalten: Zielzahlen "&Parameter!A2&" (in der Anzeige gerundet auf 3 Stellen)" -> Aus den vorigen Spalten: Zielzahlen 2024 (in der Anzeige gerundet auf 3 Stellen) | P4: Ggf. Korrekturen (Stellenanteile) | Q4: ="Aus den vorigen Spalten: Zielzahlen "&Parameter!A2&" (gerundet auf Viertelstellen)" -> Aus den vorigen Spalten: Zielzahlen 2024 (gerundet auf Viertelstellen) | S4: ="Zum Vergleich: Zielzahlen "&Parameter!A5 -> Zum Vergleich: Zielzahlen 2018 | T4: ="Differenz zwischen den Zielzahlen "&Parameter!A5&" und "&Parameter!A2 -> Differenz zwischen den Zielzahlen 2018 und 2024 | U4: Differenz (vorige Spalte) in Prozent | W4: ="Geschätzte Veränderung der Gemeindegliederzahlen zwischen dem akt. Stand Ende "&Parameter!A8&" und dem Zieljahr "&Parameter!A2 -> Geschätzte Veränderung der Gemeindegliederzahlen zwischen dem akt. Stand Ende 2016 und dem Zieljahr 2024
A5: =Parameter!B2 -> Aalen | B5: 1 | C5: ='Ggl. Prog.'!AF5/1000 -> 33.66137143 | D5: ='KG akt.'!K5 -> 23 | E5: =Zählung!I5 -> 12 | F5: 0 | G5: 1.429197506 | H5: 8.087854331 | I5: 0 | J5: =IF(C5=0,0,(O5-K5-L5-M5-N5)*J$63/Parameter!$A$11-C5*J$64/Parameter!$A$11) -> 4.068954052 | K5: =Zählung!D5 -> 1 | L5: =Zählung!F5 -> 0.25 | M5: =Zählung!H5 -> 0 | O5: =IF(C5=0,0,(B5*B$57+C5*C$57+D5*D$57+E5*E$57+F5*F$57+G5*G$57+H5*H$57+I5*I$57+K5*K$57+L5*L$57+M5*M$57+N5*N$57-(K5+L5+M5+N5)*J$63*$J$57/Parameter!$A$11-C5*J$64*$J$57/Parameter!$A$11)/(1-J$63*$J$57/Parameter!$A$11)) -> 23.26228352 | Q5: =ROUND(4*O5,0)/4+P5 -> 23.25 | S5: 27.25 | T5: =Q5-S5 -> -4 | U5: =IF(C5=0,0,T5/S5) -> -0.1467889908 | W5: ='Ggl. Prog.'!AF5-'Ggl. Prog.'!P5 -> -3790.628571
A6: =Parameter!B3 -> Backnang | B6: 1 | C6: ='Ggl. Prog.'!AF6/1000 -> 36.68605714 | D6: ='KG akt.'!K6 -> 25 | E6: =Zählung!I6 -> 14 | F6: 0 | G6: 1.98796336 | H6: 0 | I6: 0 | J6: =IF(C6=0,0,(O6-K6-L6-M6-N6)*J$63/Parameter!$A$11-C6*J$64/Parameter!$A$11) -> 4.090134524 | K6: =Zählung!D6 -> 0 | L6: =Zählung!F6 -> 0 | M6: =Zählung!H6 -> 0 | O6: =IF(C6=0,0,(B6*B$57+C6*C$57+D6*D$57+E6*E$57+F6*F$57+G6*G$57+H6*H$57+I6*I$57+K6*K$57+L6*L$57+M6*M$57+N6*N$57-(K6+L6+M6+N6)*J$63*$J$57/Parameter!$A$11-C6*J$64*$J$57/Parameter!$A$11)/(1-J$63*$J$57/Parameter!$A$11)) -> 22.76008044 | Q6: =ROUND(4*O6,0)/4+P6 -> 22.75 | S6: 26.25 | T6: =Q6-S6 -> -3.5 | U6: =IF(C6=0,0,T6/S6) -> -0.1333333333 | W6: ='Ggl. Prog.'!AF6-'Ggl. Prog.'!P6 -> -5357.942857
A7: =Parameter!B4 -> Bad Cannstatt | B7: 0.5 | C7: ='Ggl. Prog.'!AF7/1000 -> 24.61394286 | D7: ='KG akt.'!K7 -> 20.5 | E7: =Zählung!I7 -> 1 | F7: 0 | G7: 0 | H7: 0 | I7: 62.19599528 | J7: =IF(C7=0,0,(O7-K7-L7-M7-N7)*J$63/Parameter!$A$11-C7*J$64/Parameter!$A$11) -> 3.048058145 | K7: =Zählung!D7 -> 0 | L7: =Zählung!F7 -> 0 | M7: =Zählung!H7 -> 0 | O7: =IF(C7=0,0,(B7*B$57+C7*C$57+D7*D$57+E7*E$57+F7*F$57+G7*G$57+H7*H$57+I7*I$57+K7*K$57+L7*L$57+M7*M$57+N7*N$57-(K7+L7+M7+N7)*J$63*$J$57/Parameter!$A$11-C7*J$64*$J$57/Parameter!$A$11)/(1-J$63*$J$57/Parameter!$A$11)) -> 16.35568702 | Q7: 16.25 | S7: 21.5 | T7: -5.25 | U7: -0.2441860465 | W7: ='Ggl. Prog.'!AF7-'Ggl. Prog.'!P7 -> -5778.057143
A8: =Parameter!B5 -> Bad Urach-Münsingen | B8: 2 | C8: ='Ggl. Prog.'!AF8/1000 -> 50.56942857 | D8: ='KG akt.'!K8 -> 52.5 | E8: =Zählung!I8 -> 12 | F8: 0 | G8: =0+6.11045199968429 -> 6.110452 | H8: =0.280773969537783+3.24545158164799 -> 3.526225551 | I8: 0 | J8: =IF(C8=0,0,(O8-K8-L8-M8-N8)*J$63/Parameter!$A$11-C8*J$64/Parameter!$A$11) -> 7.786792441 | K8: =Zählung!D8 -> 1 | L8: =Zählung!F8 -> 0 | M8: =Zählung!H8 -> 0.5 | O8: =IF(C8=0,0,(B8*B$57+C8*C$57+D8*D$57+E8*E$57+F8*F$57+G8*G$57+H8*H$57+I8*I$57+K8*K$57+L8*L$57+M8*M$57+N8*N$57-(K8+L8+M8+N8)*J$63*$J$57/Parameter!$A$11-C8*J$64*$J$57/Parameter!$A$11)/(1-J$63*$J$57/Parameter!$A$11)) -> 40.5476238 | Q8: 40.5 | S8: 46 | T8: -5.5 | U8: -0.1195652174 | W8: ='Ggl. Prog.'!AF8-'Ggl. Prog.'!P8 -> -6940.571429
A9: =Parameter!B6 -> Balingen | B9: 1 | C9: ='Ggl. Prog.'!AF9/1000 -> 53.5094 | D9: ='KG akt.'!K9 -> 37 | E9: =Zählung!I9 -> 22 | F9: 0 | G9: 4.493771305 | H9: 7.420483597 | I9: 0 | J9: =IF(C9=0,0,(O9-K9-L9-M9-N9)*J$63/Parameter!$A$11-C9*J$64/Parameter!$A$11) -> 6.284810776 | K9: =Zählung!D9 -> 1 | L9: =Zählung!F9 -> 0.25 | M9: =Zählung!H9 -> 0 | O9: =IF(C9=0,0,(B9*B$57+C9*C$57+D9*D$57+E9*E$57+F9*F$57+G9*G$57+H9*H$57+I9*I$57+K9*K$57+L9*L$57+M9*M$57+N9*N$57-(K9+L9+M9+N9)*J$63*$J$57/Parameter!$A$11-C9*J$64*$J$57/Parameter!$A$11)/(1-J$63*$J$57/Parameter!$A$11)) -> 35.58673055 | Q9: 35.5 | S9: 41.25 | T9: -5.75 | U9: -0.1393939394 | W9: ='Ggl. Prog.'!AF9-'Ggl. Prog.'!P9 -> -8113.6
A10: =Parameter!B7 -> Bernhausen | B10: 1 | C10: ='Ggl. Prog.'!AF10/1000 -> 40.80285714 | D10: ='KG akt.'!K10 -> 21 | E10: =Zählung!I10 -> 6 | F10: 0 | G10: 0 | H10: 0.05899622793 | I10: 53.36180092 | J10: =IF(C10=0,0,(O10-K10-L10-M10-N10)*J$63/Parameter!$A$11-C10*J$64/Parameter!$A$11) -> 3.75164092 | K10: =Zählung!D10 -> 0 | L10: =Zählung!F10 -> 0 | M10: =Zählung!H10 -> 0 | O10: =IF(C10=0,0,(B10*B$57+C10*C$57+D10*D$57+E10*E$57+F10*F$57+G10*G$57+H10*H$57+I10*I$57+K10*K$57+L10*L$57+M10*M$57+N10*N$57-(K10+L10+M10+N10)*J$63*$J$57/Parameter!$A$11-C10*J$64*$J$57/Parameter!$A$11)/(1-J$63*$J$57/Parameter!$A$11)) -> 22.46601916 | Q10: 22.5 | S10: 25 | T10: -2.5 | U10: -0.1 | W10: ='Ggl. Prog.'!AF10-'Ggl. Prog.'!P10 -> -4665.142857
A11: =Parameter!B8 -> Besigheim | B11: 1 | C11: ='Ggl. Prog.'!AF11/1000 -> 38.2146 | D11: ='KG akt.'!K11 -> 22.5 | E11: =Zählung!I11 -> 12 | F11: 0 | G11: 0 | H11: 0 | I11: 0 | J11: =IF(C11=0,0,(O11-K11-L11-M11-N11)*J$63/Parameter!$A$11-C11*J$64/Parameter!$A$11) -> 3.709340519 | K11: =Zählung!D11 -> 0 | L11: =Zählung!F11 -> 0 | M11: =Zählung!H11 -> 0 | O11: =IF(C11=0,0,(B11*B$57+C11*C$57+D11*D$57+E11*E$57+F11*F$57+G11*G$57+H11*H$57+I11*I$57+K11*K$57+L11*L$57+M11*M$57+N11*N$57-(K11+L11+M11+N11)*J$63*$J$57/Parameter!$A$11-C11*J$64*$J$57/Parameter!$A$11)/(1-J$63*$J$57/Parameter!$A$11)) -> 21.73977804 | Q11: 21.75 | S11: 25.5 | T11: -3.75 | U11: -0.1470588235 | W11: ='Ggl. Prog.'!AF11-'Ggl. Prog.'!P11 -> -5534.4
A12: =Parameter!B9 -> Biberach | B12: 1 | C12: ='Ggl. Prog.'!AF12/1000 -> 43.12502857 | D12: ='KG akt.'!K12 -> 26.5 | E12: =Zählung!I12 -> 17 | F12: 0 | G12: 5.071802483 | H12: 18.08381808 | I12: 52.04626398 | J12: =IF(C12=0,0,(O12-K12-L12-M12-N12)*J$63/Parameter!$A$11-C12*J$64/Parameter!$A$11) -> 5.643464593 | K12: =Zählung!D12 -> 1 | L12: =Zählung!F12 -> 0.25 | M12: =Zählung!H12 -> 0 | O12: =IF(C12=0,0,(B12*B$57+C12*C$57+D12*D$57+E12*E$57+F12*F$57+G12*G$57+H12*H$57+I12*I$57+K12*K$57+L12*L$57+M12*M$57+N12*N$57-(K12+L12+M12+N12)*J$63*$J$57/Parameter!$A$11-C12*J$64*$J$57/Parameter!$A$11)/(1-J$63*$J$57/Parameter!$A$11)) -> 30.98857037 | Q12: 31 | S12: 32.75 | T12: -1.75 | U12: -0.0534351145 | W12: ='Ggl. Prog.'!AF12-'Ggl. Prog.'!P12 -> -1250.971429
A13: =Parameter!B10 -> Blaubeuren | B13: 1 | C13: ='Ggl. Prog.'!AF13/1000 -> 21.17028571 | D13: ='KG akt.'!K13 -> 26.5 | E13: =Zählung!I13 -> 2 | F13: 0 | G13: 4.05630733 | H13: 4.089798696 | I13: 0 | J13: =IF(C13=0,0,(O13-K13-L13-M13-N13)*J$63/Parameter!$A$11-C13*J$64/Parameter!$A$11) -> 3.887842309 | K13: =Zählung!D13 -> 0.5 | L13: =Zählung!F13 -> 0 | M13: =Zählung!H13 -> 0 | O13: =IF(C13=0,0,(B13*B$57+C13*C$57+D13*D$57+E13*E$57+F13*F$57+G13*G$57+H13*H$57+I13*I$57+K13*K$57+L13*L$57+M13*M$57+N13*N$57-(K13+L13+M13+N13)*J$63*$J$57/Parameter!$A$11-C13*J$64*$J$57/Parameter!$A$11)/(1-J$63*$J$57/Parameter!$A$11)) -> 19.08965904 | Q13: 19 | S13: 22 | T13: -3 | U13: -0.1363636364 | W13: ='Ggl. Prog.'!AF13-'Ggl. Prog.'!P13 -> -2861.714286
A14: =Parameter!B11 -> Blaufelden | B14: 1 | C14: ='Ggl. Prog.'!AF14/1000 -> 17.37065714 | D14: ='KG akt.'!K14 -> 24.5 | E14: =Zählung!I14 -> 0 | F14: 0 | G14: 6.932806414 | H14: 0 | I14: 0 | J14: =IF(C14=0,0,(O14-K14-L14-M14-N14)*J$63/Parameter!$A$11-C14*J$64/Parameter!$A$11) -> 3.592495382 | K14: =Zählung!D14 -> 0 | L14: =Zählung!F14 -> 0 | M14: =Zählung!H14 -> 0 | O14: =IF(C14=0,0,(B14*B$57+C14*C$57+D14*D$57+E14*E$57+F14*F$57+G14*G$57+H14*H$57+I14*I$57+K14*K$57+L14*L$57+M14*M$57+N14*N$57-(K14+L14+M14+N14)*J$63*$J$57/Parameter!$A$11-C14*J$64*$J$57/Parameter!$A$11)/(1-J$63*$J$57/Parameter!$A$11)) -> 16.69048668 | Q14: 16.75 | S14: 19.25 | T14: -2.5 | U14: -0.1298701299 | W14: ='Ggl. Prog.'!AF14-'Ggl. Prog.'!P14 -> -1396.342857
A15: =Parameter!B12 -> Böblingen | B15: 1 | C15: ='Ggl. Prog.'!AF15/1000 -> 53.7616 | D15: ='KG akt.'!K15 -> 28.5 | E15: =Zählung!I15 -> 12 | F15: 0 | G15: 0 | H15: 0 | I15: 78.72434179 | J15: =IF(C15=0,0,(O15-K15-L15-M15-N15)*J$63/Parameter!$A$11-C15*J$64/Parameter!$A$11) -> 5.031670726 | K15: =Zählung!D15 -> 0 | L15: =Zählung!F15 -> 0 | M15: =Zählung!H15 -> 0 | O15: =IF(C15=0,0,(B15*B$57+C15*C$57+D15*D$57+E15*E$57+F15*F$57+G15*G$57+H15*H$57+I15*I$57+K15*K$57+L15*L$57+M15*M$57+N15*N$57-(K15+L15+M15+N15)*J$63*$J$57/Parameter!$A$11-C15*J$64*$J$57/Parameter!$A$11)/(1-J$63*$J$57/Parameter!$A$11)) -> 29.91727482 | Q15: 30 | S15: 34.5 | T15: -4.5 | U15: -0.1304347826 | W15: ='Ggl. Prog.'!AF15-'Ggl. Prog.'!P15 -> -7718.4
A16: =Parameter!B13 -> Brackenheim | B16: 1 | C16: ='Ggl. Prog.'!AF16/1000 -> 23.65651429 | D16: ='KG akt.'!K16 -> 22.5 | E16: =Zählung!I16 -> 2 | F16: 0 | G16: 1.797759783 | H16: 0 | I16: 0 | J16: =IF(C16=0,0,(O16-K16-L16-M16-N16)*J$63/Parameter!$A$11-C16*J$64/Parameter!$A$11) -> 3.251112139 | K16: =Zählung!D16 -> 0 | L16: =Zählung!F16 -> 0 | M16: =Zählung!H16 -> 0 | O16: =IF(C16=0,0,(B16*B$57+C16*C$57+D16*D$57+E16*E$57+F16*F$57+G16*G$57+H16*H$57+I16*I$57+K16*K$57+L16*L$57+M16*M$57+N16*N$57-(K16+L16+M16+N16)*J$63*$J$57/Parameter!$A$11-C16*J$64*$J$57/Parameter!$A$11)/(1-J$63*$J$57/Parameter!$A$11)) -> 16.86811796 | Q16: 16.75 | S16: 20.25 | T16: -3.5 | U16: -0.1728395062 | W16: ='Ggl. Prog.'!AF16-'Ggl. Prog.'!P16 -> -2725.485714
A17: =Parameter!B14 -> Calw | B17: 1 | C17: ='Ggl. Prog.'!AF17/1000 -> 27.1354 | D17: ='KG akt.'!K17 -> 33 | E17: =Zählung!I17 -> 8 | F17: 0 | G17: 4.017185417 | H17: 0 | I17: 0 | J17: =IF(C17=0,0,(O17-K17-L17-M17-N17)*J$63/Parameter!$A$11-C17*J$64/Parameter!$A$11) -> 4.617472906 | K17: =Zählung!D17 -> 0.75 | L17: =Zählung!F17 -> 0 | M17: =Zählung!H17 -> 0 | O17: =IF(C17=0,0,(B17*B$57+C17*C$57+D17*D$57+E17*E$57+F17*F$57+G17*G$57+H17*H$57+I17*I$57+K17*K$57+L17*L$57+M17*M$57+N17*N$57-(K17+L17+M17+N17)*J$63*$J$57/Parameter!$A$11-C17*J$64*$J$57/Parameter!$A$11)/(1-J$63*$J$57/Parameter!$A$11)) -> 23.27106355 | Q17: 23.25 | S17: 26 | T17: -2.75 | U17: -0.1057692308 | W17: ='Ggl. Prog.'!AF17-'Ggl. Prog.'!P17 -> -3489.6
A18: =Parameter!B15 -> Crailsheim | B18: 1 | C18: ='Ggl. Prog.'!AF18/1000 -> 26.43317143 | D18: ='KG akt.'!K18 -> 27.5 | E18: =Zählung!I18 -> 4 | F18: 0 | G18: 3.115980479 | H18: 1.458931304 | I18: 0 | J18: =IF(C18=0,0,(O18-K18-L18-M18-N18)*J$63/Parameter!$A$11-C18*J$64/Parameter!$A$11) -> 3.985721268 | K18: =Zählung!D18 -> 0.25 | L18: =Zählung!F18 -> 0 | M18: =Zählung!H18 -> 0 | O18: =IF(C18=0,0,(B18*B$57+C18*C$57+D18*D$57+E18*E$57+F18*F$57+G18*G$57+H18*H$57+I18*I$57+K18*K$57+L18*L$57+M18*M$57+N18*N$57-(K18+L18+M18+N18)*J$63*$J$57/Parameter!$A$11-C18*J$64*$J$57/Parameter!$A$11)/(1-J$63*$J$57/Parameter!$A$11)) -> 20.35875691 | Q18: 20.25 | S18: 24 | T18: -3.75 | U18: -0.15625 | W18: ='Ggl. Prog.'!AF18-'Ggl. Prog.'!P18 -> -2689.828571
A19: =Parameter!B16 -> Degerloch | B19: 0.5 | C19: ='Ggl. Prog.'!AF19/1000 -> 35.38537143 | D19: ='KG akt.'!K19 -> 21 | E19: =Zählung!I19 -> 7 | F19: 0 | G19: 0 | H19: 0 | I19: 80.86030251 | J19: =IF(C19=0,0,(O19-K19-L19-M19-N19)*J$63/Parameter!$A$11-C19*J$64/Parameter!$A$11) -> 3.582760372 | K19: =Zählung!D19 -> 0 | L19: =Zählung!F19 -> 0.25 | M19: =Zählung!H19 -> 0 | O19: =IF(C19=0,0,(B19*B$57+C19*C$57+D19*D$57+E19*E$57+F19*F$57+G19*G$57+H19*H$57+I19*I$57+K19*K$57+L19*L$57+M19*M$57+N19*N$57-(K19+L19+M19+N19)*J$63*$J$57/Parameter!$A$11-C19*J$64*$J$57/Parameter!$A$11)/(1-J$63*$J$57/Parameter!$A$11)) -> 20.90898863 | Q19: 21 | S19: 26.75 | T19: -5.75 | U19: -0.214953271 | W19: ='Ggl. Prog.'!AF19-'Ggl. Prog.'!P19 -> -5126.628571
A20: =Parameter!B17 -> Ditzingen | B20: 1 | C20: ='Ggl. Prog.'!AF20/1000 -> 27.3572 | D20: ='KG akt.'!K20 -> 15.5 | E20: =Zählung!I20 -> 1 | F20: 0 | G20: 0 | H20: 0 | I20: 0 | J20: =IF(C20=0,0,(O20-K20-L20-M20-N20)*J$63/Parameter!$A$11-C20*J$64/Parameter!$A$11) -> 2.532725515 | K20: =Zählung!D20 -> 0 | L20: =Zählung!F20 -> 0 | M20: =Zählung!H20 -> 0 | O20: =IF(C20=0,0,(B20*B$57+C20*C$57+D20*D$57+E20*E$57+F20*F$57+G20*G$57+H20*H$57+I20*I$57+K20*K$57+L20*L$57+M20*M$57+N20*N$57-(K20+L20+M20+N20)*J$63*$J$57/Parameter!$A$11-C20*J$64*$J$57/Parameter!$A$11)/(1-J$63*$J$57/Parameter!$A$11)) -> 15.12482605 | Q20: 15 | S20: 19 | T20: -4 | U20: -0.2105263158 | W20: ='Ggl. Prog.'!AF20-'Ggl. Prog.'!P20 -> -4372.8
A21: =Parameter!B18 -> Esslingen | B21: 1 | C21: ='Ggl. Prog.'!AF21/1000 -> 51.05225714 | D21: ='KG akt.'!K21 -> 29.5 | E21: =Zählung!I21 -> 14 | F21: 0 | G21: 0 | H21: 0.2069443443 | I21: 71.338 | J21: =IF(C21=0,0,(O21-K21-L21-M21-N21)*J$63/Parameter!$A$11-C21*J$64/Parameter!$A$11) -> 5.079300196 | K21: =Zählung!D21 -> 0 | L21: =Zählung!F21 -> 0.25 | M21: =Zählung!H21 -> 0 | O21: =IF(C21=0,0,(B21*B$57+C21*C$57+D21*D$57+E21*E$57+F21*F$57+G21*G$57+H21*H$57+I21*I$57+K21*K$57+L21*L$57+M21*M$57+N21*N$57-(K21+L21+M21+N21)*J$63*$J$57/Parameter!$A$11-C21*J$64*$J$57/Parameter!$A$11)/(1-J$63*$J$57/Parameter!$A$11)) -> 29.73530387 | Q21: 29.75 | S21: 35.75 | T21: -6 | U21: -0.1678321678 | W21: ='Ggl. Prog.'!AF21-'Ggl. Prog.'!P21 -> -7522.742857
A22: =Parameter!B19 -> Freudenstadt | B22: 1 | C22: ='Ggl. Prog.'!AF22/1000 -> 33.40962857 | D22: ='KG akt.'!K22 -> 34.5 | E22: =Zählung!I22 -> 20 | F22: 0 | G22: 4.267387866 | H22: 0.1254102634 | I22: 0 | J22: =IF(C22=0,0,(O22-K22-L22-M22-N22)*J$63/Parameter!$A$11-C22*J$64/Parameter!$A$11) -> 5.207522532 | K22: =Zählung!D22 -> 0 | L22: =Zählung!F22 -> 0 | M22: =Zählung!H22 -> 0 | O22: =IF(C22=0,0,(B22*B$57+C22*C$57+D22*D$57+E22*E$57+F22*F$57+G22*G$57+H22*H$57+I22*I$57+K22*K$57+L22*L$57+M22*M$57+N22*N$57-(K22+L22+M22+N22)*J$63*$J$57/Parameter!$A$11-C22*J$64*$J$57/Parameter!$A$11)/(1-J$63*$J$57/Parameter!$A$11)) -> 26.02265666 | Q22: 26 | S22: 29.5 | T22: -3.5 | U22: -0.1186440678 | W22: ='Ggl. Prog.'!AF22-'Ggl. Prog.'!P22 -> -4745.371429
A23: =Parameter!B20 -> Gaildorf | B23: 1 | C23: ='Ggl. Prog.'!AF23/1000 -> 18.38022857 | D23: ='KG akt.'!K23 -> 18 | E23: =Zählung!I23 -> 2 | F23: 0 | G23: 1.890197444 | H23: 0.5189565159 | I23: 0 | J23: =IF(C23=0,0,(O23-K23-L23-M23-N23)*J$63/Parameter!$A$11-C23*J$64/Parameter!$A$11) -> 2.724654986 | K23: =Zählung!D23 -> 0 | L23: =Zählung!F23 -> 0 | M23: =Zählung!H23 -> 0 | O23: =IF(C23=0,0,(B23*B$57+C23*C$57+D23*D$57+E23*E$57+F23*F$57+G23*G$57+H23*H$57+I23*I$57+K23*K$57+L23*L$57+M23*M$57+N23*N$57-(K23+L23+M23+N23)*J$63*$J$57/Parameter!$A$11-C23*J$64*$J$57/Parameter!$A$11)/(1-J$63*$J$57/Parameter!$A$11)) -> 13.8154059 | Q23: 13.75 | S23: 16.25 | T23: -2.5 | U23: -0.1538461538 | W23: ='Ggl. Prog.'!AF23-'Ggl. Prog.'!P23 -> -2015.771429
A24: =Parameter!B21 -> Geislingen a.d. Steige | B24: 1 | C24: ='Ggl. Prog.'!AF24/1000 -> 22.3156 | D24: ='KG akt.'!K24 -> 22.5 | E24: =Zählung!I24 -> 10 | F24: 0 | G24: 1.601807259 | H24: 2.480037019 | I24: 0 | J24: =IF(C24=0,0,(O24-K24-L24-M24-N24)*J$63/Parameter!$A$11-C24*J$64/Parameter!$A$11) -> 3.487781796 | K24: =Zählung!D24 -> 0 | L24: =Zählung!F24 -> 0.25 | M24: =Zählung!H24 -> 0 | O24: =IF(C24=0,0,(B24*B$57+C24*C$57+D24*D$57+E24*E$57+F24*F$57+G24*G$57+H24*H$57+I24*I$57+K24*K$57+L24*L$57+M24*M$57+N24*N$57-(K24+L24+M24+N24)*J$63*$J$57/Parameter!$A$11-C24*J$64*$J$57/Parameter!$A$11)/(1-J$63*$J$57/Parameter!$A$11)) -> 17.66538578 | Q24: 17.75 | S24: 20.75 | T24: -3 | U24: -0.1445783133 | W24: ='Ggl. Prog.'!AF24-'Ggl. Prog.'!P24 -> -3574.4
A25: =Parameter!B22 -> Göppingen | B25: 1 | C25: ='Ggl. Prog.'!AF25/1000 -> 49.11491429 | D25: ='KG akt.'!K25 -> 36.5 | E25: =Zählung!I25 -> 12 | F25: 0 | G25: 0 | H25: 0.4569945215 | I25: 56.19627846 | J25: =IF(C25=0,0,(O25-K25-L25-M25-N25)*J$63/Parameter!$A$11-C25*J$64/Parameter!$A$11) -> 5.586627539 | K25: =Zählung!D25 -> 0 | L25: =Zählung!F25 -> 0.25 | M25: =Zählung!H25 -> 0 | O25: =IF(C25=0,0,(B25*B$57+C25*C$57+D25*D$57+E25*E$57+F25*F$57+G25*G$57+H25*H$57+I25*I$57+K25*K$57+L25*L$57+M25*M$57+N25*N$57-(K25+L25+M25+N25)*J$63*$J$57/Parameter!$A$11-C25*J$64*$J$57/Parameter!$A$11)/(1-J$63*$J$57/Parameter!$A$11)) -> 31.11666661 | Q25: 31 | S25: 34.5 | T25: -3.5 | U25: -0.1014492754 | W25: ='Ggl. Prog.'!AF25-'Ggl. Prog.'!P25 -> -7407.085714
A26: =Parameter!B23 -> Heidenheim | B26: 1 | C26: ='Ggl. Prog.'!AF26/1000 -> 40.70611429 | D26: ='KG akt.'!K26 -> 32 | E26: =Zählung!I26 -> 17 | F26: 0 | G26: 0 | H26: 0.6137632022 | I26: 0 | J26: =IF(C26=0,0,(O26-K26-L26-M26-N26)*J$63/Parameter!$A$11-C26*J$64/Parameter!$A$11) -> 4.807766869 | K26: =Zählung!D26 -> 0 | L26: =Zählung!F26 -> 0 | M26: =Zählung!H26 -> 0 | O26: =IF(C26=0,0,(B26*B$57+C26*C$57+D26*D$57+E26*E$57+F26*F$57+G26*G$57+H26*H$57+I26*I$57+K26*K$57+L26*L$57+M26*M$57+N26*N$57-(K26+L26+M26+N26)*J$63*$J$57/Parameter!$A$11-C26*J$64*$J$57/Parameter!$A$11)/(1-J$63*$J$57/Parameter!$A$11)) -> 26.21639914 | Q26: 26.25 | S26: 29.25 | T26: -3 | U26: -0.1025641026 | W26: ='Ggl. Prog.'!AF26-'Ggl. Prog.'!P26 -> -6915.885714
A27: =Parameter!B24 -> Heilbronn | B27: 1 | C27: ='Ggl. Prog.'!AF27/1000 -> 52.03671429 | D27: ='KG akt.'!K27 -> 31.5 | E27: =Zählung!I27 -> 10 | F27: 0 | G27: 0 | H27: 0 | I27: 68.13253595 | J27: =IF(C27=0,0,(O27-K27-L27-M27-N27)*J$63/Parameter!$A$11-C27*J$64/Parameter!$A$11) -> 5.177322467 | K27: =Zählung!D27 -> 0 | L27: =Zählung!F27 -> 0.25 | M27: =Zählung!H27 -> 0.25 | N27: 1 | O27: =IF(C27=0,0,(B27*B$57+C27*C$57+D27*D$57+E27*E$57+F27*F$57+G27*G$57+H27*H$57+I27*I$57+K27*K$57+L27*L$57+M27*M$57+N27*N$57-(K27+L27+M27+N27)*J$63*$J$57/Parameter!$A$11-C27*J$64*$J$57/Parameter!$A$11)/(1-J$63*$J$57/Parameter!$A$11)) -> 31.55415167 | Q27: 31.5 | S27: 36.25 | T27: -4.75 | U27: -0.1310344828 | W27: ='Ggl. Prog.'!AF27-'Ggl. Prog.'!P27 -> -9490.285714
A28: =Parameter!B25 -> Herrenberg | B28: 1 | C28: ='Ggl. Prog.'!AF28/1000 -> 34.69845714 | D28: ='KG akt.'!K28 -> 25 | E28: =Zählung!I28 -> 5 | F28: 0 | G28: 0 | H28: 0.1180254728 | I28: 0 | J28: =IF(C28=0,0,(O28-K28-L28-M28-N28)*J$63/Parameter!$A$11-C28*J$64/Parameter!$A$11) -> 3.705718149 | K28: =Zählung!D28 -> 0.25 | L28: =Zählung!F28 -> 0 | M28: =Zählung!H28 -> 0 | O28: =IF(C28=0,0,(B28*B$57+C28*C$57+D28*D$57+E28*E$57+F28*F$57+G28*G$57+H28*H$57+I28*I$57+K28*K$57+L28*L$57+M28*M$57+N28*N$57-(K28+L28+M28+N28)*J$63*$J$57/Parameter!$A$11-C28*J$64*$J$57/Parameter!$A$11)/(1-J$63*$J$57/Parameter!$A$11)) -> 21.19547593 | Q28: 21.25 | S28: 24.5 | T28: -3.25 | U28: -0.1326530612 | W28: ='Ggl. Prog.'!AF28-'Ggl. Prog.'!P28 -> -3799.542857
A29: =Parameter!B26 -> Kirchheim unter Teck | B29: 1 | C29: ='Ggl. Prog.'!AF29/1000 -> 30.1978 | D29: ='KG akt.'!K29 -> 25 | E29: =Zählung!I29 -> 7 | F29: 0 | G29: 0 | H29: 0 | I29: 0 | J29: =IF(C29=0,0,(O29-K29-L29-M29-N29)*J$63/Parameter!$A$11-C29*J$64/Parameter!$A$11) -> 3.637776466 | K29: =Zählung!D29 -> 0.75 | L29: =Zählung!F29 -> 0 | M29: =Zählung!H29 -> 0 | O29: =IF(C29=0,0,(B29*B$57+C29*C$57+D29*D$57+E29*E$57+F29*F$57+G29*G$57+H29*H$57+I29*I$57+K29*K$57+L29*L$57+M29*M$57+N29*N$57-(K29+L29+M29+N29)*J$63*$J$57/Parameter!$A$11-C29*J$64*$J$57/Parameter!$A$11)/(1-J$63*$J$57/Parameter!$A$11)) -> 20.45268103 | Q29: 20.5 | S29: 23.25 | T29: -2.75 | U29: -0.1182795699 | W29: ='Ggl. Prog.'!AF29-'Ggl. Prog.'!P29 -> -4443.2
A30: =Parameter!B27 -> Künzelsau | B30: 1 | C30: ='Ggl. Prog.'!AF30/1000 -> 13.16462857 | D30: ='KG akt.'!K30 -> 15 | E30: =Zählung!I30 -> 3 | F30: 0 | G30: 3.435859609 | H30: 1.518013314 | I30: 0 | J30: =IF(C30=0,0,(O30-K30-L30-M30-N30)*J$63/Parameter!$A$11-C30*J$64/Parameter!$A$11) -> 2.482804011 | K30: =Zählung!D30 -> 0.25 | L30: =Zählung!F30 -> 0.25 | M30: =Zählung!H30 -> 0 | O30: =IF(C30=0,0,(B30*B$57+C30*C$57+D30*D$57+E30*E$57+F30*F$57+G30*G$57+H30*H$57+I30*I$57+K30*K$57+L30*L$57+M30*M$57+N30*N$57-(K30+L30+M30+N30)*J$63*$J$57/Parameter!$A$11-C30*J$64*$J$57/Parameter!$A$11)/(1-J$63*$J$57/Parameter!$A$11)) -> 12.2926302 | Q30: 12.25 | S30: 14.5 | T30: -2.25 | U30: -0.1551724138 | W30: ='Ggl. Prog.'!AF30-'Ggl. Prog.'!P30 -> -1521.371429
A31: =Parameter!B28 -> Leonberg | B31: 1 | C31: ='Ggl. Prog.'!AF31/1000 -> 36.63782857 | D31: ='KG akt.'!K31 -> 25 | E31: =Zählung!I31 -> 10 | F31: 0 | G31: 0 | H31: 0 | I31: 0 | J31: =IF(C31=0,0,(O31-K31-L31-M31-N31)*J$63/Parameter!$A$11-C31*J$64/Parameter!$A$11) -> 3.862136135 | K31: =Zählung!D31 -> 0 | L31: =Zählung!F31 -> 0 | M31: =Zählung!H31 -> 0 | O31: =IF(C31=0,0,(B31*B$57+C31*C$57+D31*D$57+E31*E$57+F31*F$57+G31*G$57+H31*H$57+I31*I$57+K31*K$57+L31*L$57+M31*M$57+N31*N$57-(K31+L31+M31+N31)*J$63*$J$57/Parameter!$A$11-C31*J$64*$J$57/Parameter!$A$11)/(1-J$63*$J$57/Parameter!$A$11)) -> 21.93508302 | Q31: 22 | S31: 25.25 | T31: -3.25 | U31: -0.1287128713 | W31: ='Ggl. Prog.'!AF31-'Ggl. Prog.'!P31 -> -5230.171429
A32: =Parameter!B29 -> Ludwigsburg | B32: 1 | C32: ='Ggl. Prog.'!AF32/1000 -> 56.70757143 | D32: ='KG akt.'!K32 -> 29 | E32: =Zählung!I32 -> 7 | F32: 0 | G32: 0 | H32: 0 | I32: 85.63795069 | J32: =IF(C32=0,0,(O32-K32-L32-M32-N32)*J$63/Parameter!$A$11-C32*J$64/Parameter!$A$11) -> 5.069254433 | K32: =Zählung!D32 -> 0 | L32: =Zählung!F32 -> 0 | M32: =Zählung!H32 -> 0 | O32: =IF(C32=0,0,(B32*B$57+C32*C$57+D32*D$57+E32*E$57+F32*F$57+G32*G$57+H32*H$57+I32*I$57+K32*K$57+L32*L$57+M32*M$57+N32*N$57-(K32+L32+M32+N32)*J$63*$J$57/Parameter!$A$11-C32*J$64*$J$57/Parameter!$A$11)/(1-J$63*$J$57/Parameter!$A$11)) -> 30.70616266 | Q32: 30.75 | S32: 35.25 | T32: -4.5 | U32: -0.1276595745 | W32: ='Ggl. Prog.'!AF32-'Ggl. Prog.'!P32 -> -6835.428571
A33: =Parameter!B30 -> Marbach a.N. | B33: 1 | C33: ='Ggl. Prog.'!AF33/1000 -> 33.49748571 | D33: ='KG akt.'!K33 -> 21 | E33: =Zählung!I33 -> 5 | F33: 0 | G33: 0 | H33: 0 | I33: 0 | J33: =IF(C33=0,0,(O33-K33-L33-M33-N33)*J$63/Parameter!$A$11-C33*J$64/Parameter!$A$11) -> 3.293291063 | K33: =Zählung!D33 -> 0.25 | L33: =Zählung!F33 -> 0 | M33: =Zählung!H33 -> 0 | O33: =IF(C33=0,0,(B33*B$57+C33*C$57+D33*D$57+E33*E$57+F33*F$57+G33*G$57+H33*H$57+I33*I$57+K33*K$57+L33*L$57+M33*M$57+N33*N$57-(K33+L33+M33+N33)*J$63*$J$57/Parameter!$A$11-C33*J$64*$J$57/Parameter!$A$11)/(1-J$63*$J$57/Parameter!$A$11)) -> 19.45563951 | Q33: 19.5 | S33: 22.75 | T33: -3.25 | U33: -0.1428571429 | W33: ='Ggl. Prog.'!AF33-'Ggl. Prog.'!P33 -> -4794.514286
A34: =Parameter!B31 -> Mühlacker | B34: 1 | C34: ='Ggl. Prog.'!AF34/1000 -> 27.49245714 | D34: ='KG akt.'!K34 -> 26.5 | E34: =Zählung!I34 -> 10 | F34: 0 | G34: 0 | H34: 0 | I34: 0 | J34: =IF(C34=0,0,(O34-K34-L34-M34-N34)*J$63/Parameter!$A$11-C34*J$64/Parameter!$A$11) -> 3.782848651 | K34: =Zählung!D34 -> 0 | L34: =Zählung!F34 -> 0 | M34: =Zählung!H34 -> 0 | O34: =IF(C34=0,0,(B34*B$57+C34*C$57+D34*D$57+E34*E$57+F34*F$57+G34*G$57+H34*H$57+I34*I$57+K34*K$57+L34*L$57+M34*M$57+N34*N$57-(K34+L34+M34+N34)*J$63*$J$57/Parameter!$A$11-C34*J$64*$J$57/Parameter!$A$11)/(1-J$63*$J$57/Parameter!$A$11)) -> 19.61960867 | Q34: 19.5 | S34: 22.75 | T34: -3.25 | U34: -0.1428571429 | W34: ='Ggl. Prog.'!AF34-'Ggl. Prog.'!P34 -> -4215.542857
A35: =Parameter!B32 -> Münsingen (siehe Bad Urach-Münsigen) | C35: ='Ggl. Prog.'!AF35/1000 -> 0 | D35: ='KG akt.'!K35 -> 0 | E35: =Zählung!I35 -> 0 | J35: =IF(C35=0,0,(O35-K35-L35-M35-N35)*J$63/Parameter!$A$11-C35*J$64/Parameter!$A$11) -> 0 | K35: =Zählung!D35 -> 0 | L35: =Zählung!F35 -> 0 | M35: =Zählung!H35 -> 0 | O35: =IF(C35=0,0,(B35*B$57+C35*C$57+D35*D$57+E35*E$57+F35*F$57+G35*G$57+H35*H$57+I35*I$57+K35*K$57+L35*L$57+M35*M$57+N35*N$57-(K35+L35+M35+N35)*J$63*$J$57/Parameter!$A$11-C35*J$64*$J$57/Parameter!$A$11)/(1-J$63*$J$57/Parameter!$A$11)) -> 0 | Q35: 0 | T35: 0 | W35: ='Ggl. Prog.'!AF35-'Ggl. Prog.'!P35 -> 0
A36: =Parameter!B33 -> Nagold | B36: 1 | C36: ='Ggl. Prog.'!AF36/1000 -> 26.89574286 | D36: ='KG akt.'!K36 -> 30.5 | E36: =Zählung!I36 -> 10 | F36: 0 | G36: 4.176977989 | H36: 0.4587269128 | I36: 0 | J36: =IF(C36=0,0,(O36-K36-L36-M36-N36)*J$63/Parameter!$A$11-C36*J$64/Parameter!$A$11) -> 4.450053367 | K36: =Zählung!D36 -> 0.5 | L36: =Zählung!F36 -> 0 | M36: =Zählung!H36 -> 0 | O36: =IF(C36=0,0,(B36*B$57+C36*C$57+D36*D$57+E36*E$57+F36*F$57+G36*G$57+H36*H$57+I36*I$57+K36*K$57+L36*L$57+M36*M$57+N36*N$57-(K36+L36+M36+N36)*J$63*$J$57/Parameter!$A$11-C36*J$64*$J$57/Parameter!$A$11)/(1-J$63*$J$57/Parameter!$A$11)) -> 22.36987948 | Q36: 22.25 | S36: 24.75 | T36: -2.5 | U36: -0.101010101 | W36: ='Ggl. Prog.'!AF36-'Ggl. Prog.'!P36 -> -2629.257143
A37: =Parameter!B34 -> Neuenbürg | B37: 1 | C37: ='Ggl. Prog.'!AF37/1000 -> 26.06885714 | D37: ='KG akt.'!K37 -> 27.5 | E37: =Zählung!I37 -> 11 | F37: 0 | G37: 2.11716453 | H37: 0 | I37: 0 | J37: =IF(C37=0,0,(O37-K37-L37-M37-N37)*J$63/Parameter!$A$11-C37*J$64/Parameter!$A$11) -> 4.010151849 | K37: =Zählung!D37 -> 0.5 | L37: =Zählung!F37 -> 0 | M37: =Zählung!H37 -> 0.5 | O37: =IF(C37=0,0,(B37*B$57+C37*C$57+D37*D$57+E37*E$57+F37*F$57+G37*G$57+H37*H$57+I37*I$57+K37*K$57+L37*L$57+M37*M$57+N37*N$57-(K37+L37+M37+N37)*J$63*$J$57/Parameter!$A$11-C37*J$64*$J$57/Parameter!$A$11)/(1-J$63*$J$57/Parameter!$A$11)) -> 21.11505025 | Q37: 21 | S37: 24 | T37: -3 | U37: -0.125 | W37: ='Ggl. Prog.'!AF37-'Ggl. Prog.'!P37 -> -3849.142857
A38: =Parameter!B35 -> Neuenstadt a.K. | B38: 1 | C38: ='Ggl. Prog.'!AF38/1000 -> 26.21637143 | D38: ='KG akt.'!K38 -> 22 | E38: =Zählung!I38 -> 11 | F38: 0 | G38: 1.643586994 | H38: 1.068790791 | I38: 0 | J38: =IF(C38=0,0,(O38-K38-L38-M38-N38)*J$63/Parameter!$A$11-C38*J$64/Parameter!$A$11) -> 3.503804013 | K38: =Zählung!D38 -> 0 | L38: =Zählung!F38 -> 0 | M38: =Zählung!H38 -> 0 | O38: =IF(C38=0,0,(B38*B$57+C38*C$57+D38*D$57+E38*E$57+F38*F$57+G38*G$57+H38*H$57+I38*I$57+K38*K$57+L38*L$57+M38*M$57+N38*N$57-(K38+L38+M38+N38)*J$63*$J$57/Parameter!$A$11-C38*J$64*$J$57/Parameter!$A$11)/(1-J$63*$J$57/Parameter!$A$11)) -> 18.33944608 | Q38: 18.25 | S38: 22.25 | T38: -4 | U38: -0.1797752809 | W38: ='Ggl. Prog.'!AF38-'Ggl. Prog.'!P38 -> -3470.628571
A39: =Parameter!B36 -> Nürtingen | B39: 1 | C39: ='Ggl. Prog.'!AF39/1000 -> 43.70517143 | D39: ='KG akt.'!K39 -> 32 | E39: =Zählung!I39 -> 4 | F39: 0 | G39: 0 | H39: 0 | I39: 0 | J39: =IF(C39=0,0,(O39-K39-L39-M39-N39)*J$63/Parameter!$A$11-C39*J$64/Parameter!$A$11) -> 4.558638921 | K39: =Zählung!D39 -> 0 | L39: =Zählung!F39 -> 0.25 | M39: =Zählung!H39 -> 0 | O39: =IF(C39=0,0,(B39*B$57+C39*C$57+D39*D$57+E39*E$57+F39*F$57+G39*G$57+H39*H$57+I39*I$57+K39*K$57+L39*L$57+M39*M$57+N39*N$57-(K39+L39+M39+N39)*J$63*$J$57/Parameter!$A$11-C39*J$64*$J$57/Parameter!$A$11)/(1-J$63*$J$57/Parameter!$A$11)) -> 26.24311361 | Q39: 26.25 | S39: 30 | T39: -3.75 | U39: -0.125 | W39: ='Ggl. Prog.'!AF39-'Ggl. Prog.'!P39 -> -5825.828571
A40: =Parameter!B37 -> Öhringen | B40: 1 | C40: ='Ggl. Prog.'!AF40/1000 -> 26.05985714 | D40: ='KG akt.'!K40 -> 21.5 | E40: =Zählung!I40 -> 7 | F40: 0 | G40: 3.895661865 | H40: 0 | I40: 0 | J40: =IF(C40=0,0,(O40-K40-L40-M40-N40)*J$63/Parameter!$A$11-C40*J$64/Parameter!$A$11) -> 3.47177396 | K40: =Zählung!D40 -> 0.25 | L40: =Zählung!F40 -> 0 | M40: =Zählung!H40 -> 0 | O40: =IF(C40=0,0,(B40*B$57+C40*C$57+D40*D$57+E40*E$57+F40*F$57+G40*G$57+H40*H$57+I40*I$57+K40*K$57+L40*L$57+M40*M$57+N40*N$57-(K40+L40+M40+N40)*J$63*$J$57/Parameter!$A$11-C40*J$64*$J$57/Parameter!$A$11)/(1-J$63*$J$57/Parameter!$A$11)) -> 18.44027208 | Q40: 18.5 | S40: 21.25 | T40: -2.75 | U40: -0.1294117647 | W40: ='Ggl. Prog.'!AF40-'Ggl. Prog.'!P40 -> -2153.142857
A41: =Parameter!B38 -> Ravensburg | B41: 1 | C41: ='Ggl. Prog.'!AF41/1000 -> 55.43871429 | D41: ='KG akt.'!K41 -> 33 | E41: =Zählung!I41 -> 17 | F41: 0 | G41: 0 | H41: 21.58228026 | I41: 92.20417924 | J41: =IF(C41=0,0,(O41-K41-L41-M41-N41)*J$63/Parameter!$A$11-C41*J$64/Parameter!$A$11) -> 6.544672219 | K41: =Zählung!D41 -> 1 | L41: =Zählung!F41 -> 0.5 | M41: =Zählung!H41 -> 0.5 | O41: =IF(C41=0,0,(B41*B$57+C41*C$57+D41*D$57+E41*E$57+F41*F$57+G41*G$57+H41*H$57+I41*I$57+K41*K$57+L41*L$57+M41*M$57+N41*N$57-(K41+L41+M41+N41)*J$63*$J$57/Parameter!$A$11-C41*J$64*$J$57/Parameter!$A$11)/(1-J$63*$J$57/Parameter!$A$11)) -> 37.69354364 | Q41: 37.75 | S41: 41.75 | T41: -4 | U41: -0.09580838323 | W41: ='Ggl. Prog.'!AF41-'Ggl. Prog.'!P41 -> -4202.285714
A42: =Parameter!B39 -> Reutlingen | B42: 1 | C42: ='Ggl. Prog.'!AF42/1000 -> 57.7804 | D42: ='KG akt.'!K42 -> 37 | E42: =Zählung!I42 -> 11 | F42: 0 | G42: 0 | H42: 1.44868646 | I42: 61.12544761 | J42: =IF(C42=0,0,(O42-K42-L42-M42-N42)*J$63/Parameter!$A$11-C42*J$64/Parameter!$A$11) -> 5.88431112 | K42: =Zählung!D42 -> 0 | L42: =Zählung!F42 -> 0 | M42: =Zählung!H42 -> 0 | N42: 1 | O42: =IF(C42=0,0,(B42*B$57+C42*C$57+D42*D$57+E42*E$57+F42*F$57+G42*G$57+H42*H$57+I42*I$57+K42*K$57+L42*L$57+M42*M$57+N42*N$57-(K42+L42+M42+N42)*J$63*$J$57/Parameter!$A$11-C42*J$64*$J$57/Parameter!$A$11)/(1-J$63*$J$57/Parameter!$A$11)) -> 34.85548574 | Q42: 34.75 | S42: 39.5 | T42: -4.75 | U42: -0.1202531646 | W42: ='Ggl. Prog.'!AF42-'Ggl. Prog.'!P42 -> -8545.6
A43: =Parameter!B40 -> Schorndorf | B43: 1 | C43: ='Ggl. Prog.'!AF43/1000 -> 45.94728571 | D43: ='KG akt.'!K43 -> 30 | E43: =Zählung!I43 -> 13 | F43: 0 | G43: 0 | H43: 0 | I43: 0 | J43: =IF(C43=0,0,(O43-K43-L43-M43-N43)*J$63/Parameter!$A$11-C43*J$64/Parameter!$A$11) -> 4.62920377 | K43: =Zählung!D43 -> 0 | L43: =Zählung!F43 -> 0 | M43: =Zählung!H43 -> 0 | O43: =IF(C43=0,0,(B43*B$57+C43*C$57+D43*D$57+E43*E$57+F43*F$57+G43*G$57+H43*H$57+I43*I$57+K43*K$57+L43*L$57+M43*M$57+N43*N$57-(K43+L43+M43+N43)*J$63*$J$57/Parameter!$A$11-C43*J$64*$J$57/Parameter!$A$11)/(1-J$63*$J$57/Parameter!$A$11)) -> 26.74337854 | Q43: 26.75 | S43: 31.75 | T43: -5 | U43: -0.157480315 | W43: ='Ggl. Prog.'!AF43-'Ggl. Prog.'!P43 -> -6597.714286
A44: =Parameter!B41 -> Schwäbisch Gmünd | B44: 1 | C44: ='Ggl. Prog.'!AF44/1000 -> 28.8734 | D44: ='KG akt.'!K44 -> 21 | E44: =Zählung!I44 -> 7 | F44: 0 | G44: 0 | H44: 4.002424465 | I44: 0 | J44: =IF(C44=0,0,(O44-K44-L44-M44-N44)*J$63/Parameter!$A$11-C44*J$64/Parameter!$A$11) -> 3.387978248 | K44: =Zählung!D44 -> 0 | L44: =Zählung!F44 -> 0.25 | M44: =Zählung!H44 -> 0 | O44: =IF(C44=0,0,(B44*B$57+C44*C$57+D44*D$57+E44*E$57+F44*F$57+G44*G$57+H44*H$57+I44*I$57+K44*K$57+L44*L$57+M44*M$57+N44*N$57-(K44+L44+M44+N44)*J$63*$J$57/Parameter!$A$11-C44*J$64*$J$57/Parameter!$A$11)/(1-J$63*$J$57/Parameter!$A$11)) -> 18.76623342 | Q44: 18.75 | S44: 21.5 | T44: -2.75 | U44: -0.1279069767 | W44: ='Ggl. Prog.'!AF44-'Ggl. Prog.'!P44 -> -2361.6
A45: =Parameter!B42 -> Schwäbisch Hall | B45: 1 | C45: ='Ggl. Prog.'!AF45/1000 -> 34.82297143 | D45: ='KG akt.'!K45 -> 36.5 | E45: =Zählung!I45 -> 9 | F45: 0 | G45: 4.513117882 | H45: 0 | I45: 0 | J45: =IF(C45=0,0,(O45-K45-L45-M45-N45)*J$63/Parameter!$A$11-C45*J$64/Parameter!$A$11) -> 5.191406886 | K45: =Zählung!D45 -> 0 | L45: =Zählung!F45 -> 0 | M45: =Zählung!H45 -> 0 | O45: =IF(C45=0,0,(B45*B$57+C45*C$57+D45*D$57+E45*E$57+F45*F$57+G45*G$57+H45*H$57+I45*I$57+K45*K$57+L45*L$57+M45*M$57+N45*N$57-(K45+L45+M45+N45)*J$63*$J$57/Parameter!$A$11-C45*J$64*$J$57/Parameter!$A$11)/(1-J$63*$J$57/Parameter!$A$11)) -> 26.27917697 | Q45: 26.25 | S45: 28.25 | T45: -2 | U45: -0.07079646018 | W45: ='Ggl. Prog.'!AF45-'Ggl. Prog.'!P45 -> -2205.028571
A46: =Parameter!B43 -> Stuttgart | B46: 1 | C46: ='Ggl. Prog.'!AF46/1000 -> 45.67662857 | D46: ='KG akt.'!K46 -> 26.5 | E46: =Zählung!I46 -> 15 | F46: 0 | G46: 0 | H46: 0 | I46: 102.0322879 | J46: =IF(C46=0,0,(O46-K46-L46-M46-N46)*J$63/Parameter!$A$11-C46*J$64/Parameter!$A$11) -> 4.827268679 | K46: =Zählung!D46 -> 0 | L46: =Zählung!F46 -> 0 | M46: =Zählung!H46 -> 0 | N46: 2 | O46: =IF(C46=0,0,(B46*B$57+C46*C$57+D46*D$57+E46*E$57+F46*F$57+G46*G$57+H46*H$57+I46*I$57+K46*K$57+L46*L$57+M46*M$57+N46*N$57-(K46+L46+M46+N46)*J$63*$J$57/Parameter!$A$11-C46*J$64*$J$57/Parameter!$A$11)/(1-J$63*$J$57/Parameter!$A$11)) -> 29.39060719 | Q46: 29.5 | S46: 35 | T46: -5.5 | U46: -0.1571428571 | W46: ='Ggl. Prog.'!AF46-'Ggl. Prog.'!P46 -> -5673.371429
A47: =Parameter!B44 -> Sulz/Neckar | B47: 1 | C47: ='Ggl. Prog.'!AF47/1000 -> 32.13902857 | D47: ='KG akt.'!K47 -> 33.5 | E47: =Zählung!I47 -> 10 | F47: 0 | G47: 5.217120418 | H47: 6.055121484 | I47: 0 | J47: =IF(C47=0,0,(O47-K47-L47-M47-N47)*J$63/Parameter!$A$11-C47*J$64/Parameter!$A$11) -> 5.156687656 | K47: =Zählung!D47 -> 0.25 | L47: =Zählung!F47 -> 0 | M47: =Zählung!H47 -> 0 | O47: =IF(C47=0,0,(B47*B$57+C47*C$57+D47*D$57+E47*E$57+F47*F$57+G47*G$57+H47*H$57+I47*I$57+K47*K$57+L47*L$57+M47*M$57+N47*N$57-(K47+L47+M47+N47)*J$63*$J$57/Parameter!$A$11-C47*J$64*$J$57/Parameter!$A$11)/(1-J$63*$J$57/Parameter!$A$11)) -> 25.80874798 | Q47: 25.75 | S47: 30.25 | T47: -4.5 | U47: -0.1487603306 | W47: ='Ggl. Prog.'!AF47-'Ggl. Prog.'!P47 -> -3170.971429
A48: =Parameter!B45 -> Tübingen | B48: 1 | C48: ='Ggl. Prog.'!AF48/1000 -> 75.69957143 | D48: ='KG akt.'!K48 -> 48.5 | E48: =Zählung!I48 -> 16 | F48: 0 | G48: 0 | H48: 1.81893131 | I48: 72.47584493 | J48: =IF(C48=0,0,(O48-K48-L48-M48-N48)*J$63/Parameter!$A$11-C48*J$64/Parameter!$A$11) -> 7.590067581 | K48: =Zählung!D48 -> 0 | L48: =Zählung!F48 -> 0 | M48: =Zählung!H48 -> 0 | O48: =IF(C48=0,0,(B48*B$57+C48*C$57+D48*D$57+E48*E$57+F48*F$57+G48*G$57+H48*H$57+I48*I$57+K48*K$57+L48*L$57+M48*M$57+N48*N$57-(K48+L48+M48+N48)*J$63*$J$57/Parameter!$A$11-C48*J$64*$J$57/Parameter!$A$11)/(1-J$63*$J$57/Parameter!$A$11)) -> 43.9295112 | Q48: 44 | S48: 49.5 | T48: -5.5 | U48: -0.1111111111 | W48: ='Ggl. Prog.'!AF48-'Ggl. Prog.'!P48 -> -7243.428571
A49: =Parameter!B46 -> Tuttlingen | B49: 1 | C49: ='Ggl. Prog.'!AF49/1000 -> 47.03628571 | D49: ='KG akt.'!K49 -> 26.5 | E49: =Zählung!I49 -> 17 | F49: 0 | G49: 2.758623077 | H49: 6.668768838 | I49: 60.52754781 | J49: =IF(C49=0,0,(O49-K49-L49-M49-N49)*J$63/Parameter!$A$11-C49*J$64/Parameter!$A$11) -> 5.162437763 | K49: =Zählung!D49 -> 0.75 | L49: =Zählung!F49 -> 0.25 | M49: =Zählung!H49 -> 0 | O49: =IF(C49=0,0,(B49*B$57+C49*C$57+D49*D$57+E49*E$57+F49*F$57+G49*G$57+H49*H$57+I49*I$57+K49*K$57+L49*L$57+M49*M$57+N49*N$57-(K49+L49+M49+N49)*J$63*$J$57/Parameter!$A$11-C49*J$64*$J$57/Parameter!$A$11)/(1-J$63*$J$57/Parameter!$A$11)) -> 29.88978566 | Q49: 30 | S49: 33.5 | T49: -3.5 | U49: -0.1044776119 | W49: ='Ggl. Prog.'!AF49-'Ggl. Prog.'!P49 -> -6085.714286
A50: =Parameter!B47 -> Ulm | B50: 1 | C50: ='Ggl. Prog.'!AF50/1000 -> 44.89742857 | D50: ='KG akt.'!K50 -> 36 | E50: =Zählung!I50 -> 13 | F50: 0 | G50: 2.650560822 | H50: 2.147543608 | I50: 60.90666333 | J50: =IF(C50=0,0,(O50-K50-L50-M50-N50)*J$63/Parameter!$A$11-C50*J$64/Parameter!$A$11) -> 5.731268645 | K50: =Zählung!D50 -> 0.25 | L50: =Zählung!F50 -> 0 | M50: =Zählung!H50 -> 0 | N50: 1 | O50: =IF(C50=0,0,(B50*B$57+C50*C$57+D50*D$57+E50*E$57+F50*F$57+G50*G$57+H50*H$57+I50*I$57+K50*K$57+L50*L$57+M50*M$57+N50*N$57-(K50+L50+M50+N50)*J$63*$J$57/Parameter!$A$11-C50*J$64*$J$57/Parameter!$A$11)/(1-J$63*$J$57/Parameter!$A$11)) -> 31.69602294 | Q50: 31.75 | S50: 35.25 | T50: -3.5 | U50: -0.09929078014 | W50: ='Ggl. Prog.'!AF50-'Ggl. Prog.'!P50 -> -5044.571429
A51: =Parameter!B48 -> Vaihingen an der Enz | B51: 1 | C51: ='Ggl. Prog.'!AF51/1000 -> 24.29568571 | D51: ='KG akt.'!K51 -> 20.5 | E51: =Zählung!I51 -> 3 | F51: 0 | G51: 0 | H51: 0 | I51: 0 | J51: =IF(C51=0,0,(O51-K51-L51-M51-N51)*J$63/Parameter!$A$11-C51*J$64/Parameter!$A$11) -> 2.977629908 | K51: =Zählung!D51 -> 0 | L51: =Zählung!F51 -> 0 | M51: =Zählung!H51 -> 0 | O51: =IF(C51=0,0,(B51*B$57+C51*C$57+D51*D$57+E51*E$57+F51*F$57+G51*G$57+H51*H$57+I51*I$57+K51*K$57+L51*L$57+M51*M$57+N51*N$57-(K51+L51+M51+N51)*J$63*$J$57/Parameter!$A$11-C51*J$64*$J$57/Parameter!$A$11)/(1-J$63*$J$57/Parameter!$A$11)) -> 16.0334338 | Q51: 16 | S51: 19.5 | T51: -3.5 | U51: -0.1794871795 | W51: ='Ggl. Prog.'!AF51-'Ggl. Prog.'!P51 -> -3463.314286
A52: =Parameter!B49 -> Waiblingen | B52: 1 | C52: ='Ggl. Prog.'!AF52/1000 -> 57.81694286 | D52: ='KG akt.'!K52 -> 38 | E52: =Zählung!I52 -> 4 | F52: 0 | G52: 0 | H52: 0 | I52: 73.97503611 | J52: =IF(C52=0,0,(O52-K52-L52-M52-N52)*J$63/Parameter!$A$11-C52*J$64/Parameter!$A$11) -> 5.823425691 | K52: =Zählung!D52 -> 0 | L52: =Zählung!F52 -> 0 | M52: =Zählung!H52 -> 0 | O52: =IF(C52=0,0,(B52*B$57+C52*C$57+D52*D$57+E52*E$57+F52*F$57+G52*G$57+H52*H$57+I52*I$57+K52*K$57+L52*L$57+M52*M$57+N52*N$57-(K52+L52+M52+N52)*J$63*$J$57/Parameter!$A$11-C52*J$64*$J$57/Parameter!$A$11)/(1-J$63*$J$57/Parameter!$A$11)) -> 33.64615842 | Q52: 33.75 | S52: 38 | T52: -4.25 | U52: -0.1118421053 | W52: ='Ggl. Prog.'!AF52-'Ggl. Prog.'!P52 -> -9226.057143
A53: =Parameter!B50 -> Weikersheim | B53: 1 | C53: ='Ggl. Prog.'!AF53/1000 -> 16.43228571 | D53: ='KG akt.'!K53 -> 23.5 | E53: =Zählung!I53 -> 2 | F53: 0 | G53: 4.725977311 | H53: 0.7251930164 | I53: 0 | J53: =IF(C53=0,0,(O53-K53-L53-M53-N53)*J$63/Parameter!$A$11-C53*J$64/Parameter!$A$11) -> 3.399626742 | K53: =Zählung!D53 -> 0 | L53: =Zählung!F53 -> 0 | M53: =Zählung!H53 -> 0 | O53: =IF(C53=0,0,(B53*B$57+C53*C$57+D53*D$57+E53*E$57+F53*F$57+G53*G$57+H53*H$57+I53*I$57+K53*K$57+L53*L$57+M53*M$57+N53*N$57-(K53+L53+M53+N53)*J$63*$J$57/Parameter!$A$11-C53*J$64*$J$57/Parameter!$A$11)/(1-J$63*$J$57/Parameter!$A$11)) -> 15.79314313 | Q53: 15.75 | S53: 18.25 | T53: -2.5 | U53: -0.1369863014 | W53: ='Ggl. Prog.'!AF53-'Ggl. Prog.'!P53 -> -1661.714286
A54: =Parameter!B51 -> Weinsberg | B54: 1 | C54: ='Ggl. Prog.'!AF54/1000 -> 25.70091429 | D54: ='KG akt.'!K54 -> 23 | E54: =Zählung!I54 -> 4 | F54: 0 | G54: 1.931218882 | H54: 0 | I54: 0 | J54: =IF(C54=0,0,(O54-K54-L54-M54-N54)*J$63/Parameter!$A$11-C54*J$64/Parameter!$A$11) -> 3.402692702 | K54: =Zählung!D54 -> 0.5 | L54: =Zählung!F54 -> 0 | M54: =Zählung!H54 -> 0 | O54: =IF(C54=0,0,(B54*B$57+C54*C$57+D54*D$57+E54*E$57+F54*F$57+G54*G$57+H54*H$57+I54*I$57+K54*K$57+L54*L$57+M54*M$57+N54*N$57-(K54+L54+M54+N54)*J$63*$J$57/Parameter!$A$11-C54*J$64*$J$57/Parameter!$A$11)/(1-J$63*$J$57/Parameter!$A$11)) -> 18.36378822 | Q54: 18.25 | S54: 21 | T54: -2.75 | U54: -0.130952381 | W54: ='Ggl. Prog.'!AF54-'Ggl. Prog.'!P54 -> -2703.085714
A55: =Parameter!B52 -> Zuffenhausen | B55: 0.5 | C55: ='Ggl. Prog.'!AF55/1000 -> 22.35705714 | D55: ='KG akt.'!K55 -> 13.5 | E55: =Zählung!I55 -> 16 | G55: 0 | H55: 0 | I55: 57.12894059 | J55: =IF(C55=0,0,(O55-K55-L55-M55-N55)*J$63/Parameter!$A$11-C55*J$64/Parameter!$A$11) -> 2.649229369 | K55: =Zählung!D55 -> 0 | L55: =Zählung!F55 -> 0 | M55: =Zählung!H55 -> 0 | O55: =IF(C55=0,0,(B55*B$57+C55*C$57+D55*D$57+E55*E$57+F55*F$57+G55*G$57+H55*H$57+I55*I$57+K55*K$57+L55*L$57+M55*M$57+N55*N$57-(K55+L55+M55+N55)*J$63*$J$57/Parameter!$A$11-C55*J$64*$J$57/Parameter!$A$11)/(1-J$63*$J$57/Parameter!$A$11)) -> 14.42976838 | Q55: 14.5 | S55: 18.75 | T55: -4.25 | U55: -0.2266666667 | W55: ='Ggl. Prog.'!AF55-'Ggl. Prog.'!P55 -> -5509.942857
A56: Summen (Werte) | B56: =SUM(B5:B55) -> 49.5 | C56: =SUM(C5:C55) -> 1816.725171 | D56: 1378.5 | E56: 464 | F56: 0 | G56: 83.83848802 | H56: 94.74071959 | I56: 1188.869417 | J56: 219.122131 | K56: 11 | L56: 3.5 | M56: 1.75 | N56: =SUM(N5:N55) -> 5 | O56: =SUM(O5:O55) -> 1207.545744 | P56: =SUM(P5:P55) -> 0 | Q56: =SUM(Q5:Q55) -> 1207 | S56: =SUM(S5:S55) -> 1391.75 | U56: =QUADRATESMME(U5:U55) ->  | W56: =SUM(W5:W55) -> -235945.8286
A57: Multiplikatoren (teilweise gerundet) | B57: 1 | C57: =C61*$C$63 -> 0.2857601578 | D57: =D61*$C$63 -> 0.2485752381 | E57: 0.06 | G57: =15/SUM(G5:G55) -> 0.1789154403 | H57: =10/SUM(H5:H55) -> 0.1055512355 | I57: =15/SUM(I5:I55) -> 0.01261702907 | J57: =J61*$C$63 -> 0.94535 | K57: 1 | L57: 1 | M57: 1 | N57: 1
A58: Summen (Stellen) | B58: =$B$57*SUM(B5:B55) -> 49.5 | C58: =C57*SUM(C5:C55) -> 519.1476717 | D58: 342.6609657 | E58: 27.84 | F58: 0 | G58: 15 | H58: 10 | I58: 15 | J58: =J57*SUM(J5:J55) -> 207.1471065 | K58: =K57*SUM(K5:K55) -> 11 | L58: =L57*SUM(L5:L55) -> 3.5 | M58: =M57*SUM(M5:M55) -> 1.75 | N58: =N57*SUM(N5:N55) -> 5
A59: Anteile | B59: =B58/$O$56 -> 0.0409922359 | C59: 0.4299196733 | D59: 0.2837664473 | E59: 0.02305502722 | F59: 0 | G59: 0.01242188967 | H59: 0.008281259779 | I59: 0.01242188967 | J59: 0.1715439001 | K59: 0.009109385756 | L59: 0.002898440923 | M59: 0.001449220461 | N59: 0.004140629889
A61: Ursprüngliche Multiplikatoren PP 2006: | C61: 0.3022797459 | D61: 0.2629451929 | J61: 1
A63: Faktor für Mulitplikatoren: | C63: 0.94535 | D63: ="(Multiplikator für PP 2006 mal ''Faktor'' = Multiplikator für PP "&Parameter!A2&")" -> (Multiplikator für PP 2006 mal ''Faktor'' = Multiplikator für PP 2024) | J63: 7
J64: =7/4.5 -> 1.555555556 | Y64: Kontrollbereich (darf keine Einträge anzeigen):
A65: Umrechnung aus der Personalstrukturplanung: | Y65: =Q56-ROUND(P73,0) -> 0 | Z65: =Q56-Anteile!AE57 -> 0 | AA65: ='Ggl. Korr.'!R57-'Ggl. Prog.'!P56 -> 0
A66: Rechnerisch Vollbeschäftigte 2024 (Zahl aus der PSP 2016), plus 15 Aufnahmen über andere Zugänge (= 14 rechnerisch Vollbeschäftigte), plus 15 Beauftragungen im Ruhestand: | P66: =1422+14+15 -> 1451 | Y66: =ROUND(S73-Q56+T73,0) -> 0 | Z66: =ROUND(SUM(C5:C55)*1000-'Ggl. Prog.'!AF56,1) -> 0 | AA66: ='KG Korr.'!A5-'KG akt.'!G57 -> 0
A67: Abzug für "sonstige Dienstaufträge" außerhalb des regulären Stellenplans (Wartestand, Übergangsdienstaufträge, Sonderfälle auf beweglichen Pfarrstellen): | P67: -110 | Y67: =O56-SUM(B58:N58) -> 0
A68: Zuzüglich durchschnittliche Vakaturrate im Pfarrdienst ingesamt: | P68: 90 | Z68: ='Ggl. Historie'!AC56-'Ggl. Prog.'!F56 -> 0
A69: Zuzüglich Dienstaufträge anderer Professionen, die in Arbeitsbereichen des Zielstellenplans Sonderpfarrdienst eingesetzt werden können: | P69: 15
A70: Für die Verteilung auf Zielstellenplan Sonderpfarrdienst und PfarrPlan zur Verfügung stehende Stellen (Summe aus den vorigen Zeilen): | P70: =SUM(P66:P69) -> 1446
A71: Aufteilung im Verhältnis 16,5 Prozent zu 83,5 Prozent:
A72: Zielstellenplan Sonderpfarrdienst (gerundet auf volle Stellen), darin enthalten 15 durch andere Professionen zu besetzende Angestellten- oder Beamtenstellen: | P72: =P70*Q72 -> 238.59 | Q72: 0.165 | S72: Kürzung im PfarrPlan:
A73: Zielzahlen des PfarrPlans 2024 (gerundet auf volle Stellen): | P73: =P70*(Q73) -> 1207.41 | Q73: =1-Q72 -> 0.835 | S73: =SUM(S5:S55) -> 1391.75 | T73: =-S73+ROUND(P73,0) -> -184.75 | U73: =(S73-P73)/S73 -> 0.132451949

Sheet Anteile
A1: ="PfarrPlan " & Parameter!A2 & ": Auf die einzelnen Merkmale entfallende Stellenanteile" -> PfarrPlan 2024: Auf die einzelnen Merkmale entfallende Stellenanteile
A2: ="Stand der Gemeindeglieder- und Kirchengemeindedaten: 31.12."&Parameter!A8 -> Stand der Gemeindeglieder- und Kirchengemeindedaten: 31.12.2016
A3: =Berechnung!A3 -> 0 | B3: =Berechnung!B3 -> 1 | C3: =Berechnung!C3 -> 2 | D3: =Berechnung!C3 -> 2 | E3: =Berechnung!E3 -> 4 | F3: =Berechnung!D3 -> 3 | G3: =Berechnung!G3 -> 5 | H3: =Berechnung!E3 -> 4 | I3: =Berechnung!I3 -> 7 | J3: =Berechnung!F3 -> 5 | K3: =Berechnung!K3 -> 9 | L3: =Berechnung!G3 -> 5 | M3: =Berechnung!M3 -> 11 | N3: =Berechnung!H3 -> 6 | O3: =Berechnung!O3 -> 13 | P3: =Berechnung!I3 -> 7 | Q3: =Berechnung!Q3 -> 15 | R3: =Berechnung!J3 -> 8 | S3: =Berechnung!S3 -> 17 | T3: =Berechnung!K3 -> 9 | U3: =Berechnung!U3 -> 19 | V3: =Berechnung!L3 -> 10 | W3: =Berechnung!W3 -> 21 | X3: =Berechnung!M3 -> 11 | Y3: =Berechnung!Y3 -> 0 | Z3: =Berechnung!N3 -> 12 | AA3: =Berechnung!AA3 -> 0 | AB3: =Berechnung!O3 -> 13 | AC3: =Berechnung!AC3 -> 0 | AD3: =Berechnung!P3 -> 14 | AE3: =Berechnung!Q3 -> 15
A4: =Parameter!B1 -> Dekanat/Kirchenbezirk | B4: =Berechnung!B4 -> Grundaufwand Kirchenbezirk (Sockel) | D4: =Berechnung!C4 -> Seelsorge, Kasualien, gemeindl. Leben (Zahl der Gemeindeglieder in Tausend) | F4: =Berechnung!D4 -> Verkündigung und Leitung (mod. Zahl der Kirchengemeinden) | H4: =Berechnung!E4 -> Weiterer Aufwand für Verkündigung (Anzahl zusätzliche Predigtstellen) | J4: =Berechnung!F4 -> Überdurchschnittliche Urbanität mit Zentralfunktion | L4: =Berechnung!G4 -> Überdurchschnittliche Ländlichkeit | N4: =Berechnung!H4 -> Klassische Diaspora | P4: =Berechnung!I4 -> Moderne Diaspora | R4: =Berechnung!J4 -> Religionsunterricht (aufgrund Formel) | T4: =Berechnung!K4 -> Stellenanteile für Krankenhausseelsorge | V4: =Berechnung!L4 -> Stellenanteile für Hochschulseelsorge | X4: =Berechnung!M4 -> Stellenanteile für Reha-Seelsorge | Z4: =Berechnung!N4 -> Stellenanteile für überregionale Aufgaben im landeskirchl. Interesse | AB4: =Berechnung!O4 -> Aus den vorigen Spalten: Zielzahlen 2024 (in der Anzeige gerundet auf 3 Stellen) | AD4: =Berechnung!P4 -> Ggf. Korrekturen (Stellenanteile) | AE4: =Berechnung!Q4 -> Aus den vorigen Spalten: Zielzahlen 2024 (gerundet auf Viertelstellen)
A5: =Parameter!B2 -> Aalen | B5: =Berechnung!B5*Berechnung!$B$57/Berechnung!O5 -> 0.0429880411 | C5: =Berechnung!B5*Berechnung!B$57 -> 1 | D5: =Berechnung!C5*Berechnung!C$57/Berechnung!O5 -> 0.4135053553 | E5: =Berechnung!C5*Berechnung!C$57 -> 9.619078812 | F5: =Berechnung!D5*Berechnung!D$57/Berechnung!O5 -> 0.2457725387 | G5: =Berechnung!D5*Berechnung!D$57 -> 5.717230477 | H5: =Berechnung!E5*Berechnung!E$57/Berechnung!O5 -> 0.03095138959 | I5: =Berechnung!E5*Berechnung!E$57 -> 0.72 | J5: =Berechnung!F5*Berechnung!F$57/Berechnung!O5 -> 0 | K5: =Berechnung!F5*Berechnung!F$57 -> 0 | L5: =Berechnung!G5*Berechnung!G$57/Berechnung!O5 -> 0.01099227859 | M5: =Berechnung!G5*Berechnung!G$57 -> 0.255705501 | N5: =Berechnung!H5*Berechnung!H$57/Berechnung!O5 -> 0.03669816061 | O5: =Berechnung!H5*Berechnung!H$57 -> 0.8536830168 | P5: =Berechnung!I5*Berechnung!I$57/Berechnung!O5 -> 0 | Q5: =Berechnung!I5*Berechnung!I$57 -> 0 | R5: =Berechnung!J5*Berechnung!J$57/Berechnung!O5 -> 0.1653571847 | S5: =Berechnung!J5*Berechnung!J$57 -> 3.846585713 | T5: =Berechnung!K5*Berechnung!K$57/Berechnung!O5 -> 0.0429880411 | U5: =Berechnung!K5*Berechnung!K$57 -> 1 | V5: =Berechnung!L5*Berechnung!L$57/Berechnung!O5 -> 0.01074701028 | W5: =Berechnung!L5*Berechnung!K$57 -> 0.25 | X5: =Berechnung!M5/Berechnung!O5 -> 0 | Y5: =Berechnung!M5*Berechnung!M$57 -> 0 | Z5: =Berechnung!N5/Berechnung!O5 -> 0 | AA5: =Berechnung!N5*Berechnung!N$57 -> 0 | AB5: =Z5+X5+V5+T5+R5+P5+N5+L5+J5+H5+F5+D5+B5 -> 1 | AC5: =AA5+Y5+W5+U5+S5+Q5+O5+M5+K5+I5+G5+E5+C5 -> 23.26228352 | AD5: =Berechnung!P5 -> 0 | AE5: =Berechnung!Q5 -> 23.25
A6: =Parameter!B3 -> Backnang | B6: =Berechnung!B6*Berechnung!$B$57/Berechnung!O6 -> 0.04393657582 | C6: =Berechnung!B6*Berechnung!B$57 -> 1 | D6: =Berechnung!C6*Berechnung!C$57/Berechnung!O6 -> 0.4606052911 | E6: =Berechnung!C6*Berechnung!C$57 -> 10.48341348 | F6: =Berechnung!D6*Berechnung!D$57/Berechnung!O6 -> 0.2730386199 | G6: =Berechnung!D6*Berechnung!D$57 -> 6.214380953 | H6: =Berechnung!E6*Berechnung!E$57/Berechnung!O6 -> 0.03690672369 | I6: =Berechnung!E6*Berechnung!E$57 -> 0.84 | J6: =Berechnung!F6*Berechnung!F$57/Berechnung!O6 -> 0 | K6: =Berechnung!F6*Berechnung!F$57 -> 0 | L6: =Berechnung!G6*Berechnung!G$57/Berechnung!O6 -> 0.01562724441 | M6: =Berechnung!G6*Berechnung!G$57 -> 0.3556773399 | N6: =Berechnung!H6*Berechnung!H$57/Berechnung!O6 -> 0 | O6: =Berechnung!H6*Berechnung!H$57 -> 0 | P6: =Berechnung!I6*Berechnung!I$57/Berechnung!O6 -> 0 | Q6: =Berechnung!I6*Berechnung!I$57 -> 0 | R6: =Berechnung!J6*Berechnung!J$57/Berechnung!O6 -> 0.1698855451 | S6: =Berechnung!J6*Berechnung!J$57 -> 3.866608672 | T6: =Berechnung!K6*Berechnung!K$57/Berechnung!O6 -> 0 | U6: =Berechnung!K6*Berechnung!K$57 -> 0 | V6: =Berechnung!L6*Berechnung!L$57/Berechnung!O6 -> 0 | W6: =Berechnung!L6*Berechnung!K$57 -> 0 | X6: =Berechnung!M6/Berechnung!O6 -> 0 | Y6: =Berechnung!M6*Berechnung!M$57 -> 0 | Z6: =Berechnung!N6/Berechnung!O6 -> 0 | AA6: =Berechnung!N6*Berechnung!N$57 -> 0 | AB6: =Z6+X6+V6+T6+R6+P6+N6+L6+J6+H6+F6+D6+B6 -> 1 | AC6: =AA6+Y6+W6+U6+S6+Q6+O6+M6+K6+I6+G6+E6+C6 -> 22.76008044 | AD6: =Berechnung!P6 -> 0 | AE6: =Berechnung!Q6 -> 22.75
A7: =Parameter!B4 -> Bad Cannstatt | B7: =Berechnung!B7*Berechnung!$B$57/Berechnung!O7 -> 0.03057040644 | C7: =Berechnung!B7*Berechnung!B$57 -> 0.5 | D7: =Berechnung!C7*Berechnung!C$57/Berechnung!O7 -> 0.4300451693 | E7: =Berechnung!C7*Berechnung!C$57 -> 7.033684195 | F7: =Berechnung!D7*Berechnung!D$57/Berechnung!O7 -> 0.3115608885 | G7: =Berechnung!D7*Berechnung!D$57 -> 5.095792381 | H7: =Berechnung!E7*Berechnung!E$57/Berechnung!O7 -> 0.003668448773 | I7: =Berechnung!E7*Berechnung!E$57 -> 0.06 | J7: =Berechnung!F7*Berechnung!F$57/Berechnung!O7 -> 0 | K7: =Berechnung!F7*Berechnung!F$57 -> 0 | L7: =Berechnung!G7*Berechnung!G$57/Berechnung!O7 -> 0 | M7: =Berechnung!G7*Berechnung!G$57 -> 0 | N7: =Berechnung!H7*Berechnung!H$57/Berechnung!O7 -> 0 | O7: =Berechnung!H7*Berechnung!H$57 -> 0 | P7: =Berechnung!I7*Berechnung!I$57/Berechnung!O7 -> 0.04797894944 | Q7: =Berechnung!I7*Berechnung!I$57 -> 0.7847286807 | R7: =Berechnung!J7*Berechnung!J$57/Berechnung!O7 -> 0.1761761376 | S7: =Berechnung!J7*Berechnung!J$57 -> 2.881481767 | T7: =Berechnung!K7*Berechnung!K$57/Berechnung!O7 -> 0 | U7: =Berechnung!K7*Berechnung!K$57 -> 0 | V7: =Berechnung!L7*Berechnung!L$57/Berechnung!O7 -> 0 | W7: =Berechnung!L7*Berechnung!K$57 -> 0 | X7: =Berechnung!M7/Berechnung!O7 -> 0 | Y7: =Berechnung!M7*Berechnung!M$57 -> 0 | Z7: =Berechnung!N7/Berechnung!O7 -> 0 | AA7: =Berechnung!N7*Berechnung!N$57 -> 0 | AB7: 1 | AC7: 16.35568702 | AD7: =Berechnung!P7 -> 0 | AE7: =Berechnung!Q7 -> 16.25
A8: =Parameter!B5 -> Bad Urach-Münsingen | B8: =Berechnung!B8*Berechnung!$B$57/Berechnung!O8 -> 0.0493247153 | C8: =Berechnung!B8*Berechnung!B$57 -> 2 | D8: =Berechnung!C8*Berechnung!C$57/Berechnung!O8 -> 0.3563890195 | E8: =Berechnung!C8*Berechnung!C$57 -> 14.45072789 | F8: =Berechnung!D8*Berechnung!D$57/Berechnung!O8 -> 0.3218486998 | G8: =Berechnung!D8*Berechnung!D$57 -> 13.0502 | H8: =Berechnung!E8*Berechnung!E$57/Berechnung!O8 -> 0.01775689751 | I8: =Berechnung!E8*Berechnung!E$57 -> 0.72 | J8: =Berechnung!F8*Berechnung!F$57/Berechnung!O8 -> 0 | K8: =Berechnung!F8*Berechnung!F$57 -> 0 | L8: =Berechnung!G8*Berechnung!G$57/Berechnung!O8 -> 0.02696222633 | M8: =Berechnung!G8*Berechnung!G$57 -> 1.09325421 | N8: =Berechnung!H8*Berechnung!H$57/Berechnung!O8 -> 0.00917926696 | O8: =Berechnung!H8*Berechnung!H$57 -> 0.3721974634 | P8: =Berechnung!I8*Berechnung!I$57/Berechnung!O8 -> 0 | Q8: =Berechnung!I8*Berechnung!I$57 -> 0 | R8: =Berechnung!J8*Berechnung!J$57/Berechnung!O8 -> 0.1815456381 | S8: =Berechnung!J8*Berechnung!J$57 -> 7.361244234 | T8: =Berechnung!K8*Berechnung!K$57/Berechnung!O8 -> 0.02466235765 | U8: =Berechnung!K8*Berechnung!K$57 -> 1 | V8: =Berechnung!L8*Berechnung!L$57/Berechnung!O8 -> 0 | W8: =Berechnung!L8*Berechnung!K$57 -> 0 | X8: =Berechnung!M8/Berechnung!O8 -> 0.01233117883 | Y8: =Berechnung!M8*Berechnung!M$57 -> 0.5 | Z8: =Berechnung!N8/Berechnung!O8 -> 0 | AA8: =Berechnung!N8*Berechnung!N$57 -> 0 | AB8: 1 | AC8: 40.5476238 | AD8: =Berechnung!P8 -> 0 | AE8: =Berechnung!Q8 -> 40.5
A9: =Parameter!B6 -> Balingen | B9: =Berechnung!B9*Berechnung!$B$57/Berechnung!O9 -> 0.0281003617 | C9: =Berechnung!B9*Berechnung!B$57 -> 1 | D9: =Berechnung!C9*Berechnung!C$57/Berechnung!O9 -> 0.4296785446 | E9: =Berechnung!C9*Berechnung!C$57 -> 15.29085459 | F9: =Berechnung!D9*Berechnung!D$57/Berechnung!O9 -> 0.2584470017 | G9: =Berechnung!D9*Berechnung!D$57 -> 9.19728381 | H9: =Berechnung!E9*Berechnung!E$57/Berechnung!O9 -> 0.03709247744 | I9: =Berechnung!E9*Berechnung!E$57 -> 1.32 | J9: =Berechnung!F9*Berechnung!F$57/Berechnung!O9 -> 0 | K9: =Berechnung!F9*Berechnung!F$57 -> 0 | L9: =Berechnung!G9*Berechnung!G$57/Berechnung!O9 -> 0.02259283332 | M9: =Berechnung!G9*Berechnung!G$57 -> 0.8040050717 | N9: =Berechnung!H9*Berechnung!H$57/Berechnung!O9 -> 0.02200936133 | O9: =Berechnung!H9*Berechnung!H$57 -> 0.7832412113 | P9: =Berechnung!I9*Berechnung!I$57/Berechnung!O9 -> 0 | Q9: =Berechnung!I9*Berechnung!I$57 -> 0 | R9: =Berechnung!J9*Berechnung!J$57/Berechnung!O9 -> 0.1669539678 | S9: =Berechnung!J9*Berechnung!J$57 -> 5.941345867 | T9: =Berechnung!K9*Berechnung!K$57/Berechnung!O9 -> 0.0281003617 | U9: =Berechnung!K9*Berechnung!K$57 -> 1 | V9: =Berechnung!L9*Berechnung!L$57/Berechnung!O9 -> 0.007025090424 | W9: =Berechnung!L9*Berechnung!K$57 -> 0.25 | X9: =Berechnung!M9/Berechnung!O9 -> 0 | Y9: =Berechnung!M9*Berechnung!M$57 -> 0 | Z9: =Berechnung!N9/Berechnung!O9 -> 0 | AA9: =Berechnung!N9*Berechnung!N$57 -> 0 | AB9: 1 | AC9: 35.58673055 | AD9: =Berechnung!P9 -> 0 | AE9: =Berechnung!Q9 -> 35.5
A10: =Parameter!B7 -> Bernhausen | B10: =Berechnung!B10*Berechnung!$B$57/Berechnung!O10 -> 0.04451166862 | C10: =Berechnung!B10*Berechnung!B$57 -> 1 | D10: =Berechnung!C10*Berechnung!C$57/Berechnung!O10 -> 0.518998529 | E10: =Berechnung!C10*Berechnung!C$57 -> 11.6598309 | F10: =Berechnung!D10*Berechnung!D$57/Berechnung!O10 -> 0.2323544711 | G10: =Berechnung!D10*Berechnung!D$57 -> 5.22008 | H10: =Berechnung!E10*Berechnung!E$57/Berechnung!O10 -> 0.0160242007 | I10: =Berechnung!E10*Berechnung!E$57 -> 0.36 | J10: =Berechnung!F10*Berechnung!F$57/Berechnung!O10 -> 0 | K10: =Berechnung!F10*Berechnung!F$57 -> 0 | L10: =Berechnung!G10*Berechnung!G$57/Berechnung!O10 -> 0 | M10: =Berechnung!G10*Berechnung!G$57 -> 0 | N10: =Berechnung!H10*Berechnung!H$57/Berechnung!O10 -> 0.0002771797131 | O10: =Berechnung!H10*Berechnung!H$57 -> 0.006227124745 | P10: =Berechnung!I10*Berechnung!I$57/Berechnung!O10 -> 0.02996825512 | Q10: =Berechnung!I10*Berechnung!I$57 -> 0.6732673936 | R10: =Berechnung!J10*Berechnung!J$57/Berechnung!O10 -> 0.1578656957 | S10: =Berechnung!J10*Berechnung!J$57 -> 3.546613744 | T10: =Berechnung!K10*Berechnung!K$57/Berechnung!O10 -> 0 | U10: =Berechnung!K10*Berechnung!K$57 -> 0 | V10: =Berechnung!L10*Berechnung!L$57/Berechnung!O10 -> 0 | W10: =Berechnung!L10*Berechnung!K$57 -> 0 | X10: =Berechnung!M10/Berechnung!O10 -> 0 | Y10: =Berechnung!M10*Berechnung!M$57 -> 0 | Z10: =Berechnung!N10/Berechnung!O10 -> 0 | AA10: =Berechnung!N10*Berechnung!N$57 -> 0 | AB10: 1 | AC10: 22.46601916 | AD10: =Berechnung!P10 -> 0 | AE10: =Berechnung!Q10 -> 22.5
A11: =Parameter!B8 -> Besigheim | B11: =Berechnung!B11*Berechnung!$B$57/Berechnung!O11 -> 0.0459986297 | C11: =Berechnung!B11*Berechnung!B$57 -> 1 | D11: =Berechnung!C11*Berechnung!C$57/Berechnung!O11 -> 0.5023147019 | E11: =Berechnung!C11*Berechnung!C$57 -> 10.92021013 | F11: =Berechnung!D11*Berechnung!D$57/Berechnung!O11 -> 0.2572677074 | G11: =Berechnung!D11*Berechnung!D$57 -> 5.592942857 | H11: =Berechnung!E11*Berechnung!E$57/Berechnung!O11 -> 0.03311901338 | I11: =Berechnung!E11*Berechnung!E$57 -> 0.72 | J11: =Berechnung!F11*Berechnung!F$57/Berechnung!O11 -> 0 | K11: =Berechnung!F11*Berechnung!F$57 -> 0 | L11: =Berechnung!G11*Berechnung!G$57/Berechnung!O11 -> 0 | M11: =Berechnung!G11*Berechnung!G$57 -> 0 | N11: =Berechnung!H11*Berechnung!H$57/Berechnung!O11 -> 0 | O11: =Berechnung!H11*Berechnung!H$57 -> 0 | P11: =Berechnung!I11*Berechnung!I$57/Berechnung!O11 -> 0 | Q11: =Berechnung!I11*Berechnung!I$57 -> 0 | R11: =Berechnung!J11*Berechnung!J$57/Berechnung!O11 -> 0.1612999476 | S11: =Berechnung!J11*Berechnung!J$57 -> 3.50662506 | T11: =Berechnung!K11*Berechnung!K$57/Berechnung!O11 -> 0 | U11: =Berechnung!K11*Berechnung!K$57 -> 0 | V11: =Berechnung!L11*Berechnung!L$57/Berechnung!O11 -> 0 | W11: =Berechnung!L11*Berechnung!K$57 -> 0 | X11: =Berechnung!M11/Berechnung!O11 -> 0 | Y11: =Berechnung!M11*Berechnung!M$57 -> 0 | Z11: =Berechnung!N11/Berechnung!O11 -> 0 | AA11: =Berechnung!N11*Berechnung!N$57 -> 0 | AB11: 1 | AC11: 21.73977804 | AD11: =Berechnung!P11 -> 0 | AE11: =Berechnung!Q11 -> 21.75
A12: =Parameter!B9 -> Biberach | B12: =Berechnung!B12*Berechnung!$B$57/Berechnung!O12 -> 0.03226996237 | C12: =Berechnung!B12*Berechnung!B$57 -> 1 | D12: =Berechnung!C12*Berechnung!C$57/Berechnung!O12 -> 0.3976761374 | E12: =Berechnung!C12*Berechnung!C$57 -> 12.32341497 | F12: =Berechnung!D12*Berechnung!D$57/Berechnung!O12 -> 0.2125701099 | G12: =Berechnung!D12*Berechnung!D$57 -> 6.58724381 | H12: =Berechnung!E12*Berechnung!E$57/Berechnung!O12 -> 0.03291536162 | I12: =Berechnung!E12*Berechnung!E$57 -> 1.02 | J12: =Berechnung!F12*Berechnung!F$57/Berechnung!O12 -> 0 | K12: =Berechnung!F12*Berechnung!F$57 -> 0 | L12: =Berechnung!G12*Berechnung!G$57/Berechnung!O12 -> 0.02928253106 | M12: =Berechnung!G12*Berechnung!G$57 -> 0.9074237744 | N12: =Berechnung!H12*Berechnung!H$57/Berechnung!O12 -> 0.06159591478 | O12: =Berechnung!H12*Berechnung!H$57 -> 1.90876934 | P12: =Berechnung!I12*Berechnung!I$57/Berechnung!O12 -> 0.02119069121 | Q12: =Berechnung!I12*Berechnung!I$57 -> 0.6566692258 | R12: =Berechnung!J12*Berechnung!J$57/Berechnung!O12 -> 0.1721618387 | S12: =Berechnung!J12*Berechnung!J$57 -> 5.335049253 | T12: =Berechnung!K12*Berechnung!K$57/Berechnung!O12 -> 0.03226996237 | U12: =Berechnung!K12*Berechnung!K$57 -> 1 | V12: =Berechnung!L12*Berechnung!L$57/Berechnung!O12 -> 0.008067490594 | W12: =Berechnung!L12*Berechnung!K$57 -> 0.25 | X12: =Berechnung!M12/Berechnung!O12 -> 0 | Y12: =Berechnung!M12*Berechnung!M$57 -> 0 | Z12: =Berechnung!N12/Berechnung!O12 -> 0 | AA12: =Berechnung!N12*Berechnung!N$57 -> 0 | AB12: 1 | AC12: 30.98857037 | AD12: =Berechnung!P12 -> 0 | AE12: =Berechnung!Q12 -> 31
A13: =Parameter!B10 -> Blaubeuren | B13: =Berechnung!B13*Berechnung!$B$57/Berechnung!O13 -> 0.05238438245 | C13: =Berechnung!B13*Berechnung!B$57 -> 1 | D13: =Berechnung!C13*Berechnung!C$57/Berechnung!O13 -> 0.3169058271 | E13: =Berechnung!C13*Berechnung!C$57 -> 6.049624187 | F13: =Berechnung!D13*Berechnung!D$57/Berechnung!O13 -> 0.345068699 | G13: =Berechnung!D13*Berechnung!D$57 -> 6.58724381 | H13: =Berechnung!E13*Berechnung!E$57/Berechnung!O13 -> 0.006286125894 | I13: =Berechnung!E13*Berechnung!E$57 -> 0.12 | J13: =Berechnung!F13*Berechnung!F$57/Berechnung!O13 -> 0 | K13: =Berechnung!F13*Berechnung!F$57 -> 0 | L13: =Berechnung!G13*Berechnung!G$57/Berechnung!O13 -> 0.0380172328 | M13: =Berechnung!G13*Berechnung!G$57 -> 0.7257360119 | N13: =Berechnung!H13*Berechnung!H$57/Berechnung!O13 -> 0.02261346335 | O13: =Berechnung!H13*Berechnung!H$57 -> 0.4316833052 | P13: =Berechnung!I13*Berechnung!I$57/Berechnung!O13 -> 0 | Q13: =Berechnung!I13*Berechnung!I$57 -> 0 | R13: =Berechnung!J13*Berechnung!J$57/Berechnung!O13 -> 0.1925320782 | S13: =Berechnung!J13*Berechnung!J$57 -> 3.675371727 | T13: =Berechnung!K13*Berechnung!K$57/Berechnung!O13 -> 0.02619219122 | U13: =Berechnung!K13*Berechnung!K$57 -> 0.5 | V13: =Berechnung!L13*Berechnung!L$57/Berechnung!O13 -> 0 | W13: =Berechnung!L13*Berechnung!K$57 -> 0 | X13: =Berechnung!M13/Berechnung!O13 -> 0 | Y13: =Berechnung!M13*Berechnung!M$57 -> 0 | Z13: =Berechnung!N13/Berechnung!O13 -> 0 | AA13: =Berechnung!N13*Berechnung!N$57 -> 0 | AB13: 1 | AC13: 19.08965904 | AD13: =Berechnung!P13 -> 0 | AE13: =Berechnung!Q13 -> 19
A14: =Parameter!B11 -> Blaufelden | B14: =Berechnung!B14*Berechnung!$B$57/Berechnung!O14 -> 0.05991437033 | C14: =Berechnung!B14*Berechnung!B$57 -> 1 | D14: =Berechnung!C14*Berechnung!C$57/Berechnung!O14 -> 0.2974054514 | E14: =Berechnung!C14*Berechnung!C$57 -> 4.963841726 | F14: =Berechnung!D14*Berechnung!D$57/Berechnung!O14 -> 0.3648841073 | G14: =Berechnung!D14*Berechnung!D$57 -> 6.090093334 | H14: =Berechnung!E14*Berechnung!E$57/Berechnung!O14 -> 0 | I14: =Berechnung!E14*Berechnung!E$57 -> 0 | J14: =Berechnung!F14*Berechnung!F$57/Berechnung!O14 -> 0 | K14: =Berechnung!F14*Berechnung!F$57 -> 0 | L14: =Berechnung!G14*Berechnung!G$57/Berechnung!O14 -> 0.07431695287 | M14: =Berechnung!G14*Berechnung!G$57 -> 1.240386112 | N14: =Berechnung!H14*Berechnung!H$57/Berechnung!O14 -> 0 | O14: =Berechnung!H14*Berechnung!H$57 -> 0 | P14: =Berechnung!I14*Berechnung!I$57/Berechnung!O14 -> 0 | Q14: =Berechnung!I14*Berechnung!I$57 -> 0 | R14: =Berechnung!J14*Berechnung!J$57/Berechnung!O14 -> 0.203479118 | S14: =Berechnung!J14*Berechnung!J$57 -> 3.396165509 | T14: =Berechnung!K14*Berechnung!K$57/Berechnung!O14 -> 0 | U14: =Berechnung!K14*Berechnung!K$57 -> 0 | V14: =Berechnung!L14*Berechnung!L$57/Berechnung!O14 -> 0 | W14: =Berechnung!L14*Berechnung!K$57 -> 0 | X14: =Berechnung!M14/Berechnung!O14 -> 0 | Y14: =Berechnung!M14*Berechnung!M$57 -> 0 | Z14: =Berechnung!N14/Berechnung!O14 -> 0 | AA14: =Berechnung!N14*Berechnung!N$57 -> 0 | AB14: 1 | AC14: 16.69048668 | AD14: =Berechnung!P14 -> 0 | AE14: =Berechnung!Q14 -> 16.75
A15: =Parameter!B12 -> Böblingen | B15: =Berechnung!B15*Berechnung!$B$57/Berechnung!O15 -> 0.03342550437 | C15: =Berechnung!B15*Berechnung!B$57 -> 1 | D15: =Berechnung!C15*Berechnung!C$57/Berechnung!O15 -> 0.5135134598 | E15: =Berechnung!C15*Berechnung!C$57 -> 15.3629233 | F15: =Berechnung!D15*Berechnung!D$57/Berechnung!O15 -> 0.2367994521 | G15: =Berechnung!D15*Berechnung!D$57 -> 7.084394286 | H15: =Berechnung!E15*Berechnung!E$57/Berechnung!O15 -> 0.02406636314 | I15: =Berechnung!E15*Berechnung!E$57 -> 0.72 | J15: =Berechnung!F15*Berechnung!F$57/Berechnung!O15 -> 0 | K15: =Berechnung!F15*Berechnung!F$57 -> 0 | L15: =Berechnung!G15*Berechnung!G$57/Berechnung!O15 -> 0 | M15: =Berechnung!G15*Berechnung!G$57 -> 0 | N15: =Berechnung!H15*Berechnung!H$57/Berechnung!O15 -> 0 | O15: =Berechnung!H15*Berechnung!H$57 -> 0 | P15: =Berechnung!I15*Berechnung!I$57/Berechnung!O15 -> 0.03320046078 | Q15: =Berechnung!I15*Berechnung!I$57 -> 0.9932673092 | R15: =Berechnung!J15*Berechnung!J$57/Berechnung!O15 -> 0.1589947597 | S15: =Berechnung!J15*Berechnung!J$57 -> 4.756689921 | T15: =Berechnung!K15*Berechnung!K$57/Berechnung!O15 -> 0 | U15: =Berechnung!K15*Berechnung!K$57 -> 0 | V15: =Berechnung!L15*Berechnung!L$57/Berechnung!O15 -> 0 | W15: =Berechnung!L15*Berechnung!K$57 -> 0 | X15: =Berechnung!M15/Berechnung!O15 -> 0 | Y15: =Berechnung!M15*Berechnung!M$57 -> 0 | Z15: =Berechnung!N15/Berechnung!O15 -> 0 | AA15: =Berechnung!N15*Berechnung!N$57 -> 0 | AB15: 1 | AC15: 29.91727482 | AD15: =Berechnung!P15 -> 0 | AE15: =Berechnung!Q15 -> 30
A16: =Parameter!B13 -> Brackenheim | B16: =Berechnung!B16*Berechnung!$B$57/Berechnung!O16 -> 0.05928343651 | C16: =Berechnung!B16*Berechnung!B$57 -> 1 | D16: =Berechnung!C16*Berechnung!C$57/Berechnung!O16 -> 0.4007613222 | E16: =Berechnung!C16*Berechnung!C$57 -> 6.760089255 | F16: =Berechnung!D16*Berechnung!D$57/Berechnung!O16 -> 0.3315688728 | G16: =Berechnung!D16*Berechnung!D$57 -> 5.592942857 | H16: =Berechnung!E16*Berechnung!E$57/Berechnung!O16 -> 0.007114012382 | I16: =Berechnung!E16*Berechnung!E$57 -> 0.12 | J16: =Berechnung!F16*Berechnung!F$57/Berechnung!O16 -> 0 | K16: =Berechnung!F16*Berechnung!F$57 -> 0 | L16: =Berechnung!G16*Berechnung!G$57/Berechnung!O16 -> 0.01906833851 | M16: =Berechnung!G16*Berechnung!G$57 -> 0.3216469832 | N16: =Berechnung!H16*Berechnung!H$57/Berechnung!O16 -> 0 | O16: =Berechnung!H16*Berechnung!H$57 -> 0 | P16: =Berechnung!I16*Berechnung!I$57/Berechnung!O16 -> 0 | Q16: =Berechnung!I16*Berechnung!I$57 -> 0 | R16: =Berechnung!J16*Berechnung!J$57/Berechnung!O16 -> 0.1822040176 | S16: =Berechnung!J16*Berechnung!J$57 -> 3.073438861 | T16: =Berechnung!K16*Berechnung!K$57/Berechnung!O16 -> 0 | U16: =Berechnung!K16*Berechnung!K$57 -> 0 | V16: =Berechnung!L16*Berechnung!L$57/Berechnung!O16 -> 0 | W16: =Berechnung!L16*Berechnung!K$57 -> 0 | X16: =Berechnung!M16/Berechnung!O16 -> 0 | Y16: =Berechnung!M16*Berechnung!M$57 -> 0 | Z16: =Berechnung!N16/Berechnung!O16 -> 0 | AA16: =Berechnung!N16*Berechnung!N$57 -> 0 | AB16: 1 | AC16: 16.86811796 | AD16: =Berechnung!P16 -> 0 | AE16: =Berechnung!Q16 -> 16.75
A17: =Parameter!B14 -> Calw | B17: =Berechnung!B17*Berechnung!$B$57/Berechnung!O17 -> 0.04297182197 | C17: =Berechnung!B17*Berechnung!B$57 -> 1 | D17: =Berechnung!C17*Berechnung!C$57/Berechnung!O17 -> 0.3332127974 | E17: =Berechnung!C17*Berechnung!C$57 -> 7.754216186 | F17: =Berechnung!D17*Berechnung!D$57/Berechnung!O17 -> 0.352497119 | G17: =Berechnung!D17*Berechnung!D$57 -> 8.202982858 | H17: =Berechnung!E17*Berechnung!E$57/Berechnung!O17 -> 0.02062647454 | I17: =Berechnung!E17*Berechnung!E$57 -> 0.48 | J17: =Berechnung!F17*Berechnung!F$57/Berechnung!O17 -> 0 | K17: =Berechnung!F17*Berechnung!F$57 -> 0 | L17: =Berechnung!G17*Berechnung!G$57/Berechnung!O17 -> 0.03088541682 | M17: =Berechnung!G17*Berechnung!G$57 -> 0.7187364977 | N17: =Berechnung!H17*Berechnung!H$57/Berechnung!O17 -> 0 | O17: =Berechnung!H17*Berechnung!H$57 -> 0 | P17: =Berechnung!I17*Berechnung!I$57/Berechnung!O17 -> 0 | Q17: =Berechnung!I17*Berechnung!I$57 -> 0 | R17: =Berechnung!J17*Berechnung!J$57/Berechnung!O17 -> 0.1875775038 | S17: =Berechnung!J17*Berechnung!J$57 -> 4.365128012 | T17: =Berechnung!K17*Berechnung!K$57/Berechnung!O17 -> 0.03222886648 | U17: =Berechnung!K17*Berechnung!K$57 -> 0.75 | V17: =Berechnung!L17*Berechnung!L$57/Berechnung!O17 -> 0 | W17: =Berechnung!L17*Berechnung!K$57 -> 0 | X17: =Berechnung!M17/Berechnung!O17 -> 0 | Y17: =Berechnung!M17*Berechnung!M$57 -> 0 | Z17: =Berechnung!N17/Berechnung!O17 -> 0 | AA17: =Berechnung!N17*Berechnung!N$57 -> 0 | AB17: 1 | AC17: 23.27106355 | AD17: =Berechnung!P17 -> 0 | AE17: =Berechnung!Q17 -> 23.25
A18: =Parameter!B15 -> Crailsheim | B18: =Berechnung!B18*Berechnung!$B$57/Berechnung!O18 -> 0.04911891254 | C18: =Berechnung!B18*Berechnung!B$57 -> 1 | D18: =Berechnung!C18*Berechnung!C$57/Berechnung!O18 -> 0.3710220262 | E18: =Berechnung!C18*Berechnung!C$57 -> 7.553547239 | F18: =Berechnung!D18*Berechnung!D$57/Berechnung!O18 -> 0.335767998 | G18: =Berechnung!D18*Berechnung!D$57 -> 6.835819048 | H18: =Berechnung!E18*Berechnung!E$57/Berechnung!O18 -> 0.01178853901 | I18: =Berechnung!E18*Berechnung!E$57 -> 0.24 | J18: =Berechnung!F18*Berechnung!F$57/Berechnung!O18 -> 0 | K18: =Berechnung!F18*Berechnung!F$57 -> 0 | L18: =Berechnung!G18*Berechnung!G$57/Berechnung!O18 -> 0.02738364734 | M18: =Berechnung!G18*Berechnung!G$57 -> 0.5574970194 | N18: =Berechnung!H18*Berechnung!H$57/Berechnung!O18 -> 0.007563919655 | O18: =Berechnung!H18*Berechnung!H$57 -> 0.1539920015 | P18: =Berechnung!I18*Berechnung!I$57/Berechnung!O18 -> 0 | Q18: =Berechnung!I18*Berechnung!I$57 -> 0 | R18: =Berechnung!J18*Berechnung!J$57/Berechnung!O18 -> 0.1850752292 | S18: =Berechnung!J18*Berechnung!J$57 -> 3.7679016 | T18: =Berechnung!K18*Berechnung!K$57/Berechnung!O18 -> 0.01227972814 | U18: =Berechnung!K18*Berechnung!K$57 -> 0.25 | V18: =Berechnung!L18*Berechnung!L$57/Berechnung!O18 -> 0 | W18: =Berechnung!L18*Berechnung!K$57 -> 0 | X18: =Berechnung!M18/Berechnung!O18 -> 0 | Y18: =Berechnung!M18*Berechnung!M$57 -> 0 | Z18: =Berechnung!N18/Berechnung!O18 -> 0 | AA18: =Berechnung!N18*Berechnung!N$57 -> 0 | AB18: 1 | AC18: 20.35875691 | AD18: =Berechnung!P18 -> 0 | AE18: =Berechnung!Q18 -> 20.25
A19: =Parameter!B16 -> Degerloch | B19: =Berechnung!B19*Berechnung!$B$57/Berechnung!O19 -> 0.02391316045 | C19: =Berechnung!B19*Berechnung!B$57 -> 0.5 | D19: =Berechnung!C19*Berechnung!C$57/Berechnung!O19 -> 0.4836068116 | E19: =Berechnung!C19*Berechnung!C$57 -> 10.11172932 | F19: =Berechnung!D19*Berechnung!D$57/Berechnung!O19 -> 0.2496572213 | G19: =Berechnung!D19*Berechnung!D$57 -> 5.22008 | H19: =Berechnung!E19*Berechnung!E$57/Berechnung!O19 -> 0.02008705478 | I19: =Berechnung!E19*Berechnung!E$57 -> 0.42 | J19: =Berechnung!F19*Berechnung!F$57/Berechnung!O19 -> 0 | K19: =Berechnung!F19*Berechnung!F$57 -> 0 | L19: =Berechnung!G19*Berechnung!G$57/Berechnung!O19 -> 0 | M19: =Berechnung!G19*Berechnung!G$57 -> 0 | N19: =Berechnung!H19*Berechnung!H$57/Berechnung!O19 -> 0 | O19: =Berechnung!H19*Berechnung!H$57 -> 0 | P19: =Berechnung!I19*Berechnung!I$57/Berechnung!O19 -> 0.04879321548 | Q19: =Berechnung!I19*Berechnung!I$57 -> 1.020216788 | R19: =Berechnung!J19*Berechnung!J$57/Berechnung!O19 -> 0.1619859563 | S19: =Berechnung!J19*Berechnung!J$57 -> 3.386962517 | T19: =Berechnung!K19*Berechnung!K$57/Berechnung!O19 -> 0 | U19: =Berechnung!K19*Berechnung!K$57 -> 0 | V19: =Berechnung!L19*Berechnung!L$57/Berechnung!O19 -> 0.01195658023 | W19: =Berechnung!L19*Berechnung!K$57 -> 0.25 | X19: =Berechnung!M19/Berechnung!O19 -> 0 | Y19: =Berechnung!M19*Berechnung!M$57 -> 0 | Z19: =Berechnung!N19/Berechnung!O19 -> 0 | AA19: =Berechnung!N19*Berechnung!N$57 -> 0 | AB19: 1 | AC19: 20.90898863 | AD19: =Berechnung!P19 -> 0 | AE19: =Berechnung!Q19 -> 21
A20: =Parameter!B17 -> Ditzingen | B20: =Berechnung!B20*Berechnung!$B$57/Berechnung!O20 -> 0.06611646289 | C20: =Berechnung!B20*Berechnung!B$57 -> 1 | D20: =Berechnung!C20*Berechnung!C$57/Berechnung!O20 -> 0.5168719141 | E20: =Berechnung!C20*Berechnung!C$57 -> 7.817597789 | F20: =Berechnung!D20*Berechnung!D$57/Berechnung!O20 -> 0.2547411904 | G20: =Berechnung!D20*Berechnung!D$57 -> 3.852916191 | H20: =Berechnung!E20*Berechnung!E$57/Berechnung!O20 -> 0.003966987774 | I20: =Berechnung!E20*Berechnung!E$57 -> 0.06 | J20: =Berechnung!F20*Berechnung!F$57/Berechnung!O20 -> 0 | K20: =Berechnung!F20*Berechnung!F$57 -> 0 | L20: =Berechnung!G20*Berechnung!G$57/Berechnung!O20 -> 0 | M20: =Berechnung!G20*Berechnung!G$57 -> 0 | N20: =Berechnung!H20*Berechnung!H$57/Berechnung!O20 -> 0 | O20: =Berechnung!H20*Berechnung!H$57 -> 0 | P20: =Berechnung!I20*Berechnung!I$57/Berechnung!O20 -> 0 | Q20: =Berechnung!I20*Berechnung!I$57 -> 0 | R20: =Berechnung!J20*Berechnung!J$57/Berechnung!O20 -> 0.1583034448 | S20: =Berechnung!J20*Berechnung!J$57 -> 2.394312066 | T20: =Berechnung!K20*Berechnung!K$57/Berechnung!O20 -> 0 | U20: =Berechnung!K20*Berechnung!K$57 -> 0 | V20: =Berechnung!L20*Berechnung!L$57/Berechnung!O20 -> 0 | W20: =Berechnung!L20*Berechnung!K$57 -> 0 | X20: =Berechnung!M20/Berechnung!O20 -> 0 | Y20: =Berechnung!M20*Berechnung!M$57 -> 0 | Z20: =Berechnung!N20/Berechnung!O20 -> 0 | AA20: =Berechnung!N20*Berechnung!N$57 -> 0 | AB20: 1 | AC20: 15.12482605 | AD20: =Berechnung!P20 -> 0 | AE20: =Berechnung!Q20 -> 15
A21: =Parameter!B18 -> Esslingen | B21: =Berechnung!B21*Berechnung!$B$57/Berechnung!O21 -> 0.03363005821 | C21: =Berechnung!B21*Berechnung!B$57 -> 1 | D21: =Berechnung!C21*Berechnung!C$57/Berechnung!O21 -> 0.4906188657 | E21: =Berechnung!C21*Berechnung!C$57 -> 14.58870106 | F21: =Berechnung!D21*Berechnung!D$57/Berechnung!O21 -> 0.2466081919 | G21: =Berechnung!D21*Berechnung!D$57 -> 7.332969524 | H21: =Berechnung!E21*Berechnung!E$57/Berechnung!O21 -> 0.02824924889 | I21: =Berechnung!E21*Berechnung!E$57 -> 0.84 | J21: =Berechnung!F21*Berechnung!F$57/Berechnung!O21 -> 0 | K21: =Berechnung!F21*Berechnung!F$57 -> 0 | L21: =Berechnung!G21*Berechnung!G$57/Berechnung!O21 -> 0 | M21: =Berechnung!G21*Berechnung!G$57 -> 0 | N21: =Berechnung!H21*Berechnung!H$57/Berechnung!O21 -> 0.0007345891368 | O21: =Berechnung!H21*Berechnung!H$57 -> 0.02184323121 | P21: =Berechnung!I21*Berechnung!I$57/Berechnung!O21 -> 0.03026952823 | Q21: =Berechnung!I21*Berechnung!I$57 -> 0.9000736201 | R21: =Berechnung!J21*Berechnung!J$57/Berechnung!O21 -> 0.1614820034 | S21: =Berechnung!J21*Berechnung!J$57 -> 4.80171644 | T21: =Berechnung!K21*Berechnung!K$57/Berechnung!O21 -> 0 | U21: =Berechnung!K21*Berechnung!K$57 -> 0 | V21: =Berechnung!L21*Berechnung!L$57/Berechnung!O21 -> 0.008407514551 | W21: =Berechnung!L21*Berechnung!K$57 -> 0.25 | X21: =Berechnung!M21/Berechnung!O21 -> 0 | Y21: =Berechnung!M21*Berechnung!M$57 -> 0 | Z21: =Berechnung!N21/Berechnung!O21 -> 0 | AA21: =Berechnung!N21*Berechnung!N$57 -> 0 | AB21: 1 | AC21: 29.73530387 | AD21: =Berechnung!P21 -> 0 | AE21: =Berechnung!Q21 -> 29.75
A22: =Parameter!B19 -> Freudenstadt | B22: =Berechnung!B22*Berechnung!$B$57/Berechnung!O22 -> 0.03842805187 | C22: =Berechnung!B22*Berechnung!B$57 -> 1 | D22: =Berechnung!C22*Berechnung!C$57/Berechnung!O22 -> 0.3668780193 | E22: =Berechnung!C22*Berechnung!C$57 -> 9.547140733 | F22: =Berechnung!D22*Berechnung!D$57/Berechnung!O22 -> 0.329553044 | G22: =Berechnung!D22*Berechnung!D$57 -> 8.575845715 | H22: =Berechnung!E22*Berechnung!E$57/Berechnung!O22 -> 0.04611366225 | I22: =Berechnung!E22*Berechnung!E$57 -> 1.2 | J22: =Berechnung!F22*Berechnung!F$57/Berechnung!O22 -> 0 | K22: =Berechnung!F22*Berechnung!F$57 -> 0 | L22: =Berechnung!G22*Berechnung!G$57/Berechnung!O22 -> 0.02933987829 | M22: =Berechnung!G22*Berechnung!G$57 -> 0.7635015791 | N22: =Berechnung!H22*Berechnung!H$57/Berechnung!O22 -> 0.0005086801248 | O22: =Berechnung!H22*Berechnung!H$57 -> 0.01323720824 | P22: =Berechnung!I22*Berechnung!I$57/Berechnung!O22 -> 0 | Q22: =Berechnung!I22*Berechnung!I$57 -> 0 | R22: =Berechnung!J22*Berechnung!J$57/Berechnung!O22 -> 0.1891786642 | S22: =Berechnung!J22*Berechnung!J$57 -> 4.922931425 | T22: =Berechnung!K22*Berechnung!K$57/Berechnung!O22 -> 0 | U22: =Berechnung!K22*Berechnung!K$57 -> 0 | V22: =Berechnung!L22*Berechnung!L$57/Berechnung!O22 -> 0 | W22: =Berechnung!L22*Berechnung!K$57 -> 0 | X22: =Berechnung!M22/Berechnung!O22 -> 0 | Y22: =Berechnung!M22*Berechnung!M$57 -> 0 | Z22: =Berechnung!N22/Berechnung!O22 -> 0 | AA22: =Berechnung!N22*Berechnung!N$57 -> 0 | AB22: 1 | AC22: 26.02265666 | AD22: =Berechnung!P22 -> 0 | AE22: =Berechnung!Q22 -> 26
A23: =Parameter!B20 -> Gaildorf | B23: =Berechnung!B23*Berechnung!$B$57/Berechnung!O23 -> 0.07238296196 | C23: =Berechnung!B23*Berechnung!B$57 -> 1 | D23: =Berechnung!C23*Berechnung!C$57/Berechnung!O23 -> 0.3801797105 | E23: =Berechnung!C23*Berechnung!C$57 -> 5.252337017 | F23: =Berechnung!D23*Berechnung!D$57/Berechnung!O23 -> 0.3238670161 | G23: =Berechnung!D23*Berechnung!D$57 -> 4.474354286 | H23: =Berechnung!E23*Berechnung!E$57/Berechnung!O23 -> 0.008685955435 | I23: =Berechnung!E23*Berechnung!E$57 -> 0.12 | J23: =Berechnung!F23*Berechnung!F$57/Berechnung!O23 -> 0 | K23: =Berechnung!F23*Berechnung!F$57 -> 0 | L23: =Berechnung!G23*Berechnung!G$57/Berechnung!O23 -> 0.02447886876 | M23: =Berechnung!G23*Berechnung!G$57 -> 0.338185508 | N23: =Berechnung!H23*Berechnung!H$57/Berechnung!O23 -> 0.003964885417 | O23: =Berechnung!H23*Berechnung!H$57 -> 0.0547765014 | P23: =Berechnung!I23*Berechnung!I$57/Berechnung!O23 -> 0 | Q23: =Berechnung!I23*Berechnung!I$57 -> 0 | R23: =Berechnung!J23*Berechnung!J$57/Berechnung!O23 -> 0.1864406018 | S23: =Berechnung!J23*Berechnung!J$57 -> 2.575752591 | T23: =Berechnung!K23*Berechnung!K$57/Berechnung!O23 -> 0 | U23: =Berechnung!K23*Berechnung!K$57 -> 0 | V23: =Berechnung!L23*Berechnung!L$57/Berechnung!O23 -> 0 | W23: =Berechnung!L23*Berechnung!K$57 -> 0 | X23: =Berechnung!M23/Berechnung!O23 -> 0 | Y23: =Berechnung!M23*Berechnung!M$57 -> 0 | Z23: =Berechnung!N23/Berechnung!O23 -> 0 | AA23: =Berechnung!N23*Berechnung!N$57 -> 0 | AB23: 1 | AC23: 13.8154059 | AD23: =Berechnung!P23 -> 0 | AE23: =Berechnung!Q23 -> 13.75
A24: =Parameter!B21 -> Geislingen a.d. Steige | B24: =Berechnung!B24*Berechnung!$B$57/Berechnung!O24 -> 0.05660787783 | C24: =Berechnung!B24*Berechnung!B$57 -> 1 | D24: =Berechnung!C24*Berechnung!C$57/Berechnung!O24 -> 0.360983307 | E24: =Berechnung!C24*Berechnung!C$57 -> 6.376909378 | F24: =Berechnung!D24*Berechnung!D$57/Berechnung!O24 -> 0.316604626 | G24: =Berechnung!D24*Berechnung!D$57 -> 5.592942857 | H24: =Berechnung!E24*Berechnung!E$57/Berechnung!O24 -> 0.0339647267 | I24: =Berechnung!E24*Berechnung!E$57 -> 0.6 | J24: =Berechnung!F24*Berechnung!F$57/Berechnung!O24 -> 0 | K24: =Berechnung!F24*Berechnung!F$57 -> 0 | L24: =Berechnung!G24*Berechnung!G$57/Berechnung!O24 -> 0.01622314138 | M24: =Berechnung!G24*Berechnung!G$57 -> 0.2865880511 | N24: =Berechnung!H24*Berechnung!H$57/Berechnung!O24 -> 0.01481829916 | O24: =Berechnung!H24*Berechnung!H$57 -> 0.2617709713 | P24: =Berechnung!I24*Berechnung!I$57/Berechnung!O24 -> 0 | Q24: =Berechnung!I24*Berechnung!I$57 -> 0 | R24: =Berechnung!J24*Berechnung!J$57/Berechnung!O24 -> 0.1866460525 | S24: =Berechnung!J24*Berechnung!J$57 -> 3.29717452 | T24: =Berechnung!K24*Berechnung!K$57/Berechnung!O24 -> 0 | U24: =Berechnung!K24*Berechnung!K$57 -> 0 | V24: =Berechnung!L24*Berechnung!L$57/Berechnung!O24 -> 0.01415196946 | W24: =Berechnung!L24*Berechnung!K$57 -> 0.25 | X24: =Berechnung!M24/Berechnung!O24 -> 0 | Y24: =Berechnung!M24*Berechnung!M$57 -> 0 | Z24: =Berechnung!N24/Berechnung!O24 -> 0 | AA24: =Berechnung!N24*Berechnung!N$57 -> 0 | AB24: 1 | AC24: 17.66538578 | AD24: =Berechnung!P24 -> 0 | AE24: =Berechnung!Q24 -> 17.75
A25: =Parameter!B22 -> Göppingen | B25: =Berechnung!B25*Berechnung!$B$57/Berechnung!O25 -> 0.03213711843 | C25: =Berechnung!B25*Berechnung!B$57 -> 1 | D25: =Berechnung!C25*Berechnung!C$57/Berechnung!O25 -> 0.45104721 | E25: =Berechnung!C25*Berechnung!C$57 -> 14.03508566 | F25: =Berechnung!D25*Berechnung!D$57/Berechnung!O25 -> 0.2915799531 | G25: =Berechnung!D25*Berechnung!D$57 -> 9.072996191 | H25: =Berechnung!E25*Berechnung!E$57/Berechnung!O25 -> 0.02313872527 | I25: =Berechnung!E25*Berechnung!E$57 -> 0.72 | J25: =Berechnung!F25*Berechnung!F$57/Berechnung!O25 -> 0 | K25: =Berechnung!F25*Berechnung!F$57 -> 0 | L25: =Berechnung!G25*Berechnung!G$57/Berechnung!O25 -> 0 | M25: =Berechnung!G25*Berechnung!G$57 -> 0 | N25: =Berechnung!H25*Berechnung!H$57/Berechnung!O25 -> 0.001550176854 | O25: =Berechnung!H25*Berechnung!H$57 -> 0.04823633634 | P25: =Berechnung!I25*Berechnung!I$57/Berechnung!O25 -> 0.02278618363 | Q25: =Berechnung!I25*Berechnung!I$57 -> 0.7090300792 | R25: =Berechnung!J25*Berechnung!J$57/Berechnung!O25 -> 0.1697263531 | S25: =Berechnung!J25*Berechnung!J$57 -> 5.281318344 | T25: =Berechnung!K25*Berechnung!K$57/Berechnung!O25 -> 0 | U25: =Berechnung!K25*Berechnung!K$57 -> 0 | V25: =Berechnung!L25*Berechnung!L$57/Berechnung!O25 -> 0.008034279608 | W25: =Berechnung!L25*Berechnung!K$57 -> 0.25 | X25: =Berechnung!M25/Berechnung!O25 -> 0 | Y25: =Berechnung!M25*Berechnung!M$57 -> 0 | Z25: =Berechnung!N25/Berechnung!O25 -> 0 | AA25: =Berechnung!N25*Berechnung!N$57 -> 0 | AB25: 1 | AC25: 31.11666661 | AD25: =Berechnung!P25 -> 0 | AE25: =Berechnung!Q25 -> 31
A26: =Parameter!B23 -> Heidenheim | B26: =Berechnung!B26*Berechnung!$B$57/Berechnung!O26 -> 0.03814406375 | C26: =Berechnung!B26*Berechnung!B$57 -> 1 | D26: =Berechnung!C26*Berechnung!C$57/Berechnung!O26 -> 0.4436988307 | E26: =Berechnung!C26*Berechnung!C$57 -> 11.63218564 | F26: =Berechnung!D26*Berechnung!D$57/Berechnung!O26 -> 0.3034134314 | G26: =Berechnung!D26*Berechnung!D$57 -> 7.95440762 | H26: =Berechnung!E26*Berechnung!E$57/Berechnung!O26 -> 0.03890694503 | I26: =Berechnung!E26*Berechnung!E$57 -> 1.02 | J26: =Berechnung!F26*Berechnung!F$57/Berechnung!O26 -> 0 | K26: =Berechnung!F26*Berechnung!F$57 -> 0 | L26: =Berechnung!G26*Berechnung!G$57/Berechnung!O26 -> 0 | M26: =Berechnung!G26*Berechnung!G$57 -> 0 | N26: =Berechnung!H26*Berechnung!H$57/Berechnung!O26 -> 0.002471104591 | O26: =Berechnung!H26*Berechnung!H$57 -> 0.06478346426 | P26: =Berechnung!I26*Berechnung!I$57/Berechnung!O26 -> 0 | Q26: =Berechnung!I26*Berechnung!I$57 -> 0 | R26: =Berechnung!J26*Berechnung!J$57/Berechnung!O26 -> 0.1733656246 | S26: =Berechnung!J26*Berechnung!J$57 -> 4.54502241 | T26: =Berechnung!K26*Berechnung!K$57/Berechnung!O26 -> 0 | U26: =Berechnung!K26*Berechnung!K$57 -> 0 | V26: =Berechnung!L26*Berechnung!L$57/Berechnung!O26 -> 0 | W26: =Berechnung!L26*Berechnung!K$57 -> 0 | X26: =Berechnung!M26/Berechnung!O26 -> 0 | Y26: =Berechnung!M26*Berechnung!M$57 -> 0 | Z26: =Berechnung!N26/Berechnung!O26 -> 0 | AA26: =Berechnung!N26*Berechnung!N$57 -> 0 | AB26: 1 | AC26: 26.21639914 | AD26: =Berechnung!P26 -> 0 | AE26: =Berechnung!Q26 -> 26.25
A27: =Parameter!B24 -> Heilbronn | B27: =Berechnung!B27*Berechnung!$B$57/Berechnung!O27 -> 0.03169155078 | C27: =Berechnung!B27*Berechnung!B$57 -> 1 | D27: =Berechnung!C27*Berechnung!C$57/Berechnung!O27 -> 0.471253984 | E27: =Berechnung!C27*Berechnung!C$57 -> 14.87001969 | F27: =Berechnung!D27*Berechnung!D$57/Berechnung!O27 -> 0.2481486456 | G27: =Berechnung!D27*Berechnung!D$57 -> 7.83012 | H27: =Berechnung!E27*Berechnung!E$57/Berechnung!O27 -> 0.01901493047 | I27: =Berechnung!E27*Berechnung!E$57 -> 0.6 | J27: =Berechnung!F27*Berechnung!F$57/Berechnung!O27 -> 0 | K27: =Berechnung!F27*Berechnung!F$57 -> 0 | L27: =Berechnung!G27*Berechnung!G$57/Berechnung!O27 -> 0 | M27: =Berechnung!G27*Berechnung!G$57 -> 0 | N27: =Berechnung!H27*Berechnung!H$57/Berechnung!O27 -> 0 | O27: =Berechnung!H27*Berechnung!H$57 -> 0 | P27: =Berechnung!I27*Berechnung!I$57/Berechnung!O27 -> 0.02724301373 | Q27: =Berechnung!I27*Berechnung!I$57 -> 0.859630187 | R27: =Berechnung!J27*Berechnung!J$57/Berechnung!O27 -> 0.1551105492 | S27: =Berechnung!J27*Berechnung!J$57 -> 4.894381794 | T27: =Berechnung!K27*Berechnung!K$57/Berechnung!O27 -> 0 | U27: =Berechnung!K27*Berechnung!K$57 -> 0 | V27: =Berechnung!L27*Berechnung!L$57/Berechnung!O27 -> 0.007922887696 | W27: =Berechnung!L27*Berechnung!K$57 -> 0.25 | X27: =Berechnung!M27/Berechnung!O27 -> 0.007922887696 | Y27: =Berechnung!M27*Berechnung!M$57 -> 0.25 | Z27: =Berechnung!N27/Berechnung!O27 -> 0.03169155078 | AA27: =Berechnung!N27*Berechnung!N$57 -> 1 | AB27: 1 | AC27: 31.55415167 | AD27: =Berechnung!P27 -> 0 | AE27: =Berechnung!Q27 -> 31.5
A28: =Parameter!B25 -> Herrenberg | B28: =Berechnung!B28*Berechnung!$B$57/Berechnung!O28 -> 0.04717987949 | C28: =Berechnung!B28*Berechnung!B$57 -> 1 | D28: =Berechnung!C28*Berechnung!C$57/Berechnung!O28 -> 0.4678091033 | E28: =Berechnung!C28*Berechnung!C$57 -> 9.915436589 | F28: =Berechnung!D28*Berechnung!D$57/Berechnung!O28 -> 0.2931937445 | G28: =Berechnung!D28*Berechnung!D$57 -> 6.214380953 | H28: =Berechnung!E28*Berechnung!E$57/Berechnung!O28 -> 0.01415396385 | I28: =Berechnung!E28*Berechnung!E$57 -> 0.3 | J28: =Berechnung!F28*Berechnung!F$57/Berechnung!O28 -> 0 | K28: =Berechnung!F28*Berechnung!F$57 -> 0 | L28: =Berechnung!G28*Berechnung!G$57/Berechnung!O28 -> 0 | M28: =Berechnung!G28*Berechnung!G$57 -> 0 | N28: =Berechnung!H28*Berechnung!H$57/Berechnung!O28 -> 0.0005877544111 | O28: =Berechnung!H28*Berechnung!H$57 -> 0.01245773447 | P28: =Berechnung!I28*Berechnung!I$57/Berechnung!O28 -> 0 | Q28: =Berechnung!I28*Berechnung!I$57 -> 0 | R28: =Berechnung!J28*Berechnung!J$57/Berechnung!O28 -> 0.1652805846 | S28: =Berechnung!J28*Berechnung!J$57 -> 3.503200652 | T28: =Berechnung!K28*Berechnung!K$57/Berechnung!O28 -> 0.01179496987 | U28: =Berechnung!K28*Berechnung!K$57 -> 0.25 | V28: =Berechnung!L28*Berechnung!L$57/Berechnung!O28 -> 0 | W28: =Berechnung!L28*Berechnung!K$57 -> 0 | X28: =Berechnung!M28/Berechnung!O28 -> 0 | Y28: =Berechnung!M28*Berechnung!M$57 -> 0 | Z28: =Berechnung!N28/Berechnung!O28 -> 0 | AA28: =Berechnung!N28*Berechnung!N$57 -> 0 | AB28: 1 | AC28: 21.19547593 | AD28: =Berechnung!P28 -> 0 | AE28: =Berechnung!Q28 -> 21.25
A29: =Parameter!B26 -> Kirchheim unter Teck | B29: =Berechnung!B29*Berechnung!$B$57/Berechnung!O29 -> 0.0488933455 | C29: =Berechnung!B29*Berechnung!B$57 -> 1 | D29: =Berechnung!C29*Berechnung!C$57/Berechnung!O29 -> 0.4219167199 | E29: =Berechnung!C29*Berechnung!C$57 -> 8.629328093 | F29: =Berechnung!D29*Berechnung!D$57/Berechnung!O29 -> 0.303841875 | G29: =Berechnung!D29*Berechnung!D$57 -> 6.214380953 | H29: =Berechnung!E29*Berechnung!E$57/Berechnung!O29 -> 0.02053520511 | I29: =Berechnung!E29*Berechnung!E$57 -> 0.42 | J29: =Berechnung!F29*Berechnung!F$57/Berechnung!O29 -> 0 | K29: =Berechnung!F29*Berechnung!F$57 -> 0 | L29: =Berechnung!G29*Berechnung!G$57/Berechnung!O29 -> 0 | M29: =Berechnung!G29*Berechnung!G$57 -> 0 | N29: =Berechnung!H29*Berechnung!H$57/Berechnung!O29 -> 0 | O29: =Berechnung!H29*Berechnung!H$57 -> 0 | P29: =Berechnung!I29*Berechnung!I$57/Berechnung!O29 -> 0 | Q29: =Berechnung!I29*Berechnung!I$57 -> 0 | R29: =Berechnung!J29*Berechnung!J$57/Berechnung!O29 -> 0.1681428453 | S29: =Berechnung!J29*Berechnung!J$57 -> 3.438971982 | T29: =Berechnung!K29*Berechnung!K$57/Berechnung!O29 -> 0.03667000913 | U29: =Berechnung!K29*Berechnung!K$57 -> 0.75 | V29: =Berechnung!L29*Berechnung!L$57/Berechnung!O29 -> 0 | W29: =Berechnung!L29*Berechnung!K$57 -> 0 | X29: =Berechnung!M29/Berechnung!O29 -> 0 | Y29: =Berechnung!M29*Berechnung!M$57 -> 0 | Z29: =Berechnung!N29/Berechnung!O29 -> 0 | AA29: =Berechnung!N29*Berechnung!N$57 -> 0 | AB29: 1 | AC29: 20.45268103 | AD29: =Berechnung!P29 -> 0 | AE29: =Berechnung!Q29 -> 20.5
A30: =Parameter!B27 -> Künzelsau | B30: =Berechnung!B30*Berechnung!$B$57/Berechnung!O30 -> 0.0813495553 | C30: =Berechnung!B30*Berechnung!B$57 -> 1 | D30: =Berechnung!C30*Berechnung!C$57/Berechnung!O30 -> 0.3060310347 | E30: =Berechnung!C30*Berechnung!C$57 -> 3.761926338 | F30: =Berechnung!D30*Berechnung!D$57/Berechnung!O30 -> 0.3033222762 | G30: =Berechnung!D30*Berechnung!D$57 -> 3.728628572 | H30: =Berechnung!E30*Berechnung!E$57/Berechnung!O30 -> 0.01464291995 | I30: =Berechnung!E30*Berechnung!E$57 -> 0.18 | J30: =Berechnung!F30*Berechnung!F$57/Berechnung!O30 -> 0 | K30: =Berechnung!F30*Berechnung!F$57 -> 0 | L30: =Berechnung!G30*Berechnung!G$57/Berechnung!O30 -> 0.05000787666 | M30: =Berechnung!G30*Berechnung!G$57 -> 0.6147283347 | N30: =Berechnung!H30*Berechnung!H$57/Berechnung!O30 -> 0.01303449125 | O30: =Berechnung!H30*Berechnung!H$57 -> 0.1602281807 | P30: =Berechnung!I30*Berechnung!I$57/Berechnung!O30 -> 0 | Q30: =Berechnung!I30*Berechnung!I$57 -> 0 | R30: =Berechnung!J30*Berechnung!J$57/Berechnung!O30 -> 0.1909370683 | S30: =Berechnung!J30*Berechnung!J$57 -> 2.347118771 | T30: =Berechnung!K30*Berechnung!K$57/Berechnung!O30 -> 0.02033738883 | U30: =Berechnung!K30*Berechnung!K$57 -> 0.25 | V30: =Berechnung!L30*Berechnung!L$57/Berechnung!O30 -> 0.02033738883 | W30: =Berechnung!L30*Berechnung!K$57 -> 0.25 | X30: =Berechnung!M30/Berechnung!O30 -> 0 | Y30: =Berechnung!M30*Berechnung!M$57 -> 0 | Z30: =Berechnung!N30/Berechnung!O30 -> 0 | AA30: =Berechnung!N30*Berechnung!N$57 -> 0 | AB30: 1 | AC30: 12.2926302 | AD30: =Berechnung!P30 -> 0 | AE30: =Berechnung!Q30 -> 12.25
A31: =Parameter!B28 -> Leonberg | B31: =Berechnung!B31*Berechnung!$B$57/Berechnung!O31 -> 0.04558906839 | C31: =Berechnung!B31*Berechnung!B$57 -> 1 | D31: =Berechnung!C31*Berechnung!C$57/Berechnung!O31 -> 0.4773007544 | E31: =Berechnung!C31*Berechnung!C$57 -> 10.46963167 | F31: =Berechnung!D31*Berechnung!D$57/Berechnung!O31 -> 0.2833078382 | G31: =Berechnung!D31*Berechnung!D$57 -> 6.214380953 | H31: =Berechnung!E31*Berechnung!E$57/Berechnung!O31 -> 0.02735344103 | I31: =Berechnung!E31*Berechnung!E$57 -> 0.6 | J31: =Berechnung!F31*Berechnung!F$57/Berechnung!O31 -> 0 | K31: =Berechnung!F31*Berechnung!F$57 -> 0 | L31: =Berechnung!G31*Berechnung!G$57/Berechnung!O31 -> 0 | M31: =Berechnung!G31*Berechnung!G$57 -> 0 | N31: =Berechnung!H31*Berechnung!H$57/Berechnung!O31 -> 0 | O31: =Berechnung!H31*Berechnung!H$57 -> 0 | P31: =Berechnung!I31*Berechnung!I$57/Berechnung!O31 -> 0 | Q31: =Berechnung!I31*Berechnung!I$57 -> 0 | R31: =Berechnung!J31*Berechnung!J$57/Berechnung!O31 -> 0.1664488979 | S31: =Berechnung!J31*Berechnung!J$57 -> 3.651070395 | T31: =Berechnung!K31*Berechnung!K$57/Berechnung!O31 -> 0 | U31: =Berechnung!K31*Berechnung!K$57 -> 0 | V31: =Berechnung!L31*Berechnung!L$57/Berechnung!O31 -> 0 | W31: =Berechnung!L31*Berechnung!K$57 -> 0 | X31: =Berechnung!M31/Berechnung!O31 -> 0 | Y31: =Berechnung!M31*Berechnung!M$57 -> 0 | Z31: =Berechnung!N31/Berechnung!O31 -> 0 | AA31: =Berechnung!N31*Berechnung!N$57 -> 0 | AB31: 1 | AC31: 21.93508302 | AD31: =Berechnung!P31 -> 0 | AE31: =Berechnung!Q31 -> 22
A32: =Parameter!B29 -> Ludwigsburg | B32: =Berechnung!B32*Berechnung!$B$57/Berechnung!O32 -> 0.03256675252 | C32: =Berechnung!B32*Berechnung!B$57 -> 1 | D32: =Berechnung!C32*Berechnung!C$57/Berechnung!O32 -> 0.527736557 | E32: =Berechnung!C32*Berechnung!C$57 -> 16.20476456 | F32: =Berechnung!D32*Berechnung!D$57/Berechnung!O32 -> 0.2347633596 | G32: =Berechnung!D32*Berechnung!D$57 -> 7.208681905 | H32: =Berechnung!E32*Berechnung!E$57/Berechnung!O32 -> 0.01367803606 | I32: =Berechnung!E32*Berechnung!E$57 -> 0.42 | J32: =Berechnung!F32*Berechnung!F$57/Berechnung!O32 -> 0 | K32: =Berechnung!F32*Berechnung!F$57 -> 0 | L32: =Berechnung!G32*Berechnung!G$57/Berechnung!O32 -> 0 | M32: =Berechnung!G32*Berechnung!G$57 -> 0 | N32: =Berechnung!H32*Berechnung!H$57/Berechnung!O32 -> 0 | O32: =Berechnung!H32*Berechnung!H$57 -> 0 | P32: =Berechnung!I32*Berechnung!I$57/Berechnung!O32 -> 0.03518826256 | Q32: =Berechnung!I32*Berechnung!I$57 -> 1.080496514 | R32: =Berechnung!J32*Berechnung!J$57/Berechnung!O32 -> 0.1560670323 | S32: =Berechnung!J32*Berechnung!J$57 -> 4.792219678 | T32: =Berechnung!K32*Berechnung!K$57/Berechnung!O32 -> 0 | U32: =Berechnung!K32*Berechnung!K$57 -> 0 | V32: =Berechnung!L32*Berechnung!L$57/Berechnung!O32 -> 0 | W32: =Berechnung!L32*Berechnung!K$57 -> 0 | X32: =Berechnung!M32/Berechnung!O32 -> 0 | Y32: =Berechnung!M32*Berechnung!M$57 -> 0 | Z32: =Berechnung!N32/Berechnung!O32 -> 0 | AA32: =Berechnung!N32*Berechnung!N$57 -> 0 | AB32: 1 | AC32: 30.70616266 | AD32: =Berechnung!P32 -> 0 | AE32: =Berechnung!Q32 -> 30.75
A33: =Parameter!B30 -> Marbach a.N. | B33: =Berechnung!B33*Berechnung!$B$57/Berechnung!O33 -> 0.05139897866 | C33: =Berechnung!B33*Berechnung!B$57 -> 1 | D33: =Berechnung!C33*Berechnung!C$57/Berechnung!O33 -> 0.4920037092 | E33: =Berechnung!C33*Berechnung!C$57 -> 9.572246804 | F33: =Berechnung!D33*Berechnung!D$57/Berechnung!O33 -> 0.2683067805 | G33: =Berechnung!D33*Berechnung!D$57 -> 5.22008 | H33: =Berechnung!E33*Berechnung!E$57/Berechnung!O33 -> 0.0154196936 | I33: =Berechnung!E33*Berechnung!E$57 -> 0.3 | J33: =Berechnung!F33*Berechnung!F$57/Berechnung!O33 -> 0 | K33: =Berechnung!F33*Berechnung!F$57 -> 0 | L33: =Berechnung!G33*Berechnung!G$57/Berechnung!O33 -> 0 | M33: =Berechnung!G33*Berechnung!G$57 -> 0 | N33: =Berechnung!H33*Berechnung!H$57/Berechnung!O33 -> 0 | O33: =Berechnung!H33*Berechnung!H$57 -> 0 | P33: =Berechnung!I33*Berechnung!I$57/Berechnung!O33 -> 0 | Q33: =Berechnung!I33*Berechnung!I$57 -> 0 | R33: =Berechnung!J33*Berechnung!J$57/Berechnung!O33 -> 0.1600210934 | S33: =Berechnung!J33*Berechnung!J$57 -> 3.113312706 | T33: =Berechnung!K33*Berechnung!K$57/Berechnung!O33 -> 0.01284974466 | U33: =Berechnung!K33*Berechnung!K$57 -> 0.25 | V33: =Berechnung!L33*Berechnung!L$57/Berechnung!O33 -> 0 | W33: =Berechnung!L33*Berechnung!K$57 -> 0 | X33: =Berechnung!M33/Berechnung!O33 -> 0 | Y33: =Berechnung!M33*Berechnung!M$57 -> 0 | Z33: =Berechnung!N33/Berechnung!O33 -> 0 | AA33: =Berechnung!N33*Berechnung!N$57 -> 0 | AB33: 1 | AC33: 19.45563951 | AD33: =Berechnung!P33 -> 0 | AE33: =Berechnung!Q33 -> 19.5
A34: =Parameter!B31 -> Mühlacker | B34: =Berechnung!B34*Berechnung!$B$57/Berechnung!O34 -> 0.05096941619 | C34: =Berechnung!B34*Berechnung!B$57 -> 1 | D34: =Berechnung!C34*Berechnung!C$57/Berechnung!O34 -> 0.4004284195 | E34: =Berechnung!C34*Berechnung!C$57 -> 7.856248892 | F34: =Berechnung!D34*Berechnung!D$57/Berechnung!O34 -> 0.3357479713 | G34: =Berechnung!D34*Berechnung!D$57 -> 6.58724381 | H34: =Berechnung!E34*Berechnung!E$57/Berechnung!O34 -> 0.03058164971 | I34: =Berechnung!E34*Berechnung!E$57 -> 0.6 | J34: =Berechnung!F34*Berechnung!F$57/Berechnung!O34 -> 0 | K34: =Berechnung!F34*Berechnung!F$57 -> 0 | L34: =Berechnung!G34*Berechnung!G$57/Berechnung!O34 -> 0 | M34: =Berechnung!G34*Berechnung!G$57 -> 0 | N34: =Berechnung!H34*Berechnung!H$57/Berechnung!O34 -> 0 | O34: =Berechnung!H34*Berechnung!H$57 -> 0 | P34: =Berechnung!I34*Berechnung!I$57/Berechnung!O34 -> 0 | Q34: =Berechnung!I34*Berechnung!I$57 -> 0 | R34: =Berechnung!J34*Berechnung!J$57/Berechnung!O34 -> 0.1822725433 | S34: =Berechnung!J34*Berechnung!J$57 -> 3.576115972 | T34: =Berechnung!K34*Berechnung!K$57/Berechnung!O34 -> 0 | U34: =Berechnung!K34*Berechnung!K$57 -> 0 | V34: =Berechnung!L34*Berechnung!L$57/Berechnung!O34 -> 0 | W34: =Berechnung!L34*Berechnung!K$57 -> 0 | X34: =Berechnung!M34/Berechnung!O34 -> 0 | Y34: =Berechnung!M34*Berechnung!M$57 -> 0 | Z34: =Berechnung!N34/Berechnung!O34 -> 0 | AA34: =Berechnung!N34*Berechnung!N$57 -> 0 | AB34: 1 | AC34: 19.61960867 | AD34: =Berechnung!P34 -> 0 | AE34: =Berechnung!Q34 -> 19.5
A35: =Parameter!B32 -> Münsingen (siehe Bad Urach-Münsigen)
A36: =Parameter!B33 -> Nagold | B36: =Berechnung!B36*Berechnung!$B$57/Berechnung!O36 -> 0.0447029677 | C36: =Berechnung!B36*Berechnung!B$57 -> 1 | D36: =Berechnung!C36*Berechnung!C$57/Berechnung!O36 -> 0.343575017 | E36: =Berechnung!C36*Berechnung!C$57 -> 7.685731723 | F36: =Berechnung!D36*Berechnung!D$57/Berechnung!O36 -> 0.3389175506 | G36: =Berechnung!D36*Berechnung!D$57 -> 7.581544762 | H36: =Berechnung!E36*Berechnung!E$57/Berechnung!O36 -> 0.02682178062 | I36: =Berechnung!E36*Berechnung!E$57 -> 0.6 | J36: =Berechnung!F36*Berechnung!F$57/Berechnung!O36 -> 0 | K36: =Berechnung!F36*Berechnung!F$57 -> 0 | L36: =Berechnung!G36*Berechnung!G$57/Berechnung!O36 -> 0.0334076836 | M36: =Berechnung!G36*Berechnung!G$57 -> 0.747325856 | N36: =Berechnung!H36*Berechnung!H$57/Berechnung!O36 -> 0.002164481593 | O36: =Berechnung!H36*Berechnung!H$57 -> 0.04841919238 | P36: =Berechnung!I36*Berechnung!I$57/Berechnung!O36 -> 0 | Q36: =Berechnung!I36*Berechnung!I$57 -> 0 | R36: =Berechnung!J36*Berechnung!J$57/Berechnung!O36 -> 0.1880590351 | S36: =Berechnung!J36*Berechnung!J$57 -> 4.20685795 | T36: =Berechnung!K36*Berechnung!K$57/Berechnung!O36 -> 0.02235148385 | U36: =Berechnung!K36*Berechnung!K$57 -> 0.5 | V36: =Berechnung!L36*Berechnung!L$57/Berechnung!O36 -> 0 | W36: =Berechnung!L36*Berechnung!K$57 -> 0 | X36: =Berechnung!M36/Berechnung!O36 -> 0 | Y36: =Berechnung!M36*Berechnung!M$57 -> 0 | Z36: =Berechnung!N36/Berechnung!O36 -> 0 | AA36: =Berechnung!N36*Berechnung!N$57 -> 0 | AB36: =Z36+X36+V36+T36+R36+P36+N36+L36+J36+H36+F36+D36+B36 -> 1 | AC36: =AA36+Y36+W36+U36+S36+Q36+O36+M36+K36+I36+G36+E36+C36 -> 22.36987948 | AD36: =Berechnung!P36 -> 0 | AE36: =Berechnung!Q36 -> 22.25
A37: =Parameter!B34 -> Neuenbürg | B37: =Berechnung!B37*Berechnung!$B$57/Berechnung!O37 -> 0.04735958418 | C37: =Berechnung!B37*Berechnung!B$57 -> 1 | D37: =Berechnung!C37*Berechnung!C$57/Berechnung!O37 -> 0.3528024154 | E37: =Berechnung!C37*Berechnung!C$57 -> 7.449440731 | F37: =Berechnung!D37*Berechnung!D$57/Berechnung!O37 -> 0.3237415477 | G37: =Berechnung!D37*Berechnung!D$57 -> 6.835819048 | H37: =Berechnung!E37*Berechnung!E$57/Berechnung!O37 -> 0.03125732556 | I37: =Berechnung!E37*Berechnung!E$57 -> 0.66 | J37: =Berechnung!F37*Berechnung!F$57/Berechnung!O37 -> 0 | K37: =Berechnung!F37*Berechnung!F$57 -> 0 | L37: =Berechnung!G37*Berechnung!G$57/Berechnung!O37 -> 0.01793949906 | M37: =Berechnung!G37*Berechnung!G$57 -> 0.3787934241 | N37: =Berechnung!H37*Berechnung!H$57/Berechnung!O37 -> 0 | O37: =Berechnung!H37*Berechnung!H$57 -> 0 | P37: =Berechnung!I37*Berechnung!I$57/Berechnung!O37 -> 0 | Q37: =Berechnung!I37*Berechnung!I$57 -> 0 | R37: =Berechnung!J37*Berechnung!J$57/Berechnung!O37 -> 0.1795400439 | S37: =Berechnung!J37*Berechnung!J$57 -> 3.79099705 | T37: =Berechnung!K37*Berechnung!K$57/Berechnung!O37 -> 0.02367979209 | U37: =Berechnung!K37*Berechnung!K$57 -> 0.5 | V37: =Berechnung!L37*Berechnung!L$57/Berechnung!O37 -> 0 | W37: =Berechnung!L37*Berechnung!K$57 -> 0 | X37: =Berechnung!M37/Berechnung!O37 -> 0.02367979209 | Y37: =Berechnung!M37*Berechnung!M$57 -> 0.5 | Z37: =Berechnung!N37/Berechnung!O37 -> 0 | AA37: =Berechnung!N37*Berechnung!N$57 -> 0 | AB37: =Z37+X37+V37+T37+R37+P37+N37+L37+J37+H37+F37+D37+B37 -> 1 | AC37: =AA37+Y37+W37+U37+S37+Q37+O37+M37+K37+I37+G37+E37+C37 -> 21.11505025 | AD37: =Berechnung!P37 -> 0 | AE37: =Berechnung!Q37 -> 21
A38: =Parameter!B35 -> Neuenstadt a.K. | B38: =Berechnung!B38*Berechnung!$B$57/Berechnung!O38 -> 0.05452727393 | C38: =Berechnung!B38*Berechnung!B$57 -> 1 | D38: =Berechnung!C38*Berechnung!C$57/Berechnung!O38 -> 0.408496222 | E38: =Berechnung!C38*Berechnung!C$57 -> 7.491594437 | F38: =Berechnung!D38*Berechnung!D$57/Berechnung!O38 -> 0.2981908622 | G38: =Berechnung!D38*Berechnung!D$57 -> 5.468655238 | H38: =Berechnung!E38*Berechnung!E$57/Berechnung!O38 -> 0.03598800079 | I38: =Berechnung!E38*Berechnung!E$57 -> 0.66 | J38: =Berechnung!F38*Berechnung!F$57/Berechnung!O38 -> 0 | K38: =Berechnung!F38*Berechnung!F$57 -> 0 | L38: =Berechnung!G38*Berechnung!G$57/Berechnung!O38 -> 0.0160344587 | M38: =Berechnung!G38*Berechnung!G$57 -> 0.2940630908 | N38: =Berechnung!H38*Berechnung!H$57/Berechnung!O38 -> 0.006151341102 | O38: =Berechnung!H38*Berechnung!H$57 -> 0.1128121884 | P38: =Berechnung!I38*Berechnung!I$57/Berechnung!O38 -> 0 | Q38: =Berechnung!I38*Berechnung!I$57 -> 0 | R38: =Berechnung!J38*Berechnung!J$57/Berechnung!O38 -> 0.1806118412 | S38: =Berechnung!J38*Berechnung!J$57 -> 3.312321124 | T38: =Berechnung!K38*Berechnung!K$57/Berechnung!O38 -> 0 | U38: =Berechnung!K38*Berechnung!K$57 -> 0 | V38: =Berechnung!L38*Berechnung!L$57/Berechnung!O38 -> 0 | W38: =Berechnung!L38*Berechnung!K$57 -> 0 | X38: =Berechnung!M38/Berechnung!O38 -> 0 | Y38: =Berechnung!M38*Berechnung!M$57 -> 0 | Z38: =Berechnung!N38/Berechnung!O38 -> 0 | AA38: =Berechnung!N38*Berechnung!N$57 -> 0 | AB38: 1 | AC38: 18.33944608 | AD38: =Berechnung!P38 -> 0 | AE38: =Berechnung!Q38 -> 18.25
A39: =Parameter!B36 -> Nürtingen | B39: =Berechnung!B39*Berechnung!$B$57/Berechnung!O39 -> 0.03810523457 | C39: =Berechnung!B39*Berechnung!B$57 -> 1 | D39: =Berechnung!C39*Berechnung!C$57/Berechnung!O39 -> 0.4759037693 | E39: =Berechnung!C39*Berechnung!C$57 -> 12.48919668 | F39: =Berechnung!D39*Berechnung!D$57/Berechnung!O39 -> 0.3031045682 | G39: =Berechnung!D39*Berechnung!D$57 -> 7.95440762 | H39: =Berechnung!E39*Berechnung!E$57/Berechnung!O39 -> 0.009145256298 | I39: =Berechnung!E39*Berechnung!E$57 -> 0.24 | J39: =Berechnung!F39*Berechnung!F$57/Berechnung!O39 -> 0 | K39: =Berechnung!F39*Berechnung!F$57 -> 0 | L39: =Berechnung!G39*Berechnung!G$57/Berechnung!O39 -> 0 | M39: =Berechnung!G39*Berechnung!G$57 -> 0 | N39: =Berechnung!H39*Berechnung!H$57/Berechnung!O39 -> 0 | O39: =Berechnung!H39*Berechnung!H$57 -> 0 | P39: =Berechnung!I39*Berechnung!I$57/Berechnung!O39 -> 0 | Q39: =Berechnung!I39*Berechnung!I$57 -> 0 | R39: =Berechnung!J39*Berechnung!J$57/Berechnung!O39 -> 0.1642148629 | S39: =Berechnung!J39*Berechnung!J$57 -> 4.309509304 | T39: =Berechnung!K39*Berechnung!K$57/Berechnung!O39 -> 0 | U39: =Berechnung!K39*Berechnung!K$57 -> 0 | V39: =Berechnung!L39*Berechnung!L$57/Berechnung!O39 -> 0.009526308643 | W39: =Berechnung!L39*Berechnung!K$57 -> 0.25 | X39: =Berechnung!M39/Berechnung!O39 -> 0 | Y39: =Berechnung!M39*Berechnung!M$57 -> 0 | Z39: =Berechnung!N39/Berechnung!O39 -> 0 | AA39: =Berechnung!N39*Berechnung!N$57 -> 0 | AB39: 1 | AC39: 26.24311361 | AD39: =Berechnung!P39 -> 0 | AE39: =Berechnung!Q39 -> 26.25
A40: =Parameter!B37 -> Öhringen | B40: =Berechnung!B40*Berechnung!$B$57/Berechnung!O40 -> 0.05422913478 | C40: =Berechnung!B40*Berechnung!B$57 -> 1 | D40: =Berechnung!C40*Berechnung!C$57/Berechnung!O40 -> 0.4038372567 | E40: =Berechnung!C40*Berechnung!C$57 -> 7.44686889 | F40: =Berechnung!D40*Berechnung!D$57/Berechnung!O40 -> 0.2898204319 | G40: =Berechnung!D40*Berechnung!D$57 -> 5.344367619 | H40: =Berechnung!E40*Berechnung!E$57/Berechnung!O40 -> 0.02277623661 | I40: =Berechnung!E40*Berechnung!E$57 -> 0.42 | J40: =Berechnung!F40*Berechnung!F$57/Berechnung!O40 -> 0 | K40: =Berechnung!F40*Berechnung!F$57 -> 0 | L40: =Berechnung!G40*Berechnung!G$57/Berechnung!O40 -> 0.03779738471 | M40: =Berechnung!G40*Berechnung!G$57 -> 0.6969940579 | N40: =Berechnung!H40*Berechnung!H$57/Berechnung!O40 -> 0 | O40: =Berechnung!H40*Berechnung!H$57 -> 0 | P40: =Berechnung!I40*Berechnung!I$57/Berechnung!O40 -> 0 | Q40: =Berechnung!I40*Berechnung!I$57 -> 0 | R40: =Berechnung!J40*Berechnung!J$57/Berechnung!O40 -> 0.1779822716 | S40: =Berechnung!J40*Berechnung!J$57 -> 3.282041513 | T40: =Berechnung!K40*Berechnung!K$57/Berechnung!O40 -> 0.01355728369 | U40: =Berechnung!K40*Berechnung!K$57 -> 0.25 | V40: =Berechnung!L40*Berechnung!L$57/Berechnung!O40 -> 0 | W40: =Berechnung!L40*Berechnung!K$57 -> 0 | X40: =Berechnung!M40/Berechnung!O40 -> 0 | Y40: =Berechnung!M40*Berechnung!M$57 -> 0 | Z40: =Berechnung!N40/Berechnung!O40 -> 0 | AA40: =Berechnung!N40*Berechnung!N$57 -> 0 | AB40: 1 | AC40: 18.44027208 | AD40: =Berechnung!P40 -> 0 | AE40: =Berechnung!Q40 -> 18.5
A41: =Parameter!B38 -> Ravensburg | B41: =Berechnung!B41*Berechnung!$B$57/Berechnung!O41 -> 0.02652974232 | C41: =Berechnung!B41*Berechnung!B$57 -> 1 | D41: =Berechnung!C41*Berechnung!C$57/Berechnung!O41 -> 0.4202888403 | E41: =Berechnung!C41*Berechnung!C$57 -> 15.84217574 | F41: =Berechnung!D41*Berechnung!D$57/Berechnung!O41 -> 0.2176230215 | G41: =Berechnung!D41*Berechnung!D$57 -> 8.202982858 | H41: =Berechnung!E41*Berechnung!E$57/Berechnung!O41 -> 0.02706033717 | I41: =Berechnung!E41*Berechnung!E$57 -> 1.02 | J41: =Berechnung!F41*Berechnung!F$57/Berechnung!O41 -> 0 | K41: =Berechnung!F41*Berechnung!F$57 -> 0 | L41: =Berechnung!G41*Berechnung!G$57/Berechnung!O41 -> 0 | M41: =Berechnung!G41*Berechnung!G$57 -> 0 | N41: =Berechnung!H41*Berechnung!H$57/Berechnung!O41 -> 0.06043571725 | O41: =Berechnung!H41*Berechnung!H$57 -> 2.278036346 | P41: =Berechnung!I41*Berechnung!I$57/Berechnung!O41 -> 0.03086318499 | Q41: =Berechnung!I41*Berechnung!I$57 -> 1.16334281 | R41: =Berechnung!J41*Berechnung!J$57/Berechnung!O41 -> 0.1641396718 | S41: =Berechnung!J41*Berechnung!J$57 -> 6.187005882 | T41: =Berechnung!K41*Berechnung!K$57/Berechnung!O41 -> 0.02652974232 | U41: =Berechnung!K41*Berechnung!K$57 -> 1 | V41: =Berechnung!L41*Berechnung!L$57/Berechnung!O41 -> 0.01326487116 | W41: =Berechnung!L41*Berechnung!K$57 -> 0.5 | X41: =Berechnung!M41/Berechnung!O41 -> 0.01326487116 | Y41: =Berechnung!M41*Berechnung!M$57 -> 0.5 | Z41: =Berechnung!N41/Berechnung!O41 -> 0 | AA41: =Berechnung!N41*Berechnung!N$57 -> 0 | AB41: 1 | AC41: 37.69354364 | AD41: =Berechnung!P41 -> 0 | AE41: =Berechnung!Q41 -> 37.75
A42: =Parameter!B39 -> Reutlingen | B42: =Berechnung!B42*Berechnung!$B$57/Berechnung!O42 -> 0.02868988851 | C42: =Berechnung!B42*Berechnung!B$57 -> 1 | D42: =Berechnung!C42*Berechnung!C$57/Berechnung!O42 -> 0.4737083954 | E42: =Berechnung!C42*Berechnung!C$57 -> 16.51133622 | F42: =Berechnung!D42*Berechnung!D$57/Berechnung!O42 -> 0.2638690471 | G42: =Berechnung!D42*Berechnung!D$57 -> 9.19728381 | H42: =Berechnung!E42*Berechnung!E$57/Berechnung!O42 -> 0.01893532642 | I42: =Berechnung!E42*Berechnung!E$57 -> 0.66 | J42: =Berechnung!F42*Berechnung!F$57/Berechnung!O42 -> 0 | K42: =Berechnung!F42*Berechnung!F$57 -> 0 | L42: =Berechnung!G42*Berechnung!G$57/Berechnung!O42 -> 0 | M42: =Berechnung!G42*Berechnung!G$57 -> 0 | N42: =Berechnung!H42*Berechnung!H$57/Berechnung!O42 -> 0.004386989374 | O42: =Berechnung!H42*Berechnung!H$57 -> 0.1529106456 | P42: =Berechnung!I42*Berechnung!I$57/Berechnung!O42 -> 0.02212626028 | Q42: =Berechnung!I42*Berechnung!I$57 -> 0.7712215496 | R42: =Berechnung!J42*Berechnung!J$57/Berechnung!O42 -> 0.1595942044 | S42: =Berechnung!J42*Berechnung!J$57 -> 5.562733517 | T42: =Berechnung!K42*Berechnung!K$57/Berechnung!O42 -> 0 | U42: =Berechnung!K42*Berechnung!K$57 -> 0 | V42: =Berechnung!L42*Berechnung!L$57/Berechnung!O42 -> 0 | W42: =Berechnung!L42*Berechnung!K$57 -> 0 | X42: =Berechnung!M42/Berechnung!O42 -> 0 | Y42: =Berechnung!M42*Berechnung!M$57 -> 0 | Z42: =Berechnung!N42/Berechnung!O42 -> 0.02868988851 | AA42: =Berechnung!N42*Berechnung!N$57 -> 1 | AB42: 1 | AC42: 34.85548574 | AD42: =Berechnung!P42 -> 0 | AE42: =Berechnung!Q42 -> 34.75
A43: =Parameter!B40 -> Schorndorf | B43: =Berechnung!B43*Berechnung!$B$57/Berechnung!O43 -> 0.03739243336 | C43: =Berechnung!B43*Berechnung!B$57 -> 1 | D43: =Berechnung!C43*Berechnung!C$57/Berechnung!O43 -> 0.490959046 | E43: =Berechnung!C43*Berechnung!C$57 -> 13.12990362 | F43: =Berechnung!D43*Berechnung!D$57/Berechnung!O43 -> 0.2788449908 | G43: =Berechnung!D43*Berechnung!D$57 -> 7.457257143 | H43: =Berechnung!E43*Berechnung!E$57/Berechnung!O43 -> 0.02916609802 | I43: =Berechnung!E43*Berechnung!E$57 -> 0.78 | J43: =Berechnung!F43*Berechnung!F$57/Berechnung!O43 -> 0 | K43: =Berechnung!F43*Berechnung!F$57 -> 0 | L43: =Berechnung!G43*Berechnung!G$57/Berechnung!O43 -> 0 | M43: =Berechnung!G43*Berechnung!G$57 -> 0 | N43: =Berechnung!H43*Berechnung!H$57/Berechnung!O43 -> 0 | O43: =Berechnung!H43*Berechnung!H$57 -> 0 | P43: =Berechnung!I43*Berechnung!I$57/Berechnung!O43 -> 0 | Q43: =Berechnung!I43*Berechnung!I$57 -> 0 | R43: =Berechnung!J43*Berechnung!J$57/Berechnung!O43 -> 0.1636374319 | S43: =Berechnung!J43*Berechnung!J$57 -> 4.376217784 | T43: =Berechnung!K43*Berechnung!K$57/Berechnung!O43 -> 0 | U43: =Berechnung!K43*Berechnung!K$57 -> 0 | V43: =Berechnung!L43*Berechnung!L$57/Berechnung!O43 -> 0 | W43: =Berechnung!L43*Berechnung!K$57 -> 0 | X43: =Berechnung!M43/Berechnung!O43 -> 0 | Y43: =Berechnung!M43*Berechnung!M$57 -> 0 | Z43: =Berechnung!N43/Berechnung!O43 -> 0 | AA43: =Berechnung!N43*Berechnung!N$57 -> 0 | AB43: 1 | AC43: 26.74337854 | AD43: =Berechnung!P43 -> 0 | AE43: =Berechnung!Q43 -> 26.75
A44: =Parameter!B41 -> Schwäbisch Gmünd | B44: =Berechnung!B44*Berechnung!$B$57/Berechnung!O44 -> 0.0532871982 | C44: =Berechnung!B44*Berechnung!B$57 -> 1 | D44: =Berechnung!C44*Berechnung!C$57/Berechnung!O44 -> 0.4396656033 | E44: =Berechnung!C44*Berechnung!C$57 -> 8.25086734 | F44: =Berechnung!D44*Berechnung!D$57/Berechnung!O44 -> 0.2781634376 | G44: =Berechnung!D44*Berechnung!D$57 -> 5.22008 | H44: =Berechnung!E44*Berechnung!E$57/Berechnung!O44 -> 0.02238062325 | I44: =Berechnung!E44*Berechnung!E$57 -> 0.42 | J44: =Berechnung!F44*Berechnung!F$57/Berechnung!O44 -> 0 | K44: =Berechnung!F44*Berechnung!F$57 -> 0 | L44: =Berechnung!G44*Berechnung!G$57/Berechnung!O44 -> 0 | M44: =Berechnung!G44*Berechnung!G$57 -> 0 | N44: =Berechnung!H44*Berechnung!H$57/Berechnung!O44 -> 0.02251175489 | O44: =Berechnung!H44*Berechnung!H$57 -> 0.4224608471 | P44: =Berechnung!I44*Berechnung!I$57/Berechnung!O44 -> 0 | Q44: =Berechnung!I44*Berechnung!I$57 -> 0 | R44: =Berechnung!J44*Berechnung!J$57/Berechnung!O44 -> 0.1706695832 | S44: =Berechnung!J44*Berechnung!J$57 -> 3.202825236 | T44: =Berechnung!K44*Berechnung!K$57/Berechnung!O44 -> 0 | U44: =Berechnung!K44*Berechnung!K$57 -> 0 | V44: =Berechnung!L44*Berechnung!L$57/Berechnung!O44 -> 0.01332179955 | W44: =Berechnung!L44*Berechnung!K$57 -> 0.25 | X44: =Berechnung!M44/Berechnung!O44 -> 0 | Y44: =Berechnung!M44*Berechnung!M$57 -> 0 | Z44: =Berechnung!N44/Berechnung!O44 -> 0 | AA44: =Berechnung!N44*Berechnung!N$57 -> 0 | AB44: 1 | AC44: 18.76623342 | AD44: =Berechnung!P44 -> 0 | AE44: =Berechnung!Q44 -> 18.75
A45: =Parameter!B42 -> Schwäbisch Hall | B45: =Berechnung!B45*Berechnung!$B$57/Berechnung!O45 -> 0.03805294211 | C45: =Berechnung!B45*Berechnung!B$57 -> 1 | D45: =Berechnung!C45*Berechnung!C$57/Berechnung!O45 -> 0.3786655046 | E45: =Berechnung!C45*Berechnung!C$57 -> 9.951017811 | F45: =Berechnung!D45*Berechnung!D$57/Berechnung!O45 -> 0.3452541988 | G45: =Berechnung!D45*Berechnung!D$57 -> 9.072996191 | H45: =Berechnung!E45*Berechnung!E$57/Berechnung!O45 -> 0.02054858874 | I45: =Berechnung!E45*Berechnung!E$57 -> 0.54 | J45: =Berechnung!F45*Berechnung!F$57/Berechnung!O45 -> 0 | K45: =Berechnung!F45*Berechnung!F$57 -> 0 | L45: =Berechnung!G45*Berechnung!G$57/Berechnung!O45 -> 0.03072647495 | M45: =Berechnung!G45*Berechnung!G$57 -> 0.807466473 | N45: =Berechnung!H45*Berechnung!H$57/Berechnung!O45 -> 0 | O45: =Berechnung!H45*Berechnung!H$57 -> 0 | P45: =Berechnung!I45*Berechnung!I$57/Berechnung!O45 -> 0 | Q45: =Berechnung!I45*Berechnung!I$57 -> 0 | R45: =Berechnung!J45*Berechnung!J$57/Berechnung!O45 -> 0.1867522908 | S45: =Berechnung!J45*Berechnung!J$57 -> 4.9076965 | T45: =Berechnung!K45*Berechnung!K$57/Berechnung!O45 -> 0 | U45: =Berechnung!K45*Berechnung!K$57 -> 0 | V45: =Berechnung!L45*Berechnung!L$57/Berechnung!O45 -> 0 | W45: =Berechnung!L45*Berechnung!K$57 -> 0 | X45: =Berechnung!M45/Berechnung!O45 -> 0 | Y45: =Berechnung!M45*Berechnung!M$57 -> 0 | Z45: =Berechnung!N45/Berechnung!O45 -> 0 | AA45: =Berechnung!N45*Berechnung!N$57 -> 0 | AB45: 1 | AC45: 26.27917697 | AD45: =Berechnung!P45 -> 0 | AE45: =Berechnung!Q45 -> 26.25
A46: =Parameter!B43 -> Stuttgart | B46: =Berechnung!B46*Berechnung!$B$57/Berechnung!O46 -> 0.0340244757 | C46: =Berechnung!B46*Berechnung!B$57 -> 1 | D46: =Berechnung!C46*Berechnung!C$57/Berechnung!O46 -> 0.4441065306 | E46: =Berechnung!C46*Berechnung!C$57 -> 13.05256059 | F46: =Berechnung!D46*Berechnung!D$57/Berechnung!O46 -> 0.2241275169 | G46: =Berechnung!D46*Berechnung!D$57 -> 6.58724381 | H46: =Berechnung!E46*Berechnung!E$57/Berechnung!O46 -> 0.03062202813 | I46: =Berechnung!E46*Berechnung!E$57 -> 0.9 | J46: =Berechnung!F46*Berechnung!F$57/Berechnung!O46 -> 0 | K46: =Berechnung!F46*Berechnung!F$57 -> 0 | L46: =Berechnung!G46*Berechnung!G$57/Berechnung!O46 -> 0 | M46: =Berechnung!G46*Berechnung!G$57 -> 0 | N46: =Berechnung!H46*Berechnung!H$57/Berechnung!O46 -> 0 | O46: =Berechnung!H46*Berechnung!H$57 -> 0 | P46: =Berechnung!I46*Berechnung!I$57/Berechnung!O46 -> 0.0438012163 | Q46: =Berechnung!I46*Berechnung!I$57 -> 1.287344343 | R46: =Berechnung!J46*Berechnung!J$57/Berechnung!O46 -> 0.155269281 | S46: =Berechnung!J46*Berechnung!J$57 -> 4.563458446 | T46: =Berechnung!K46*Berechnung!K$57/Berechnung!O46 -> 0 | U46: =Berechnung!K46*Berechnung!K$57 -> 0 | V46: =Berechnung!L46*Berechnung!L$57/Berechnung!O46 -> 0 | W46: =Berechnung!L46*Berechnung!K$57 -> 0 | X46: =Berechnung!M46/Berechnung!O46 -> 0 | Y46: =Berechnung!M46*Berechnung!M$57 -> 0 | Z46: =Berechnung!N46/Berechnung!O46 -> 0.0680489514 | AA46: =Berechnung!N46*Berechnung!N$57 -> 2 | AB46: 1 | AC46: 29.39060719 | AD46: =Berechnung!P46 -> 0 | AE46: =Berechnung!Q46 -> 29.5
A47: =Parameter!B44 -> Sulz/Neckar | B47: =Berechnung!B47*Berechnung!$B$57/Berechnung!O47 -> 0.03874655217 | C47: =Berechnung!B47*Berechnung!B$57 -> 1 | D47: =Berechnung!C47*Berechnung!C$57/Berechnung!O47 -> 0.3558504226 | E47: =Berechnung!C47*Berechnung!C$57 -> 9.184053876 | F47: =Berechnung!D47*Berechnung!D$57/Berechnung!O47 -> 0.32265302 | G47: =Berechnung!D47*Berechnung!D$57 -> 8.327270477 | H47: =Berechnung!E47*Berechnung!E$57/Berechnung!O47 -> 0.0232479313 | I47: =Berechnung!E47*Berechnung!E$57 -> 0.6 | J47: =Berechnung!F47*Berechnung!F$57/Berechnung!O47 -> 0 | K47: =Berechnung!F47*Berechnung!F$57 -> 0 | L47: =Berechnung!G47*Berechnung!G$57/Berechnung!O47 -> 0.03616693834 | M47: =Berechnung!G47*Berechnung!G$57 -> 0.9334233968 | N47: =Berechnung!H47*Berechnung!H$57/Berechnung!O47 -> 0.0247639116 | O47: =Berechnung!H47*Berechnung!H$57 -> 0.6391255535 | P47: =Berechnung!I47*Berechnung!I$57/Berechnung!O47 -> 0 | Q47: =Berechnung!I47*Berechnung!I$57 -> 0 | R47: =Berechnung!J47*Berechnung!J$57/Berechnung!O47 -> 0.188884586 | S47: =Berechnung!J47*Berechnung!J$57 -> 4.874874676 | T47: =Berechnung!K47*Berechnung!K$57/Berechnung!O47 -> 0.009686638042 | U47: =Berechnung!K47*Berechnung!K$57 -> 0.25 | V47: =Berechnung!L47*Berechnung!L$57/Berechnung!O47 -> 0 | W47: =Berechnung!L47*Berechnung!K$57 -> 0 | X47: =Berechnung!M47/Berechnung!O47 -> 0 | Y47: =Berechnung!M47*Berechnung!M$57 -> 0 | Z47: =Berechnung!N47/Berechnung!O47 -> 0 | AA47: =Berechnung!N47*Berechnung!N$57 -> 0 | AB47: 1 | AC47: 25.80874798 | AD47: =Berechnung!P47 -> 0 | AE47: =Berechnung!Q47 -> 25.75
A48: =Parameter!B45 -> Tübingen | B48: =Berechnung!B48*Berechnung!$B$57/Berechnung!O48 -> 0.02276374065 | C48: =Berechnung!B48*Berechnung!B$57 -> 1 | D48: =Berechnung!C48*Berechnung!C$57/Berechnung!O48 -> 0.4924234503 | E48: =Berechnung!C48*Berechnung!C$57 -> 21.63192148 | F48: =Berechnung!D48*Berechnung!D$57/Berechnung!O48 -> 0.2744373593 | G48: =Berechnung!D48*Berechnung!D$57 -> 12.05589905 | H48: =Berechnung!E48*Berechnung!E$57/Berechnung!O48 -> 0.02185319103 | I48: =Berechnung!E48*Berechnung!E$57 -> 0.96 | J48: =Berechnung!F48*Berechnung!F$57/Berechnung!O48 -> 0 | K48: =Berechnung!F48*Berechnung!F$57 -> 0 | L48: =Berechnung!G48*Berechnung!G$57/Berechnung!O48 -> 0 | M48: =Berechnung!G48*Berechnung!G$57 -> 0 | N48: =Berechnung!H48*Berechnung!H$57/Berechnung!O48 -> 0.004370420744 | O48: =Berechnung!H48*Berechnung!H$57 -> 0.191990447 | P48: =Berechnung!I48*Berechnung!I$57/Berechnung!O48 -> 0.02081584378 | Q48: =Berechnung!I48*Berechnung!I$57 -> 0.9144298426 | R48: =Berechnung!J48*Berechnung!J$57/Berechnung!O48 -> 0.1633359942 | S48: =Berechnung!J48*Berechnung!J$57 -> 7.175270388 | T48: =Berechnung!K48*Berechnung!K$57/Berechnung!O48 -> 0 | U48: =Berechnung!K48*Berechnung!K$57 -> 0 | V48: =Berechnung!L48*Berechnung!L$57/Berechnung!O48 -> 0 | W48: =Berechnung!L48*Berechnung!K$57 -> 0 | X48: =Berechnung!M48/Berechnung!O48 -> 0 | Y48: =Berechnung!M48*Berechnung!M$57 -> 0 | Z48: =Berechnung!N48/Berechnung!O48 -> 0 | AA48: =Berechnung!N48*Berechnung!N$57 -> 0 | AB48: 1 | AC48: 43.9295112 | AD48: =Berechnung!P48 -> 0 | AE48: =Berechnung!Q48 -> 44
A49: =Parameter!B46 -> Tuttlingen | B49: =Berechnung!B49*Berechnung!$B$57/Berechnung!O49 -> 0.03345624527 | C49: =Berechnung!B49*Berechnung!B$57 -> 1 | D49: =Berechnung!C49*Berechnung!C$57/Berechnung!O49 -> 0.4496886188 | E49: =Berechnung!C49*Berechnung!C$57 -> 13.44109643 | F49: =Berechnung!D49*Berechnung!D$57/Berechnung!O49 -> 0.2203844445 | G49: =Berechnung!D49*Berechnung!D$57 -> 6.58724381 | H49: =Berechnung!E49*Berechnung!E$57/Berechnung!O49 -> 0.03412537017 | I49: =Berechnung!E49*Berechnung!E$57 -> 1.02 | J49: =Berechnung!F49*Berechnung!F$57/Berechnung!O49 -> 0 | K49: =Berechnung!F49*Berechnung!F$57 -> 0 | L49: =Berechnung!G49*Berechnung!G$57/Berechnung!O49 -> 0.0165126732 | M49: =Berechnung!G49*Berechnung!G$57 -> 0.4935602625 | N49: =Berechnung!H49*Berechnung!H$57/Berechnung!O49 -> 0.02354974364 | O49: =Berechnung!H49*Berechnung!H$57 -> 0.7038967898 | P49: =Berechnung!I49*Berechnung!I$57/Berechnung!O49 -> 0.0255497928 | Q49: =Berechnung!I49*Berechnung!I$57 -> 0.7636778305 | R49: =Berechnung!J49*Berechnung!J$57/Berechnung!O49 -> 0.1632768664 | S49: =Berechnung!J49*Berechnung!J$57 -> 4.880310539 | T49: =Berechnung!K49*Berechnung!K$57/Berechnung!O49 -> 0.02509218395 | U49: =Berechnung!K49*Berechnung!K$57 -> 0.75 | V49: =Berechnung!L49*Berechnung!L$57/Berechnung!O49 -> 0.008364061317 | W49: =Berechnung!L49*Berechnung!K$57 -> 0.25 | X49: =Berechnung!M49/Berechnung!O49 -> 0 | Y49: =Berechnung!M49*Berechnung!M$57 -> 0 | Z49: =Berechnung!N49/Berechnung!O49 -> 0 | AA49: =Berechnung!N49*Berechnung!N$57 -> 0 | AB49: 1 | AC49: 29.88978566 | AD49: =Berechnung!P49 -> 0 | AE49: =Berechnung!Q49 -> 30
A50: =Parameter!B47 -> Ulm | B50: =Berechnung!B50*Berechnung!$B$57/Berechnung!O50 -> 0.03154969953 | C50: =Berechnung!B50*Berechnung!B$57 -> 1 | D50: =Berechnung!C50*Berechnung!C$57/Berechnung!O50 -> 0.4047793724 | E50: =Berechnung!C50*Berechnung!C$57 -> 12.82989627 | F50: =Berechnung!D50*Berechnung!D$57/Berechnung!O50 -> 0.2823290666 | G50: =Berechnung!D50*Berechnung!D$57 -> 8.948708572 | H50: =Berechnung!E50*Berechnung!E$57/Berechnung!O50 -> 0.02460876563 | I50: =Berechnung!E50*Berechnung!E$57 -> 0.78 | J50: =Berechnung!F50*Berechnung!F$57/Berechnung!O50 -> 0 | K50: =Berechnung!F50*Berechnung!F$57 -> 0 | L50: =Berechnung!G50*Berechnung!G$57/Berechnung!O50 -> 0.0149616959 | M50: =Berechnung!G50*Berechnung!G$57 -> 0.4742262565 | N50: =Berechnung!H50*Berechnung!H$57/Berechnung!O50 -> 0.007151555935 | O50: =Berechnung!H50*Berechnung!H$57 -> 0.226675881 | P50: =Berechnung!I50*Berechnung!I$57/Berechnung!O50 -> 0.02424471813 | Q50: =Berechnung!I50*Berechnung!I$57 -> 0.768461142 | R50: =Berechnung!J50*Berechnung!J$57/Berechnung!O50 -> 0.1709380014 | S50: =Berechnung!J50*Berechnung!J$57 -> 5.418054814 | T50: =Berechnung!K50*Berechnung!K$57/Berechnung!O50 -> 0.007887424882 | U50: =Berechnung!K50*Berechnung!K$57 -> 0.25 | V50: =Berechnung!L50*Berechnung!L$57/Berechnung!O50 -> 0 | W50: =Berechnung!L50*Berechnung!K$57 -> 0 | X50: =Berechnung!M50/Berechnung!O50 -> 0 | Y50: =Berechnung!M50*Berechnung!M$57 -> 0 | Z50: =Berechnung!N50/Berechnung!O50 -> 0.03154969953 | AA50: =Berechnung!N50*Berechnung!N$57 -> 1 | AB50: 1 | AC50: 31.69602294 | AD50: =Berechnung!P50 -> 0 | AE50: =Berechnung!Q50 -> 31.75
A51: =Parameter!B48 -> Vaihingen an der Enz | B51: =Berechnung!B51*Berechnung!$B$57/Berechnung!O51 -> 0.06236967156 | C51: =Berechnung!B51*Berechnung!B$57 -> 1 | D51: =Berechnung!C51*Berechnung!C$57/Berechnung!O51 -> 0.4330163501 | E51: =Berechnung!C51*Berechnung!C$57 -> 6.942738984 | F51: =Berechnung!D51*Berechnung!D$57/Berechnung!O51 -> 0.3178228972 | G51: =Berechnung!D51*Berechnung!D$57 -> 5.095792381 | H51: =Berechnung!E51*Berechnung!E$57/Berechnung!O51 -> 0.01122654088 | I51: =Berechnung!E51*Berechnung!E$57 -> 0.18 | J51: =Berechnung!F51*Berechnung!F$57/Berechnung!O51 -> 0 | K51: =Berechnung!F51*Berechnung!F$57 -> 0 | L51: =Berechnung!G51*Berechnung!G$57/Berechnung!O51 -> 0 | M51: =Berechnung!G51*Berechnung!G$57 -> 0 | N51: =Berechnung!H51*Berechnung!H$57/Berechnung!O51 -> 0 | O51: =Berechnung!H51*Berechnung!H$57 -> 0 | P51: =Berechnung!I51*Berechnung!I$57/Berechnung!O51 -> 0 | Q51: =Berechnung!I51*Berechnung!I$57 -> 0 | R51: =Berechnung!J51*Berechnung!J$57/Berechnung!O51 -> 0.1755645403 | S51: =Berechnung!J51*Berechnung!J$57 -> 2.814902434 | T51: =Berechnung!K51*Berechnung!K$57/Berechnung!O51 -> 0 | U51: =Berechnung!K51*Berechnung!K$57 -> 0 | V51: =Berechnung!L51*Berechnung!L$57/Berechnung!O51 -> 0 | W51: =Berechnung!L51*Berechnung!K$57 -> 0 | X51: =Berechnung!M51/Berechnung!O51 -> 0 | Y51: =Berechnung!M51*Berechnung!M$57 -> 0 | Z51: =Berechnung!N51/Berechnung!O51 -> 0 | AA51: =Berechnung!N51*Berechnung!N$57 -> 0 | AB51: 1 | AC51: 16.0334338 | AD51: =Berechnung!P51 -> 0 | AE51: =Berechnung!Q51 -> 16
A52: =Parameter!B49 -> Waiblingen | B52: =Berechnung!B52*Berechnung!$B$57/Berechnung!O52 -> 0.02972107506 | C52: =Berechnung!B52*Berechnung!B$57 -> 1 | D52: =Berechnung!C52*Berechnung!C$57/Berechnung!O52 -> 0.4910450253 | E52: =Berechnung!C52*Berechnung!C$57 -> 16.52177871 | F52: =Berechnung!D52*Berechnung!D$57/Berechnung!O52 -> 0.2807410858 | G52: =Berechnung!D52*Berechnung!D$57 -> 9.445859048 | H52: =Berechnung!E52*Berechnung!E$57/Berechnung!O52 -> 0.007133058015 | I52: =Berechnung!E52*Berechnung!E$57 -> 0.24 | J52: =Berechnung!F52*Berechnung!F$57/Berechnung!O52 -> 0 | K52: =Berechnung!F52*Berechnung!F$57 -> 0 | L52: =Berechnung!G52*Berechnung!G$57/Berechnung!O52 -> 0 | M52: =Berechnung!G52*Berechnung!G$57 -> 0 | N52: =Berechnung!H52*Berechnung!H$57/Berechnung!O52 -> 0 | O52: =Berechnung!H52*Berechnung!H$57 -> 0 | P52: =Berechnung!I52*Berechnung!I$57/Berechnung!O52 -> 0.02774002219 | Q52: =Berechnung!I52*Berechnung!I$57 -> 0.9333451813 | R52: =Berechnung!J52*Berechnung!J$57/Berechnung!O52 -> 0.1636197336 | S52: =Berechnung!J52*Berechnung!J$57 -> 5.505175477 | T52: =Berechnung!K52*Berechnung!K$57/Berechnung!O52 -> 0 | U52: =Berechnung!K52*Berechnung!K$57 -> 0 | V52: =Berechnung!L52*Berechnung!L$57/Berechnung!O52 -> 0 | W52: =Berechnung!L52*Berechnung!K$57 -> 0 | X52: =Berechnung!M52/Berechnung!O52 -> 0 | Y52: =Berechnung!M52*Berechnung!M$57 -> 0 | Z52: =Berechnung!N52/Berechnung!O52 -> 0 | AA52: =Berechnung!N52*Berechnung!N$57 -> 0 | AB52: 1 | AC52: 33.64615842 | AD52: =Berechnung!P52 -> 0 | AE52: =Berechnung!Q52 -> 33.75
A53: =Parameter!B50 -> Weikersheim | B53: =Berechnung!B53*Berechnung!$B$57/Berechnung!O53 -> 0.06331861822 | C53: =Berechnung!B53*Berechnung!B$57 -> 1 | D53: =Berechnung!C53*Berechnung!C$57/Berechnung!O53 -> 0.2973247644 | E53: =Berechnung!C53*Berechnung!C$57 -> 4.695692559 | F53: =Berechnung!D53*Berechnung!D$57/Berechnung!O53 -> 0.3698768541 | G53: =Berechnung!D53*Berechnung!D$57 -> 5.841518096 | H53: =Berechnung!E53*Berechnung!E$57/Berechnung!O53 -> 0.007598234186 | I53: =Berechnung!E53*Berechnung!E$57 -> 0.12 | J53: =Berechnung!F53*Berechnung!F$57/Berechnung!O53 -> 0 | K53: =Berechnung!F53*Berechnung!F$57 -> 0 | L53: =Berechnung!G53*Berechnung!G$57/Berechnung!O53 -> 0.05353907736 | M53: =Berechnung!G53*Berechnung!G$57 -> 0.8455503115 | N53: =Berechnung!H53*Berechnung!H$57/Berechnung!O53 -> 0.004846724824 | O53: =Berechnung!H53*Berechnung!H$57 -> 0.07654501883 | P53: =Berechnung!I53*Berechnung!I$57/Berechnung!O53 -> 0 | Q53: =Berechnung!I53*Berechnung!I$57 -> 0 | R53: =Berechnung!J53*Berechnung!J$57/Berechnung!O53 -> 0.2034957269 | S53: =Berechnung!J53*Berechnung!J$57 -> 3.21383714 | T53: =Berechnung!K53*Berechnung!K$57/Berechnung!O53 -> 0 | U53: =Berechnung!K53*Berechnung!K$57 -> 0 | V53: =Berechnung!L53*Berechnung!L$57/Berechnung!O53 -> 0 | W53: =Berechnung!L53*Berechnung!K$57 -> 0 | X53: =Berechnung!M53/Berechnung!O53 -> 0 | Y53: =Berechnung!M53*Berechnung!M$57 -> 0 | Z53: =Berechnung!N53/Berechnung!O53 -> 0 | AA53: =Berechnung!N53*Berechnung!N$57 -> 0 | AB53: 1 | AC53: 15.79314313 | AD53: =Berechnung!P53 -> 0 | AE53: =Berechnung!Q53 -> 15.75
A54: =Parameter!B51 -> Weinsberg | B54: =Berechnung!B54*Berechnung!$B$57/Berechnung!O54 -> 0.05445499523 | C54: =Berechnung!B54*Berechnung!B$57 -> 1 | D54: =Berechnung!C54*Berechnung!C$57/Berechnung!O54 -> 0.3999336757 | E54: =Berechnung!C54*Berechnung!C$57 -> 7.344297322 | F54: =Berechnung!D54*Berechnung!D$57/Berechnung!O54 -> 0.3113317583 | G54: =Berechnung!D54*Berechnung!D$57 -> 5.717230477 | H54: =Berechnung!E54*Berechnung!E$57/Berechnung!O54 -> 0.01306919886 | I54: =Berechnung!E54*Berechnung!E$57 -> 0.24 | J54: =Berechnung!F54*Berechnung!F$57/Berechnung!O54 -> 0 | K54: =Berechnung!F54*Berechnung!F$57 -> 0 | L54: =Berechnung!G54*Berechnung!G$57/Berechnung!O54 -> 0.01881555551 | M54: =Berechnung!G54*Berechnung!G$57 -> 0.3455248766 | N54: =Berechnung!H54*Berechnung!H$57/Berechnung!O54 -> 0 | O54: =Berechnung!H54*Berechnung!H$57 -> 0 | P54: =Berechnung!I54*Berechnung!I$57/Berechnung!O54 -> 0 | Q54: =Berechnung!I54*Berechnung!I$57 -> 0 | R54: =Berechnung!J54*Berechnung!J$57/Berechnung!O54 -> 0.1751673188 | S54: =Berechnung!J54*Berechnung!J$57 -> 3.216735546 | T54: =Berechnung!K54*Berechnung!K$57/Berechnung!O54 -> 0.02722749762 | U54: =Berechnung!K54*Berechnung!K$57 -> 0.5 | V54: =Berechnung!L54*Berechnung!L$57/Berechnung!O54 -> 0 | W54: =Berechnung!L54*Berechnung!K$57 -> 0 | X54: =Berechnung!M54/Berechnung!O54 -> 0 | Y54: =Berechnung!M54*Berechnung!M$57 -> 0 | Z54: =Berechnung!N54/Berechnung!O54 -> 0 | AA54: =Berechnung!N54*Berechnung!N$57 -> 0 | AB54: 1 | AC54: 18.36378822 | AD54: =Berechnung!P54 -> 0 | AE54: =Berechnung!Q54 -> 18.25
A55: =Parameter!B52 -> Zuffenhausen | B55: =Berechnung!B55*Berechnung!$B$57/Berechnung!O55 -> 0.03465059084 | C55: =Berechnung!B55*Berechnung!B$57 -> 0.5 | D55: =Berechnung!C55*Berechnung!C$57/Berechnung!O55 -> 0.4427483525 | E55: =Berechnung!C55*Berechnung!C$57 -> 6.388756177 | F55: =Berechnung!D55*Berechnung!D$57/Berechnung!O55 -> 0.2325585294 | G55: =Berechnung!D55*Berechnung!D$57 -> 3.355765714 | H55: =Berechnung!E55*Berechnung!E$57/Berechnung!O55 -> 0.06652913441 | I55: =Berechnung!E55*Berechnung!E$57 -> 0.96 | J55: =Berechnung!F55*Berechnung!F$57/Berechnung!O55 -> 0 | K55: =Berechnung!F55*Berechnung!F$57 -> 0 | L55: =Berechnung!G55*Berechnung!G$57/Berechnung!O55 -> 0 | M55: =Berechnung!G55*Berechnung!G$57 -> 0 | N55: =Berechnung!H55*Berechnung!H$57/Berechnung!O55 -> 0 | O55: =Berechnung!H55*Berechnung!H$57 -> 0 | P55: =Berechnung!I55*Berechnung!I$57/Berechnung!O55 -> 0.0499521188 | Q55: =Berechnung!I55*Berechnung!I$57 -> 0.7207975043 | R55: =Berechnung!J55*Berechnung!J$57/Berechnung!O55 -> 0.173561274 | S55: =Berechnung!J55*Berechnung!J$57 -> 2.504448984 | T55: =Berechnung!K55*Berechnung!K$57/Berechnung!O55 -> 0 | U55: =Berechnung!K55*Berechnung!K$57 -> 0 | V55: =Berechnung!L55*Berechnung!L$57/Berechnung!O55 -> 0 | W55: =Berechnung!L55*Berechnung!K$57 -> 0 | X55: =Berechnung!M55/Berechnung!O55 -> 0 | Y55: =Berechnung!M55*Berechnung!M$57 -> 0 | Z55: =Berechnung!N55/Berechnung!O55 -> 0 | AA55: =Berechnung!N55*Berechnung!N$57 -> 0 | AB55: 1 | AC55: 14.42976838 | AD55: =Berechnung!P55 -> 0 | AE55: =Berechnung!Q55 -> 14.5
A57: Landeskirche | B57: =Berechnung!B59 -> 0.0409922359 | C57: =Berechnung!B58 -> 49.5 | D57: =Berechnung!C59 -> 0.4299196733 | E57: =Berechnung!C58 -> 519.1476717 | F57: =Berechnung!D59 -> 0.2837664473 | G57: =Berechnung!D58 -> 342.6609657 | H57: =Berechnung!E59 -> 0.02305502722 | I57: =Berechnung!E58 -> 27.84 | J57: =Berechnung!F59 -> 0 | K57: =Berechnung!F58 -> 0 | L57: =Berechnung!G59 -> 0.01242188967 | M57: =Berechnung!G58 -> 15 | N57: =Berechnung!H59 -> 0.008281259779 | O57: =Berechnung!H58 -> 10 | P57: =Berechnung!I59 -> 0.01242188967 | Q57: =Berechnung!I58 -> 15 | R57: =Berechnung!J59 -> 0.1715439001 | S57: =Berechnung!J58 -> 207.1471065 | T57: =Berechnung!K59 -> 0.009109385756 | U57: =Berechnung!K58 -> 11 | V57: =Berechnung!L59 -> 0.002898440923 | W57: =Berechnung!L58 -> 3.5 | X57: =Berechnung!M59 -> 0.001449220461 | Y57: =Berechnung!M58 -> 1.75 | Z57: =Berechnung!N59 -> 0.004140629889 | AA57: =Berechnung!N58 -> 5 | AB57: =X57+V57+T57+R57+P57+N57+L57+J57+H57+F57+D57+B57 -> 0.9958593701 | AC57: =SUM(AC5:AC55) -> 1207.545744 | AE57: =SUM(AE5:AE55) -> 1207
C58: =SUM(C5:C55) -> 49.5 | E58: =SUM(E5:E55) -> 519.1476717 | G58: =SUM(G5:G55) -> 342.6609657 | I58: =SUM(I5:I55) -> 27.84 | K58: =SUM(K5:K55) -> 0 | M58: =SUM(M5:M55) -> 15 | O58: =SUM(O5:O55) -> 10 | Q58: =SUM(Q5:Q55) -> 15 | S58: =SUM(S5:S55) -> 207.1471065 | U58: =SUM(U5:U55) -> 11 | W58: =SUM(W5:W55) -> 3.5 | Y58: =SUM(Y5:Y55) -> 1.75 | AA58: =SUM(AA5:AA55) -> 5

Sheet Dateneingabe Ggl. und KG
A1: name der kirchengemeinde - pfbez | B1: anzahl gemeindeglieder der kg | C1: dekanat_2 | D1: dekanat | E1: mod KB | F1: Anzahl | G1: Selektion | H1: istpfst | I1: 4 Spalten der Auswertung "_SCHÖLL für PP-Daten..." in die Spalten ganz links eingeben; prüfen ob in Spalte C "Dekanat" lückenlos eingetragen ist.
A2: Botnang | B2: 4083 | C2: Stuttgart | D2: 1 | E2: =IF($G2<>"",IF($B2<400,0.5,IF($B2<2801,1,IF($B2<5601,1.5,IF($B2<8401,2,IF($B2<11201,2.5,"???"))))),"") -> 1.5 | G2: =IF(IF(LEN(A2)>0,ERROR.TYPE(MATCH(H2,H$1:H1,0))=7,0),C2,"") -> Stuttgart | H2: =D2&A2 -> 1Botnang
A3: Stuttgart Christuskirchengemeinde | B3: 1515 | C3: Stuttgart | D3: 1 | E3: =IF($G3<>"",IF($B3<400,0.5,IF($B3<2801,1,IF($B3<5601,1.5,IF($B3<8401,2,IF($B3<11201,2.5,1000))))),"") -> 1 | F3: =IF(E3<>"#NV",B3,"") -> 1515 | G3: =IF(IF(LEN(A3)>0,ERROR.TYPE(MATCH(H3,H$1:H2,0))=7,0),C3,"") -> Stuttgart | H3: =D3&A3 -> 1Stuttgart Christuskirchengemeinde | N3: =IF(MAX(B:B)>O125,"Kontrollfeld: Die Tabelle muss nach unten verlängert werden!","Kontrollfeld: In Ordnung") -> Kontrollfeld: In Ordnung
A4: Stuttgart Friedenskirchengemeinde | B4: 1922 | C4: Stuttgart | D4: 1 | E4: 1 | F4: =IF(E4<>"#NV",B4,"") -> 1922 | G4: =IF(IF(LEN(A4)>0,ERROR.TYPE(MATCH(H4,H$1:H3,0))=7,0),C4,"") -> Stuttgart | H4: =D4&A4 -> 1Stuttgart Friedenskirchengemeinde | I4: Folgende künftige (teilweise erst geplante) Kirchenbezirkswechsel von | N4: Größe KG von | O4: Größe KG bis | P4: Anzahl Kgen im Intervall | Q4: Anzahl gesamt
A5: Gaisburg | B5: 1396 | C5: Stuttgart | D5: 1 | E5: 1 | F5: 1396 | G5: =IF(IF(LEN(A5)>0,ERROR.TYPE(MATCH(H5,H$1:H4,0))=7,0),C5,"") -> Stuttgart | H5: 1Gaisburg | I5: Kirchengemeinden wurden in den Spalten A-D manuell angepasst: | N5: 1 | O5: =N6-1 -> 99 | P5: =Q6-Q5 -> 16 | Q5: =COUNTIF(F:F,"<"&TEXT(N5,"#####"))-COUNTIF(F:F,"<"&TEXT(N$5,"#####")) -> 0
A6: Stuttgart Haigstkirchengemeinde | B6: 775 | C6: Stuttgart | D6: 1 | E6: 1 | F6: 775 | G6: =IF(IF(LEN(A6)>0,ERROR.TYPE(MATCH(H6,H$1:H5,0))=7,0),C6,"") -> Stuttgart | H6: 1Stuttgart Haigstkirchengemeinde | I6: KG | J6: von | K6: nach | L6: Datum | N6: 100 | O6: =N7-1 -> 199 | P6: 41 | Q6: 16
A7: Heilandskirchengemeinde Stuttgart-Berg | B7: 1333 | C7: Stuttgart | D7: 1 | E7: 1 | F7: 1333 | G7: =IF(IF(LEN(A7)>0,ERROR.TYPE(MATCH(H7,H$1:H6,0))=7,0),C7,"") -> Stuttgart | H7: 1Heilandskirchengemeinde Stuttgart-Berg | I7: Ruppertshofen | J7: Blaufelden | K7: Schwäbisch Hall (21) | L7: 2017-01-01 | N7: 200 | O7: 299 | P7: 51 | Q7: 57
A8: Stuttgart Hospitalkirchengemeinde | B8: 753 | C8: Stuttgart | D8: 1 | E8: 1 | F8: 753 | G8: =IF(IF(LEN(A8)>0,ERROR.TYPE(MATCH(H8,H$1:H7,0))=7,0),C8,"") -> Stuttgart | H8: 1Stuttgart Hospitalkirchengemeinde | I8: Aichelberg | J8: Calw | K8: Neuenbürg (34) | L8: geplant | N8: 300 | O8: 399 | P8: 63 | Q8: 108
A9: Stuttgart Johanneskirchengemeinde | B9: 2874 | C9: Stuttgart | D9: 1 | E9: 1.5 | F9: 2874 | G9: =IF(IF(LEN(A9)>0,ERROR.TYPE(MATCH(H9,H$1:H8,0))=7,0),C9,"") -> Stuttgart | H9: 1Stuttgart Johanneskirchengemeinde | I9: Isingen (Teil; s.a. Ostdorf) | J9: Balingen | K9: Sulz/Neckar (41) | L9: geplant | N9: 400 | O9: 499 | P9: 68 | Q9: 171
A10: Stuttgart Leonhardskirchengemeinde | B10: 1563 | C10: Stuttgart | D10: 1 | E10: 1 | F10: 1563 | G10: =IF(IF(LEN(A10)>0,ERROR.TYPE(MATCH(H10,H$1:H9,0))=7,0),C10,"") -> Stuttgart | H10: 1Stuttgart Leonhardskirchengemeinde | N10: 500 | O10: 599 | P10: 50 | Q10: 239
A11: Stuttgart Ludwig-Hofacker-Kirchengemeinde | B11: 1231 | C11: Stuttgart | D11: 1 | E11: 1 | F11: 1231 | G11: =IF(IF(LEN(A11)>0,ERROR.TYPE(MATCH(H11,H$1:H10,0))=7,0),C11,"") -> Stuttgart | H11: 1Stuttgart Ludwig-Hofacker-Kirchengemeinde | I11: Die Brüdergemeinde Wilhelmsdorf war, da separat pastoriert, aus den Spalten A-D zu löschen. | N11: 600 | O11: 699 | P11: 72 | Q11: 289
A12: Stuttgart Markuskirchengemeinde | B12: 3345 | C12: Stuttgart | D12: 1 | E12: 1.5 | F12: 3345 | G12: =IF(IF(LEN(A12)>0,ERROR.TYPE(MATCH(H12,H$1:H11,0))=7,0),C12,"") -> Stuttgart | H12: 1Stuttgart Markuskirchengemeinde | I12: In Walxheim waren 503 Gemeindeglieder (Stödtlen), die zur KG Mönchsrodt (Bayern) gehören, abzuziehen. | N12: 700 | O12: 799 | P12: 58 | Q12: 361
A13: Stuttgart Paul-Gerhardt-Kirchengemeinde | B13: 2194 | C13: Stuttgart | D13: 1 | E13: 1 | F13: 2194 | G13: =IF(IF(LEN(A13)>0,ERROR.TYPE(MATCH(H13,H$1:H12,0))=7,0),C13,"") -> Stuttgart | H13: 1Stuttgart Paul-Gerhardt-Kirchengemeinde | N13: 800 | O13: 899 | P13: 56 | Q13: 419
A14: Stuttgart Pauluskirchengemeinde | B14: 3766 | C14: Stuttgart | D14: 1 | E14: 1.5 | F14: 3766 | G14: =IF(IF(LEN(A14)>0,ERROR.TYPE(MATCH(H14,H$1:H13,0))=7,0),C14,"") -> Stuttgart | H14: 1Stuttgart Pauluskirchengemeinde | N14: 900 | O14: 999 | P14: 50 | Q14: 475
A15: Stuttgart-Gablenberg Petruskirchengemeinde | B15: 3174 | C15: Stuttgart | D15: 1 | E15: 1.5 | F15: 3174 | G15: =IF(IF(LEN(A15)>0,ERROR.TYPE(MATCH(H15,H$1:H14,0))=7,0),C15,"") -> Stuttgart | H15: 1Stuttgart-Gablenberg Petruskirchengemeinde | N15: 1000 | O15: 1099 | P15: 52 | Q15: 525
A16: Stuttgart Stiftskirchengemeinde | B16: 696 | C16: Stuttgart | D16: 1 | E16: 1 | F16: 696 | G16: =IF(IF(LEN(A16)>0,ERROR.TYPE(MATCH(H16,H$1:H15,0))=7,0),C16,"") -> Stuttgart | H16: 1Stuttgart Stiftskirchengemeinde | N16: 1100 | O16: 1199 | P16: 47 | Q16: 577
A17: Stuttgart Thomaskirchengemeinde | B17: 2616 | C17: Stuttgart | D17: 1 | E17: 1 | F17: 2616 | G17: =IF(IF(LEN(A17)>0,ERROR.TYPE(MATCH(H17,H$1:H16,0))=7,0),C17,"") -> Stuttgart | H17: 1Stuttgart Thomaskirchengemeinde | N17: 1200 | O17: 1299 | P17: 52 | Q17: 624
A18: Stuttgart Waldkirchengemeinde | B18: 1403 | C18: Stuttgart | D18: 1 | E18: 1 | F18: 1403 | G18: =IF(IF(LEN(A18)>0,ERROR.TYPE(MATCH(H18,H$1:H17,0))=7,0),C18,"") -> Stuttgart | H18: 1Stuttgart Waldkirchengemeinde | N18: 1300 | O18: 1399 | P18: 42 | Q18: 676
A19: Stuttgart Nord | B19: 5380 | C19: Stuttgart | D19: 1 | E19: 1.5 | F19: 5380 | G19: =IF(IF(LEN(A19)>0,ERROR.TYPE(MATCH(H19,H$1:H18,0))=7,0),C19,"") -> Stuttgart | H19: 1Stuttgart Nord | N19: 1400 | O19: 1499 | P19: 41 | Q19: 718
A20: Stuttgart Gedächtnis-u.Rosenbergkirchengemeinde | B20: 4200 | C20: Stuttgart | D20: 1 | E20: 1.5 | F20: 4200 | G20: =IF(IF(LEN(A20)>0,ERROR.TYPE(MATCH(H20,H$1:H19,0))=7,0),C20,"") -> Stuttgart | H20: 1Stuttgart Gedächtnis-u.Rosenbergkirchengemeinde | N20: 1500 | O20: 1599 | P20: 44 | Q20: 759
A21: Stuttgart Lukas- und Lutherhauskirchengemeinde | B21: 2807 | C21: Stuttgart | D21: 1 | E21: 1.5 | F21: 2807 | G21: =IF(IF(LEN(A21)>0,ERROR.TYPE(MATCH(H21,H$1:H20,0))=7,0),C21,"") -> Stuttgart | H21: 1Stuttgart Lukas- und Lutherhauskirchengemeinde | N21: 1600 | O21: 1699 | P21: 39 | Q21: 803
A22: Stuttgart-Heslach | B22: 4324 | C22: Stuttgart | D22: 1 | E22: 1.5 | F22: 4324 | G22: =IF(IF(LEN(A22)>0,ERROR.TYPE(MATCH(H22,H$1:H21,0))=7,0),C22,"") -> Stuttgart | H22: 1Stuttgart-Heslach | N22: 1700 | O22: 1799 | P22: 28 | Q22: 842
A23: Aalen | B23: 6450 | C23: Aalen | D23: 2 | E23: 2 | F23: 6450 | G23: =IF(IF(LEN(A23)>0,ERROR.TYPE(MATCH(H23,H$1:H22,0))=7,0),C23,"") -> Aalen | H23: 2Aalen | N23: 1800 | O23: 1899 | P23: 51 | Q23: 870
A24: Unterrombach-Hofherrnweiler | B24: 2556 | C24: Aalen | D24: 2 | E24: 1 | F24: 2556 | G24: =IF(IF(LEN(A24)>0,ERROR.TYPE(MATCH(H24,H$1:H23,0))=7,0),C24,"") -> Aalen | H24: 2Unterrombach-Hofherrnweiler | N24: 1900 | O24: 1999 | P24: 33 | Q24: 921
A25: Adelmannsfelden | B25: 1089 | C25: Aalen | D25: 2 | E25: 1 | F25: 1089 | G25: =IF(IF(LEN(A25)>0,ERROR.TYPE(MATCH(H25,H$1:H24,0))=7,0),C25,"") -> Aalen | H25: 2Adelmannsfelden | N25: 2000 | O25: 2099 | P25: 24 | Q25: 954
A26: Pommertsweiler | B26: 321 | C26: Aalen | D26: 2 | E26: 0.5 | F26: 321 | G26: =IF(IF(LEN(A26)>0,ERROR.TYPE(MATCH(H26,H$1:H25,0))=7,0),C26,"") -> Aalen | H26: 2Pommertsweiler | N26: 2100 | O26: 2199 | P26: 24 | Q26: 978
A27: Bopfingen | B27: 1914 | C27: Aalen | D27: 2 | E27: 1 | F27: 1914 | G27: =IF(IF(LEN(A27)>0,ERROR.TYPE(MATCH(H27,H$1:H26,0))=7,0),C27,"") -> Aalen | H27: 2Bopfingen | N27: 2200 | O27: 2299 | P27: 25 | Q27: 1002
A28: Ellwangen/Jagst | B28: 5092 | C28: Aalen | D28: 2 | E28: 1.5 | F28: 5092 | G28: =IF(IF(LEN(A28)>0,ERROR.TYPE(MATCH(H28,H$1:H27,0))=7,0),C28,"") -> Aalen | H28: 2Ellwangen/Jagst | N28: 2300 | O28: 2399 | P28: 17 | Q28: 1027
A29: Essingen | B29: 2216 | C29: Aalen | D29: 2 | E29: 1 | F29: 2216 | G29: =IF(IF(LEN(A29)>0,ERROR.TYPE(MATCH(H29,H$1:H28,0))=7,0),C29,"") -> Aalen | H29: 2Essingen | N29: 2400 | O29: 2499 | P29: 18 | Q29: 1044
A30: Fachsenfeld | B30: 1480 | C30: Aalen | D30: 2 | E30: 1 | F30: 1480 | G30: =IF(IF(LEN(A30)>0,ERROR.TYPE(MATCH(H30,H$1:H29,0))=7,0),C30,"") -> Aalen | H30: 2Fachsenfeld | N30: 2500 | O30: 2599 | P30: 18 | Q30: 1062
A31: Goldburghausen | B31: 182 | C31: Aalen | D31: 2 | E31: 0.5 | F31: 182 | G31: =IF(IF(LEN(A31)>0,ERROR.TYPE(MATCH(H31,H$1:H30,0))=7,0),C31,"") -> Aalen | H31: 2Goldburghausen | N31: 2600 | O31: 2699 | P31: 7 | Q31: 1080
A32: Pflaumloch | B32: 351 | C32: Aalen | D32: 2 | E32: 0.5 | F32: 351 | G32: =IF(IF(LEN(A32)>0,ERROR.TYPE(MATCH(H32,H$1:H31,0))=7,0),C32,"") -> Aalen | H32: 2Pflaumloch | N32: 2700 | O32: 2799 | P32: 12 | Q32: 1087
A33: Kirchheim am Ries | B33: 434 | C33: Aalen | D33: 2 | E33: 1 | F33: 434 | G33: =IF(IF(LEN(A33)>0,ERROR.TYPE(MATCH(H33,H$1:H32,0))=7,0),C33,"") -> Aalen | H33: 2Kirchheim am Ries | N33: 2800 | O33: 2899 | P33: 19 | Q33: 1099
A34: Benzenzimmern | B34: 142 | C34: Aalen | D34: 2 | E34: 0.5 | F34: 142 | G34: =IF(IF(LEN(A34)>0,ERROR.TYPE(MATCH(H34,H$1:H33,0))=7,0),C34,"") -> Aalen | H34: 2Benzenzimmern | N34: 2900 | O34: 2999 | P34: 13 | Q34: 1118
A35: Lauchheim-Westhausen | B35: 1915 | C35: Aalen | D35: 2 | E35: 1 | F35: 1915 | G35: =IF(IF(LEN(A35)>0,ERROR.TYPE(MATCH(H35,H$1:H34,0))=7,0),C35,"") -> Aalen | H35: 2Lauchheim-Westhausen | N35: 3000 | O35: 3099 | P35: 15 | Q35: 1131
A36: Lauterburg | B36: 388 | C36: Aalen | D36: 2 | E36: 0.5 | F36: 388 | G36: =IF(IF(LEN(A36)>0,ERROR.TYPE(MATCH(H36,H$1:H35,0))=7,0),C36,"") -> Aalen | H36: 2Lauterburg | N36: 3100 | O36: 3199 | P36: 18 | Q36: 1146
A37: Neresheim | B37: 1160 | C37: Aalen | D37: 2 | E37: 1 | F37: 1160 | G37: =IF(IF(LEN(A37)>0,ERROR.TYPE(MATCH(H37,H$1:H36,0))=7,0),C37,"") -> Aalen | H37: 2Neresheim | N37: 3200 | O37: 3299 | P37: =Q38-Q37 -> 14 | Q37: =COUNTIF(F:F,"<"&TEXT(N37,"#####"))-COUNTIF(F:F,"<"&TEXT(N$5,"#####")) -> 1164
A38: Abtsgmünd-Leinroden-Neubronn | B38: 1259 | C38: Aalen | D38: 2 | E38: 1 | F38: 1259 | G38: =IF(IF(LEN(A38)>0,ERROR.TYPE(MATCH(H38,H$1:H37,0))=7,0),C38,"") -> Aalen | H38: 2Abtsgmünd-Leinroden-Neubronn | N38: 3300 | O38: 3399 | P38: 5 | Q38: 1178
A39: Oberdorf am Ipf | B39: 729 | C39: Aalen | D39: 2 | E39: 1 | F39: 729 | G39: =IF(IF(LEN(A39)>0,ERROR.TYPE(MATCH(H39,H$1:H38,0))=7,0),C39,"") -> Aalen | H39: 2Oberdorf am Ipf | N39: 3400 | O39: 3499 | P39: 12 | Q39: 1183
A40: Oberkochen | B40: 2144 | C40: Aalen | D40: 2 | E40: 1 | F40: 2144 | G40: =IF(IF(LEN(A40)>0,ERROR.TYPE(MATCH(H40,H$1:H39,0))=7,0),C40,"") -> Aalen | H40: 2Oberkochen | N40: 3500 | O40: 3599 | P40: 3 | Q40: 1195
A41: Schweindorf | B41: 254 | C41: Aalen | D41: 2 | E41: 0.5 | F41: 254 | G41: =IF(IF(LEN(A41)>0,ERROR.TYPE(MATCH(H41,H$1:H40,0))=7,0),C41,"") -> Aalen | H41: 2Schweindorf | N41: 3600 | O41: 3699 | P41: 7 | Q41: 1198
A42: Trochtelfingen | B42: 754 | C42: Aalen | D42: 2 | E42: 1 | F42: 754 | G42: =IF(IF(LEN(A42)>0,ERROR.TYPE(MATCH(H42,H$1:H41,0))=7,0),C42,"") -> Aalen | H42: 2Trochtelfingen | N42: 3700 | O42: 3799 | P42: 8 | Q42: 1205
A43: Unterkochen-Ebnat | B43: 1359 | C43: Aalen | D43: 2 | E43: 1 | F43: 1359 | G43: =IF(IF(LEN(A43)>0,ERROR.TYPE(MATCH(H43,H$1:H42,0))=7,0),C43,"") -> Aalen | H43: 2Unterkochen-Ebnat | N43: 3800 | O43: 3899 | P43: 4 | Q43: 1213
A44: Walxheim | B44: 1014 | C44: Aalen | D44: 2 | E44: 1 | F44: 1014 | G44: =IF(IF(LEN(A44)>0,ERROR.TYPE(MATCH(H44,H$1:H43,0))=7,0),C44,"") -> Aalen | H44: 2Walxheim | N44: 3900 | O44: 3999 | P44: 6 | Q44: 1217
A45: Wasseralfingen-Hüttlingen | B45: 3626 | C45: Aalen | D45: 2 | E45: 1.5 | F45: 3626 | G45: =IF(IF(LEN(A45)>0,ERROR.TYPE(MATCH(H45,H$1:H44,0))=7,0),C45,"") -> Aalen | H45: 2Wasseralfingen-Hüttlingen | N45: 4000 | O45: 4099 | P45: 7 | Q45: 1223
A46: Wört | B46: 623 | C46: Aalen | D46: 2 | E46: 1 | F46: 623 | G46: =IF(IF(LEN(A46)>0,ERROR.TYPE(MATCH(H46,H$1:H45,0))=7,0),C46,"") -> Aalen | H46: 2Wört | N46: 4100 | O46: 4199 | P46: 2 | Q46: 1230
A47: Backnang Stiftskirchengemeinde | B47: 2911 | C47: Backnang | D47: 3 | E47: 1.5 | F47: 2911 | G47: =IF(IF(LEN(A47)>0,ERROR.TYPE(MATCH(H47,H$1:H46,0))=7,0),C47,"") -> Backnang | H47: 3Backnang Stiftskirchengemeinde | N47: 4200 | O47: 4299 | P47: 10 | Q47: 1232
A48: Backnang Markuskirchengemeinde | B48: 2490 | C48: Backnang | D48: 3 | E48: 1 | F48: 2490 | G48: =IF(IF(LEN(A48)>0,ERROR.TYPE(MATCH(H48,H$1:H47,0))=7,0),C48,"") -> Backnang | H48: 3Backnang Markuskirchengemeinde | N48: 4300 | O48: 4399 | P48: 3 | Q48: 1242
A49: Backnang Matthäuskirchengemeinde | B49: 3290 | C49: Backnang | D49: 3 | E49: 1.5 | F49: 3290 | G49: =IF(IF(LEN(A49)>0,ERROR.TYPE(MATCH(H49,H$1:H48,0))=7,0),C49,"") -> Backnang | H49: 3Backnang Matthäuskirchengemeinde | N49: 4400 | O49: 4499 | P49: 6 | Q49: 1245
A50: Sachsenweiler-Steinbach | B50: 1246 | C50: Backnang | D50: 3 | E50: 1 | F50: 1246 | G50: =IF(IF(LEN(A50)>0,ERROR.TYPE(MATCH(H50,H$1:H49,0))=7,0),C50,"") -> Backnang | H50: 3Sachsenweiler-Steinbach | N50: 4500 | O50: 4599 | P50: 2 | Q50: 1251
A51: Waldrems-Maubach-Heiningen | B51: 2489 | C51: Backnang | D51: 3 | E51: 1 | F51: 2489 | G51: =IF(IF(LEN(A51)>0,ERROR.TYPE(MATCH(H51,H$1:H50,0))=7,0),C51,"") -> Backnang | H51: 3Waldrems-Maubach-Heiningen | N51: 4600 | O51: 4699 | P51: 4 | Q51: 1253
A52: Allmersbach im Tal | B52: 2175 | C52: Backnang | D52: 3 | E52: 1 | F52: 2175 | G52: =IF(IF(LEN(A52)>0,ERROR.TYPE(MATCH(H52,H$1:H51,0))=7,0),C52,"") -> Backnang | H52: 3Allmersbach im Tal | N52: 4700 | O52: 4799 | P52: 1 | Q52: 1257
A53: Althütte | B53: 1862 | C53: Backnang | D53: 3 | E53: 1 | F53: 1862 | G53: =IF(IF(LEN(A53)>0,ERROR.TYPE(MATCH(H53,H$1:H52,0))=7,0),C53,"") -> Backnang | H53: 3Althütte | N53: 4800 | O53: 4899 | P53: 5 | Q53: 1258
A54: Burgstall | B54: 748 | C54: Backnang | D54: 3 | E54: 1 | F54: 748 | G54: =IF(IF(LEN(A54)>0,ERROR.TYPE(MATCH(H54,H$1:H53,0))=7,0),C54,"") -> Backnang | H54: 3Burgstall | N54: 4900 | O54: 4999 | P54: 4 | Q54: 1263
A55: Erbstetten | B55: 976 | C55: Backnang | D55: 3 | E55: 1 | F55: 976 | G55: =IF(IF(LEN(A55)>0,ERROR.TYPE(MATCH(H55,H$1:H54,0))=7,0),C55,"") -> Backnang | H55: 3Erbstetten | N55: 5000 | O55: 5099 | P55: 6 | Q55: 1267
A56: Fornsbach | B56: 778 | C56: Backnang | D56: 3 | E56: 1 | F56: 778 | G56: =IF(IF(LEN(A56)>0,ERROR.TYPE(MATCH(H56,H$1:H55,0))=7,0),C56,"") -> Backnang | H56: 3Fornsbach | N56: 5100 | O56: 5199 | P56: 3 | Q56: 1273
A57: Großaspach | B57: 1992 | C57: Backnang | D57: 3 | E57: 1 | F57: 1992 | G57: =IF(IF(LEN(A57)>0,ERROR.TYPE(MATCH(H57,H$1:H56,0))=7,0),C57,"") -> Backnang | H57: 3Großaspach | N57: 5200 | O57: 5299 | P57: 2 | Q57: 1276
A58: Kleinaspach-Allmersbach am Weinberg | B58: 1519 | C58: Backnang | D58: 3 | E58: 1 | F58: 1519 | G58: =IF(IF(LEN(A58)>0,ERROR.TYPE(MATCH(H58,H$1:H57,0))=7,0),C58,"") -> Backnang | H58: 3Kleinaspach-Allmersbach am Weinberg | N58: 5300 | O58: 5399 | P58: 1 | Q58: 1278
A59: Lippoldsweiler | B59: 1203 | C59: Backnang | D59: 3 | E59: 1 | F59: 1203 | G59: =IF(IF(LEN(A59)>0,ERROR.TYPE(MATCH(H59,H$1:H58,0))=7,0),C59,"") -> Backnang | H59: 3Lippoldsweiler | N59: 5400 | O59: 5499 | P59: 1 | Q59: 1279
A60: Murrhardt | B60: 4871 | C60: Backnang | D60: 3 | E60: 1.5 | F60: 4871 | G60: =IF(IF(LEN(A60)>0,ERROR.TYPE(MATCH(H60,H$1:H59,0))=7,0),C60,"") -> Backnang | H60: 3Murrhardt | N60: 5500 | O60: 5599 | P60: 1 | Q60: 1280
A61: Oberbrüden-Unterbrüden | B61: 2069 | C61: Backnang | D61: 3 | E61: 1 | F61: 2069 | G61: =IF(IF(LEN(A61)>0,ERROR.TYPE(MATCH(H61,H$1:H60,0))=7,0),C61,"") -> Backnang | H61: 3Oberbrüden-Unterbrüden | N61: 5600 | O61: 5699 | P61: 1 | Q61: 1281
A62: Oppenweiler | B62: 2393 | C62: Backnang | D62: 3 | E62: 1 | F62: 2393 | G62: =IF(IF(LEN(A62)>0,ERROR.TYPE(MATCH(H62,H$1:H61,0))=7,0),C62,"") -> Backnang | H62: 3Oppenweiler | N62: 5700 | O62: 5799 | P62: 1 | Q62: 1282
A63: Rietenau | B63: 512 | C63: Backnang | D63: 3 | E63: 1 | F63: 512 | G63: =IF(IF(LEN(A63)>0,ERROR.TYPE(MATCH(H63,H$1:H62,0))=7,0),C63,"") -> Backnang | H63: 3Rietenau | N63: 5800 | O63: 5899 | P63: 1 | Q63: 1283
A64: Spiegelberg | B64: 1009 | C64: Backnang | D64: 3 | E64: 1 | F64: 1009 | G64: =IF(IF(LEN(A64)>0,ERROR.TYPE(MATCH(H64,H$1:H63,0))=7,0),C64,"") -> Backnang | H64: 3Spiegelberg | N64: 5900 | O64: 5999 | P64: 1 | Q64: 1284
A65: Sulzbach an der Murr | B65: 2449 | C65: Backnang | D65: 3 | E65: 1 | F65: 2449 | G65: =IF(IF(LEN(A65)>0,ERROR.TYPE(MATCH(H65,H$1:H64,0))=7,0),C65,"") -> Backnang | H65: 3Sulzbach an der Murr | N65: 6000 | O65: 6099 | P65: 0 | Q65: 1285
A66: Weissach im Tal | B66: 3184 | C66: Backnang | D66: 3 | E66: 1.5 | F66: 3184 | G66: =IF(IF(LEN(A66)>0,ERROR.TYPE(MATCH(H66,H$1:H65,0))=7,0),C66,"") -> Backnang | H66: 3Weissach im Tal | N66: 6100 | O66: 6199 | P66: 1 | Q66: 1285
A67: Kirchenkirnberg | B67: 665 | C67: Backnang | D67: 3 | E67: =IF($G67<>"",IF($B67<400,0.5,IF($B67<2801,1,IF($B67<5601,1.5,IF($B67<8401,2,IF($B67<11201,2.5,1000))))),"") -> 1 | F67: 665 | G67: =IF(IF(LEN(A67)>0,ERROR.TYPE(MATCH(H67,H$1:H66,0))=7,0),C67,"") -> Backnang | H67: 3Kirchenkirnberg | N67: 6200 | O67: 6299 | P67: 1 | Q67: 1286
A68: Großerlach/Grab | B68: 1213 | C68: Backnang | D68: 3 | E68: 1 | F68: =IF(E68<>"#NV",B68,"") -> 1213 | G68: =IF(IF(LEN(A68)>0,ERROR.TYPE(MATCH(H68,H$1:H67,0))=7,0),C68,"") -> Backnang | H68: =D68&A68 -> 3Großerlach/Grab | N68: 6300 | O68: 6399 | P68: 0 | Q68: 1287
A69: Balingen Stadtkirchengemeinde | B69: 1704 | C69: Balingen | D69: 4 | E69: 1 | F69: 1704 | G69: =IF(IF(LEN(A69)>0,ERROR.TYPE(MATCH(H69,H$1:H68,0))=7,0),C69,"") -> Balingen | H69: 4Balingen Stadtkirchengemeinde | N69: 6400 | O69: 6499 | P69: =Q70-Q69 -> 1 | Q69: =COUNTIF(F:F,"<"&TEXT(N69,"#####"))-COUNTIF(F:F,"<"&TEXT(N$5,"#####")) -> 1287
A70: Bisingen | B70: 2565 | C70: Balingen | D70: 4 | E70: 1 | F70: 2565 | G70: =IF(IF(LEN(A70)>0,ERROR.TYPE(MATCH(H70,H$1:H69,0))=7,0),C70,"") -> Balingen | H70: 4Bisingen | N70: 6500 | O70: =N71-1 -> 6599 | P70: 1 | Q70: 1288
A71: Bitz | B71: 1908 | C71: Balingen | D71: 4 | E71: 1 | F71: 1908 | G71: =IF(IF(LEN(A71)>0,ERROR.TYPE(MATCH(H71,H$1:H70,0))=7,0),C71,"") -> Balingen | H71: 4Bitz | N71: 6600 | O71: 6699 | P71: 0 | Q71: 1289
A72: Dürrwangen-Stockenhausen | B72: 814 | C72: Balingen | D72: 4 | E72: 1 | F72: 814 | G72: =IF(IF(LEN(A72)>0,ERROR.TYPE(MATCH(H72,H$1:H71,0))=7,0),C72,"") -> Balingen | H72: 4Dürrwangen-Stockenhausen | N72: 6700 | O72: 6799 | P72: 0 | Q72: 1289
A73: Endingen | B73: 1020 | C73: Balingen | D73: 4 | E73: 1 | F73: 1020 | G73: =IF(IF(LEN(A73)>0,ERROR.TYPE(MATCH(H73,H$1:H72,0))=7,0),C73,"") -> Balingen | H73: 4Endingen | N73: 6800 | O73: 6899 | P73: 0 | Q73: 1289
A74: Engstlatt | B74: 928 | C74: Balingen | D74: 4 | E74: 1 | F74: 928 | G74: =IF(IF(LEN(A74)>0,ERROR.TYPE(MATCH(H74,H$1:H73,0))=7,0),C74,"") -> Balingen | H74: 4Engstlatt | N74: 6900 | O74: 6999 | P74: 1 | Q74: 1289
A75: Erzingen-Schömberg | B75: 1894 | C75: Balingen | D75: 4 | E75: 1 | F75: 1894 | G75: =IF(IF(LEN(A75)>0,ERROR.TYPE(MATCH(H75,H$1:H74,0))=7,0),C75,"") -> Balingen | H75: 4Erzingen-Schömberg | N75: 7000 | O75: 7099 | P75: 0 | Q75: 1290
A76: Frommern | B76: 1824 | C76: Balingen | D76: 4 | E76: 1 | F76: 1824 | G76: =IF(IF(LEN(A76)>0,ERROR.TYPE(MATCH(H76,H$1:H75,0))=7,0),C76,"") -> Balingen | H76: 4Frommern | N76: 7100 | O76: 7199 | P76: 0 | Q76: 1290
A77: Haigerloch | B77: 1946 | C77: Balingen | D77: 4 | E77: 1 | F77: 1946 | G77: =IF(IF(LEN(A77)>0,ERROR.TYPE(MATCH(H77,H$1:H76,0))=7,0),C77,"") -> Balingen | H77: 4Haigerloch | N77: 7200 | O77: 7299 | P77: 1 | Q77: 1290
A78: Hechingen | B78: 4495 | C78: Balingen | D78: 4 | E78: 1.5 | F78: 4495 | G78: =IF(IF(LEN(A78)>0,ERROR.TYPE(MATCH(H78,H$1:H77,0))=7,0),C78,"") -> Balingen | H78: 4Hechingen | N78: 7300 | O78: 7399 | P78: 1 | Q78: 1291
A79: Laufen an der Eyach | B79: 1568 | C79: Balingen | D79: 4 | E79: 1 | F79: 1568 | G79: =IF(IF(LEN(A79)>0,ERROR.TYPE(MATCH(H79,H$1:H78,0))=7,0),C79,"") -> Balingen | H79: 4Laufen an der Eyach | N79: 7400 | O79: 7499 | P79: 0 | Q79: 1292
A80: Meßstetten | B80: 2504 | C80: Balingen | D80: 4 | E80: 1 | F80: 2504 | G80: =IF(IF(LEN(A80)>0,ERROR.TYPE(MATCH(H80,H$1:H79,0))=7,0),C80,"") -> Balingen | H80: 4Meßstetten | N80: 7500 | O80: 7599 | P80: 1 | Q80: 1292
A81: Hossingen | B81: 477 | C81: Balingen | D81: 4 | E81: 1 | F81: 477 | G81: =IF(IF(LEN(A81)>0,ERROR.TYPE(MATCH(H81,H$1:H80,0))=7,0),C81,"") -> Balingen | H81: 4Hossingen | N81: 7600 | O81: 7699 | P81: 0 | Q81: 1293
A82: Onstmettingen | B82: 2405 | C82: Balingen | D82: 4 | E82: 1 | F82: 2405 | G82: =IF(IF(LEN(A82)>0,ERROR.TYPE(MATCH(H82,H$1:H81,0))=7,0),C82,"") -> Balingen | H82: 4Onstmettingen | N82: 7700 | O82: 7799 | P82: 0 | Q82: 1293
A83: Ostdorf-Geislingen | B83: =1644+364 -> 2008 | C83: Balingen | D83: 4 | E83: 1 | F83: 2008 | G83: =IF(IF(LEN(A83)>0,ERROR.TYPE(MATCH(H83,H$1:H82,0))=7,0),C83,"") -> Balingen | H83: 4Ostdorf-Geislingen | N83: 7800 | O83: 7899 | P83: 0 | Q83: 1293
A84: Ostrach | B84: 1204 | C84: Balingen | D84: 4 | E84: 1 | F84: 1204 | G84: =IF(IF(LEN(A84)>0,ERROR.TYPE(MATCH(H84,H$1:H83,0))=7,0),C84,"") -> Balingen | H84: 4Ostrach | N84: 7900 | O84: 7999 | P84: 1 | Q84: 1293
A85: Pfeffingen | B85: 1195 | C85: Balingen | D85: 4 | E85: 1 | F85: 1195 | G85: =IF(IF(LEN(A85)>0,ERROR.TYPE(MATCH(H85,H$1:H84,0))=7,0),C85,"") -> Balingen | H85: 4Pfeffingen | N85: 8000 | O85: 8099 | P85: 0 | Q85: 1294
A86: Burgfelden | B86: 156 | C86: Balingen | D86: 4 | E86: 0.5 | F86: 156 | G86: =IF(IF(LEN(A86)>0,ERROR.TYPE(MATCH(H86,H$1:H85,0))=7,0),C86,"") -> Balingen | H86: 4Burgfelden | N86: 8100 | O86: 8199 | P86: 0 | Q86: 1294
A87: Sigmaringen | B87: 5086 | C87: Balingen | D87: 4 | E87: 1.5 | F87: 5086 | G87: =IF(IF(LEN(A87)>0,ERROR.TYPE(MATCH(H87,H$1:H86,0))=7,0),C87,"") -> Balingen | H87: 4Sigmaringen | N87: 8200 | O87: 8299 | P87: 0 | Q87: 1294
A88: Täbingen | B88: 475 | C88: Balingen | D88: 4 | E88: 1 | F88: 475 | G88: =IF(IF(LEN(A88)>0,ERROR.TYPE(MATCH(H88,H$1:H87,0))=7,0),C88,"") -> Balingen | H88: 4Täbingen | N88: 8300 | O88: 8399 | P88: 1 | Q88: 1294
A89: Tailfingen | B89: 4403 | C89: Balingen | D89: 4 | E89: 1.5 | F89: 4403 | G89: =IF(IF(LEN(A89)>0,ERROR.TYPE(MATCH(H89,H$1:H88,0))=7,0),C89,"") -> Balingen | H89: 4Tailfingen | N89: 8400 | O89: 8499 | P89: 0 | Q89: 1295
A90: Truchtelfingen | B90: 1438 | C90: Balingen | D90: 4 | E90: 1 | F90: 1438 | G90: =IF(IF(LEN(A90)>0,ERROR.TYPE(MATCH(H90,H$1:H89,0))=7,0),C90,"") -> Balingen | H90: 4Truchtelfingen | N90: 8500 | O90: 8599 | P90: 0 | Q90: 1295
A91: Tieringen | B91: 654 | C91: Balingen | D91: 4 | E91: 1 | F91: 654 | G91: =IF(IF(LEN(A91)>0,ERROR.TYPE(MATCH(H91,H$1:H90,0))=7,0),C91,"") -> Balingen | H91: 4Tieringen | N91: 8600 | O91: 8699 | P91: 0 | Q91: 1295
A92: Oberdigisheim | B92: 827 | C92: Balingen | D92: 4 | E92: 1 | F92: 827 | G92: =IF(IF(LEN(A92)>0,ERROR.TYPE(MATCH(H92,H$1:H91,0))=7,0),C92,"") -> Balingen | H92: 4Oberdigisheim | N92: 8700 | O92: 8799 | P92: 0 | Q92: 1295
A93: Weilstetten | B93: 2002 | C93: Balingen | D93: 4 | E93: 1 | F93: 2002 | G93: =IF(IF(LEN(A93)>0,ERROR.TYPE(MATCH(H93,H$1:H92,0))=7,0),C93,"") -> Balingen | H93: 4Weilstetten | N93: 8800 | O93: 8899 | P93: 0 | Q93: 1295
A94: Winterlingen | B94: 2910 | C94: Balingen | D94: 4 | E94: 1.5 | F94: 2910 | G94: =IF(IF(LEN(A94)>0,ERROR.TYPE(MATCH(H94,H$1:H93,0))=7,0),C94,"") -> Balingen | H94: 4Winterlingen | N94: 8900 | O94: 8999 | P94: 0 | Q94: 1295
A95: Zillhausen | B95: 461 | C95: Balingen | D95: 4 | E95: 1 | F95: 461 | G95: =IF(IF(LEN(A95)>0,ERROR.TYPE(MATCH(H95,H$1:H94,0))=7,0),C95,"") -> Balingen | H95: 4Zillhausen | N95: 9000 | O95: 9099 | P95: 0 | Q95: 1295
A96: Streichen | B96: 297 | C96: Balingen | D96: 4 | E96: 0.5 | F96: 297 | G96: =IF(IF(LEN(A96)>0,ERROR.TYPE(MATCH(H96,H$1:H95,0))=7,0),C96,"") -> Balingen | H96: 4Streichen | N96: 9100 | O96: 9199 | P96: 0 | Q96: 1295
A97: Ebingen Martinskirchengemeinde | B97: 2659 | C97: Balingen | D97: 4 | E97: 1 | F97: 2659 | G97: =IF(IF(LEN(A97)>0,ERROR.TYPE(MATCH(H97,H$1:H96,0))=7,0),C97,"") -> Balingen | H97: 4Ebingen Martinskirchengemeinde | N97: 9200 | O97: 9299 | P97: 0 | Q97: 1295
A98: Ebingen Friedenskirchengemeinde | B98: 2200 | C98: Balingen | D98: 4 | E98: 1 | F98: 2200 | G98: =IF(IF(LEN(A98)>0,ERROR.TYPE(MATCH(H98,H$1:H97,0))=7,0),C98,"") -> Balingen | H98: 4Ebingen Friedenskirchengemeinde | N98: 9300 | O98: 9399 | P98: 1 | Q98: 1295
A99: Ebingen Thomaskirchengemeinde | B99: 1377 | C99: Balingen | D99: 4 | E99: 1 | F99: 1377 | G99: =IF(IF(LEN(A99)>0,ERROR.TYPE(MATCH(H99,H$1:H98,0))=7,0),C99,"") -> Balingen | H99: 4Ebingen Thomaskirchengemeinde | N99: 9400 | O99: 9499 | P99: 1 | Q99: 1296
A100: Heselwangen | B100: 641 | C100: Balingen | D100: 4 | E100: 1 | F100: 641 | G100: =IF(IF(LEN(A100)>0,ERROR.TYPE(MATCH(H100,H$1:H99,0))=7,0),C100,"") -> Balingen | H100: 4Heselwangen | N100: 9500 | O100: 9599 | P100: 0 | Q100: 1297
A101: Balingen auf Schmiden | B101: 1320 | C101: Balingen | D101: 4 | E101: 1 | F101: 1320 | G101: =IF(IF(LEN(A101)>0,ERROR.TYPE(MATCH(H101,H$1:H100,0))=7,0),C101,"") -> Balingen | H101: 4Balingen auf Schmiden | N101: 9600 | O101: 9699 | P101: =Q102-Q101 -> 1 | Q101: =COUNTIF(F:F,"<"&TEXT(N101,"#####"))-COUNTIF(F:F,"<"&TEXT(N$5,"#####")) -> 1297
A102: Rangendingen | B102: 733 | C102: Balingen | D102: 4 | E102: 1 | F102: 733 | G102: =IF(IF(LEN(A102)>0,ERROR.TYPE(MATCH(H102,H$1:H101,0))=7,0),C102,"") -> Balingen | H102: 4Rangendingen | N102: 9700 | O102: 9799 | P102: 0 | Q102: 1298
A103: Balingen-Ost | B103: 2134 | C103: Balingen | D103: 4 | E103: 1 | F103: 2134 | G103: =IF(IF(LEN(A103)>0,ERROR.TYPE(MATCH(H103,H$1:H102,0))=7,0),C103,"") -> Balingen | H103: 4Balingen-Ost | N103: 9800 | O103: 9899 | P103: 0 | Q103: 1298
A104: Burladingen | B104: 1391 | C104: Balingen | D104: 4 | E104: 1 | F104: 1391 | G104: =IF(IF(LEN(A104)>0,ERROR.TYPE(MATCH(H104,H$1:H103,0))=7,0),C104,"") -> Balingen | H104: 4Burladingen | N104: 9900 | O104: 9999 | P104: 0 | Q104: 1298
A105: Isingen | B105: 363 | C105: Sulz/Neckar | D105: 41 | E105: 0.5 | F105: 363 | G105: =IF(IF(LEN(A105)>0,ERROR.TYPE(MATCH(H105,H$1:H104,0))=7,0),C105,"") -> Sulz/Neckar | H105: 41Isingen | N105: 10000 | O105: 10099 | P105: 0 | Q105: 1298
A106: Besigheim | B106: 4938 | C106: Besigheim | D106: 5 | E106: 1.5 | F106: 4938 | G106: =IF(IF(LEN(A106)>0,ERROR.TYPE(MATCH(H106,H$1:H105,0))=7,0),C106,"") -> Besigheim | H106: 5Besigheim | N106: 10100 | O106: 10199 | P106: 0 | Q106: 1298
A107: Bietigheim Stadtkirchengemeinde | B107: 3798 | C107: Besigheim | D107: 5 | E107: 1.5 | F107: 3798 | G107: =IF(IF(LEN(A107)>0,ERROR.TYPE(MATCH(H107,H$1:H106,0))=7,0),C107,"") -> Besigheim | H107: 5Bietigheim Stadtkirchengemeinde | N107: 10200 | O107: 10299 | P107: 0 | Q107: 1298
A108: Bietigheim Friedenskirchengemeinde | B108: 2075 | C108: Besigheim | D108: 5 | E108: 1 | F108: 2075 | G108: =IF(IF(LEN(A108)>0,ERROR.TYPE(MATCH(H108,H$1:H107,0))=7,0),C108,"") -> Besigheim | H108: 5Bietigheim Friedenskirchengemeinde | N108: 10300 | O108: 10399 | P108: 0 | Q108: 1298
A109: Bietigheim Pauluskirchengemeinde | B109: 3015 | C109: Besigheim | D109: 5 | E109: 1.5 | F109: 3015 | G109: =IF(IF(LEN(A109)>0,ERROR.TYPE(MATCH(H109,H$1:H108,0))=7,0),C109,"") -> Besigheim | H109: 5Bietigheim Pauluskirchengemeinde | N109: 10400 | O109: 10499 | P109: 0 | Q109: 1298
A110: Metterzimmern | B110: 700 | C110: Besigheim | D110: 5 | E110: 1 | F110: 700 | G110: =IF(IF(LEN(A110)>0,ERROR.TYPE(MATCH(H110,H$1:H109,0))=7,0),C110,"") -> Besigheim | H110: 5Metterzimmern | N110: 10500 | O110: 10599 | P110: 0 | Q110: 1298
A111: Bönnigheim | B111: 3112 | C111: Besigheim | D111: 5 | E111: 1.5 | F111: 3112 | G111: =IF(IF(LEN(A111)>0,ERROR.TYPE(MATCH(H111,H$1:H110,0))=7,0),C111,"") -> Besigheim | H111: 5Bönnigheim | N111: 10600 | O111: 10699 | P111: 0 | Q111: 1298
A112: Hohenstein | B112: 231 | C112: Besigheim | D112: 5 | E112: 0.5 | F112: 231 | G112: =IF(IF(LEN(A112)>0,ERROR.TYPE(MATCH(H112,H$1:H111,0))=7,0),C112,"") -> Besigheim | H112: 5Hohenstein | N112: 10700 | O112: 10799 | P112: 0 | Q112: 1298
A113: Erligheim | B113: 1327 | C113: Besigheim | D113: 5 | E113: 1 | F113: 1327 | G113: =IF(IF(LEN(A113)>0,ERROR.TYPE(MATCH(H113,H$1:H112,0))=7,0),C113,"") -> Besigheim | H113: 5Erligheim | N113: 10800 | O113: 10899 | P113: 0 | Q113: 1298
A114: Freudental | B114: 1143 | C114: Besigheim | D114: 5 | E114: 1 | F114: 1143 | G114: =IF(IF(LEN(A114)>0,ERROR.TYPE(MATCH(H114,H$1:H113,0))=7,0),C114,"") -> Besigheim | H114: 5Freudental | N114: 10900 | O114: 10999 | P114: 0 | Q114: 1298
A115: Gemmrigheim | B115: 1808 | C115: Besigheim | D115: 5 | E115: 1 | F115: 1808 | G115: =IF(IF(LEN(A115)>0,ERROR.TYPE(MATCH(H115,H$1:H114,0))=7,0),C115,"") -> Besigheim | H115: 5Gemmrigheim | N115: 11000 | O115: 11099 | P115: 0 | Q115: 1298
A116: Großingersheim | B116: 2137 | C116: Besigheim | D116: 5 | E116: 1 | F116: 2137 | G116: =IF(IF(LEN(A116)>0,ERROR.TYPE(MATCH(H116,H$1:H115,0))=7,0),C116,"") -> Besigheim | H116: 5Großingersheim | N116: 11100 | O116: 11199 | P116: 0 | Q116: 1298
A117: Hessigheim | B117: 1288 | C117: Besigheim | D117: 5 | E117: 1 | F117: 1288 | G117: =IF(IF(LEN(A117)>0,ERROR.TYPE(MATCH(H117,H$1:H116,0))=7,0),C117,"") -> Besigheim | H117: 5Hessigheim | N117: 11200 | O117: 11299 | P117: 0 | Q117: 1298
A118: Kirchheim am Neckar | B118: 2097 | C118: Besigheim | D118: 5 | E118: 1 | F118: 2097 | G118: =IF(IF(LEN(A118)>0,ERROR.TYPE(MATCH(H118,H$1:H117,0))=7,0),C118,"") -> Besigheim | H118: 5Kirchheim am Neckar | N118: 11300 | O118: 11399 | P118: 0 | Q118: 1298
A119: Kleiningersheim | B119: 581 | C119: Besigheim | D119: 5 | E119: 1 | F119: 581 | G119: =IF(IF(LEN(A119)>0,ERROR.TYPE(MATCH(H119,H$1:H118,0))=7,0),C119,"") -> Besigheim | H119: 5Kleiningersheim | N119: 11400 | O119: 11499 | P119: 0 | Q119: 1298
A120: Lauffen am Neckar | B120: 4836 | C120: Besigheim | D120: 5 | E120: 1.5 | F120: 4836 | G120: =IF(IF(LEN(A120)>0,ERROR.TYPE(MATCH(H120,H$1:H119,0))=7,0),C120,"") -> Besigheim | H120: 5Lauffen am Neckar | N120: 11500 | O120: 11599 | P120: 0 | Q120: 1298
A121: Löchgau | B121: 2525 | C121: Besigheim | D121: 5 | E121: 1 | F121: 2525 | G121: =IF(IF(LEN(A121)>0,ERROR.TYPE(MATCH(H121,H$1:H120,0))=7,0),C121,"") -> Besigheim | H121: 5Löchgau | N121: 11600 | O121: 11699 | P121: 0 | Q121: 1298
A122: Neckarwestheim | B122: 1785 | C122: Besigheim | D122: 5 | E122: 1 | F122: 1785 | G122: =IF(IF(LEN(A122)>0,ERROR.TYPE(MATCH(H122,H$1:H121,0))=7,0),C122,"") -> Besigheim | H122: 5Neckarwestheim | N122: 11700 | O122: 11799 | P122: 0 | Q122: 1298
A123: Walheim | B123: 1508 | C123: Besigheim | D123: 5 | E123: 1 | F123: 1508 | G123: =IF(IF(LEN(A123)>0,ERROR.TYPE(MATCH(H123,H$1:H122,0))=7,0),C123,"") -> Besigheim | H123: 5Walheim | N123: 11800 | O123: 11899 | P123: 0 | Q123: 1298
A124: Bissingen a.d. Enz | B124: 4845 | C124: Besigheim | D124: 5 | E124: 1.5 | F124: 4845 | G124: =IF(IF(LEN(A124)>0,ERROR.TYPE(MATCH(H124,H$1:H123,0))=7,0),C124,"") -> Besigheim | H124: 5Bissingen a.d. Enz | N124: 11900 | O124: 11999 | P124: 0 | Q124: 1298
A125: Biberach Stadtpfarrkirchengemeinde | B125: 1206 | C125: Biberach | D125: 6 | E125: 1 | F125: 1206 | G125: =IF(IF(LEN(A125)>0,ERROR.TYPE(MATCH(H125,H$1:H124,0))=7,0),C125,"") -> Biberach | H125: 6Biberach Stadtpfarrkirchengemeinde | N125: 12000 | O125: 12099 | P125: 0 | Q125: 1298
A126: Altshausen | B126: 1552 | C126: Biberach | D126: 6 | E126: 1 | F126: 1552 | G126: =IF(IF(LEN(A126)>0,ERROR.TYPE(MATCH(H126,H$1:H125,0))=7,0),C126,"") -> Biberach | H126: 6Altshausen | N126: 12100 | O126: 12199 | P126: 0 | Q126: =COUNTIF(F:F,"<"&TEXT(N126,"#####"))-COUNTIF(F:F,"<"&TEXT(N$5,"#####")) -> 1298
A127: Attenweiler | B127: 1006 | C127: Biberach | D127: 6 | E127: 1 | F127: 1006 | G127: =IF(IF(LEN(A127)>0,ERROR.TYPE(MATCH(H127,H$1:H126,0))=7,0),C127,"") -> Biberach | H127: 6Attenweiler | N127: 12200 | O127: 12299 | P127: 0 | Q127: 1298
A128: Aulendorf Thomaskirchengemeinde | B128: 2267 | C128: Biberach | D128: 6 | E128: 1 | F128: 2267 | G128: =IF(IF(LEN(A128)>0,ERROR.TYPE(MATCH(H128,H$1:H127,0))=7,0),C128,"") -> Biberach | H128: 6Aulendorf Thomaskirchengemeinde | N128: 12300 | O128: 12399 | P128: 0 | Q128: 1298
A129: Bad Buchau | B129: 1005 | C129: Biberach | D129: 6 | E129: 1 | F129: 1005 | G129: =IF(IF(LEN(A129)>0,ERROR.TYPE(MATCH(H129,H$1:H128,0))=7,0),C129,"") -> Biberach | H129: 6Bad Buchau | N129: 12400 | O129: 12499 | P129: 0 | Q129: 1298
A130: Ersingen | B130: 1223 | C130: Biberach | D130: 6 | E130: 1 | F130: 1223 | G130: =IF(IF(LEN(A130)>0,ERROR.TYPE(MATCH(H130,H$1:H129,0))=7,0),C130,"") -> Biberach | H130: 6Ersingen | N130: 12500 | O130: 12599 | P130: 0 | Q130: 1298
A131: Kirchdorf an der Iller | B131: 1425 | C131: Biberach | D131: 6 | E131: =IF($G131<>"",IF($B131<400,0.5,IF($B131<2801,1,IF($B131<5601,1.5,IF($B131<8401,2,IF($B131<11201,2.5,1000))))),"") -> 1 | F131: 1425 | G131: =IF(IF(LEN(A131)>0,ERROR.TYPE(MATCH(H131,H$1:H130,0))=7,0),C131,"") -> Biberach | H131: 6Kirchdorf an der Iller | N131: 12600 | O131: 12699 | P131: 0 | Q131: 1298
A132: Laupheim | B132: 3986 | C132: Biberach | D132: 6 | E132: 1.5 | F132: =IF(E132<>"#NV",B132,"") -> 3986 | G132: =IF(IF(LEN(A132)>0,ERROR.TYPE(MATCH(H132,H$1:H131,0))=7,0),C132,"") -> Biberach | H132: =D132&A132 -> 6Laupheim | N132: 12700 | O132: 12799 | P132: 0 | Q132: 1298
A133: Mengen | B133: 2096 | C133: Biberach | D133: 6 | E133: 1 | F133: 2096 | G133: =IF(IF(LEN(A133)>0,ERROR.TYPE(MATCH(H133,H$1:H132,0))=7,0),C133,"") -> Biberach | H133: 6Mengen | N133: 12800 | O133: 12899 | P133: 0 | Q133: 1298
A134: Oberholzheim | B134: 2436 | C134: Biberach | D134: 6 | E134: 1 | F134: 2436 | G134: =IF(IF(LEN(A134)>0,ERROR.TYPE(MATCH(H134,H$1:H133,0))=7,0),C134,"") -> Biberach | H134: 6Oberholzheim | N134: 12900 | O134: =N135-1 -> 12999 | P134: 0 | Q134: 1298
A135: Ochsenhausen | B135: 1541 | C135: Biberach | D135: 6 | E135: 1 | F135: 1541 | G135: =IF(IF(LEN(A135)>0,ERROR.TYPE(MATCH(H135,H$1:H134,0))=7,0),C135,"") -> Biberach | H135: 6Ochsenhausen | N135: 13000 | O135: 13099 | P135: 0 | Q135: 1298
A136: Pflummern | B136: 382 | C136: Biberach | D136: 6 | E136: 0.5 | F136: 382 | G136: =IF(IF(LEN(A136)>0,ERROR.TYPE(MATCH(H136,H$1:H135,0))=7,0),C136,"") -> Biberach | H136: 6Pflummern | N136: 13100 | O136: 13199 | P136: 0 | Q136: 1298
A137: Heiligkreuztal | B137: 445 | C137: Biberach | D137: 6 | E137: 1 | F137: 445 | G137: =IF(IF(LEN(A137)>0,ERROR.TYPE(MATCH(H137,H$1:H136,0))=7,0),C137,"") -> Biberach | H137: 6Heiligkreuztal | N137: 13200 | O137: 13299 | P137: 0 | Q137: 1298
A138: Riedlingen | B138: 4086 | C138: Biberach | D138: 6 | E138: 1.5 | F138: 4086 | G138: =IF(IF(LEN(A138)>0,ERROR.TYPE(MATCH(H138,H$1:H137,0))=7,0),C138,"") -> Biberach | H138: 6Riedlingen | N138: 13300 | O138: 13399 | P138: 0 | Q138: 1298
A139: Bad Saulgau | B139: 3124 | C139: Biberach | D139: 6 | E139: 1.5 | F139: 3124 | G139: =IF(IF(LEN(A139)>0,ERROR.TYPE(MATCH(H139,H$1:H138,0))=7,0),C139,"") -> Biberach | H139: 6Bad Saulgau | N139: 13400 | O139: 13499 | P139: 0 | Q139: 1298
A140: Bad Schussenried | B140: 1360 | C140: Biberach | D140: 6 | E140: 1 | F140: 1360 | G140: =IF(IF(LEN(A140)>0,ERROR.TYPE(MATCH(H140,H$1:H139,0))=7,0),C140,"") -> Biberach | H140: 6Bad Schussenried | N140: 13500 | O140: 13599 | P140: 0 | Q140: 1298
A141: Balzheim | B141: 978 | C141: Biberach | D141: 6 | E141: 1 | F141: 978 | G141: =IF(IF(LEN(A141)>0,ERROR.TYPE(MATCH(H141,H$1:H140,0))=7,0),C141,"") -> Biberach | H141: 6Balzheim | N141: 13600 | O141: 13699 | P141: 0 | Q141: 1298
A142: Dietenheim | B142: 1560 | C142: Biberach | D142: 6 | E142: 1 | F142: 1560 | G142: =IF(IF(LEN(A142)>0,ERROR.TYPE(MATCH(H142,H$1:H141,0))=7,0),C142,"") -> Biberach | H142: 6Dietenheim | N142: 13700 | O142: 13799 | P142: 0 | Q142: 1298
A143: Wain | B143: 1267 | C143: Biberach | D143: 6 | E143: 1 | F143: 1267 | G143: =IF(IF(LEN(A143)>0,ERROR.TYPE(MATCH(H143,H$1:H142,0))=7,0),C143,"") -> Biberach | H143: 6Wain | N143: 13800 | O143: 13899 | P143: 0 | Q143: 1298
A144: Biberach Heilig-Geist-Kirchengemeinde | B144: 1729 | C144: Biberach | D144: 6 | E144: 1 | F144: 1729 | G144: =IF(IF(LEN(A144)>0,ERROR.TYPE(MATCH(H144,H$1:H143,0))=7,0),C144,"") -> Biberach | H144: 6Biberach Heilig-Geist-Kirchengemeinde | N144: 13900 | O144: 13999 | P144: 0 | Q144: 1298
A145: Biberach Friedenskirchengemeinde | B145: 2848 | C145: Biberach | D145: 6 | E145: 1.5 | F145: 2848 | G145: =IF(IF(LEN(A145)>0,ERROR.TYPE(MATCH(H145,H$1:H144,0))=7,0),C145,"") -> Biberach | H145: 6Biberach Friedenskirchengemeinde | N145: 14000 | O145: 14099 | P145: 0 | Q145: 1298
A146: Biberach Bonhoeffer-Kirchengemeinde | B146: 1540 | C146: Biberach | D146: 6 | E146: 1 | F146: 1540 | G146: =IF(IF(LEN(A146)>0,ERROR.TYPE(MATCH(H146,H$1:H145,0))=7,0),C146,"") -> Biberach | H146: 6Biberach Bonhoeffer-Kirchengemeinde | N146: 14100 | O146: 14199 | P146: 0 | Q146: 1298
A147: Ummendorf Versöhnungskirche | B147: 1886 | C147: Biberach | D147: 6 | E147: 1 | F147: 1886 | G147: =IF(IF(LEN(A147)>0,ERROR.TYPE(MATCH(H147,H$1:H146,0))=7,0),C147,"") -> Biberach | H147: 6Ummendorf Versöhnungskirche | N147: 14200 | O147: 14299 | P147: 0 | Q147: 1298
A148: Warthausen | B148: 2254 | C148: Biberach | D148: 6 | E148: 1 | F148: 2254 | G148: =IF(IF(LEN(A148)>0,ERROR.TYPE(MATCH(H148,H$1:H147,0))=7,0),C148,"") -> Biberach | H148: 6Warthausen | N148: 14300 | O148: 14399 | P148: 0 | Q148: 1298
A149: Erolzheim-Rot | B149: 1174 | C149: Biberach | D149: 6 | E149: 1 | F149: 1174 | G149: =IF(IF(LEN(A149)>0,ERROR.TYPE(MATCH(H149,H$1:H148,0))=7,0),C149,"") -> Biberach | H149: 6Erolzheim-Rot | N149: 14400 | O149: 14499 | P149: 0 | Q149: 1298
A150: Blaubeuren | B150: 1661 | C150: Blaubeuren | D150: 7 | E150: 1 | F150: 1661 | G150: =IF(IF(LEN(A150)>0,ERROR.TYPE(MATCH(H150,H$1:H149,0))=7,0),C150,"") -> Blaubeuren | H150: 7Blaubeuren | N150: 14500 | O150: 14599 | P150: 0 | Q150: 1298
A151: Gerhausen | B151: 666 | C151: Blaubeuren | D151: 7 | E151: 1 | F151: 666 | G151: =IF(IF(LEN(A151)>0,ERROR.TYPE(MATCH(H151,H$1:H150,0))=7,0),C151,"") -> Blaubeuren | H151: 7Gerhausen | N151: 14600 | O151: 14699 | P151: 0 | Q151: 1298
A152: Asch | B152: 618 | C152: Blaubeuren | D152: 7 | E152: 1 | F152: 618 | G152: =IF(IF(LEN(A152)>0,ERROR.TYPE(MATCH(H152,H$1:H151,0))=7,0),C152,"") -> Blaubeuren | H152: 7Asch | N152: 14700 | O152: 14799 | P152: 0 | Q152: 1298
A153: Sonderbuch | B153: 375 | C153: Blaubeuren | D153: 7 | E153: 0.5 | F153: 375 | G153: =IF(IF(LEN(A153)>0,ERROR.TYPE(MATCH(H153,H$1:H152,0))=7,0),C153,"") -> Blaubeuren | H153: 7Sonderbuch | N153: 14800 | O153: 14899 | P153: 0 | Q153: 1298
A154: Berghülen | B154: 833 | C154: Blaubeuren | D154: 7 | E154: 1 | F154: 833 | G154: =IF(IF(LEN(A154)>0,ERROR.TYPE(MATCH(H154,H$1:H153,0))=7,0),C154,"") -> Blaubeuren | H154: 7Berghülen | N154: 14900 | O154: 14999 | P154: 0 | Q154: 1298
A155: Bühlenhausen | B155: 262 | C155: Blaubeuren | D155: 7 | E155: 0.5 | F155: 262 | G155: =IF(IF(LEN(A155)>0,ERROR.TYPE(MATCH(H155,H$1:H154,0))=7,0),C155,"") -> Blaubeuren | H155: 7Bühlenhausen | N155: 15000 | Q155: 1298
A156: Treffensbuch | B156: 56 | C156: Blaubeuren | D156: 7 | E156: 0.5 | F156: 56 | G156: =IF(IF(LEN(A156)>0,ERROR.TYPE(MATCH(H156,H$1:H155,0))=7,0),C156,"") -> Blaubeuren | H156: 7Treffensbuch
A157: Bermaringen | B157: 750 | C157: Blaubeuren | D157: 7 | E157: 1 | F157: 750 | G157: =IF(IF(LEN(A157)>0,ERROR.TYPE(MATCH(H157,H$1:H156,0))=7,0),C157,"") -> Blaubeuren | H157: 7Bermaringen
A158: Temmenhausen-Tomerdingen | B158: 724 | C158: Blaubeuren | D158: 7 | E158: 1 | F158: 724 | G158: =IF(IF(LEN(A158)>0,ERROR.TYPE(MATCH(H158,H$1:H157,0))=7,0),C158,"") -> Blaubeuren | H158: 7Temmenhausen-Tomerdingen
A159: Ehingen | B159: 3487 | C159: Blaubeuren | D159: 7 | E159: 1.5 | F159: 3487 | G159: =IF(IF(LEN(A159)>0,ERROR.TYPE(MATCH(H159,H$1:H158,0))=7,0),C159,"") -> Blaubeuren | H159: 7Ehingen
A160: Allmendingen | B160: 603 | C160: Blaubeuren | D160: 7 | E160: 1 | F160: 603 | G160: =IF(IF(LEN(A160)>0,ERROR.TYPE(MATCH(H160,H$1:H159,0))=7,0),C160,"") -> Blaubeuren | H160: 7Allmendingen
A161: Blaustein | B161: 1693 | C161: Blaubeuren | D161: 7 | E161: 1 | F161: 1693 | G161: =IF(IF(LEN(A161)>0,ERROR.TYPE(MATCH(H161,H$1:H160,0))=7,0),C161,"") -> Blaubeuren | H161: 7Blaustein
A162: Machtolsheim | B162: 642 | C162: Blaubeuren | D162: 7 | E162: 1 | F162: 642 | G162: =IF(IF(LEN(A162)>0,ERROR.TYPE(MATCH(H162,H$1:H161,0))=7,0),C162,"") -> Blaubeuren | H162: 7Machtolsheim
A163: Merklingen | B163: 1212 | C163: Blaubeuren | D163: 7 | E163: 1 | F163: 1212 | G163: =IF(IF(LEN(A163)>0,ERROR.TYPE(MATCH(H163,H$1:H162,0))=7,0),C163,"") -> Blaubeuren | H163: 7Merklingen
A164: Munderkingen | B164: 1359 | C164: Blaubeuren | D164: 7 | E164: 1 | F164: 1359 | G164: =IF(IF(LEN(A164)>0,ERROR.TYPE(MATCH(H164,H$1:H163,0))=7,0),C164,"") -> Blaubeuren | H164: 7Munderkingen
A165: Nellingen/Alb | B165: 1149 | C165: Blaubeuren | D165: 7 | E165: 1 | F165: 1149 | G165: =IF(IF(LEN(A165)>0,ERROR.TYPE(MATCH(H165,H$1:H164,0))=7,0),C165,"") -> Blaubeuren | H165: 7Nellingen/Alb
A166: Oppingen | B166: 109 | C166: Blaubeuren | D166: 7 | E166: 0.5 | F166: 109 | G166: =IF(IF(LEN(A166)>0,ERROR.TYPE(MATCH(H166,H$1:H165,0))=7,0),C166,"") -> Blaubeuren | H166: 7Oppingen
A167: Pappelau | B167: 855 | C167: Blaubeuren | D167: 7 | E167: 1 | F167: 855 | G167: =IF(IF(LEN(A167)>0,ERROR.TYPE(MATCH(H167,H$1:H166,0))=7,0),C167,"") -> Blaubeuren | H167: 7Pappelau
A168: Markbronn | B168: 418 | C168: Blaubeuren | D168: 7 | E168: 1 | F168: 418 | G168: =IF(IF(LEN(A168)>0,ERROR.TYPE(MATCH(H168,H$1:H167,0))=7,0),C168,"") -> Blaubeuren | H168: 7Markbronn
A169: Rottenacker | B169: 1274 | C169: Blaubeuren | D169: 7 | E169: 1 | F169: 1274 | G169: =IF(IF(LEN(A169)>0,ERROR.TYPE(MATCH(H169,H$1:H168,0))=7,0),C169,"") -> Blaubeuren | H169: 7Rottenacker
A170: Scharenstetten | B170: 476 | C170: Blaubeuren | D170: 7 | E170: 1 | F170: 476 | G170: =IF(IF(LEN(A170)>0,ERROR.TYPE(MATCH(H170,H$1:H169,0))=7,0),C170,"") -> Blaubeuren | H170: 7Scharenstetten
A171: Radelstetten | B171: 135 | C171: Blaubeuren | D171: 7 | E171: 0.5 | F171: 135 | G171: =IF(IF(LEN(A171)>0,ERROR.TYPE(MATCH(H171,H$1:H170,0))=7,0),C171,"") -> Blaubeuren | H171: 7Radelstetten
A172: Schelklingen | B172: 900 | C172: Blaubeuren | D172: 7 | E172: 1 | F172: 900 | G172: =IF(IF(LEN(A172)>0,ERROR.TYPE(MATCH(H172,H$1:H171,0))=7,0),C172,"") -> Blaubeuren | H172: 7Schelklingen
A173: Weiler | B173: 262 | C173: Blaubeuren | D173: 7 | E173: 0.5 | F173: 262 | G173: =IF(IF(LEN(A173)>0,ERROR.TYPE(MATCH(H173,H$1:H172,0))=7,0),C173,"") -> Blaubeuren | H173: 7Weiler
A174: Seißen | B174: 826 | C174: Blaubeuren | D174: 7 | E174: 1 | F174: 826 | G174: =IF(IF(LEN(A174)>0,ERROR.TYPE(MATCH(H174,H$1:H173,0))=7,0),C174,"") -> Blaubeuren | H174: 7Seißen
A175: Suppingen | B175: 517 | C175: Blaubeuren | D175: 7 | E175: 1 | F175: 517 | G175: =IF(IF(LEN(A175)>0,ERROR.TYPE(MATCH(H175,H$1:H174,0))=7,0),C175,"") -> Blaubeuren | H175: 7Suppingen
A176: Weilersteusslingen | B176: 572 | C176: Blaubeuren | D176: 7 | E176: 1 | F176: 572 | G176: =IF(IF(LEN(A176)>0,ERROR.TYPE(MATCH(H176,H$1:H175,0))=7,0),C176,"") -> Blaubeuren | H176: 7Weilersteusslingen
A177: Wippingen | B177: 467 | C177: Blaubeuren | D177: 7 | E177: 1 | F177: 467 | G177: =IF(IF(LEN(A177)>0,ERROR.TYPE(MATCH(H177,H$1:H176,0))=7,0),C177,"") -> Blaubeuren | H177: 7Wippingen
A178: Herrlingen | B178: 1131 | C178: Blaubeuren | D178: 7 | E178: 1 | F178: 1131 | G178: =IF(IF(LEN(A178)>0,ERROR.TYPE(MATCH(H178,H$1:H177,0))=7,0),C178,"") -> Blaubeuren | H178: 7Herrlingen
A179: Blaufelden | B179: 1761 | C179: Blaufelden | D179: 8 | E179: 1 | F179: 1761 | G179: =IF(IF(LEN(A179)>0,ERROR.TYPE(MATCH(H179,H$1:H178,0))=7,0),C179,"") -> Blaufelden | H179: 8Blaufelden
A180: Amlishagen | B180: 236 | C180: Blaufelden | D180: 8 | E180: 0.5 | F180: 236 | G180: =IF(IF(LEN(A180)>0,ERROR.TYPE(MATCH(H180,H$1:H179,0))=7,0),C180,"") -> Blaufelden | H180: 8Amlishagen
A181: Bächlingen | B181: 202 | C181: Blaufelden | D181: 8 | E181: 0.5 | F181: 202 | G181: =IF(IF(LEN(A181)>0,ERROR.TYPE(MATCH(H181,H$1:H180,0))=7,0),C181,"") -> Blaufelden | H181: 8Bächlingen
A182: Beimbach | B182: 238 | C182: Blaufelden | D182: 8 | E182: 0.5 | F182: 238 | G182: =IF(IF(LEN(A182)>0,ERROR.TYPE(MATCH(H182,H$1:H181,0))=7,0),C182,"") -> Blaufelden | H182: 8Beimbach
A183: Billingsbach | B183: 413 | C183: Blaufelden | D183: 8 | E183: 1 | F183: 413 | G183: =IF(IF(LEN(A183)>0,ERROR.TYPE(MATCH(H183,H$1:H182,0))=7,0),C183,"") -> Blaufelden | H183: 8Billingsbach
A184: Brettheim | B184: 662 | C184: Blaufelden | D184: 8 | E184: 1 | F184: 662 | G184: =IF(IF(LEN(A184)>0,ERROR.TYPE(MATCH(H184,H$1:H183,0))=7,0),C184,"") -> Blaufelden | H184: 8Brettheim
A185: Hilgartshausen | B185: 132 | C185: Blaufelden | D185: 8 | E185: 0.5 | F185: 132 | G185: =IF(IF(LEN(A185)>0,ERROR.TYPE(MATCH(H185,H$1:H184,0))=7,0),C185,"") -> Blaufelden | H185: 8Hilgartshausen
A186: Dünsbach | B186: 397 | C186: Blaufelden | D186: 8 | E186: 0.5 | F186: 397 | G186: =IF(IF(LEN(A186)>0,ERROR.TYPE(MATCH(H186,H$1:H185,0))=7,0),C186,"") -> Blaufelden | H186: 8Dünsbach
A187: Ettenhausen | B187: 389 | C187: Blaufelden | D187: 8 | E187: 0.5 | F187: 389 | G187: =IF(IF(LEN(A187)>0,ERROR.TYPE(MATCH(H187,H$1:H186,0))=7,0),C187,"") -> Blaufelden | H187: 8Ettenhausen
A188: Gaggstatt | B188: 286 | C188: Blaufelden | D188: 8 | E188: 0.5 | F188: 286 | G188: =IF(IF(LEN(A188)>0,ERROR.TYPE(MATCH(H188,H$1:H187,0))=7,0),C188,"") -> Blaufelden | H188: 8Gaggstatt
A189: Mistlau | B189: 78 | C189: Blaufelden | D189: 8 | E189: 0.5 | F189: 78 | G189: =IF(IF(LEN(A189)>0,ERROR.TYPE(MATCH(H189,H$1:H188,0))=7,0),C189,"") -> Blaufelden | H189: 8Mistlau
A190: Gerabronn | B190: 1472 | C190: Blaufelden | D190: 8 | E190: 1 | F190: 1472 | G190: =IF(IF(LEN(A190)>0,ERROR.TYPE(MATCH(H190,H$1:H189,0))=7,0),C190,"") -> Blaufelden | H190: 8Gerabronn
A191: Hausen am Bach | B191: 246 | C191: Blaufelden | D191: 8 | E191: 0.5 | F191: 246 | G191: =IF(IF(LEN(A191)>0,ERROR.TYPE(MATCH(H191,H$1:H190,0))=7,0),C191,"") -> Blaufelden | H191: 8Hausen am Bach
A192: Buch | B192: 57 | C192: Blaufelden | D192: 8 | E192: 0.5 | F192: 57 | G192: =IF(IF(LEN(A192)>0,ERROR.TYPE(MATCH(H192,H$1:H191,0))=7,0),C192,"") -> Blaufelden | H192: 8Buch
A193: Hengstfeld | B193: 527 | C193: Blaufelden | D193: 8 | E193: 1 | F193: 527 | G193: =IF(IF(LEN(A193)>0,ERROR.TYPE(MATCH(H193,H$1:H192,0))=7,0),C193,"") -> Blaufelden | H193: 8Hengstfeld
A194: Herrentierbach | B194: 288 | C194: Blaufelden | D194: 8 | E194: 0.5 | F194: 288 | G194: =IF(IF(LEN(A194)>0,ERROR.TYPE(MATCH(H194,H$1:H193,0))=7,0),C194,"") -> Blaufelden | H194: 8Herrentierbach
A195: Riedbach | B195: 115 | C195: Blaufelden | D195: 8 | E195: =IF($G195<>"",IF($B195<400,0.5,IF($B195<2801,1,IF($B195<5601,1.5,IF($B195<8401,2,IF($B195<11201,2.5,1000))))),"") -> 0.5 | F195: 115 | G195: =IF(IF(LEN(A195)>0,ERROR.TYPE(MATCH(H195,H$1:H194,0))=7,0),C195,"") -> Blaufelden | H195: 8Riedbach
A196: Kirchberg/Jagst | B196: 1071 | C196: Blaufelden | D196: 8 | E196: 1 | F196: =IF(E196<>"#NV",B196,"") -> 1071 | G196: =IF(IF(LEN(A196)>0,ERROR.TYPE(MATCH(H196,H$1:H195,0))=7,0),C196,"") -> Blaufelden | H196: =D196&A196 -> 8Kirchberg/Jagst
A197: Langenburg | B197: 782 | C197: Blaufelden | D197: 8 | E197: 1 | F197: 782 | G197: =IF(IF(LEN(A197)>0,ERROR.TYPE(MATCH(H197,H$1:H196,0))=7,0),C197,"") -> Blaufelden | H197: 8Langenburg
A198: Lendsiedel | B198: 786 | C198: Blaufelden | D198: 8 | E198: 1 | F198: 786 | G198: =IF(IF(LEN(A198)>0,ERROR.TYPE(MATCH(H198,H$1:H197,0))=7,0),C198,"") -> Blaufelden | H198: 8Lendsiedel
A199: Leuzendorf | B199: 337 | C199: Blaufelden | D199: 8 | E199: 0.5 | F199: 337 | G199: =IF(IF(LEN(A199)>0,ERROR.TYPE(MATCH(H199,H$1:H198,0))=7,0),C199,"") -> Blaufelden | H199: 8Leuzendorf
A200: Michelbach a.d. Heide | B200: 306 | C200: Blaufelden | D200: 8 | E200: 0.5 | F200: 306 | G200: =IF(IF(LEN(A200)>0,ERROR.TYPE(MATCH(H200,H$1:H199,0))=7,0),C200,"") -> Blaufelden | H200: 8Michelbach a.d. Heide
... 2044 more rows

Sheet Ggl. Historie
A1: Gemeindegliederentwicklung | M1: Grün: In diese Zeitspanne fällt der Wechsel von Gemeindegliedern zwischen Kirchenbezirken | Y1: |<- Datengrundlage für Prognose ->|
A2: Daten der kirchlichen Statistik Wall (fixe Zahlen) zur Dokumentation der zurückliegenden Entwicklung | O2: PfarrPlan 2006 -> | T2: PfarrPlan 2011 (verlängerte Laufzeit) -> | Z2: PfarrPlan 2018 -> | AF2: PfarrPlan 2024 -> | AL2: PfarrPlan 2030 ->
D3: 1991 | E3: 1992 | F3: 1993 | G3: 1994 | H3: 1995 | I3: 1996 | J3: 1997 | K3: 1998 | L3: 1999 | M3: 2000 | N3: 2001 | O3: 2002 | P3: 2003 | Q3: 2004 | R3: 2005 | S3: 2006 | T3: 2007 | U3: 2008 | V3: 2009 | W3: 2010 | X3: 2011 | Y3: 2012 | Z3: 2013 | AA3: 2014 | AB3: 2015 | AC3: 2016 | AD3: 2017 | AE3: 2018 | AF3: 2019 | AG3: 2020 | AH3: 2021 | AI3: 2022 | AJ3: 2023 | AK3: 2024 | AL3: 2025
D4: GGl. Herbst 1991 | E4: GGl. Herbst 1992 | F4: GGl. Herbst 1993 | G4: GGl. Herbst 1994 | H4: GGl. Herbst 1995 | I4: GGl. Herbst 1996 | J4: GGl. Herbst 1997 | K4: GGl. Herbst 1998 | L4: GGl. Herbst 1999 | M4: GGl. Herbst 2000 | N4: GGl. Herbst 2001 | O4: GGl. Herbst 2002 | P4: GGl. Herbst 2003 | Q4: GGl. Herbst 2004 | R4: GGl. Herbst 2005 | S4: GGl. Herbst 2006 | T4: GGl. Herbst 2007 | U4: GGl. Herbst 2008 | V4: GGl. 31.12.2009 | W4: GGl. 31.12.2010 | X4: GGl. 31.12.2011 | Y4: GGl. 31.12.2012 | Z4: GGl. 31.12.2013 | AA4: GGl. 31.12.2014 | AB4: GGl. 31.12.2015 | AC4: GGl. 31.12.2016 | AD4: GGl. 31.12.2017 | AE4: GGl. 31.12.2018 | AF4: GGl. 31.12.2019 | AG4: GGl. 31.12.2020 | AH4: GGl. 31.12.2021 | AI4: GGl. 31.12.2022 | AJ4: GGl. 31.12.2023 | AK4: GGl. 31.12.2024 | AL4: GGl. 31.12.2025
A5: =Parameter!B2 -> Aalen | B5: 1 | D5: 40552 | E5: 40690 | F5: 41630 | G5: 42015 | H5: 42254 | I5: 42547 | J5: 42787 | K5: 42141 | L5: 42863 | M5: 42743 | N5: 42850 | O5: 42882 | P5: 42826 | Q5: 42706 | R5: 42654 | S5: 42399 | T5: 41541 | U5: 41203 | V5: 40925 | W5: 40430 | X5: 40086 | Y5: 39820 | Z5: 39383 | AA5: 38883 | AB5: 38355 | AC5: 37955
A6: =Parameter!B3 -> Backnang | B6: 2 | D6: 51149 | E6: 51101 | F6: 51018 | G6: 50942 | H6: 50790 | I6: 50606 | J6: 50593 | K6: 50576 | L6: 50374 | M6: 50048 | N6: 49950 | O6: 49720 | P6: 49390 | Q6: 49130 | R6: 48797 | S6: 48330 | T6: 47794 | U6: 47257 | V6: 46447 | W6: 45827 | X6: 45179 | Y6: 44675 | Z6: 44091 | AA6: 43336 | AB6: 42641 | AC6: 42044
A7: =Parameter!B4 -> Bad Cannstatt | B7: 3 | D7: 48680 | E7: 47263 | F7: 46061 | G7: 44954 | H7: 43691 | I7: 42872 | J7: 41971 | K7: 41116 | L7: 40609 | M7: 40063 | N7: 39328 | O7: 38572 | P7: 37736 | Q7: 37038 | R7: 36584 | S7: 35994 | T7: 35509 | U7: 35058 | V7: 34359 | W7: 33815 | X7: 33394 | Y7: 33097 | Z7: 32662 | AA7: 31867 | AB7: 31050 | AC7: 30392
A8: =Parameter!B5 -> Bad Urach-Münsingen | B8: 4 | D8: 67752 | E8: 67582 | F8: 67557 | G8: 67540 | H8: 67217 | I8: 67274 | J8: 67152 | K8: 67003 | L8: 66855 | M8: 66643 | N8: 66576 | O8: 66368 | P8: 66103 | Q8: 65783 | R8: 65522 | S8: 65108 | T8: 64465 | U8: 63879 | V8: 63094 | W8: 62076 | X8: 61402 | Y8: 60795 | Z8: 60206 | AA8: 59257 | AB8: 58258 | AC8: 57510
A9: =Parameter!B6 -> Balingen | B9: 5 | D9: 73189 | E9: 73518 | F9: 73944 | G9: 74438 | H9: 74478 | I9: 74166 | J9: 73826 | K9: 73148 | L9: =71724 -> 71724 | M9: 72163 | N9: 71821 | O9: 73035 | P9: 72538 | Q9: 72131 | R9: 71624 | S9: 70893 | T9: 71057 | U9: 70455 | V9: 69446 | W9: 68132 | X9: 67310 | Y9: 66520 | Z9: 65110 | AA9: 63873 | AB9: 62900 | AC9: 61986
A10: =Parameter!B7 -> Bernhausen | B10: 6 | D10: 54962 | E10: 54460 | F10: 53931 | G10: 53591 | H10: 52878 | I10: 52523 | J10: 52067 | K10: 51678 | L10: 51283 | M10: 51021 | N10: 50882 | O10: 50776 | P10: 50451 | Q10: 50317 | R10: 50116 | S10: 49970 | T10: 49785 | U10: 49341 | V10: 48977 | W10: 48476 | X10: 48151 | Y10: 47807 | Z10: 47250 | AA10: 46514 | AB10: 45965 | AC10: 45468
A11: =Parameter!B8 -> Besigheim | B11: 7 | D11: 51973 | E11: 51769 | F11: 51446 | G11: 51170 | H11: 50993 | I11: 51029 | J11: 50836 | K11: 50499 | L11: 50488 | M11: 50290 | N11: 50296 | O11: 50205 | P11: 49862 | Q11: 49665 | R11: 49655 | S11: 49229 | T11: 48874 | U11: 48409 | V11: 47728 | W11: 47423 | X11: 47020 | Y11: 46521 | Z11: 45821 | AA11: 45124 | AB11: 44429 | AC11: 43749
A12: =Parameter!B9 -> Biberach | B12: 8 | D12: 37200 | E12: 38096 | F12: 39331 | G12: 40689 | H12: 41528 | I12: 42402 | J12: 43126 | K12: 43392 | L12: 43856 | M12: 44392 | N12: 44914 | O12: 45392 | P12: 45877 | Q12: 46329 | R12: 46494 | S12: 46432 | T12: 46426 | U12: 46401 | V12: 46202 | W12: 45739 | X12: 45495 | Y12: 45066 | Z12: 44858 | AA12: 44553 | AB12: 44490 | AC12: 44376
A13: =Parameter!B10 -> Blaubeuren | B13: 9 | D13: 26955 | E13: 26800 | F13: 26867 | G13: 26875 | H13: 26849 | I13: 26782 | J13: 26923 | K13: 26959 | L13: 26886 | M13: 27033 | N13: 27015 | O13: 27002 | P13: 26943 | Q13: 26988 | R13: 26959 | S13: 26783 | T13: 26805 | U13: 26631 | V13: 26384 | W13: 25908 | X13: 25626 | Y13: 25451 | Z13: 25104 | AA13: 24776 | AB13: 24406 | AC13: 24032
A14: =Parameter!B11 -> Blaufelden | B14: 10 | D14: 20714 | E14: 21033 | F14: 21278 | G14: 21533 | H14: 21806 | I14: 21879 | J14: 21974 | K14: 21924 | L14: 21879 | M14: 21945 | N14: 21954 | O14: 21875 | P14: 21760 | Q14: 21625 | R14: 21537 | S14: 21385 | T14: 21198 | U14: 21019 | V14: 20633 | W14: 20395 | X14: 20236 | Y14: 20012 | Z14: 19692 | AA14: 19461 | AB14: 19302 | AC14: 19173
A15: =Parameter!B12 -> Böblingen | B15: 11 | D15: 80954 | E15: 80065 | F15: 79487 | G15: 78741 | H15: 77542 | I15: 77000 | J15: 76554 | K15: 75893 | L15: 75463 | M15: 74841 | N15: 74112 | O15: 73743 | P15: 72962 | Q15: 72245 | R15: 71520 | S15: 70533 | T15: 69845 | U15: 69238 | V15: 67650 | W15: 66659 | X15: 65850 | Y15: 65201 | Z15: 64493 | AA15: 63421 | AB15: 62482 | AC15: 61480
A16: =Parameter!B13 -> Brackenheim | B16: 12 | D16: 28026 | E16: 28391 | F16: 28718 | G16: 28903 | H16: 29079 | I16: 29394 | J16: 29579 | K16: 29600 | L16: 29729 | M16: 29971 | N16: 30064 | O16: 29976 | P16: 29785 | Q16: 29652 | R16: 29520 | S16: 29398 | T16: 29324 | U16: 29061 | V16: 28593 | W16: 28302 | X16: 27961 | Y16: 27738 | Z16: 27387 | AA16: 27081 | AB16: 26693 | AC16: 26382
A17: =Parameter!B14 -> Calw | B17: 13 | D17: 36798 | E17: 36926 | F17: 36976 | G17: 37167 | H17: 36679 | I17: 36458 | J17: 36281 | K17: 36106 | L17: 36036 | M17: 36024 | N17: 35910 | O17: 35843 | P17: 35535 | Q17: 35424 | R17: 35118 | S17: 34741 | T17: 34466 | U17: 33995 | V17: 33439 | W17: 33071 | X17: 32725 | Y17: 32266 | Z17: 32193 | AA17: 31800 | AB17: 31378 | AC17: 30881
A18: =Parameter!B15 -> Crailsheim | B18: 14 | D18: 30851 | E18: 31048 | F18: 31462 | G18: 31923 | H18: 32160 | I18: 32205 | J18: 32310 | K18: 32258 | L18: 32262 | M18: 32245 | N18: 32343 | O18: 32264 | P18: 32153 | Q18: 31954 | R18: 31793 | S18: 31864 | T18: 31874 | U18: 31552 | V18: 31292 | W18: 30966 | X18: 30676 | Y18: 30394 | Z18: 30177 | AA18: 29799 | AB18: 29430 | AC18: 29123
A19: =Parameter!B16 -> Degerloch | B19: 15 | D19: 55929 | E19: 55371 | F19: 54384 | G19: 53294 | H19: 52262 | I19: 51406 | J19: 50536 | K19: 49791 | L19: 49102 | M19: 48476 | N19: 47741 | O19: 46890 | P19: 46227 | Q19: 45768 | R19: 45413 | S19: 44984 | T19: 44548 | U19: 44228 | V19: 43674 | W19: 43548 | X19: 43486 | Y19: 42992 | Z19: 42462 | AA19: 41771 | AB19: 41021 | AC19: 40512
A20: =Parameter!B17 -> Ditzingen | B20: 16 | D20: 40770 | E20: 40459 | F20: 39977 | G20: 39428 | H20: 38908 | I20: 38578 | J20: 38334 | K20: 37925 | L20: 37779 | M20: 37346 | N20: 36934 | O20: 36665 | P20: 36572 | Q20: 36375 | R20: 36246 | S20: 36065 | T20: 35792 | U20: 35489 | V20: 34943 | W20: 34506 | X20: 34185 | Y20: 33863 | Z20: 33395 | AA20: 32844 | AB20: 32264 | AC20: 31730
A21: =Parameter!B18 -> Esslingen | B21: 17 | D21: 78272 | E21: 76947 | F21: 75945 | G21: 74743 | H21: 73652 | I21: 72967 | J21: 72142 | K21: 71590 | L21: 70932 | M21: 70429 | N21: 69732 | O21: 69214 | P21: 68372 | Q21: 67802 | R21: 67210 | S21: 66434 | T21: 65947 | U21: 65193 | V21: 64191 | W21: 63326 | X21: 62780 | Y21: 62178 | Z21: 61524 | AA21: 60444 | AB21: 59501 | AC21: 58575
A22: =Parameter!B19 -> Freudenstadt | B22: 18 | D22: 45979 | E22: 46090 | F22: 45856 | G22: 46200 | H22: 45568 | I22: 45391 | J22: 45269 | K22: 45567 | L22: 45413 | M22: 45067 | N22: 44870 | O22: 44672 | P22: 44351 | Q22: 44133 | R22: 43830 | S22: 43393 | T22: 42896 | U22: 42380 | V22: 41842 | W22: 41315 | X22: 40803 | Y22: 40581 | Z22: 39884 | AA22: 39369 | AB22: 38770 | AC22: 38155
A23: =Parameter!B20 -> Gaildorf | B23: 19 | D23: 21697 | E23: 21770 | F23: 21800 | G23: 22182 | H23: 22376 | I23: 22437 | J23: 22430 | K23: 22266 | L23: 22369 | M23: 22291 | N23: 22412 | O23: 22544 | P23: 22430 | Q23: 22398 | R23: 22366 | S23: 22162 | T23: 22733 | U23: 22518 | V23: 22180 | W23: 21893 | X23: 21648 | Y23: 21433 | Z23: 21136 | AA23: 20873 | AB23: 20626 | AC23: 20396
A24: =Parameter!B21 -> Geislingen a.d. Steige | B24: 20 | D24: 32788 | E24: 32637 | F24: 32598 | G24: 32515 | H24: 32251 | I24: 32078 | J24: 31895 | K24: 31747 | L24: 31593 | M24: 31456 | N24: 31242 | O24: 31008 | P24: 30738 | Q24: 30528 | R24: 30308 | S24: 29914 | T24: 29675 | U24: 29327 | V24: 28934 | W24: 28462 | X24: 28083 | Y24: 27692 | Z24: 27232 | AA24: 26730 | AB24: 26290 | AC24: 25890
A25: =Parameter!B22 -> Göppingen | B25: 21 | D25: 69271 | E25: 70365 | F25: 70103 | G25: 69859 | H25: 69387 | I25: 69012 | J25: 68643 | K25: 68215 | L25: 67888 | M25: 67435 | N25: 66980 | O25: 66638 | P25: 66021 | Q25: 65590 | R25: 65001 | S25: 64228 | T25: 63550 | U25: 62968 | V25: 62192 | W25: 61304 | X25: 60445 | Y25: 59786 | Z25: 59005 | AA25: 57829 | AB25: 56935 | AC25: 56522
A26: =Parameter!B23 -> Heidenheim | B26: 22 | D26: 61101 | E26: 60893 | F26: 60716 | G26: 60806 | H26: 60792 | I26: 60499 | J26: 60170 | K26: 59524 | L26: 59097 | M26: 58580 | N26: 58145 | O26: 57546 | P26: 56886 | Q26: 56401 | R26: 55708 | S26: 55131 | T26: 54854 | U26: 54103 | V26: 53303 | W26: 52146 | X26: 51483 | Y26: 51086 | Z26: 50173 | AA26: 49300 | AB26: 48316 | AC26: 47622
A27: =Parameter!B24 -> Heilbronn | B27: 23 | D27: 82760 | E27: 81944 | F27: 81362 | G27: 80650 | H27: 79540 | I27: 78737 | J27: 78013 | K27: 77058 | L27: 76365 | M27: 75737 | N27: 75145 | O27: 74316 | P27: 73383 | Q27: 72523 | R27: 71827 | S27: 71165 | T27: 70433 | U27: 69572 | V27: 68549 | W27: 67596 | X27: 66868 | Y27: 66226 | Z27: 65105 | AA27: 63853 | AB27: 62599 | AC27: 61527
A28: =Parameter!B25 -> Herrenberg | B28: 24 | D28: 42108 | E28: 42152 | F28: 42022 | G28: 42250 | H28: 42263 | I28: 42527 | J28: 42784 | K28: 42757 | L28: 42841 | M28: 42879 | N28: 42822 | O28: 42732 | P28: 42636 | Q28: 42611 | R28: 42572 | S28: 42310 | T28: 42061 | U28: 41835 | V28: 41348 | W28: 40975 | X28: 40630 | Y28: 40255 | Z28: 40005 | AA28: 39442 | AB28: 38884 | AC28: 38498
A29: =Parameter!B26 -> Kirchheim unter Teck | B29: 25 | D29: 43123 | E29: 42891 | F29: 42916 | G29: 42659 | H29: 42425 | I29: 41985 | J29: 41767 | K29: 41497 | L29: 41192 | M29: 41024 | N29: 40675 | O29: 40533 | P29: 40244 | Q29: 40031 | R29: 39900 | S29: 39502 | T29: 39114 | U29: 38570 | V29: 38008 | W29: 37627 | X29: 37156 | Y29: 36834 | Z29: 36341 | AA29: 35688 | AB29: 35128 | AC29: 34641
A30: =Parameter!B27 -> Künzelsau | B30: 26 | D30: 15348 | E30: 15403 | F30: 15506 | G30: 15607 | H30: 16336 | I30: 16568 | J30: 16568 | K30: 16481 | L30: 16542 | M30: 16536 | N30: 16627 | O30: 16590 | P30: 16553 | Q30: 16579 | R30: 16549 | S30: 16430 | T30: 16344 | U30: 16200 | V30: 16024 | W30: 15884 | X30: 15401 | Y30: 15294 | Z30: 15275 | AA30: 15073 | AB30: 14851 | AC30: 14686
A31: =Parameter!B28 -> Leonberg | B31: 27 | D31: 52133 | E31: 51967 | F31: 51529 | G31: 51226 | H31: 50723 | I31: 50588 | J31: 50421 | K31: 50217 | L31: 50043 | M31: 49691 | N31: 49582 | O31: 49248 | P31: 49008 | Q31: 48621 | R31: 48293 | S31: 47730 | T31: 47266 | U31: 46753 | V31: 46088 | W31: 45463 | X31: 44925 | Y31: 44416 | Z31: 43872 | AA31: 43090 | AB31: 42366 | AC31: 41868
A32: =Parameter!B29 -> Ludwigsburg | B32: 28 | D32: 82464 | E32: 81556 | F32: 80950 | G32: 79923 | H32: 78415 | I32: 77364 | J32: 76587 | K32: 75597 | L32: 74924 | M32: 74181 | N32: 73831 | O32: 73621 | P32: 72822 | Q32: 72210 | R32: 71568 | S32: 70875 | T32: 70072 | U32: 69408 | V32: 68626 | W32: 67842 | X32: 67264 | Y32: 66727 | Z32: 66216 | AA32: 65507 | AB32: 64587 | AC32: 63543
A33: =Parameter!B30 -> Marbach a.N. | B33: 29 | D33: 44818 | E33: 44782 | F33: 44804 | G33: 44851 | H33: 44692 | I33: 44659 | J33: 44520 | K33: 44309 | L33: 44394 | M33: 44223 | N33: 44130 | O33: 43913 | P33: 43702 | Q33: 43607 | R33: 43442 | S33: 43174 | T33: 42971 | U33: 42572 | V33: 41896 | W33: 41467 | X33: 40985 | Y33: 40606 | Z33: 40140 | AA33: 39294 | AB33: 38657 | AC33: 38292
A34: =Parameter!B31 -> Mühlacker | B34: 30 | D34: 38730 | E34: 38773 | F34: 39511 | G34: 39566 | H34: 39005 | I34: 38749 | J34: 38609 | K34: 38469 | L34: 38320 | M34: 38200 | N34: 37946 | O34: 37585 | P34: 37258 | Q34: 37151 | R34: 36937 | S34: 36620 | T34: 36224 | U34: 35763 | V34: 35110 | W34: 34729 | X34: 34162 | Y34: 33787 | Z34: 33269 | AA34: 32778 | AB34: 32152 | AC34: 31708
A35: =Parameter!B32 -> Münsingen (siehe Bad Urach-Münsigen) | B35: 31
A36: =Parameter!B33 -> Nagold | B36: 32 | D36: 34709 | E36: 34714 | F36: 34880 | G36: 34692 | H36: 34458 | I36: 34495 | J36: 34587 | K36: 34506 | L36: 34457 | M36: 34441 | N36: 34233 | O36: 34184 | P36: 33852 | Q36: 33732 | R36: 33429 | S36: 33094 | T36: 32767 | U36: 32397 | V36: 31972 | W36: 31635 | X36: 31198 | Y36: 30809 | Z36: 30574 | AA36: 30109 | AB36: 29840 | AC36: 29525
A37: =Parameter!B34 -> Neuenbürg | B37: 33 | D37: 39768 | E37: 39559 | F37: 39418 | G37: 39180 | H37: 38479 | I37: 38126 | J37: 37976 | K37: 37674 | L37: 37293 | M37: 36957 | N37: 36613 | O37: 36331 | P37: 35989 | Q37: 35809 | R37: 35339 | S37: 35018 | T37: 34472 | U37: 34032 | V37: 33478 | W37: 33001 | X37: 32399 | Y37: 31966 | Z37: 31129 | AA37: 30513 | AB37: 30092 | AC37: 29662
A38: =Parameter!B35 -> Neuenstadt a.K. | B38: 34 | D38: 29507 | E38: 30046 | F38: 30624 | G38: 31117 | H38: 31723 | I38: 32141 | J38: 32568 | K38: 32831 | L38: 33226.9 | M38: 33517 | N38: 33511 | O38: 33617 | P38: 33545 | Q38: 33596 | R38: 33477 | S38: 33260 | T38: 33109 | U38: 32775 | V38: 32381 | W38: 32085 | X38: 31747 | Y38: 31395 | Z38: 31043 | AA38: 30423 | AB38: 30005 | AC38: 29687
A39: =Parameter!B36 -> Nürtingen | B39: 35 | D39: 60539 | E39: 60271 | F39: 59858 | G39: 59501 | H39: 58895 | I39: 58619 | J39: 58363 | K39: 58078 | L39: 57879 | M39: 57585 | N39: 57336 | O39: 57115 | P39: 56665 | Q39: 56368 | R39: 56119 | S39: 55673 | T39: 55245 | U39: 54763 | V39: 54164 | W39: 53383 | X39: 52960 | Y39: 52446 | Z39: 51719 | AA39: 50855 | AB39: 50073 | AC39: 49531
A40: =Parameter!B37 -> Öhringen | B40: 36 | D40: 30067 | E40: 30193 | F40: 30558 | G40: 31142 | H40: 31435 | I40: 31636 | J40: 31646 | K40: 31574 | L40: =30838+664 -> 31502 | M40: 31565 | N40: 31598 | O40: 31474 | P40: 30746 | Q40: 30644 | R40: 30504 | S40: 30456 | T40: 30436 | U40: 30279 | V40: 29929 | W40: 29796 | X40: 29523 | Y40: 29280 | Z40: 29039 | AA40: 28719 | AB40: 28461 | AC40: 28213
A41: =Parameter!B38 -> Ravensburg | B41: 37 | D41: 60716 | E41: 61087 | F41: 61232 | G41: 61243 | H41: =61367-1400 -> 59967 | I41: =61522-1400 -> 60122 | J41: =61752-1400 -> 60352 | K41: =62033-1400 -> 60633 | L41: 60811 | M41: 62715 | N41: 62888 | O41: 63187 | P41: 63299 | Q41: 63453 | R41: 63827 | S41: 63619 | T41: 63651 | U41: 63374 | V41: 63178 | W41: 62917 | X41: 62877 | Y41: 62857 | Z41: 62674 | AA41: 62047 | AB41: 61417 | AC41: 60972
A42: =Parameter!B39 -> Reutlingen | B42: 38 | D42: 91693 | E42: 91147 | F42: 90451 | G42: 89799 | H42: 89143 | I42: 88565 | J42: 88057 | K42: 87261 | L42: =80000+6549 -> 86549 | M42: 85863 | N42: 85316 | O42: 78119 | P42: 77297 | Q42: 76857 | R42: 76346 | S42: 75697 | T42: 74986 | U42: 74149 | V42: 73271 | W42: 72222 | X42: 71439 | Y42: 70460 | Z42: 69567 | AA42: 68586 | AB42: 67393 | AC42: 66326
A43: =Parameter!B40 -> Schorndorf | B43: 39 | D43: 64615 | E43: 63241 | F43: 63016 | G43: 62830 | H43: 62358 | I43: 62150 | J43: 61869 | K43: 61501 | L43: 61274 | M43: 61161 | N43: 61157 | O43: 61079 | P43: 60890 | Q43: 60593 | R43: 60160 | S43: 59653 | T43: 59249 | U43: 58578 | V43: 57995 | W43: 57371 | X43: 56756 | Y43: 56186 | Z43: 55421 | AA43: 54628 | AB43: 53789 | AC43: 52545
A44: =Parameter!B41 -> Schwäbisch Gmünd | B44: 40 | D44: 34522 | E44: 35099 | F44: 35301 | G44: 35342 | H44: 35182 | I44: 35240 | J44: 35200 | K44: 35230 | L44: 35168 | M44: 35110 | N44: 35160 | O44: 35116 | P44: 35099 | Q44: 35012 | R44: 34860 | S44: 34597 | T44: 34296 | U44: 34008 | V44: 33647 | W44: 33061 | X44: 32670 | Y44: 32449 | Z44: 32103 | AA44: 31729 | AB44: 31408 | AC44: 31235
A45: =Parameter!B42 -> Schwäbisch Hall | B45: 41 | D45: 37727 | E45: 37902 | F45: 38020 | G45: 38544 | H45: 38984 | I45: 39254 | J45: 39429 | K45: 39386 | L45: =40111-664 -> 39447 | M45: 39351 | N45: 39277 | O45: 39231 | P45: 39736 | Q45: 39511 | R45: 39376 | S45: 39294 | T45: 38392 | U45: 38272 | V45: 37901 | W45: 37737 | X45: 37903 | Y45: 37736 | Z45: 37467 | AA45: 37130 | AB45: 36901 | AC45: 36622
A46: =Parameter!B43 -> Stuttgart | B46: 42 | D46: 75609 | E46: 73278 | F46: 70939 | G46: 68512 | H46: 66017 | I46: 64553 | J46: 63116 | K46: 61583 | L46: 60317 | M46: 58978 | N46: 57924 | O46: 56971 | P46: 55888 | Q46: 55687 | R46: 55161 | S46: 54668 | T46: 54704 | U46: 54507 | V46: 54129 | W46: 54368 | X46: 54355 | Y46: 54088 | Z46: 53580 | AA46: 52663 | AB46: 51960 | AC46: 51350
A47: =Parameter!B44 -> Sulz/Neckar | B47: 43 | D47: 40197 | E47: 40434 | F47: 40661 | G47: 41049 | H47: 41082 | I47: 41040 | J47: 41054 | K47: 40775 | L47: 40854 | M47: 40936 | N47: 40929 | O47: 40873 | P47: 40748 | Q47: 40609 | R47: 40447 | S47: 40107 | T47: 39038 | U47: 38674 | V47: 38163 | W47: 37588 | X47: 37156 | Y47: 36556 | Z47: 36147 | AA47: 35714 | AB47: 35379 | AC47: 34947
A48: =Parameter!B45 -> Tübingen | B48: 44 | D48: 86346 | E48: 86503 | F48: 86560 | G48: 86210 | H48: 85800 | I48: 85354 | J48: 85059 | K48: 84040 | L48: =89436-5016 -> 84420 | M48: 84244 | N48: 84303 | O48: 89194 | P48: 88755 | Q48: 88775 | R48: 88484 | S48: 88085 | T48: 87564 | U48: 86910 | V48: 87291 | W48: 87320 | X48: 86558 | Y48: 86433 | Z48: 85758 | AA48: 84736 | AB48: 83805 | AC48: 82943
A49: =Parameter!B46 -> Tuttlingen | B49: 45 | D49: 59654 | E49: 60000 | F49: 60501 | G49: 60798 | H49: 60865 | I49: 61243 | J49: 61225 | K49: 61081 | L49: 60947 | M49: 60962 | N49: 61101 | O49: 61115 | P49: 60786 | Q49: 60702 | R49: 60730 | S49: 60255 | T49: 59935 | U49: 59359 | V49: 58561 | W49: 57574 | X49: 56815 | Y49: 56101 | Z49: 55462 | AA49: 54527 | AB49: 53725 | AC49: 53122
A50: =Parameter!B47 -> Ulm | B50: 46 | D50: 59455 | E50: 59124 | F50: 58724 | G50: 58653 | H50: 58352 | I50: 57988 | J50: 57527 | K50: 57032 | L50: 56818 | M50: 56695 | N50: 56408 | O50: 56190 | P50: 55762 | Q50: 55408 | R50: 55252 | S50: 54933 | T50: 54486 | U50: 53877 | V50: 53406 | W50: 53030 | X50: 52692 | Y50: 52398 | Z50: 51836 | AA50: 51216 | AB50: 50465 | AC50: 49942
A51: =Parameter!B48 -> Vaihingen an der Enz | B51: 47 | D51: 33174 | E51: 33217 | F51: 32083 | G51: 32248 | H51: 32257 | I51: 32238 | J51: 32074 | K51: 31998 | L51: 32216 | M51: 31615 | N51: 31556 | O51: 31542 | P51: 31325 | Q51: 31271 | R51: 31196 | S51: 30978 | T51: 30846 | U51: 30538 | V51: 30138 | W51: 29874 | X51: 29668 | Y51: 29330 | Z51: 29117 | AA51: 28755 | AB51: 28214 | AC51: 27759
A52: =Parameter!B49 -> Waiblingen | B52: 48 | D52: 86153 | E52: 85010 | F52: 84213 | G52: 83615 | H52: 83050 | I52: 82536 | J52: 82138 | K52: 81598 | L52: 81045 | M52: 80496 | N52: 79813 | O52: 79190 | P52: 78406 | Q52: 77916 | R52: 77364 | S52: 76669 | T52: 75906 | U52: 74917 | V52: 74049 | W52: 73063 | X52: 72409 | Y52: 71559 | Z52: 70606 | AA52: 69272 | AB52: 68144 | AC52: 67043
A53: =Parameter!B50 -> Weikersheim | B53: 49 | D53: 20124 | E53: 20028 | F53: 20179 | G53: 20120 | H53: 20337 | I53: 20390 | J53: 20443 | K53: 20346 | L53: 20259 | M53: 20177 | N53: 20078 | O53: 19953 | P53: 19824 | Q53: 19848 | R53: 19808 | S53: 19725 | T53: 19638 | U53: 19563 | V53: 19332 | W53: 19221 | X53: 19023 | Y53: 18846 | Z53: 18768 | AA53: 18542 | AB53: 18320 | AC53: 18094
A54: =Parameter!B51 -> Weinsberg | B54: 50 | D54: 32182 | E54: 32324 | F54: 32560 | G54: 32632 | H54: 32609 | I54: 32507 | J54: 32699 | K54: 32630 | L54: 32798 | M54: 32783 | N54: 32466 | O54: 32262 | P54: 32126 | Q54: 32027 | R54: 31901 | S54: 31620 | T54: 31436 | U54: 31126 | V54: 30621 | W54: 30326 | X54: 30016 | Y54: 29794 | Z54: 29449 | AA54: 28985 | AB54: 28653 | AC54: 28404
A55: =Parameter!B52 -> Zuffenhausen | B55: 51 | D55: 44875 | E55: 43872 | F55: 42548 | G55: 41635 | H55: 40305 | I55: 39424 | J55: 38680 | K55: 38198 | L55: 37334 | M55: 36753 | N55: 36128 | O55: 35751 | P55: 35017 | Q55: 34589 | R55: 34022 | S55: 33485 | T55: 32924 | U55: 32396 | V55: 31778 | W55: 31316 | X55: 30965 | Y55: 30537 | Z55: 30000 | AA55: 29254 | AB55: 28567 | AC55: 27867
A56: zz Landeskirche | D56: 2478678 | E56: 2469791 | F56: 2462011 | G56: 2455102 | H56: =SUM(H5:H55) -> 2437837 | I56: 2428303 | J56: 2418729 | K56: 2403258 | L56: 2393715.9 | M56: 2384877 | N56: 2374624 | O56: 2363862 | P56: 2346879 | Q56: 2335722 | R56: 2322865 | S56: 2304062 | T56: 2286523 | U56: 2264872 | V56: 2237461 | W56: 2212190 | X56: 2190544 | Y56: 2170345 | Z56: 2144920 | AA56: 2112033 | AB56: 2081337 | AC56: 2054505 | AD56: =SUM(AD5:AD55) -> 0 | AE56: 0 | AF56: 0 | AG56: 0 | AH56: 0 | AI56: 0 | AJ56: 0 | AK56: 0 | AL56: 0
A57: Jährliche Abnahme | E57: =E56-D56 -> -8887 | F57: =F56-E56 -> -7780 | G57: -6909 | H57: -17265 | I57: -9534 | J57: -9574 | K57: -15471 | L57: -9542.1 | M57: -8838.9 | N57: -10253 | O57: -10762 | P57: -16983 | Q57: -11157 | R57: -12857 | S57: -18803 | T57: -17539 | U57: -21651 | V57: =V56-U56 -> -27411 | W57: -25271 | X57: -21646 | Y57: -20199 | Z57: -25425 | AA57: -32887 | AB57: -30696 | AC57: -26832 | AD57: -2054505 | AE57: 0 | AF57: =AF56-AE56 -> 0 | AG57: 0 | AH57: 0 | AI57: 0 | AJ57: 0 | AK57: 0 | AL57: 0

Sheet Ggl. Korr.
A1: Gemeindegliederkorrekturen | C1: Die Daten unten werden auf "Ggl. Prog." übernommen. | J1: Die Daten unten dienen der Kontrolle der aktuellen Gemeindegliederdaten und werden lediglich für die Kontrollspalte Q auf "Ggl. Prognose" verwendet.
A2: inbes. aufgrund Kirchenbezirkswechsel zur Rückrechnung für Prognose | J2: Die letzte Spalte ist in "Ggl. Prog." in die Spalte P einzutragen, die Spalten dort davor (Vorjahre) sind entsprechend zu überprüfen und ggf. zu korrigieren.
A4: KG | B4: KB | C4: ='Ggl. Prog.'!R4 -> 2012 | D4: ='Ggl. Prog.'!S4 -> 2013 | E4: ='Ggl. Prog.'!T4 -> 2014 | F4: ='Ggl. Prog.'!U4 -> 2015 | G4: ='Ggl. Prog.'!V4 -> 2016 | J4: Dekanat | L4: ="Zahl der Gemeindeglieder 31.12." & Parameter!A8 & " (zur Kontrolle) Zahlen Abrell unbearbeitet" -> Zahl der Gemeindeglieder 31.12.2016 (zur Kontrolle) Zahlen Abrell unbearbeitet | M4: Differenz | N4: Erklärung der Differenz | O4: ="Zahl der Gemeindeglieder po-ausgabe_KG Ende "& Parameter!A8 &" (ohne Korrekturen!)" -> Zahl der Gemeindeglieder po-ausgabe_KG Ende 2016 (ohne Korrekturen!) | P4: +/- (Korrektur) | Q4: Gründe für Korrekturen | R4: Für den PfarrPlan maßgebliche Zahl der Gemeindeglieder
A5: Wilhelmsdorf | B5: Ravensburg | C5: -1331 | D5: -1331 | E5: -1331 | F5: -1331 | G5: -1331 | H5: Die Kirchengemeinde Wilhelmsdorf wird separat pastoriert. | J5: =Parameter!B2 -> Aalen | L5: 37955 | M5: =O5-L5 -> -503 | N5: Stödtlen | O5: =SUMIF('Dateneingabe Ggl. und KG'!G$2:G$14000,J5,'Dateneingabe Ggl. und KG'!B$2:B$11522) -> 37452 | R5: =O5+P5 -> 37452
A6: Stödtlen | B6: Aalen | C6: -503 | D6: -503 | E6: -503 | F6: -503 | G6: -503 | H6: Stödtlen gehört zur Kirchengemeinde Mönchsrodt (Bayern) | J6: =Parameter!B3 -> Backnang | L6: 42044 | M6: =O6-L6 -> 0 | O6: =SUMIF('Dateneingabe Ggl. und KG'!G$2:G$14000,J6,'Dateneingabe Ggl. und KG'!B$2:B$11522) -> 42044 | R6: =O6+P6 -> 42044
A7: Militärkirchengemeinde Sigmaringen | B7: Balingen | C7: -523 | H7: Wurde aufgelöst | J7: =Parameter!B4 -> Bad Cannstatt | L7: 30392 | M7: 0 | O7: =SUMIF('Dateneingabe Ggl. und KG'!G$2:G$14000,J7,'Dateneingabe Ggl. und KG'!B$2:B$11522) -> 30392 | R7: 30392
A8: Eberbach | B8: Blaufelden | C8: -112 | H8: 1.12.2013 Wechsel vom KB Blaufelden zum KB Künzelsau | J8: =Parameter!B5 -> Bad Urach-Münsingen | L8: 57510 | M8: 0 | O8: =SUMIF('Dateneingabe Ggl. und KG'!G$2:G$14000,J8,'Dateneingabe Ggl. und KG'!B$2:B$11522) -> 57510 | R8: 57510
A9: Eberbach | B9: Künzelsau | C9: 112 | H9: 1.12.2013 Wechsel vom KB Blaufelden zum KB Künzelsau | J9: =Parameter!B6 -> Balingen | L9: 61986 | M9: -363 | N9: Isingen | O9: =SUMIF('Dateneingabe Ggl. und KG'!G$2:G$14000,J9,'Dateneingabe Ggl. und KG'!B$2:B$11522) -> 61623 | R9: 61623
A10: Kapfenhardt | B10: Neuenbürg | C10: -351 | H10: 1.12.2013 Wechsel vom KB Neuenbürg zum KB Calw | J10: =Parameter!B7 -> Bernhausen | L10: 45468 | M10: 0 | O10: =SUMIF('Dateneingabe Ggl. und KG'!G$2:G$14000,J10,'Dateneingabe Ggl. und KG'!B$2:B$11522) -> 45468 | R10: 45468
A11: Kapfenhardt | B11: Calw | C11: 351 | H11: 1.12.2013 Wechsel vom KB Neuenbürg zum KB Calw | J11: =Parameter!B8 -> Besigheim | L11: 43749 | M11: 0 | O11: =SUMIF('Dateneingabe Ggl. und KG'!G$2:G$14000,J11,'Dateneingabe Ggl. und KG'!B$2:B$11522) -> 43749 | R11: 43749
A12: Stocksberg (Teil der KG Neulautern) | B12: Weinsberg | C12: -51 | H12: 1.12.2013 Wechsel vom KB Weinsberg zum KB Marbach | J12: =Parameter!B9 -> Biberach | L12: 44376 | M12: 0 | O12: =SUMIF('Dateneingabe Ggl. und KG'!G$2:G$14000,J12,'Dateneingabe Ggl. und KG'!B$2:B$11522) -> 44376 | R12: 44376
A13: Stocksberg (Teil der KG Beilstein-Billensbach) | B13: Marbach a.N. | C13: 51 | H13: 1.12.2013 Wechsel vom KB Weinsberg zum KB Marbach | J13: =Parameter!B10 -> Blaubeuren | L13: 24032 | M13: 0 | O13: =SUMIF('Dateneingabe Ggl. und KG'!G$2:G$14000,J13,'Dateneingabe Ggl. und KG'!B$2:B$11522) -> 24032 | R13: 24032
A14: Baiereck | B14: Schorndorf | C14: -384 | D14: -384 | E14: -384 | F14: -384 | H14: 1.1.2016 Wechsel vom KB Schorndorf zum KB Göppingen | J14: =Parameter!B11 -> Blaufelden | L14: 19173 | M14: -406 | N14: Ruppertshofen | O14: =SUMIF('Dateneingabe Ggl. und KG'!G$2:G$14000,J14,'Dateneingabe Ggl. und KG'!B$2:B$11522) -> 18767 | R14: 18767
A15: Baiereck | B15: Göppingen | C15: 384 | D15: 384 | E15: 384 | F15: 384 | H15: 1.1.2016 Wechsel vom KB Schorndorf zum KB Göppingen | J15: =Parameter!B12 -> Böblingen | L15: 61480 | M15: 0 | O15: =SUMIF('Dateneingabe Ggl. und KG'!G$2:G$14000,J15,'Dateneingabe Ggl. und KG'!B$2:B$11522) -> 61480 | R15: 61480
A16: Ruppertshofen | B16: Blaufelden | C16: -406 | D16: -406 | E16: -406 | F16: -406 | G16: -406 | H16: 1.1.2017 Wechsel vom KB Blaufelden zum KB Schwäb. Hall (408 Ev.) | J16: =Parameter!B13 -> Brackenheim | L16: 26382 | M16: 0 | O16: =SUMIF('Dateneingabe Ggl. und KG'!G$2:G$14000,J16,'Dateneingabe Ggl. und KG'!B$2:B$11522) -> 26382 | R16: 26382
A17: Ruppertshofen | B17: Schwäbisch Hall | C17: 406 | D17: 406 | E17: 406 | F17: 406 | G17: 406 | H17: 1.1.2017 Wechsel vom KB Blaufelden zum KB Schwäb. Hall (408 Ev.) | J17: =Parameter!B14 -> Calw | L17: 30881 | M17: -256 | N17: Aichelberg | O17: =SUMIF('Dateneingabe Ggl. und KG'!G$2:G$14000,J17,'Dateneingabe Ggl. und KG'!B$2:B$11522) -> 30625 | R17: 30625
A18: Aichelberg | B18: Calw | C18: -256 | D18: -256 | E18: -256 | F18: -256 | G18: -256 | H18: Ca. 2020 wechselt die KG Aichelberg vom KB Calw zum KB Neuenbürg. Dekane sind einverstanden, dass man bereits so tun, als ob der Wechsel bereits stattgefunden habe. | J18: =Parameter!B15 -> Crailsheim | L18: 29123 | M18: 0 | O18: =SUMIF('Dateneingabe Ggl. und KG'!G$2:G$14000,J18,'Dateneingabe Ggl. und KG'!B$2:B$11522) -> 29123 | R18: 29123
A19: Aichelberg | B19: Neuenbürg | C19: 256 | D19: 256 | E19: 256 | F19: 256 | G19: 256 | H19: Ca. 2020 wechselt die KG Aichelberg vom KB Calw zum KB Neuenbürg. Dekane sind einverstanden, dass man bereits so tun, als ob der Wechsel bereits stattgefunden habe. | J19: =Parameter!B16 -> Degerloch | L19: 40512 | M19: 0 | O19: =SUMIF('Dateneingabe Ggl. und KG'!G$2:G$14000,J19,'Dateneingabe Ggl. und KG'!B$2:B$11522) -> 40512 | R19: 40512
A20: Isingen | B20: Balingen | C20: -363 | D20: -363 | E20: -363 | F20: -363 | G20: -363 | H20: Die KG Isingen (aber ohne die Außenorte Erlaheim [121] und Binsdorf [243]) wechselt demnächst vom KB Balingen zum KB Sulz a.N. So Anfang 2017 beantragt. | J20: =Parameter!B17 -> Ditzingen | L20: 31730 | M20: =O20-L20 -> 0 | O20: =SUMIF('Dateneingabe Ggl. und KG'!G$2:G$14000,J20,'Dateneingabe Ggl. und KG'!B$2:B$11522) -> 31730 | R20: =O20+P20 -> 31730
A21: Isingen | B21: Sulz/Neckar | C21: 363 | D21: 363 | E21: 363 | F21: 363 | G21: 363 | H21: Die KG Isingen (aber ohne die Außenorte Erlaheim [121] und Binsdorf [243]) wechselt demnächst vom KB Balingen zum KB Sulz a.N. So Anfang 2017 beantragt. | J21: =Parameter!B18 -> Esslingen | L21: 58575 | M21: 0 | O21: =SUMIF('Dateneingabe Ggl. und KG'!G$2:G$14000,J21,'Dateneingabe Ggl. und KG'!B$2:B$11522) -> 58575 | R21: 58575
C22: =SUM(C8:C21) -> 0 | D22: =SUM(D8:D21) -> 0 | E22: =SUM(E8:E21) -> 0 | F22: =SUM(F8:F21) -> 0 | G22: =SUM(G8:G21) -> 0 | J22: =Parameter!B19 -> Freudenstadt | L22: 38155 | M22: 0 | O22: =SUMIF('Dateneingabe Ggl. und KG'!G$2:G$14000,J22,'Dateneingabe Ggl. und KG'!B$2:B$11522) -> 38155 | R22: 38155
J23: =Parameter!B20 -> Gaildorf | L23: 20396 | M23: 0 | O23: =SUMIF('Dateneingabe Ggl. und KG'!G$2:G$14000,J23,'Dateneingabe Ggl. und KG'!B$2:B$11522) -> 20396 | R23: 20396
J24: =Parameter!B21 -> Geislingen a.d. Steige | L24: 25890 | M24: 0 | O24: =SUMIF('Dateneingabe Ggl. und KG'!G$2:G$14000,J24,'Dateneingabe Ggl. und KG'!B$2:B$11522) -> 25890 | R24: 25890
J25: =Parameter!B22 -> Göppingen | L25: 56522 | M25: 0 | O25: =SUMIF('Dateneingabe Ggl. und KG'!G$2:G$14000,J25,'Dateneingabe Ggl. und KG'!B$2:B$11522) -> 56522 | R25: 56522
J26: =Parameter!B23 -> Heidenheim | L26: 47622 | M26: 0 | O26: =SUMIF('Dateneingabe Ggl. und KG'!G$2:G$14000,J26,'Dateneingabe Ggl. und KG'!B$2:B$11522) -> 47622 | R26: 47622
J27: =Parameter!B24 -> Heilbronn | L27: 61527 | M27: 0 | O27: =SUMIF('Dateneingabe Ggl. und KG'!G$2:G$14000,J27,'Dateneingabe Ggl. und KG'!B$2:B$11522) -> 61527 | R27: 61527
J28: =Parameter!B25 -> Herrenberg | L28: 38498 | M28: 0 | O28: =SUMIF('Dateneingabe Ggl. und KG'!G$2:G$14000,J28,'Dateneingabe Ggl. und KG'!B$2:B$11522) -> 38498 | R28: 38498
J29: =Parameter!B26 -> Kirchheim unter Teck | L29: 34641 | M29: 0 | O29: =SUMIF('Dateneingabe Ggl. und KG'!G$2:G$14000,J29,'Dateneingabe Ggl. und KG'!B$2:B$11522) -> 34641 | R29: 34641
J30: =Parameter!B27 -> Künzelsau | L30: 14686 | M30: 0 | O30: =SUMIF('Dateneingabe Ggl. und KG'!G$2:G$14000,J30,'Dateneingabe Ggl. und KG'!B$2:B$11522) -> 14686 | R30: 14686
J31: =Parameter!B28 -> Leonberg | L31: 41868 | M31: 0 | O31: =SUMIF('Dateneingabe Ggl. und KG'!G$2:G$14000,J31,'Dateneingabe Ggl. und KG'!B$2:B$11522) -> 41868 | R31: 41868
J32: =Parameter!B29 -> Ludwigsburg | L32: 63543 | M32: 0 | O32: =SUMIF('Dateneingabe Ggl. und KG'!G$2:G$14000,J32,'Dateneingabe Ggl. und KG'!B$2:B$11522) -> 63543 | R32: 63543
J33: =Parameter!B30 -> Marbach a.N. | L33: 38292 | M33: 0 | O33: =SUMIF('Dateneingabe Ggl. und KG'!G$2:G$14000,J33,'Dateneingabe Ggl. und KG'!B$2:B$11522) -> 38292 | R33: 38292
J34: =Parameter!B31 -> Mühlacker | L34: 31708 | M34: 0 | O34: =SUMIF('Dateneingabe Ggl. und KG'!G$2:G$14000,J34,'Dateneingabe Ggl. und KG'!B$2:B$11522) -> 31708 | R34: 31708
J35: =Parameter!B32 -> Münsingen (siehe Bad Urach-Münsigen) | O35: =SUMIF('Dateneingabe Ggl. und KG'!G$2:G$14000,J35,'Dateneingabe Ggl. und KG'!B$2:B$11522) -> 0 | R35: 0
J36: =Parameter!B33 -> Nagold | L36: 29525 | M36: 0 | O36: =SUMIF('Dateneingabe Ggl. und KG'!G$2:G$14000,J36,'Dateneingabe Ggl. und KG'!B$2:B$11522) -> 29525 | R36: 29525
J37: =Parameter!B34 -> Neuenbürg | L37: 29662 | M37: =O37-L37 -> 256 | N37: Aichelberg | O37: =SUMIF('Dateneingabe Ggl. und KG'!G$2:G$14000,J37,'Dateneingabe Ggl. und KG'!B$2:B$11522) -> 29918 | R37: =O37+P37 -> 29918
J38: =Parameter!B35 -> Neuenstadt a.K. | L38: 29687 | M38: 0 | O38: =SUMIF('Dateneingabe Ggl. und KG'!G$2:G$14000,J38,'Dateneingabe Ggl. und KG'!B$2:B$11522) -> 29687 | R38: 29687
J39: =Parameter!B36 -> Nürtingen | L39: 49531 | M39: 0 | O39: =SUMIF('Dateneingabe Ggl. und KG'!G$2:G$14000,J39,'Dateneingabe Ggl. und KG'!B$2:B$11522) -> 49531 | R39: 49531
J40: =Parameter!B37 -> Öhringen | L40: 28213 | M40: 0 | O40: =SUMIF('Dateneingabe Ggl. und KG'!G$2:G$14000,J40,'Dateneingabe Ggl. und KG'!B$2:B$11522) -> 28213 | R40: 28213
J41: =Parameter!B38 -> Ravensburg | L41: 60972 | M41: -1331 | N41: Wilhelmsdorf wird in PO weder bei Gemeindeglieder noch bei KGen gezählt. | O41: =SUMIF('Dateneingabe Ggl. und KG'!G$2:G$14000,J41,'Dateneingabe Ggl. und KG'!B$2:B$11522) -> 59641 | R41: 59641
J42: =Parameter!B39 -> Reutlingen | L42: 66326 | M42: 0 | O42: =SUMIF('Dateneingabe Ggl. und KG'!G$2:G$14000,J42,'Dateneingabe Ggl. und KG'!B$2:B$11522) -> 66326 | R42: 66326
J43: =Parameter!B40 -> Schorndorf | L43: 52545 | M43: 0 | O43: =SUMIF('Dateneingabe Ggl. und KG'!G$2:G$14000,J43,'Dateneingabe Ggl. und KG'!B$2:B$11522) -> 52545 | R43: 52545
J44: =Parameter!B41 -> Schwäbisch Gmünd | L44: 31235 | M44: 0 | O44: =SUMIF('Dateneingabe Ggl. und KG'!G$2:G$14000,J44,'Dateneingabe Ggl. und KG'!B$2:B$11522) -> 31235 | R44: 31235
J45: =Parameter!B42 -> Schwäbisch Hall | L45: 36622 | M45: 406 | N45: Ruppertshofen | O45: =SUMIF('Dateneingabe Ggl. und KG'!G$2:G$14000,J45,'Dateneingabe Ggl. und KG'!B$2:B$11522) -> 37028 | R45: 37028
J46: =Parameter!B43 -> Stuttgart | L46: 51350 | M46: 0 | O46: =SUMIF('Dateneingabe Ggl. und KG'!G$2:G$14000,J46,'Dateneingabe Ggl. und KG'!B$2:B$11522) -> 51350 | R46: 51350
J47: =Parameter!B44 -> Sulz/Neckar | L47: 34947 | M47: 363 | N47: Isingen | O47: =SUMIF('Dateneingabe Ggl. und KG'!G$2:G$14000,J47,'Dateneingabe Ggl. und KG'!B$2:B$11522) -> 35310 | R47: 35310
J48: =Parameter!B45 -> Tübingen | L48: 82943 | M48: 0 | O48: =SUMIF('Dateneingabe Ggl. und KG'!G$2:G$14000,J48,'Dateneingabe Ggl. und KG'!B$2:B$11522) -> 82943 | R48: 82943
J49: =Parameter!B46 -> Tuttlingen | L49: 53122 | M49: 0 | O49: =SUMIF('Dateneingabe Ggl. und KG'!G$2:G$14000,J49,'Dateneingabe Ggl. und KG'!B$2:B$11522) -> 53122 | R49: 53122
J50: =Parameter!B47 -> Ulm | L50: 49942 | M50: 0 | O50: =SUMIF('Dateneingabe Ggl. und KG'!G$2:G$14000,J50,'Dateneingabe Ggl. und KG'!B$2:B$11522) -> 49942 | R50: 49942
J51: =Parameter!B48 -> Vaihingen an der Enz | L51: 27759 | M51: 0 | O51: =SUMIF('Dateneingabe Ggl. und KG'!G$2:G$14000,J51,'Dateneingabe Ggl. und KG'!B$2:B$11522) -> 27759 | R51: 27759
J52: =Parameter!B49 -> Waiblingen | L52: 67043 | M52: 0 | O52: =SUMIF('Dateneingabe Ggl. und KG'!G$2:G$14000,J52,'Dateneingabe Ggl. und KG'!B$2:B$11522) -> 67043 | R52: 67043
J53: =Parameter!B50 -> Weikersheim | L53: 18094 | M53: 0 | O53: =SUMIF('Dateneingabe Ggl. und KG'!G$2:G$14000,J53,'Dateneingabe Ggl. und KG'!B$2:B$11522) -> 18094 | R53: 18094
J54: =Parameter!B51 -> Weinsberg | L54: 28404 | M54: 0 | O54: =SUMIF('Dateneingabe Ggl. und KG'!G$2:G$14000,J54,'Dateneingabe Ggl. und KG'!B$2:B$11522) -> 28404 | R54: 28404
J55: =Parameter!B52 -> Zuffenhausen | L55: 27867 | M55: 0 | O55: =SUMIF('Dateneingabe Ggl. und KG'!G$2:G$14000,J55,'Dateneingabe Ggl. und KG'!B$2:B$11522) -> 27867 | R55: 27867
J57: Landeskirche | L57: 2054505 | M57: =SUM(M5:M55) -> -1834 | O57: =SUM(O5:O55) -> 2052671 | P57: =SUM(P5:P55) -> 0 | R57: =SUM(R5:R55) -> 2052671

Sheet Ggl. Prog.
A1: Gemeindegliederprognose
A2: Jahr der zu Grunde zu legenden Daten (31.12.):
A3: =Parameter!A8 -> 2016 | B3: Gemeindegliederdaten der jeweils letzten fünf Jahre (aus lk. Statistik ohne Korrekturen) | G3: Korrekturen und Rückrechnungen aufgrund von Verschiebungen zwischen Kirchenbezirken und Sonstigem (im Einzelnen dokumentiert: siehe Tabelle "Ggl. Korr.") | L3: Gemeindegliederdaten der jeweils letzten fünf Jahre (korrigiert und auf den Beginn des Fünf-Jahres-Zeitraums zurückgerechnet für Prognose) | R3: Bewertung der Gemeinde-gliederdaten | X3: Prognose aufgrund einer gewichteten Gerade | AJ3: ="Differenz der Gemeindegliederschätzung für das Jahr "&TEXT($A$3+8,"####")&" zum Stand Ende "&TEXT($A$3,"####") -> Differenz der Gemeindegliederschätzung für das Jahr 2024 zum Stand Ende 2016 | AM3: ="Vergleich des Stands Ende 2016 gegenüber der Schätzung aus der Sicht des Jahres "&TEXT($A$3-5,"####") -> Vergleich des Stands Ende 2016 gegenüber der Schätzung aus der Sicht des Jahres 2011
A4: =Parameter!B1 -> Dekanat/Kirchenbezirk | B4: ="Zahl der Gemeindeglieder 31.12. "&TEXT($A$3-4,"####") -> Zahl der Gemeindeglieder 31.12. 2012 | C4: ="Zahl der Gemeindeglieder 31.12. "&TEXT($A$3-3,"####") -> Zahl der Gemeindeglieder 31.12. 2013 | D4: ="Zahl der Gemeindeglieder 31.12. "&TEXT($A$3-2,"####") -> Zahl der Gemeindeglieder 31.12. 2014 | E4: ="Zahl der Gemeindeglieder 31.12."&TEXT($A$3-1,"####") -> Zahl der Gemeindeglieder 31.12.2015 | F4: ="Zahl der Gemeindeglieder 31.12."&TEXT($A$3,"####") -> Zahl der Gemeindeglieder 31.12.2016 | G4: =B4 -> Zahl der Gemeindeglieder 31.12. 2012 | H4: Zahl der Gemeindeglieder 31.12. 2013 | I4: Zahl der Gemeindeglieder 31.12. 2014 | J4: Zahl der Gemeindeglieder 31.12.2015 | K4: Zahl der Gemeindeglieder 31.12.2016 | L4: Zahl der Gemeindeglieder 31.12. 2012 | M4: Zahl der Gemeindeglieder 31.12. 2013 | N4: Zahl der Gemeindeglieder 31.12. 2014 | O4: Zahl der Gemeindeglieder 31.12.2015 | P4: Zahl der Gemeindeglieder 31.12.2016 | Q4: Kontrollspalte | R4: =TEXT($A$3-4,"####") -> 2012 | S4: =TEXT($A$3-3,"####") -> 2013 | T4: =TEXT($A$3-2,"####") -> 2014 | U4: =TEXT($A$3-1,"####") -> 2015 | V4: =TEXT($A$3-0,"####") -> 2016 | W4: Art der Steigung: L = lk. Durchschnitt | X4: Prognostizierte Jahresveränderungen | Y4: =TEXT($A$3+1,"####") -> 2017 | Z4: =TEXT($A$3+2,"####") -> 2018 | AA4: =TEXT($A$3+3,"####") -> 2019 | AB4: =TEXT($A$3+4,"####") -> 2020 | AC4: =TEXT($A$3+5,"####") -> 2021 | AD4: =TEXT($A$3+6,"####") -> 2022 | AE4: =TEXT($A$3+7,"####") -> 2023 | AF4: ="Prognose Gemeindeglieder 31.12. "&TEXT($A$3+8,"####") -> Prognose Gemeindeglieder 31.12. 2024 | AJ4: ="Zahl der Gemeindeglieder 31.12. "&TEXT($A$3,"####") -> Zahl der Gemeindeglieder 31.12. 2016 | AK4: ="Differenz zur Zahl der Gemeindeglieder für 31.12. "&TEXT($A$3+8,"####") -> Differenz zur Zahl der Gemeindeglieder für 31.12. 2024 | AM4: ="Schätzung der Zahl der Gemeindeglieder aus Sicht des Jahres "&TEXT($A$3-5,"####")&" für das Jahr "&TEXT($A$3+2,"####") -> Schätzung der Zahl der Gemeindeglieder aus Sicht des Jahres 2011 für das Jahr 2018 | AN4: Differenz (negative Werte: Korrektur nach ''unten'') | AP4: Kontrollspalte
A5: =Parameter!B2 -> Aalen | B5: ='Ggl. Historie'!Y5 -> 39820 | C5: ='Ggl. Historie'!Z5 -> 39383 | D5: ='Ggl. Historie'!AA5 -> 38883 | E5: ='Ggl. Historie'!AB5 -> 38355 | F5: ='Ggl. Historie'!AC5 -> 37955 | G5: =SUMIF('Ggl. Korr.'!$B$5:$B$962,$A5,'Ggl. Korr.'!C$5:C$962) -> -503 | H5: =SUMIF('Ggl. Korr.'!$B$5:$B$962,$A5,'Ggl. Korr.'!D$5:D$962) -> -503 | I5: =SUMIF('Ggl. Korr.'!$B$5:$B$962,$A5,'Ggl. Korr.'!E$5:E$962) -> -503 | J5: =SUMIF('Ggl. Korr.'!$B$5:$B$962,$A5,'Ggl. Korr.'!F$5:F$962) -> -503 | K5: =SUMIF('Ggl. Korr.'!$B$5:$B$962,$A5,'Ggl. Korr.'!G$5:G$962) -> -503 | L5: =B5+G5 -> 39317 | M5: =C5+H5 -> 38880 | N5: =D5+I5 -> 38380 | O5: =E5+J5 -> 37852 | P5: =F5+K5 -> 37452 | Q5: =IF((P5-'Ggl. Korr.'!R5)<>0,P5-'Ggl. Korr.'!R5,"") ->  | R5: 1 | S5: 2 | T5: 3 | U5: 4 | V5: 5 | X5: =IF(OR(W5="L",W5="l"),X$56/P$56*P5,(SUM(R5:V5)*(R5*L5+S5*M5*2+T5*N5*3+U5*O5*4+V5*P5*5)-(R5*L5+S5*M5+T5*N5+U5*O5+P5*V5)*(R5+2*S5+3*T5+4*U5+5*V5))/(SUM(R5:V5)*(R5+S5*4+T5*9+U5*16+V5*25)-POWER(R5+S5*2+T5*3+U5*4+V5*5,2))) -> -473.8285714 | Y5: =$P5+($AF5-$P5)/8 -> 36978.17143 | Z5: =$P5+2*($AF5-$P5)/8 -> 36504.34286 | AA5: =$P5+3*($AF5-$P5)/8 -> 36030.51429 | AB5: =$P5+4*($AF5-$P5)/8 -> 35556.68571 | AC5: =$P5+5*($AF5-$P5)/8 -> 35082.85714 | AD5: =$P5+6*($AF5-$P5)/8 -> 34609.02857 | AE5: =$P5+7*($AF5-$P5)/8 -> 34135.2 | AF5: =IF(X5>0,P5+X5*(8-56/24),P5+8*X5) -> 33661.37143 | AJ5: =P5 -> 37452 | AK5: =AF5-AJ5 -> -3790.628571 | AL5: =AK5/AJ5 -> -0.1012129812 | AM5: 36942.34286 | AN5: =(Z5-AM5) -> -438 | AP5: =IF(P5='Ggl. Korr.'!R5,0,1) -> 0
A6: =Parameter!B3 -> Backnang | B6: ='Ggl. Historie'!Y6 -> 44675 | C6: ='Ggl. Historie'!Z6 -> 44091 | D6: ='Ggl. Historie'!AA6 -> 43336 | E6: ='Ggl. Historie'!AB6 -> 42641 | F6: ='Ggl. Historie'!AC6 -> 42044 | G6: =SUMIF('Ggl. Korr.'!$B$5:$B$962,$A6,'Ggl. Korr.'!C$5:C$962) -> 0 | H6: =SUMIF('Ggl. Korr.'!$B$5:$B$962,$A6,'Ggl. Korr.'!D$5:D$962) -> 0 | I6: =SUMIF('Ggl. Korr.'!$B$5:$B$962,$A6,'Ggl. Korr.'!E$5:E$962) -> 0 | J6: =SUMIF('Ggl. Korr.'!$B$5:$B$962,$A6,'Ggl. Korr.'!F$5:F$962) -> 0 | K6: =SUMIF('Ggl. Korr.'!$B$5:$B$962,$A6,'Ggl. Korr.'!G$5:G$962) -> 0 | L6: 44675 | M6: 44091 | N6: 43336 | O6: 42641 | P6: 42044 | Q6: =IF((P6-'Ggl. Korr.'!R6)<>0,P6-'Ggl. Korr.'!R6,"") ->  | R6: 1 | S6: 2 | T6: 3 | U6: 4 | V6: 5 | X6: -669.7428571 | Y6: =$P6+($AF6-$P6)/8 -> 41374.25714 | Z6: =$P6+2*($AF6-$P6)/8 -> 40704.51429 | AA6: =$P6+3*($AF6-$P6)/8 -> 40034.77143 | AB6: =$P6+4*($AF6-$P6)/8 -> 39365.02857 | AC6: =$P6+5*($AF6-$P6)/8 -> 38695.28571 | AD6: =$P6+6*($AF6-$P6)/8 -> 38025.54286 | AE6: =$P6+7*($AF6-$P6)/8 -> 37355.8 | AF6: =IF(X6>0,P6+X6*(8-56/24),P6+8*X6) -> 36686.05714 | AJ6: =P6 -> 42044 | AK6: -5357.942857 | AL6: =AK6/AJ6 -> -0.1274365631 | AM6: 40593.4 | AN6: =(Z6-AM6) -> 111.1142857 | AP6: =IF(P6='Ggl. Korr.'!R6,0,1) -> 0
A7: =Parameter!B4 -> Bad Cannstatt | B7: ='Ggl. Historie'!Y7 -> 33097 | C7: ='Ggl. Historie'!Z7 -> 32662 | D7: ='Ggl. Historie'!AA7 -> 31867 | E7: ='Ggl. Historie'!AB7 -> 31050 | F7: ='Ggl. Historie'!AC7 -> 30392 | G7: =SUMIF('Ggl. Korr.'!$B$5:$B$962,$A7,'Ggl. Korr.'!C$5:C$962) -> 0 | H7: =SUMIF('Ggl. Korr.'!$B$5:$B$962,$A7,'Ggl. Korr.'!D$5:D$962) -> 0 | I7: =SUMIF('Ggl. Korr.'!$B$5:$B$962,$A7,'Ggl. Korr.'!E$5:E$962) -> 0 | J7: =SUMIF('Ggl. Korr.'!$B$5:$B$962,$A7,'Ggl. Korr.'!F$5:F$962) -> 0 | K7: =SUMIF('Ggl. Korr.'!$B$5:$B$962,$A7,'Ggl. Korr.'!G$5:G$962) -> 0 | L7: 33097 | M7: 32662 | N7: 31867 | O7: 31050 | P7: 30392 | Q7: =IF((P7-'Ggl. Korr.'!R7)<>0,P7-'Ggl. Korr.'!R7,"") ->  | R7: 1 | S7: 2 | T7: 3 | U7: 4 | V7: 5 | X7: -722.2571429 | Y7: 29669.74286 | Z7: 28947.48571 | AA7: 28225.22857 | AB7: 27502.97143 | AC7: 26780.71429 | AD7: 26058.45714 | AE7: 25336.2 | AF7: 24613.94286 | AJ7: 30392 | AK7: -5778.057143 | AL7: -0.1901177001 | AM7: 29283.11429 | AN7: -335.6285714 | AP7: =IF(P7='Ggl. Korr.'!R7,0,1) -> 0
A8: =Parameter!B5 -> Bad Urach-Münsingen | B8: ='Ggl. Historie'!Y8 -> 60795 | C8: ='Ggl. Historie'!Z8 -> 60206 | D8: ='Ggl. Historie'!AA8 -> 59257 | E8: ='Ggl. Historie'!AB8 -> 58258 | F8: ='Ggl. Historie'!AC8 -> 57510 | G8: =SUMIF('Ggl. Korr.'!$B$5:$B$962,$A8,'Ggl. Korr.'!C$5:C$962) -> 0 | H8: =SUMIF('Ggl. Korr.'!$B$5:$B$962,$A8,'Ggl. Korr.'!D$5:D$962) -> 0 | I8: =SUMIF('Ggl. Korr.'!$B$5:$B$962,$A8,'Ggl. Korr.'!E$5:E$962) -> 0 | J8: =SUMIF('Ggl. Korr.'!$B$5:$B$962,$A8,'Ggl. Korr.'!F$5:F$962) -> 0 | K8: =SUMIF('Ggl. Korr.'!$B$5:$B$962,$A8,'Ggl. Korr.'!G$5:G$962) -> 0 | L8: 60795 | M8: 60206 | N8: 59257 | O8: 58258 | P8: 57510 | Q8: =IF((P8-'Ggl. Korr.'!R8)<>0,P8-'Ggl. Korr.'!R8,"") ->  | R8: 1 | S8: 2 | T8: 3 | U8: 4 | V8: 5 | X8: -867.5714286 | Y8: 56642.42857 | Z8: 55774.85714 | AA8: 54907.28571 | AB8: 54039.71429 | AC8: 53172.14286 | AD8: 52304.57143 | AE8: 51437 | AF8: 50569.42857 | AJ8: 57510 | AK8: -6940.571429 | AL8: -0.1206846014 | AM8: 55802.62857 | AN8: -27.77142857 | AP8: =IF(P8='Ggl. Korr.'!R8,0,1) -> 0
A9: =Parameter!B6 -> Balingen | B9: ='Ggl. Historie'!Y9 -> 66520 | C9: ='Ggl. Historie'!Z9 -> 65110 | D9: ='Ggl. Historie'!AA9 -> 63873 | E9: ='Ggl. Historie'!AB9 -> 62900 | F9: ='Ggl. Historie'!AC9 -> 61986 | G9: =SUMIF('Ggl. Korr.'!$B$5:$B$962,$A9,'Ggl. Korr.'!C$5:C$962) -> -886 | H9: =SUMIF('Ggl. Korr.'!$B$5:$B$962,$A9,'Ggl. Korr.'!D$5:D$962) -> -363 | I9: =SUMIF('Ggl. Korr.'!$B$5:$B$962,$A9,'Ggl. Korr.'!E$5:E$962) -> -363 | J9: =SUMIF('Ggl. Korr.'!$B$5:$B$962,$A9,'Ggl. Korr.'!F$5:F$962) -> -363 | K9: =SUMIF('Ggl. Korr.'!$B$5:$B$962,$A9,'Ggl. Korr.'!G$5:G$962) -> -363 | L9: 65634 | M9: 64747 | N9: 63510 | O9: 62537 | P9: =F9+K9 -> 61623 | Q9: =IF((P9-'Ggl. Korr.'!R9)<>0,P9-'Ggl. Korr.'!R9,"") ->  | R9: 1 | S9: 2 | T9: 3 | U9: 4 | V9: 5 | X9: -1014.2 | Y9: 60608.8 | Z9: 59594.6 | AA9: 58580.4 | AB9: 57566.2 | AC9: 56552 | AD9: 55537.8 | AE9: 54523.6 | AF9: 53509.4 | AJ9: 61623 | AK9: -8113.6 | AL9: -0.131665125 | AM9: 60556.68571 | AN9: -962.0857143 | AP9: =IF(P9='Ggl. Korr.'!R9,0,1) -> 0
A10: =Parameter!B7 -> Bernhausen | B10: ='Ggl. Historie'!Y10 -> 47807 | C10: ='Ggl. Historie'!Z10 -> 47250 | D10: ='Ggl. Historie'!AA10 -> 46514 | E10: ='Ggl. Historie'!AB10 -> 45965 | F10: ='Ggl. Historie'!AC10 -> 45468 | G10: =SUMIF('Ggl. Korr.'!$B$5:$B$962,$A10,'Ggl. Korr.'!C$5:C$962) -> 0 | H10: =SUMIF('Ggl. Korr.'!$B$5:$B$962,$A10,'Ggl. Korr.'!D$5:D$962) -> 0 | I10: =SUMIF('Ggl. Korr.'!$B$5:$B$962,$A10,'Ggl. Korr.'!E$5:E$962) -> 0 | J10: =SUMIF('Ggl. Korr.'!$B$5:$B$962,$A10,'Ggl. Korr.'!F$5:F$962) -> 0 | K10: =SUMIF('Ggl. Korr.'!$B$5:$B$962,$A10,'Ggl. Korr.'!G$5:G$962) -> 0 | L10: 47807 | M10: 47250 | N10: 46514 | O10: 45965 | P10: 45468 | Q10: =IF((P10-'Ggl. Korr.'!R10)<>0,P10-'Ggl. Korr.'!R10,"") ->  | R10: 1 | S10: 2 | T10: 3 | U10: 4 | V10: 5 | X10: -583.1428571 | Y10: 44884.85714 | Z10: 44301.71429 | AA10: 43718.57143 | AB10: 43135.42857 | AC10: 42552.28571 | AD10: 41969.14286 | AE10: 41386 | AF10: 40802.85714 | AJ10: 45468 | AK10: -4665.142857 | AL10: -0.1026027724 | AM10: 45249.94286 | AN10: -948.2285714 | AP10: =IF(P10='Ggl. Korr.'!R10,0,1) -> 0
A11: =Parameter!B8 -> Besigheim | B11: ='Ggl. Historie'!Y11 -> 46521 | C11: ='Ggl. Historie'!Z11 -> 45821 | D11: ='Ggl. Historie'!AA11 -> 45124 | E11: ='Ggl. Historie'!AB11 -> 44429 | F11: ='Ggl. Historie'!AC11 -> 43749 | G11: =SUMIF('Ggl. Korr.'!$B$5:$B$962,$A11,'Ggl. Korr.'!C$5:C$962) -> 0 | H11: =SUMIF('Ggl. Korr.'!$B$5:$B$962,$A11,'Ggl. Korr.'!D$5:D$962) -> 0 | I11: =SUMIF('Ggl. Korr.'!$B$5:$B$962,$A11,'Ggl. Korr.'!E$5:E$962) -> 0 | J11: =SUMIF('Ggl. Korr.'!$B$5:$B$962,$A11,'Ggl. Korr.'!F$5:F$962) -> 0 | K11: =SUMIF('Ggl. Korr.'!$B$5:$B$962,$A11,'Ggl. Korr.'!G$5:G$962) -> 0 | L11: 46521 | M11: 45821 | N11: 45124 | O11: 44429 | P11: 43749 | Q11: =IF((P11-'Ggl. Korr.'!R11)<>0,P11-'Ggl. Korr.'!R11,"") ->  | R11: 1 | S11: 2 | T11: 3 | U11: 4 | V11: 5 | X11: -691.8 | Y11: 43057.2 | Z11: 42365.4 | AA11: 41673.6 | AB11: 40981.8 | AC11: 40290 | AD11: 39598.2 | AE11: 38906.4 | AF11: 38214.6 | AJ11: 43749 | AK11: -5534.4 | AL11: -0.1265034629 | AM11: 43576.82857 | AN11: -1211.428571 | AP11: =IF(P11='Ggl. Korr.'!R11,0,1) -> 0
A12: =Parameter!B9 -> Biberach | B12: ='Ggl. Historie'!Y12 -> 45066 | C12: ='Ggl. Historie'!Z12 -> 44858 | D12: ='Ggl. Historie'!AA12 -> 44553 | E12: ='Ggl. Historie'!AB12 -> 44490 | F12: ='Ggl. Historie'!AC12 -> 44376 | G12: =SUMIF('Ggl. Korr.'!$B$5:$B$962,$A12,'Ggl. Korr.'!C$5:C$962) -> 0 | H12: =SUMIF('Ggl. Korr.'!$B$5:$B$962,$A12,'Ggl. Korr.'!D$5:D$962) -> 0 | I12: =SUMIF('Ggl. Korr.'!$B$5:$B$962,$A12,'Ggl. Korr.'!E$5:E$962) -> 0 | J12: =SUMIF('Ggl. Korr.'!$B$5:$B$962,$A12,'Ggl. Korr.'!F$5:F$962) -> 0 | K12: =SUMIF('Ggl. Korr.'!$B$5:$B$962,$A12,'Ggl. Korr.'!G$5:G$962) -> 0 | L12: 45066 | M12: 44858 | N12: 44553 | O12: 44490 | P12: 44376 | Q12: =IF((P12-'Ggl. Korr.'!R12)<>0,P12-'Ggl. Korr.'!R12,"") ->  | R12: 1 | S12: 2 | T12: 3 | U12: 4 | V12: 5 | X12: -156.3714286 | Y12: 44219.62857 | Z12: 44063.25714 | AA12: 43906.88571 | AB12: 43750.51429 | AC12: 43594.14286 | AD12: 43437.77143 | AE12: 43281.4 | AF12: 43125.02857 | AJ12: 44376 | AK12: -1250.971429 | AL12: -0.02819027016 | AM12: 44077.97143 | AN12: -14.71428571 | AP12: =IF(P12='Ggl. Korr.'!R12,0,1) -> 0
A13: =Parameter!B10 -> Blaubeuren | B13: ='Ggl. Historie'!Y13 -> 25451 | C13: ='Ggl. Historie'!Z13 -> 25104 | D13: ='Ggl. Historie'!AA13 -> 24776 | E13: ='Ggl. Historie'!AB13 -> 24406 | F13: ='Ggl. Historie'!AC13 -> 24032 | G13: =SUMIF('Ggl. Korr.'!$B$5:$B$962,$A13,'Ggl. Korr.'!C$5:C$962) -> 0 | H13: =SUMIF('Ggl. Korr.'!$B$5:$B$962,$A13,'Ggl. Korr.'!D$5:D$962) -> 0 | I13: =SUMIF('Ggl. Korr.'!$B$5:$B$962,$A13,'Ggl. Korr.'!E$5:E$962) -> 0 | J13: =SUMIF('Ggl. Korr.'!$B$5:$B$962,$A13,'Ggl. Korr.'!F$5:F$962) -> 0 | K13: =SUMIF('Ggl. Korr.'!$B$5:$B$962,$A13,'Ggl. Korr.'!G$5:G$962) -> 0 | L13: 25451 | M13: 25104 | N13: 24776 | O13: 24406 | P13: 24032 | Q13: =IF((P13-'Ggl. Korr.'!R13)<>0,P13-'Ggl. Korr.'!R13,"") ->  | R13: 1 | S13: 2 | T13: 3 | U13: 4 | V13: 5 | X13: -357.7142857 | Y13: 23674.28571 | Z13: 23316.57143 | AA13: 22958.85714 | AB13: 22601.14286 | AC13: 22243.42857 | AD13: 21885.71429 | AE13: 21528 | AF13: 21170.28571 | AJ13: 24032 | AK13: -2861.714286 | AL13: -0.1190793228 | AM13: 23804.68571 | AN13: -488.1142857 | AP13: =IF(P13='Ggl. Korr.'!R13,0,1) -> 0
A14: =Parameter!B11 -> Blaufelden | B14: ='Ggl. Historie'!Y14 -> 20012 | C14: ='Ggl. Historie'!Z14 -> 19692 | D14: ='Ggl. Historie'!AA14 -> 19461 | E14: ='Ggl. Historie'!AB14 -> 19302 | F14: ='Ggl. Historie'!AC14 -> 19173 | G14: =SUMIF('Ggl. Korr.'!$B$5:$B$962,$A14,'Ggl. Korr.'!C$5:C$962) -> -518 | H14: =SUMIF('Ggl. Korr.'!$B$5:$B$962,$A14,'Ggl. Korr.'!D$5:D$962) -> -406 | I14: =SUMIF('Ggl. Korr.'!$B$5:$B$962,$A14,'Ggl. Korr.'!E$5:E$962) -> -406 | J14: =SUMIF('Ggl. Korr.'!$B$5:$B$962,$A14,'Ggl. Korr.'!F$5:F$962) -> -406 | K14: =SUMIF('Ggl. Korr.'!$B$5:$B$962,$A14,'Ggl. Korr.'!G$5:G$962) -> -406 | L14: 19494 | M14: 19286 | N14: 19055 | O14: 18896 | P14: 18767 | Q14: =IF((P14-'Ggl. Korr.'!R14)<>0,P14-'Ggl. Korr.'!R14,"") ->  | R14: 1 | S14: 2 | T14: 3 | U14: 4 | V14: 5 | X14: -174.5428571 | Y14: 18592.45714 | Z14: 18417.91429 | AA14: 18243.37143 | AB14: 18068.82857 | AC14: 17894.28571 | AD14: 17719.74286 | AE14: 17545.2 | AF14: 17370.65714 | AJ14: 18767 | AK14: -1396.342857 | AL14: -0.07440415928 | AM14: 18122.05714 | AN14: 295.8571429 | AP14: =IF(P14='Ggl. Korr.'!R14,0,1) -> 0
A15: =Parameter!B12 -> Böblingen | B15: ='Ggl. Historie'!Y15 -> 65201 | C15: ='Ggl. Historie'!Z15 -> 64493 | D15: ='Ggl. Historie'!AA15 -> 63421 | E15: ='Ggl. Historie'!AB15 -> 62482 | F15: ='Ggl. Historie'!AC15 -> 61480 | G15: =SUMIF('Ggl. Korr.'!$B$5:$B$962,$A15,'Ggl. Korr.'!C$5:C$962) -> 0 | H15: =SUMIF('Ggl. Korr.'!$B$5:$B$962,$A15,'Ggl. Korr.'!D$5:D$962) -> 0 | I15: =SUMIF('Ggl. Korr.'!$B$5:$B$962,$A15,'Ggl. Korr.'!E$5:E$962) -> 0 | J15: =SUMIF('Ggl. Korr.'!$B$5:$B$962,$A15,'Ggl. Korr.'!F$5:F$962) -> 0 | K15: =SUMIF('Ggl. Korr.'!$B$5:$B$962,$A15,'Ggl. Korr.'!G$5:G$962) -> 0 | L15: 65201 | M15: 64493 | N15: 63421 | O15: 62482 | P15: 61480 | Q15: =IF((P15-'Ggl. Korr.'!R15)<>0,P15-'Ggl. Korr.'!R15,"") ->  | R15: 1 | S15: 2 | T15: 3 | U15: 4 | V15: 5 | X15: -964.8 | Y15: 60515.2 | Z15: 59550.4 | AA15: 58585.6 | AB15: 57620.8 | AC15: 56656 | AD15: 55691.2 | AE15: 54726.4 | AF15: 53761.6 | AJ15: 61480 | AK15: -7718.4 | AL15: -0.1255432661 | AM15: 58160.48571 | AN15: 1389.914286 | AP15: =IF(P15='Ggl. Korr.'!R15,0,1) -> 0
A16: =Parameter!B13 -> Brackenheim | B16: ='Ggl. Historie'!Y16 -> 27738 | C16: ='Ggl. Historie'!Z16 -> 27387 | D16: ='Ggl. Historie'!AA16 -> 27081 | E16: ='Ggl. Historie'!AB16 -> 26693 | F16: ='Ggl. Historie'!AC16 -> 26382 | G16: =SUMIF('Ggl. Korr.'!$B$5:$B$962,$A16,'Ggl. Korr.'!C$5:C$962) -> 0 | H16: =SUMIF('Ggl. Korr.'!$B$5:$B$962,$A16,'Ggl. Korr.'!D$5:D$962) -> 0 | I16: =SUMIF('Ggl. Korr.'!$B$5:$B$962,$A16,'Ggl. Korr.'!E$5:E$962) -> 0 | J16: =SUMIF('Ggl. Korr.'!$B$5:$B$962,$A16,'Ggl. Korr.'!F$5:F$962) -> 0 | K16: =SUMIF('Ggl. Korr.'!$B$5:$B$962,$A16,'Ggl. Korr.'!G$5:G$962) -> 0 | L16: 27738 | M16: 27387 | N16: 27081 | O16: 26693 | P16: 26382 | Q16: =IF((P16-'Ggl. Korr.'!R16)<>0,P16-'Ggl. Korr.'!R16,"") ->  | R16: 1 | S16: 2 | T16: 3 | U16: 4 | V16: 5 | X16: -340.6857143 | Y16: 26041.31429 | Z16: 25700.62857 | AA16: 25359.94286 | AB16: 25019.25714 | AC16: 24678.57143 | AD16: 24337.88571 | AE16: 23997.2 | AF16: 23656.51429 | AJ16: 26382 | AK16: -2725.485714 | AL16: -0.1033085329 | AM16: 25744.51429 | AN16: -43.88571429 | AP16: =IF(P16='Ggl. Korr.'!R16,0,1) -> 0
A17: =Parameter!B14 -> Calw | B17: ='Ggl. Historie'!Y17 -> 32266 | C17: ='Ggl. Historie'!Z17 -> 32193 | D17: ='Ggl. Historie'!AA17 -> 31800 | E17: ='Ggl. Historie'!AB17 -> 31378 | F17: ='Ggl. Historie'!AC17 -> 30881 | G17: =SUMIF('Ggl. Korr.'!$B$5:$B$962,$A17,'Ggl. Korr.'!C$5:C$962) -> 95 | H17: =SUMIF('Ggl. Korr.'!$B$5:$B$962,$A17,'Ggl. Korr.'!D$5:D$962) -> -256 | I17: =SUMIF('Ggl. Korr.'!$B$5:$B$962,$A17,'Ggl. Korr.'!E$5:E$962) -> -256 | J17: =SUMIF('Ggl. Korr.'!$B$5:$B$962,$A17,'Ggl. Korr.'!F$5:F$962) -> -256 | K17: =SUMIF('Ggl. Korr.'!$B$5:$B$962,$A17,'Ggl. Korr.'!G$5:G$962) -> -256 | L17: 32361 | M17: 31937 | N17: 31544 | O17: 31122 | P17: 30625 | Q17: =IF((P17-'Ggl. Korr.'!R17)<>0,P17-'Ggl. Korr.'!R17,"") ->  | R17: 1 | S17: 2 | T17: 3 | U17: 4 | V17: 5 | X17: -436.2 | Y17: 30188.8 | Z17: 29752.6 | AA17: 29316.4 | AB17: 28880.2 | AC17: 28444 | AD17: 28007.8 | AE17: 27571.6 | AF17: 27135.4 | AJ17: 30625 | AK17: -3489.6 | AL17: -0.1139461224 | AM17: 29484.48571 | AN17: 268.1142857 | AP17: =IF(P17='Ggl. Korr.'!R17,0,1) -> 0
A18: =Parameter!B15 -> Crailsheim | B18: ='Ggl. Historie'!Y18 -> 30394 | C18: ='Ggl. Historie'!Z18 -> 30177 | D18: ='Ggl. Historie'!AA18 -> 29799 | E18: ='Ggl. Historie'!AB18 -> 29430 | F18: ='Ggl. Historie'!AC18 -> 29123 | G18: =SUMIF('Ggl. Korr.'!$B$5:$B$962,$A18,'Ggl. Korr.'!C$5:C$962) -> 0 | H18: =SUMIF('Ggl. Korr.'!$B$5:$B$962,$A18,'Ggl. Korr.'!D$5:D$962) -> 0 | I18: =SUMIF('Ggl. Korr.'!$B$5:$B$962,$A18,'Ggl. Korr.'!E$5:E$962) -> 0 | J18: =SUMIF('Ggl. Korr.'!$B$5:$B$962,$A18,'Ggl. Korr.'!F$5:F$962) -> 0 | K18: =SUMIF('Ggl. Korr.'!$B$5:$B$962,$A18,'Ggl. Korr.'!G$5:G$962) -> 0 | L18: 30394 | M18: 30177 | N18: 29799 | O18: 29430 | P18: 29123 | Q18: =IF((P18-'Ggl. Korr.'!R18)<>0,P18-'Ggl. Korr.'!R18,"") ->  | R18: 1 | S18: 2 | T18: 3 | U18: 4 | V18: 5 | X18: -336.2285714 | Y18: 28786.77143 | Z18: 28450.54286 | AA18: 28114.31429 | AB18: 27778.08571 | AC18: 27441.85714 | AD18: 27105.62857 | AE18: 26769.4 | AF18: 26433.17143 | AJ18: 29123 | AK18: -2689.828571 | AL18: -0.09236097145 | AM18: 28854.45714 | AN18: -403.9142857 | AP18: =IF(P18='Ggl. Korr.'!R18,0,1) -> 0
A19: =Parameter!B16 -> Degerloch | B19: ='Ggl. Historie'!Y19 -> 42992 | C19: ='Ggl. Historie'!Z19 -> 42462 | D19: ='Ggl. Historie'!AA19 -> 41771 | E19: ='Ggl. Historie'!AB19 -> 41021 | F19: ='Ggl. Historie'!AC19 -> 40512 | G19: =SUMIF('Ggl. Korr.'!$B$5:$B$962,$A19,'Ggl. Korr.'!C$5:C$962) -> 0 | H19: =SUMIF('Ggl. Korr.'!$B$5:$B$962,$A19,'Ggl. Korr.'!D$5:D$962) -> 0 | I19: =SUMIF('Ggl. Korr.'!$B$5:$B$962,$A19,'Ggl. Korr.'!E$5:E$962) -> 0 | J19: =SUMIF('Ggl. Korr.'!$B$5:$B$962,$A19,'Ggl. Korr.'!F$5:F$962) -> 0 | K19: =SUMIF('Ggl. Korr.'!$B$5:$B$962,$A19,'Ggl. Korr.'!G$5:G$962) -> 0 | L19: 42992 | M19: 42462 | N19: 41771 | O19: 41021 | P19: 40512 | Q19: =IF((P19-'Ggl. Korr.'!R19)<>0,P19-'Ggl. Korr.'!R19,"") ->  | R19: 1 | S19: 2 | T19: 3 | U19: 4 | V19: 5 | X19: -640.8285714 | Y19: 39871.17143 | Z19: 39230.34286 | AA19: 38589.51429 | AB19: 37948.68571 | AC19: 37307.85714 | AD19: 36667.02857 | AE19: 36026.2 | AF19: 35385.37143 | AJ19: 40512 | AK19: -5126.628571 | AL19: -0.1265459264 | AM19: 40683.54286 | AN19: -1453.2 | AP19: =IF(P19='Ggl. Korr.'!R19,0,1) -> 0
A20: =Parameter!B17 -> Ditzingen | B20: ='Ggl. Historie'!Y20 -> 33863 | C20: ='Ggl. Historie'!Z20 -> 33395 | D20: ='Ggl. Historie'!AA20 -> 32844 | E20: ='Ggl. Historie'!AB20 -> 32264 | F20: ='Ggl. Historie'!AC20 -> 31730 | G20: =SUMIF('Ggl. Korr.'!$B$5:$B$962,$A20,'Ggl. Korr.'!C$5:C$962) -> 0 | H20: =SUMIF('Ggl. Korr.'!$B$5:$B$962,$A20,'Ggl. Korr.'!D$5:D$962) -> 0 | I20: =SUMIF('Ggl. Korr.'!$B$5:$B$962,$A20,'Ggl. Korr.'!E$5:E$962) -> 0 | J20: =SUMIF('Ggl. Korr.'!$B$5:$B$962,$A20,'Ggl. Korr.'!F$5:F$962) -> 0 | K20: =SUMIF('Ggl. Korr.'!$B$5:$B$962,$A20,'Ggl. Korr.'!G$5:G$962) -> 0 | L20: 33863 | M20: 33395 | N20: 32844 | O20: 32264 | P20: 31730 | Q20: =IF((P20-'Ggl. Korr.'!R20)<>0,P20-'Ggl. Korr.'!R20,"") ->  | R20: 1 | S20: 2 | T20: 3 | U20: 4 | V20: 5 | X20: -546.6 | Y20: 31183.4 | Z20: 30636.8 | AA20: 30090.2 | AB20: 29543.6 | AC20: 28997 | AD20: 28450.4 | AE20: 27903.8 | AF20: 27357.2 | AJ20: 31730 | AK20: -4372.8 | AL20: -0.1378127955 | AM20: 31136.62857 | AN20: -499.8285714 | AP20: =IF(P20='Ggl. Korr.'!R20,0,1) -> 0
A21: =Parameter!B18 -> Esslingen | B21: ='Ggl. Historie'!Y21 -> 62178 | C21: ='Ggl. Historie'!Z21 -> 61524 | D21: ='Ggl. Historie'!AA21 -> 60444 | E21: ='Ggl. Historie'!AB21 -> 59501 | F21: ='Ggl. Historie'!AC21 -> 58575 | G21: =SUMIF('Ggl. Korr.'!$B$5:$B$962,$A21,'Ggl. Korr.'!C$5:C$962) -> 0 | H21: =SUMIF('Ggl. Korr.'!$B$5:$B$962,$A21,'Ggl. Korr.'!D$5:D$962) -> 0 | I21: =SUMIF('Ggl. Korr.'!$B$5:$B$962,$A21,'Ggl. Korr.'!E$5:E$962) -> 0 | J21: =SUMIF('Ggl. Korr.'!$B$5:$B$962,$A21,'Ggl. Korr.'!F$5:F$962) -> 0 | K21: =SUMIF('Ggl. Korr.'!$B$5:$B$962,$A21,'Ggl. Korr.'!G$5:G$962) -> 0 | L21: 62178 | M21: 61524 | N21: 60444 | O21: 59501 | P21: 58575 | Q21: =IF((P21-'Ggl. Korr.'!R21)<>0,P21-'Ggl. Korr.'!R21,"") ->  | R21: 1 | S21: 2 | T21: 3 | U21: 4 | V21: 5 | X21: -940.3428571 | Y21: 57634.65714 | Z21: 56694.31429 | AA21: 55753.97143 | AB21: 54813.62857 | AC21: 53873.28571 | AD21: 52932.94286 | AE21: 51992.6 | AF21: 51052.25714 | AJ21: 58575 | AK21: -7522.742857 | AL21: -0.1284292421 | AM21: 56604.17143 | AN21: 90.14285714 | AP21: =IF(P21='Ggl. Korr.'!R21,0,1) -> 0
A22: =Parameter!B19 -> Freudenstadt | B22: ='Ggl. Historie'!Y22 -> 40581 | C22: ='Ggl. Historie'!Z22 -> 39884 | D22: ='Ggl. Historie'!AA22 -> 39369 | E22: ='Ggl. Historie'!AB22 -> 38770 | F22: ='Ggl. Historie'!AC22 -> 38155 | G22: =SUMIF('Ggl. Korr.'!$B$5:$B$962,$A22,'Ggl. Korr.'!C$5:C$962) -> 0 | H22: =SUMIF('Ggl. Korr.'!$B$5:$B$962,$A22,'Ggl. Korr.'!D$5:D$962) -> 0 | I22: =SUMIF('Ggl. Korr.'!$B$5:$B$962,$A22,'Ggl. Korr.'!E$5:E$962) -> 0 | J22: =SUMIF('Ggl. Korr.'!$B$5:$B$962,$A22,'Ggl. Korr.'!F$5:F$962) -> 0 | K22: =SUMIF('Ggl. Korr.'!$B$5:$B$962,$A22,'Ggl. Korr.'!G$5:G$962) -> 0 | L22: 40581 | M22: 39884 | N22: 39369 | O22: 38770 | P22: 38155 | Q22: =IF((P22-'Ggl. Korr.'!R22)<>0,P22-'Ggl. Korr.'!R22,"") ->  | R22: 1 | S22: 2 | T22: 3 | U22: 4 | V22: 5 | X22: -593.1714286 | Y22: 37561.82857 | Z22: 36968.65714 | AA22: 36375.48571 | AB22: 35782.31429 | AC22: 35189.14286 | AD22: 34595.97143 | AE22: 34002.8 | AF22: 33409.62857 | AJ22: 38155 | AK22: -4745.371429 | AL22: -0.1243708932 | AM22: 37118.88571 | AN22: -150.2285714 | AP22: =IF(P22='Ggl. Korr.'!R22,0,1) -> 0
A23: =Parameter!B20 -> Gaildorf | B23: ='Ggl. Historie'!Y23 -> 21433 | C23: ='Ggl. Historie'!Z23 -> 21136 | D23: ='Ggl. Historie'!AA23 -> 20873 | E23: ='Ggl. Historie'!AB23 -> 20626 | F23: ='Ggl. Historie'!AC23 -> 20396 | G23: =SUMIF('Ggl. Korr.'!$B$5:$B$962,$A23,'Ggl. Korr.'!C$5:C$962) -> 0 | H23: =SUMIF('Ggl. Korr.'!$B$5:$B$962,$A23,'Ggl. Korr.'!D$5:D$962) -> 0 | I23: =SUMIF('Ggl. Korr.'!$B$5:$B$962,$A23,'Ggl. Korr.'!E$5:E$962) -> 0 | J23: =SUMIF('Ggl. Korr.'!$B$5:$B$962,$A23,'Ggl. Korr.'!F$5:F$962) -> 0 | K23: =SUMIF('Ggl. Korr.'!$B$5:$B$962,$A23,'Ggl. Korr.'!G$5:G$962) -> 0 | L23: 21433 | M23: 21136 | N23: 20873 | O23: 20626 | P23: 20396 | Q23: =IF((P23-'Ggl. Korr.'!R23)<>0,P23-'Ggl. Korr.'!R23,"") ->  | R23: 1 | S23: 2 | T23: 3 | U23: 4 | V23: 5 | X23: -251.9714286 | Y23: 20144.02857 | Z23: 19892.05714 | AA23: 19640.08571 | AB23: 19388.11429 | AC23: 19136.14286 | AD23: 18884.17143 | AE23: 18632.2 | AF23: 18380.22857 | AJ23: 20396 | AK23: -2015.771429 | AL23: -0.0988317037 | AM23: 19731.4 | AN23: 160.6571429 | AP23: =IF(P23='Ggl. Korr.'!R23,0,1) -> 0
A24: =Parameter!B21 -> Geislingen a.d. Steige | B24: ='Ggl. Historie'!Y24 -> 27692 | C24: ='Ggl. Historie'!Z24 -> 27232 | D24: ='Ggl. Historie'!AA24 -> 26730 | E24: ='Ggl. Historie'!AB24 -> 26290 | F24: ='Ggl. Historie'!AC24 -> 25890 | G24: =SUMIF('Ggl. Korr.'!$B$5:$B$962,$A24,'Ggl. Korr.'!C$5:C$962) -> 0 | H24: =SUMIF('Ggl. Korr.'!$B$5:$B$962,$A24,'Ggl. Korr.'!D$5:D$962) -> 0 | I24: =SUMIF('Ggl. Korr.'!$B$5:$B$962,$A24,'Ggl. Korr.'!E$5:E$962) -> 0 | J24: =SUMIF('Ggl. Korr.'!$B$5:$B$962,$A24,'Ggl. Korr.'!F$5:F$962) -> 0 | K24: =SUMIF('Ggl. Korr.'!$B$5:$B$962,$A24,'Ggl. Korr.'!G$5:G$962) -> 0 | L24: 27692 | M24: 27232 | N24: 26730 | O24: 26290 | P24: 25890 | Q24: =IF((P24-'Ggl. Korr.'!R24)<>0,P24-'Ggl. Korr.'!R24,"") ->  | R24: 1 | S24: 2 | T24: 3 | U24: 4 | V24: 5 | X24: -446.8 | Y24: 25443.2 | Z24: 24996.4 | AA24: 24549.6 | AB24: 24102.8 | AC24: 23656 | AD24: 23209.2 | AE24: 22762.4 | AF24: 22315.6 | AJ24: 25890 | AK24: -3574.4 | AL24: -0.1380610274 | AM24: 25370.8 | AN24: -374.4 | AP24: =IF(P24='Ggl. Korr.'!R24,0,1) -> 0
A25: =Parameter!B22 -> Göppingen | B25: ='Ggl. Historie'!Y25 -> 59786 | C25: ='Ggl. Historie'!Z25 -> 59005 | D25: ='Ggl. Historie'!AA25 -> 57829 | E25: ='Ggl. Historie'!AB25 -> 56935 | F25: ='Ggl. Historie'!AC25 -> 56522 | G25: =SUMIF('Ggl. Korr.'!$B$5:$B$962,$A25,'Ggl. Korr.'!C$5:C$962) -> 384 | H25: =SUMIF('Ggl. Korr.'!$B$5:$B$962,$A25,'Ggl. Korr.'!D$5:D$962) -> 384 | I25: =SUMIF('Ggl. Korr.'!$B$5:$B$962,$A25,'Ggl. Korr.'!E$5:E$962) -> 384 | J25: =SUMIF('Ggl. Korr.'!$B$5:$B$962,$A25,'Ggl. Korr.'!F$5:F$962) -> 384 | K25: =SUMIF('Ggl. Korr.'!$B$5:$B$962,$A25,'Ggl. Korr.'!G$5:G$962) -> 0 | L25: 60170 | M25: 59389 | N25: 58213 | O25: 57319 | P25: 56522 | Q25: =IF((P25-'Ggl. Korr.'!R25)<>0,P25-'Ggl. Korr.'!R25,"") ->  | R25: 1 | S25: 2 | T25: 3 | U25: 4 | V25: 5 | X25: -925.8857143 | Y25: 55596.11429 | Z25: 54670.22857 | AA25: 53744.34286 | AB25: 52818.45714 | AC25: 51892.57143 | AD25: 50966.68571 | AE25: 50040.8 | AF25: 49114.91429 | AJ25: 56522 | AK25: -7407.085714 | AL25: -0.1310478347 | AM25: 55328.68571 | AN25: -658.4571429 | AP25: =IF(P25='Ggl. Korr.'!R25,0,1) -> 0
A26: =Parameter!B23 -> Heidenheim | B26: ='Ggl. Historie'!Y26 -> 51086 | C26: ='Ggl. Historie'!Z26 -> 50173 | D26: ='Ggl. Historie'!AA26 -> 49300 | E26: ='Ggl. Historie'!AB26 -> 48316 | F26: ='Ggl. Historie'!AC26 -> 47622 | G26: =SUMIF('Ggl. Korr.'!$B$5:$B$962,$A26,'Ggl. Korr.'!C$5:C$962) -> 0 | H26: =SUMIF('Ggl. Korr.'!$B$5:$B$962,$A26,'Ggl. Korr.'!D$5:D$962) -> 0 | I26: =SUMIF('Ggl. Korr.'!$B$5:$B$962,$A26,'Ggl. Korr.'!E$5:E$962) -> 0 | J26: =SUMIF('Ggl. Korr.'!$B$5:$B$962,$A26,'Ggl. Korr.'!F$5:F$962) -> 0 | K26: =SUMIF('Ggl. Korr.'!$B$5:$B$962,$A26,'Ggl. Korr.'!G$5:G$962) -> 0 | L26: 51086 | M26: 50173 | N26: 49300 | O26: 48316 | P26: 47622 | Q26: =IF((P26-'Ggl. Korr.'!R26)<>0,P26-'Ggl. Korr.'!R26,"") ->  | R26: 1 | S26: 2 | T26: 3 | U26: 4 | V26: 5 | X26: -864.4857143 | Y26: 46757.51429 | Z26: 45893.02857 | AA26: 45028.54286 | AB26: 44164.05714 | AC26: 43299.57143 | AD26: 42435.08571 | AE26: 41570.6 | AF26: 40706.11429 | AJ26: 47622 | AK26: -6915.885714 | AL26: -0.1452245961 | AM26: 45082.91429 | AN26: 810.1142857 | AP26: =IF(P26='Ggl. Korr.'!R26,0,1) -> 0
A27: =Parameter!B24 -> Heilbronn | B27: ='Ggl. Historie'!Y27 -> 66226 | C27: ='Ggl. Historie'!Z27 -> 65105 | D27: ='Ggl. Historie'!AA27 -> 63853 | E27: ='Ggl. Historie'!AB27 -> 62599 | F27: ='Ggl. Historie'!AC27 -> 61527 | G27: =SUMIF('Ggl. Korr.'!$B$5:$B$962,$A27,'Ggl. Korr.'!C$5:C$962) -> 0 | H27: =SUMIF('Ggl. Korr.'!$B$5:$B$962,$A27,'Ggl. Korr.'!D$5:D$962) -> 0 | I27: =SUMIF('Ggl. Korr.'!$B$5:$B$962,$A27,'Ggl. Korr.'!E$5:E$962) -> 0 | J27: =SUMIF('Ggl. Korr.'!$B$5:$B$962,$A27,'Ggl. Korr.'!F$5:F$962) -> 0 | K27: =SUMIF('Ggl. Korr.'!$B$5:$B$962,$A27,'Ggl. Korr.'!G$5:G$962) -> 0 | L27: 66226 | M27: 65105 | N27: 63853 | O27: 62599 | P27: 61527 | Q27: =IF((P27-'Ggl. Korr.'!R27)<>0,P27-'Ggl. Korr.'!R27,"") ->  | R27: 1 | S27: 2 | T27: 3 | U27: 4 | V27: 5 | X27: -1186.285714 | Y27: 60340.71429 | Z27: 59154.42857 | AA27: 57968.14286 | AB27: 56781.85714 | AC27: 55595.57143 | AD27: 54409.28571 | AE27: 53223 | AF27: 52036.71429 | AJ27: 61527 | AK27: -9490.285714 | AL27: -0.1542458712 | AM27: 60171.31429 | AN27: -1016.885714 | AP27: =IF(P27='Ggl. Korr.'!R27,0,1) -> 0
A28: =Parameter!B25 -> Herrenberg | B28: ='Ggl. Historie'!Y28 -> 40255 | C28: ='Ggl. Historie'!Z28 -> 40005 | D28: ='Ggl. Historie'!AA28 -> 39442 | E28: ='Ggl. Historie'!AB28 -> 38884 | F28: ='Ggl. Historie'!AC28 -> 38498 | G28: =SUMIF('Ggl. Korr.'!$B$5:$B$962,$A28,'Ggl. Korr.'!C$5:C$962) -> 0 | H28: =SUMIF('Ggl. Korr.'!$B$5:$B$962,$A28,'Ggl. Korr.'!D$5:D$962) -> 0 | I28: =SUMIF('Ggl. Korr.'!$B$5:$B$962,$A28,'Ggl. Korr.'!E$5:E$962) -> 0 | J28: =SUMIF('Ggl. Korr.'!$B$5:$B$962,$A28,'Ggl. Korr.'!F$5:F$962) -> 0 | K28: =SUMIF('Ggl. Korr.'!$B$5:$B$962,$A28,'Ggl. Korr.'!G$5:G$962) -> 0 | L28: 40255 | M28: 40005 | N28: 39442 | O28: 38884 | P28: 38498 | Q28: =IF((P28-'Ggl. Korr.'!R28)<>0,P28-'Ggl. Korr.'!R28,"") ->  | R28: 1 | S28: 2 | T28: 3 | U28: 4 | V28: 5 | X28: -474.9428571 | Y28: 38023.05714 | Z28: 37548.11429 | AA28: 37073.17143 | AB28: 36598.22857 | AC28: 36123.28571 | AD28: 35648.34286 | AE28: 35173.4 | AF28: 34698.45714 | AJ28: 38498 | AK28: -3799.542857 | AL28: -0.09869455185 | AM28: 38094.08571 | AN28: -545.9714286 | AP28: =IF(P28='Ggl. Korr.'!R28,0,1) -> 0
A29: =Parameter!B26 -> Kirchheim unter Teck | B29: ='Ggl. Historie'!Y29 -> 36834 | C29: ='Ggl. Historie'!Z29 -> 36341 | D29: ='Ggl. Historie'!AA29 -> 35688 | E29: ='Ggl. Historie'!AB29 -> 35128 | F29: ='Ggl. Historie'!AC29 -> 34641 | G29: =SUMIF('Ggl. Korr.'!$B$5:$B$962,$A29,'Ggl. Korr.'!C$5:C$962) -> 0 | H29: =SUMIF('Ggl. Korr.'!$B$5:$B$962,$A29,'Ggl. Korr.'!D$5:D$962) -> 0 | I29: =SUMIF('Ggl. Korr.'!$B$5:$B$962,$A29,'Ggl. Korr.'!E$5:E$962) -> 0 | J29: =SUMIF('Ggl. Korr.'!$B$5:$B$962,$A29,'Ggl. Korr.'!F$5:F$962) -> 0 | K29: =SUMIF('Ggl. Korr.'!$B$5:$B$962,$A29,'Ggl. Korr.'!G$5:G$962) -> 0 | L29: 36834 | M29: 36341 | N29: 35688 | O29: 35128 | P29: 34641 | Q29: =IF((P29-'Ggl. Korr.'!R29)<>0,P29-'Ggl. Korr.'!R29,"") ->  | R29: 1 | S29: 2 | T29: 3 | U29: 4 | V29: 5 | X29: -555.4 | Y29: 34085.6 | Z29: 33530.2 | AA29: 32974.8 | AB29: 32419.4 | AC29: 31864 | AD29: 31308.6 | AE29: 30753.2 | AF29: 30197.8 | AJ29: 34641 | AK29: -4443.2 | AL29: -0.1282641956 | AM29: 33740.82857 | AN29: -210.6285714 | AP29: =IF(P29='Ggl. Korr.'!R29,0,1) -> 0
A30: =Parameter!B27 -> Künzelsau | B30: ='Ggl. Historie'!Y30 -> 15294 | C30: ='Ggl. Historie'!Z30 -> 15275 | D30: ='Ggl. Historie'!AA30 -> 15073 | E30: ='Ggl. Historie'!AB30 -> 14851 | F30: ='Ggl. Historie'!AC30 -> 14686 | G30: =SUMIF('Ggl. Korr.'!$B$5:$B$962,$A30,'Ggl. Korr.'!C$5:C$962) -> 112 | H30: =SUMIF('Ggl. Korr.'!$B$5:$B$962,$A30,'Ggl. Korr.'!D$5:D$962) -> 0 | I30: =SUMIF('Ggl. Korr.'!$B$5:$B$962,$A30,'Ggl. Korr.'!E$5:E$962) -> 0 | J30: =SUMIF('Ggl. Korr.'!$B$5:$B$962,$A30,'Ggl. Korr.'!F$5:F$962) -> 0 | K30: =SUMIF('Ggl. Korr.'!$B$5:$B$962,$A30,'Ggl. Korr.'!G$5:G$962) -> 0 | L30: 15406 | M30: 15275 | N30: 15073 | O30: 14851 | P30: 14686 | Q30: =IF((P30-'Ggl. Korr.'!R30)<>0,P30-'Ggl. Korr.'!R30,"") ->  | R30: 1 | S30: 2 | T30: 3 | U30: 4 | V30: 5 | X30: -190.1714286 | Y30: 14495.82857 | Z30: 14305.65714 | AA30: 14115.48571 | AB30: 13925.31429 | AC30: 13735.14286 | AD30: 13544.97143 | AE30: 13354.8 | AF30: 13164.62857 | AJ30: 14686 | AK30: -1521.371429 | AL30: -0.1035933153 | AM30: 14465.4 | AN30: -159.7428571 | AP30: =IF(P30='Ggl. Korr.'!R30,0,1) -> 0
A31: =Parameter!B28 -> Leonberg | B31: ='Ggl. Historie'!Y31 -> 44416 | C31: ='Ggl. Historie'!Z31 -> 43872 | D31: ='Ggl. Historie'!AA31 -> 43090 | E31: ='Ggl. Historie'!AB31 -> 42366 | F31: ='Ggl. Historie'!AC31 -> 41868 | G31: =SUMIF('Ggl. Korr.'!$B$5:$B$962,$A31,'Ggl. Korr.'!C$5:C$962) -> 0 | H31: =SUMIF('Ggl. Korr.'!$B$5:$B$962,$A31,'Ggl. Korr.'!D$5:D$962) -> 0 | I31: =SUMIF('Ggl. Korr.'!$B$5:$B$962,$A31,'Ggl. Korr.'!E$5:E$962) -> 0 | J31: =SUMIF('Ggl. Korr.'!$B$5:$B$962,$A31,'Ggl. Korr.'!F$5:F$962) -> 0 | K31: =SUMIF('Ggl. Korr.'!$B$5:$B$962,$A31,'Ggl. Korr.'!G$5:G$962) -> 0 | L31: 44416 | M31: 43872 | N31: 43090 | O31: 42366 | P31: 41868 | Q31: =IF((P31-'Ggl. Korr.'!R31)<>0,P31-'Ggl. Korr.'!R31,"") ->  | R31: 1 | S31: 2 | T31: 3 | U31: 4 | V31: 5 | X31: -653.7714286 | Y31: 41214.22857 | Z31: 40560.45714 | AA31: 39906.68571 | AB31: 39252.91429 | AC31: 38599.14286 | AD31: 37945.37143 | AE31: 37291.6 | AF31: 36637.82857 | AJ31: 41868 | AK31: -5230.171429 | AL31: -0.1249204984 | AM31: 40730.88571 | AN31: -170.4285714 | AP31: =IF(P31='Ggl. Korr.'!R31,0,1) -> 0
A32: =Parameter!B29 -> Ludwigsburg | B32: ='Ggl. Historie'!Y32 -> 66727 | C32: ='Ggl. Historie'!Z32 -> 66216 | D32: ='Ggl. Historie'!AA32 -> 65507 | E32: ='Ggl. Historie'!AB32 -> 64587 | F32: ='Ggl. Historie'!AC32 -> 63543 | G32: =SUMIF('Ggl. Korr.'!$B$5:$B$962,$A32,'Ggl. Korr.'!C$5:C$962) -> 0 | H32: =SUMIF('Ggl. Korr.'!$B$5:$B$962,$A32,'Ggl. Korr.'!D$5:D$962) -> 0 | I32: =SUMIF('Ggl. Korr.'!$B$5:$B$962,$A32,'Ggl. Korr.'!E$5:E$962) -> 0 | J32: =SUMIF('Ggl. Korr.'!$B$5:$B$962,$A32,'Ggl. Korr.'!F$5:F$962) -> 0 | K32: =SUMIF('Ggl. Korr.'!$B$5:$B$962,$A32,'Ggl. Korr.'!G$5:G$962) -> 0 | L32: 66727 | M32: 66216 | N32: 65507 | O32: 64587 | P32: 63543 | Q32: =IF((P32-'Ggl. Korr.'!R32)<>0,P32-'Ggl. Korr.'!R32,"") ->  | R32: 1 | S32: 2 | T32: 3 | U32: 4 | V32: 5 | X32: -854.4285714 | Y32: 62688.57143 | Z32: 61834.14286 | AA32: 60979.71429 | AB32: 60125.28571 | AC32: 59270.85714 | AD32: 58416.42857 | AE32: 57562 | AF32: 56707.57143 | AJ32: 63543 | AK32: -6835.428571 | AL32: -0.1075717006 | AM32: 61804.97143 | AN32: 29.17142857 | AP32: =IF(P32='Ggl. Korr.'!R32,0,1) -> 0
A33: =Parameter!B30 -> Marbach a.N. | B33: ='Ggl. Historie'!Y33 -> 40606 | C33: ='Ggl. Historie'!Z33 -> 40140 | D33: ='Ggl. Historie'!AA33 -> 39294 | E33: ='Ggl. Historie'!AB33 -> 38657 | F33: ='Ggl. Historie'!AC33 -> 38292 | G33: =SUMIF('Ggl. Korr.'!$B$5:$B$962,$A33,'Ggl. Korr.'!C$5:C$962) -> 51 | H33: =SUMIF('Ggl. Korr.'!$B$5:$B$962,$A33,'Ggl. Korr.'!D$5:D$962) -> 0 | I33: =SUMIF('Ggl. Korr.'!$B$5:$B$962,$A33,'Ggl. Korr.'!E$5:E$962) -> 0 | J33: =SUMIF('Ggl. Korr.'!$B$5:$B$962,$A33,'Ggl. Korr.'!F$5:F$962) -> 0 | K33: =SUMIF('Ggl. Korr.'!$B$5:$B$962,$A33,'Ggl. Korr.'!G$5:G$962) -> 0 | L33: 40657 | M33: 40140 | N33: 39294 | O33: 38657 | P33: 38292 | Q33: =IF((P33-'Ggl. Korr.'!R33)<>0,P33-'Ggl. Korr.'!R33,"") ->  | R33: 1 | S33: 2 | T33: 3 | U33: 4 | V33: 5 | X33: -599.3142857 | Y33: 37692.68571 | Z33: 37093.37143 | AA33: 36494.05714 | AB33: 35894.74286 | AC33: 35295.42857 | AD33: 34696.11429 | AE33: 34096.8 | AF33: 33497.48571 | AJ33: 38292 | AK33: -4794.514286 | AL33: -0.125209294 | AM33: 37625.85714 | AN33: -532.4857143 | AP33: =IF(P33='Ggl. Korr.'!R33,0,1) -> 0
A34: =Parameter!B31 -> Mühlacker | B34: ='Ggl. Historie'!Y34 -> 33787 | C34: ='Ggl. Historie'!Z34 -> 33269 | D34: ='Ggl. Historie'!AA34 -> 32778 | E34: ='Ggl. Historie'!AB34 -> 32152 | F34: ='Ggl. Historie'!AC34 -> 31708 | G34: =SUMIF('Ggl. Korr.'!$B$5:$B$962,$A34,'Ggl. Korr.'!C$5:C$962) -> 0 | H34: =SUMIF('Ggl. Korr.'!$B$5:$B$962,$A34,'Ggl. Korr.'!D$5:D$962) -> 0 | I34: =SUMIF('Ggl. Korr.'!$B$5:$B$962,$A34,'Ggl. Korr.'!E$5:E$962) -> 0 | J34: =SUMIF('Ggl. Korr.'!$B$5:$B$962,$A34,'Ggl. Korr.'!F$5:F$962) -> 0 | K34: =SUMIF('Ggl. Korr.'!$B$5:$B$962,$A34,'Ggl. Korr.'!G$5:G$962) -> 0 | L34: 33787 | M34: 33269 | N34: 32778 | O34: 32152 | P34: 31708 | Q34: =IF((P34-'Ggl. Korr.'!R34)<>0,P34-'Ggl. Korr.'!R34,"") ->  | R34: 1 | S34: 2 | T34: 3 | U34: 4 | V34: 5 | X34: -526.9428571 | Y34: 31181.05714 | Z34: 30654.11429 | AA34: 30127.17143 | AB34: 29600.22857 | AC34: 29073.28571 | AD34: 28546.34286 | AE34: 28019.4 | AF34: 27492.45714 | AJ34: 31708 | AK34: -4215.542857 | AL34: -0.1329488727 | AM34: 30756.65714 | AN34: -102.5428571 | AP34: =IF(P34='Ggl. Korr.'!R34,0,1) -> 0
A35: =Parameter!B32 -> Münsingen (siehe Bad Urach-Münsigen) | F35: ='Ggl. Historie'!AC35 -> 0 | G35: =SUMIF('Ggl. Korr.'!$B$5:$B$962,$A35,'Ggl. Korr.'!C$5:C$962) -> 0 | H35: =SUMIF('Ggl. Korr.'!$B$5:$B$962,$A35,'Ggl. Korr.'!D$5:D$962) -> 0 | I35: =SUMIF('Ggl. Korr.'!$B$5:$B$962,$A35,'Ggl. Korr.'!E$5:E$962) -> 0 | J35: =SUMIF('Ggl. Korr.'!$B$5:$B$962,$A35,'Ggl. Korr.'!F$5:F$962) -> 0 | K35: =SUMIF('Ggl. Korr.'!$B$5:$B$962,$A35,'Ggl. Korr.'!G$5:G$962) -> 0
A36: =Parameter!B33 -> Nagold | B36: ='Ggl. Historie'!Y36 -> 30809 | C36: ='Ggl. Historie'!Z36 -> 30574 | D36: ='Ggl. Historie'!AA36 -> 30109 | E36: ='Ggl. Historie'!AB36 -> 29840 | F36: ='Ggl. Historie'!AC36 -> 29525 | G36: =SUMIF('Ggl. Korr.'!$B$5:$B$962,$A36,'Ggl. Korr.'!C$5:C$962) -> 0 | H36: =SUMIF('Ggl. Korr.'!$B$5:$B$962,$A36,'Ggl. Korr.'!D$5:D$962) -> 0 | I36: =SUMIF('Ggl. Korr.'!$B$5:$B$962,$A36,'Ggl. Korr.'!E$5:E$962) -> 0 | J36: =SUMIF('Ggl. Korr.'!$B$5:$B$962,$A36,'Ggl. Korr.'!F$5:F$962) -> 0 | K36: =SUMIF('Ggl. Korr.'!$B$5:$B$962,$A36,'Ggl. Korr.'!G$5:G$962) -> 0 | L36: 30809 | M36: 30574 | N36: 30109 | O36: 29840 | P36: 29525 | Q36: =IF((P36-'Ggl. Korr.'!R36)<>0,P36-'Ggl. Korr.'!R36,"") ->  | R36: 1 | S36: 2 | T36: 3 | U36: 4 | V36: 5 | X36: -328.6571429 | Y36: 29196.34286 | Z36: 28867.68571 | AA36: 28539.02857 | AB36: 28210.37143 | AC36: 27881.71429 | AD36: 27553.05714 | AE36: 27224.4 | AF36: 26895.74286 | AJ36: 29525 | AK36: -2629.257143 | AL36: -0.08905189307 | AM36: 28638.88571 | AN36: 228.8 | AP36: =IF(P36='Ggl. Korr.'!R36,0,1) -> 0
A37: =Parameter!B34 -> Neuenbürg | B37: ='Ggl. Historie'!Y37 -> 31966 | C37: ='Ggl. Historie'!Z37 -> 31129 | D37: ='Ggl. Historie'!AA37 -> 30513 | E37: ='Ggl. Historie'!AB37 -> 30092 | F37: ='Ggl. Historie'!AC37 -> 29662 | G37: =SUMIF('Ggl. Korr.'!$B$5:$B$962,$A37,'Ggl. Korr.'!C$5:C$962) -> -95 | H37: =SUMIF('Ggl. Korr.'!$B$5:$B$962,$A37,'Ggl. Korr.'!D$5:D$962) -> 256 | I37: =SUMIF('Ggl. Korr.'!$B$5:$B$962,$A37,'Ggl. Korr.'!E$5:E$962) -> 256 | J37: =SUMIF('Ggl. Korr.'!$B$5:$B$962,$A37,'Ggl. Korr.'!F$5:F$962) -> 256 | K37: =SUMIF('Ggl. Korr.'!$B$5:$B$962,$A37,'Ggl. Korr.'!G$5:G$962) -> 256 | L37: =B37+G37 -> 31871 | M37: =C37+H37 -> 31385 | N37: =D37+I37 -> 30769 | O37: =E37+J37 -> 30348 | P37: =F37+K37 -> 29918 | Q37: =IF((P37-'Ggl. Korr.'!R37)<>0,P37-'Ggl. Korr.'!R37,"") ->  | R37: 1 | S37: 2 | T37: 3 | U37: 4 | V37: 5 | X37: =IF(OR(W37="L",W37="l"),X$56/P$56*P37,(SUM(R37:V37)*(R37*L37+S37*M37*2+T37*N37*3+U37*O37*4+V37*P37*5)-(R37*L37+S37*M37+T37*N37+U37*O37+P37*V37)*(R37+2*S37+3*T37+4*U37+5*V37))/(SUM(R37:V37)*(R37+S37*4+T37*9+U37*16+V37*25)-POWER(R37+S37*2+T37*3+U37*4+V37*5,2))) -> -481.1428571 | Y37: 29436.85714 | Z37: 28955.71429 | AA37: 28474.57143 | AB37: 27993.42857 | AC37: 27512.28571 | AD37: 27031.14286 | AE37: 26550 | AF37: 26068.85714 | AJ37: 29918 | AK37: =AF37-AJ37 -> -3849.142857 | AL37: -0.1286564228 | AM37: 28986.82857 | AN37: -31.11428571 | AP37: =IF(P37='Ggl. Korr.'!R37,0,1) -> 0
A38: =Parameter!B35 -> Neuenstadt a.K. | B38: ='Ggl. Historie'!Y38 -> 31395 | C38: ='Ggl. Historie'!Z38 -> 31043 | D38: ='Ggl. Historie'!AA38 -> 30423 | E38: ='Ggl. Historie'!AB38 -> 30005 | F38: ='Ggl. Historie'!AC38 -> 29687 | G38: =SUMIF('Ggl. Korr.'!$B$5:$B$962,$A38,'Ggl. Korr.'!C$5:C$962) -> 0 | H38: =SUMIF('Ggl. Korr.'!$B$5:$B$962,$A38,'Ggl. Korr.'!D$5:D$962) -> 0 | I38: =SUMIF('Ggl. Korr.'!$B$5:$B$962,$A38,'Ggl. Korr.'!E$5:E$962) -> 0 | J38: =SUMIF('Ggl. Korr.'!$B$5:$B$962,$A38,'Ggl. Korr.'!F$5:F$962) -> 0 | K38: =SUMIF('Ggl. Korr.'!$B$5:$B$962,$A38,'Ggl. Korr.'!G$5:G$962) -> 0 | L38: 31395 | M38: 31043 | N38: 30423 | O38: 30005 | P38: 29687 | Q38: =IF((P38-'Ggl. Korr.'!R38)<>0,P38-'Ggl. Korr.'!R38,"") ->  | R38: 1 | S38: 2 | T38: 3 | U38: 4 | V38: 5 | X38: -433.8285714 | Y38: 29253.17143 | Z38: 28819.34286 | AA38: 28385.51429 | AB38: 27951.68571 | AC38: 27517.85714 | AD38: 27084.02857 | AE38: 26650.2 | AF38: 26216.37143 | AJ38: 29687 | AK38: -3470.628571 | AL38: -0.1169073524 | AM38: 29502.6 | AN38: -683.2571429 | AP38: =IF(P38='Ggl. Korr.'!R38,0,1) -> 0
A39: =Parameter!B36 -> Nürtingen | B39: ='Ggl. Historie'!Y39 -> 52446 | C39: ='Ggl. Historie'!Z39 -> 51719 | D39: ='Ggl. Historie'!AA39 -> 50855 | E39: ='Ggl. Historie'!AB39 -> 50073 | F39: ='Ggl. Historie'!AC39 -> 49531 | G39: =SUMIF('Ggl. Korr.'!$B$5:$B$962,$A39,'Ggl. Korr.'!C$5:C$962) -> 0 | H39: =SUMIF('Ggl. Korr.'!$B$5:$B$962,$A39,'Ggl. Korr.'!D$5:D$962) -> 0 | I39: =SUMIF('Ggl. Korr.'!$B$5:$B$962,$A39,'Ggl. Korr.'!E$5:E$962) -> 0 | J39: =SUMIF('Ggl. Korr.'!$B$5:$B$962,$A39,'Ggl. Korr.'!F$5:F$962) -> 0 | K39: =SUMIF('Ggl. Korr.'!$B$5:$B$962,$A39,'Ggl. Korr.'!G$5:G$962) -> 0 | L39: 52446 | M39: 51719 | N39: 50855 | O39: 50073 | P39: 49531 | Q39: =IF((P39-'Ggl. Korr.'!R39)<>0,P39-'Ggl. Korr.'!R39,"") ->  | R39: 1 | S39: 2 | T39: 3 | U39: 4 | V39: 5 | X39: -728.2285714 | Y39: 48802.77143 | Z39: 48074.54286 | AA39: 47346.31429 | AB39: 46618.08571 | AC39: 45889.85714 | AD39: 45161.62857 | AE39: 44433.4 | AF39: 43705.17143 | AJ39: 49531 | AK39: -5825.828571 | AL39: -0.1176198456 | AM39: 48572.02857 | AN39: -497.4857143 | AP39: =IF(P39='Ggl. Korr.'!R39,0,1) -> 0
A40: =Parameter!B37 -> Öhringen | B40: ='Ggl. Historie'!Y40 -> 29280 | C40: ='Ggl. Historie'!Z40 -> 29039 | D40: ='Ggl. Historie'!AA40 -> 28719 | E40: ='Ggl. Historie'!AB40 -> 28461 | F40: ='Ggl. Historie'!AC40 -> 28213 | G40: =SUMIF('Ggl. Korr.'!$B$5:$B$962,$A40,'Ggl. Korr.'!C$5:C$962) -> 0 | H40: =SUMIF('Ggl. Korr.'!$B$5:$B$962,$A40,'Ggl. Korr.'!D$5:D$962) -> 0 | I40: =SUMIF('Ggl. Korr.'!$B$5:$B$962,$A40,'Ggl. Korr.'!E$5:E$962) -> 0 | J40: =SUMIF('Ggl. Korr.'!$B$5:$B$962,$A40,'Ggl. Korr.'!F$5:F$962) -> 0 | K40: =SUMIF('Ggl. Korr.'!$B$5:$B$962,$A40,'Ggl. Korr.'!G$5:G$962) -> 0 | L40: 29280 | M40: 29039 | N40: 28719 | O40: 28461 | P40: 28213 | Q40: =IF((P40-'Ggl. Korr.'!R40)<>0,P40-'Ggl. Korr.'!R40,"") ->  | R40: 1 | S40: 2 | T40: 3 | U40: 4 | V40: 5 | X40: -269.1428571 | Y40: 27943.85714 | Z40: 27674.71429 | AA40: 27405.57143 | AB40: 27136.42857 | AC40: 26867.28571 | AD40: 26598.14286 | AE40: 26329 | AF40: 26059.85714 | AJ40: 28213 | AK40: -2153.142857 | AL40: -0.07631740181 | AM40: 28190.74286 | AN40: -516.0285714 | AP40: =IF(P40='Ggl. Korr.'!R40,0,1) -> 0
A41: =Parameter!B38 -> Ravensburg | B41: ='Ggl. Historie'!Y41 -> 62857 | C41: ='Ggl. Historie'!Z41 -> 62674 | D41: ='Ggl. Historie'!AA41 -> 62047 | E41: ='Ggl. Historie'!AB41 -> 61417 | F41: ='Ggl. Historie'!AC41 -> 60972 | G41: =SUMIF('Ggl. Korr.'!$B$5:$B$962,$A41,'Ggl. Korr.'!C$5:C$962) -> -1331 | H41: =SUMIF('Ggl. Korr.'!$B$5:$B$962,$A41,'Ggl. Korr.'!D$5:D$962) -> -1331 | I41: =SUMIF('Ggl. Korr.'!$B$5:$B$962,$A41,'Ggl. Korr.'!E$5:E$962) -> -1331 | J41: =SUMIF('Ggl. Korr.'!$B$5:$B$962,$A41,'Ggl. Korr.'!F$5:F$962) -> -1331 | K41: =SUMIF('Ggl. Korr.'!$B$5:$B$962,$A41,'Ggl. Korr.'!G$5:G$962) -> -1331 | L41: 61526 | M41: 61343 | N41: 60716 | O41: 60086 | P41: 59641 | Q41: =IF((P41-'Ggl. Korr.'!R41)<>0,P41-'Ggl. Korr.'!R41,"") ->  | R41: 1 | S41: 2 | T41: 3 | U41: 4 | V41: 5 | X41: -525.2857143 | Y41: 59115.71429 | Z41: 58590.42857 | AA41: 58065.14286 | AB41: 57539.85714 | AC41: 57014.57143 | AD41: 56489.28571 | AE41: 55964 | AF41: =IF(X41>0,P41+X41*(8-56/24),P41+8*X41) -> 55438.71429 | AJ41: 59641 | AK41: -4202.285714 | AL41: -0.07045967898 | AM41: 59882.25714 | AN41: -1291.828571 | AP41: =IF(P41='Ggl. Korr.'!R41,0,1) -> 0
A42: =Parameter!B39 -> Reutlingen | B42: ='Ggl. Historie'!Y42 -> 70460 | C42: ='Ggl. Historie'!Z42 -> 69567 | D42: ='Ggl. Historie'!AA42 -> 68586 | E42: ='Ggl. Historie'!AB42 -> 67393 | F42: ='Ggl. Historie'!AC42 -> 66326 | G42: =SUMIF('Ggl. Korr.'!$B$5:$B$962,$A42,'Ggl. Korr.'!C$5:C$962) -> 0 | H42: =SUMIF('Ggl. Korr.'!$B$5:$B$962,$A42,'Ggl. Korr.'!D$5:D$962) -> 0 | I42: =SUMIF('Ggl. Korr.'!$B$5:$B$962,$A42,'Ggl. Korr.'!E$5:E$962) -> 0 | J42: =SUMIF('Ggl. Korr.'!$B$5:$B$962,$A42,'Ggl. Korr.'!F$5:F$962) -> 0 | K42: =SUMIF('Ggl. Korr.'!$B$5:$B$962,$A42,'Ggl. Korr.'!G$5:G$962) -> 0 | L42: 70460 | M42: 69567 | N42: 68586 | O42: 67393 | P42: 66326 | Q42: =IF((P42-'Ggl. Korr.'!R42)<>0,P42-'Ggl. Korr.'!R42,"") ->  | R42: 1 | S42: 2 | T42: 3 | U42: 4 | V42: 5 | X42: -1068.2 | Y42: 65257.8 | Z42: 64189.6 | AA42: 63121.4 | AB42: 62053.2 | AC42: 60985 | AD42: 59916.8 | AE42: 58848.6 | AF42: 57780.4 | AJ42: 66326 | AK42: -8545.6 | AL42: -0.1288423846 | AM42: 65044.17143 | AN42: -854.5714286 | AP42: =IF(P42='Ggl. Korr.'!R42,0,1) -> 0
A43: =Parameter!B40 -> Schorndorf | B43: ='Ggl. Historie'!Y43 -> 56186 | C43: ='Ggl. Historie'!Z43 -> 55421 | D43: ='Ggl. Historie'!AA43 -> 54628 | E43: ='Ggl. Historie'!AB43 -> 53789 | F43: ='Ggl. Historie'!AC43 -> 52545 | G43: =SUMIF('Ggl. Korr.'!$B$5:$B$962,$A43,'Ggl. Korr.'!C$5:C$962) -> -384 | H43: =SUMIF('Ggl. Korr.'!$B$5:$B$962,$A43,'Ggl. Korr.'!D$5:D$962) -> -384 | I43: =SUMIF('Ggl. Korr.'!$B$5:$B$962,$A43,'Ggl. Korr.'!E$5:E$962) -> -384 | J43: =SUMIF('Ggl. Korr.'!$B$5:$B$962,$A43,'Ggl. Korr.'!F$5:F$962) -> -384 | K43: =SUMIF('Ggl. Korr.'!$B$5:$B$962,$A43,'Ggl. Korr.'!G$5:G$962) -> 0 | L43: 55802 | M43: 55037 | N43: 54244 | O43: 53405 | P43: 52545 | Q43: =IF((P43-'Ggl. Korr.'!R43)<>0,P43-'Ggl. Korr.'!R43,"") ->  | R43: 1 | S43: 2 | T43: 3 | U43: 4 | V43: 5 | X43: -824.7142857 | Y43: 51720.28571 | Z43: 50895.57143 | AA43: 50070.85714 | AB43: 49246.14286 | AC43: 48421.42857 | AD43: 47596.71429 | AE43: 46772 | AF43: 45947.28571 | AJ43: 52545 | AK43: -6597.714286 | AL43: -0.1255631228 | AM43: 52595.91429 | AN43: -1700.342857 | AP43: =IF(P43='Ggl. Korr.'!R43,0,1) -> 0
A44: =Parameter!B41 -> Schwäbisch Gmünd | B44: ='Ggl. Historie'!Y44 -> 32449 | C44: ='Ggl. Historie'!Z44 -> 32103 | D44: ='Ggl. Historie'!AA44 -> 31729 | E44: ='Ggl. Historie'!AB44 -> 31408 | F44: ='Ggl. Historie'!AC44 -> 31235 | G44: =SUMIF('Ggl. Korr.'!$B$5:$B$962,$A44,'Ggl. Korr.'!C$5:C$962) -> 0 | H44: =SUMIF('Ggl. Korr.'!$B$5:$B$962,$A44,'Ggl. Korr.'!D$5:D$962) -> 0 | I44: =SUMIF('Ggl. Korr.'!$B$5:$B$962,$A44,'Ggl. Korr.'!E$5:E$962) -> 0 | J44: =SUMIF('Ggl. Korr.'!$B$5:$B$962,$A44,'Ggl. Korr.'!F$5:F$962) -> 0 | K44: =SUMIF('Ggl. Korr.'!$B$5:$B$962,$A44,'Ggl. Korr.'!G$5:G$962) -> 0 | L44: 32449 | M44: 32103 | N44: 31729 | O44: 31408 | P44: 31235 | Q44: =IF((P44-'Ggl. Korr.'!R44)<>0,P44-'Ggl. Korr.'!R44,"") ->  | R44: 1 | S44: 2 | T44: 3 | U44: 4 | V44: 5 | X44: -295.2 | Y44: 30939.8 | Z44: 30644.6 | AA44: 30349.4 | AB44: 30054.2 | AC44: 29759 | AD44: 29463.8 | AE44: 29168.6 | AF44: 28873.4 | AJ44: 31235 | AK44: -2361.6 | AL44: -0.0756074916 | AM44: 29863.74286 | AN44: 780.8571429 | AP44: =IF(P44='Ggl. Korr.'!R44,0,1) -> 0
A45: =Parameter!B42 -> Schwäbisch Hall | B45: ='Ggl. Historie'!Y45 -> 37736 | C45: ='Ggl. Historie'!Z45 -> 37467 | D45: ='Ggl. Historie'!AA45 -> 37130 | E45: ='Ggl. Historie'!AB45 -> 36901 | F45: ='Ggl. Historie'!AC45 -> 36622 | G45: =SUMIF('Ggl. Korr.'!$B$5:$B$962,$A45,'Ggl. Korr.'!C$5:C$962) -> 406 | H45: =SUMIF('Ggl. Korr.'!$B$5:$B$962,$A45,'Ggl. Korr.'!D$5:D$962) -> 406 | I45: =SUMIF('Ggl. Korr.'!$B$5:$B$962,$A45,'Ggl. Korr.'!E$5:E$962) -> 406 | J45: =SUMIF('Ggl. Korr.'!$B$5:$B$962,$A45,'Ggl. Korr.'!F$5:F$962) -> 406 | K45: =SUMIF('Ggl. Korr.'!$B$5:$B$962,$A45,'Ggl. Korr.'!G$5:G$962) -> 406 | L45: 38142 | M45: 37873 | N45: 37536 | O45: 37307 | P45: 37028 | Q45: =IF((P45-'Ggl. Korr.'!R45)<>0,P45-'Ggl. Korr.'!R45,"") ->  | R45: 1 | S45: 2 | T45: 3 | U45: 4 | V45: 5 | X45: -275.6285714 | Y45: 36752.37143 | Z45: 36476.74286 | AA45: 36201.11429 | AB45: 35925.48571 | AC45: 35649.85714 | AD45: 35374.22857 | AE45: 35098.6 | AF45: 34822.97143 | AJ45: 37028 | AK45: -2205.028571 | AL45: -0.0595503017 | AM45: 36303.28571 | AN45: 173.4571429 | AP45: =IF(P45='Ggl. Korr.'!R45,0,1) -> 0
A46: =Parameter!B43 -> Stuttgart | B46: ='Ggl. Historie'!Y46 -> 54088 | C46: ='Ggl. Historie'!Z46 -> 53580 | D46: ='Ggl. Historie'!AA46 -> 52663 | E46: ='Ggl. Historie'!AB46 -> 51960 | F46: ='Ggl. Historie'!AC46 -> 51350 | G46: =SUMIF('Ggl. Korr.'!$B$5:$B$962,$A46,'Ggl. Korr.'!C$5:C$962) -> 0 | H46: =SUMIF('Ggl. Korr.'!$B$5:$B$962,$A46,'Ggl. Korr.'!D$5:D$962) -> 0 | I46: =SUMIF('Ggl. Korr.'!$B$5:$B$962,$A46,'Ggl. Korr.'!E$5:E$962) -> 0 | J46: =SUMIF('Ggl. Korr.'!$B$5:$B$962,$A46,'Ggl. Korr.'!F$5:F$962) -> 0 | K46: =SUMIF('Ggl. Korr.'!$B$5:$B$962,$A46,'Ggl. Korr.'!G$5:G$962) -> 0 | L46: 54088 | M46: 53580 | N46: 52663 | O46: 51960 | P46: 51350 | Q46: =IF((P46-'Ggl. Korr.'!R46)<>0,P46-'Ggl. Korr.'!R46,"") ->  | R46: 1 | S46: 2 | T46: 3 | U46: 4 | V46: 5 | X46: -709.1714286 | Y46: 50640.82857 | Z46: 49931.65714 | AA46: 49222.48571 | AB46: 48513.31429 | AC46: 47804.14286 | AD46: 47094.97143 | AE46: 46385.8 | AF46: 45676.62857 | AJ46: 51350 | AK46: -5673.371429 | AL46: -0.1104843511 | AM46: 53505.14286 | AN46: -3573.485714 | AP46: =IF(P46='Ggl. Korr.'!R46,0,1) -> 0
A47: =Parameter!B44 -> Sulz/Neckar | B47: ='Ggl. Historie'!Y47 -> 36556 | C47: ='Ggl. Historie'!Z47 -> 36147 | D47: ='Ggl. Historie'!AA47 -> 35714 | E47: ='Ggl. Historie'!AB47 -> 35379 | F47: ='Ggl. Historie'!AC47 -> 34947 | G47: =SUMIF('Ggl. Korr.'!$B$5:$B$962,$A47,'Ggl. Korr.'!C$5:C$962) -> 363 | H47: =SUMIF('Ggl. Korr.'!$B$5:$B$962,$A47,'Ggl. Korr.'!D$5:D$962) -> 363 | I47: =SUMIF('Ggl. Korr.'!$B$5:$B$962,$A47,'Ggl. Korr.'!E$5:E$962) -> 363 | J47: =SUMIF('Ggl. Korr.'!$B$5:$B$962,$A47,'Ggl. Korr.'!F$5:F$962) -> 363 | K47: =SUMIF('Ggl. Korr.'!$B$5:$B$962,$A47,'Ggl. Korr.'!G$5:G$962) -> 363 | L47: 36919 | M47: 36510 | N47: 36077 | O47: 35742 | P47: 35310 | Q47: =IF((P47-'Ggl. Korr.'!R47)<>0,P47-'Ggl. Korr.'!R47,"") ->  | R47: 1 | S47: 2 | T47: 3 | U47: 4 | V47: 5 | X47: -396.3714286 | Y47: 34913.62857 | Z47: 34517.25714 | AA47: 34120.88571 | AB47: 33724.51429 | AC47: 33328.14286 | AD47: 32931.77143 | AE47: 32535.4 | AF47: 32139.02857 | AJ47: 35310 | AK47: -3170.971429 | AL47: -0.08980377878 | AM47: 33861.82857 | AN47: 655.4285714 | AP47: =IF(P47='Ggl. Korr.'!R47,0,1) -> 0
A48: =Parameter!B45 -> Tübingen | B48: ='Ggl. Historie'!Y48 -> 86433 | C48: ='Ggl. Historie'!Z48 -> 85758 | D48: ='Ggl. Historie'!AA48 -> 84736 | E48: ='Ggl. Historie'!AB48 -> 83805 | F48: ='Ggl. Historie'!AC48 -> 82943 | G48: =SUMIF('Ggl. Korr.'!$B$5:$B$962,$A48,'Ggl. Korr.'!C$5:C$962) -> 0 | H48: =SUMIF('Ggl. Korr.'!$B$5:$B$962,$A48,'Ggl. Korr.'!D$5:D$962) -> 0 | I48: =SUMIF('Ggl. Korr.'!$B$5:$B$962,$A48,'Ggl. Korr.'!E$5:E$962) -> 0 | J48: =SUMIF('Ggl. Korr.'!$B$5:$B$962,$A48,'Ggl. Korr.'!F$5:F$962) -> 0 | K48: =SUMIF('Ggl. Korr.'!$B$5:$B$962,$A48,'Ggl. Korr.'!G$5:G$962) -> 0 | L48: 86433 | M48: 85758 | N48: 84736 | O48: 83805 | P48: 82943 | Q48: =IF((P48-'Ggl. Korr.'!R48)<>0,P48-'Ggl. Korr.'!R48,"") ->  | R48: 1 | S48: 2 | T48: 3 | U48: 4 | V48: 5 | X48: -905.4285714 | Y48: 82037.57143 | Z48: 81132.14286 | AA48: 80226.71429 | AB48: 79321.28571 | AC48: 78415.85714 | AD48: 77510.42857 | AE48: 76605 | AF48: 75699.57143 | AJ48: 82943 | AK48: -7243.428571 | AL48: -0.0873301975 | AM48: 86609.6 | AN48: -5477.457143 | AP48: =IF(P48='Ggl. Korr.'!R48,0,1) -> 0
A49: =Parameter!B46 -> Tuttlingen | B49: ='Ggl. Historie'!Y49 -> 56101 | C49: ='Ggl. Historie'!Z49 -> 55462 | D49: ='Ggl. Historie'!AA49 -> 54527 | E49: ='Ggl. Historie'!AB49 -> 53725 | F49: ='Ggl. Historie'!AC49 -> 53122 | G49: =SUMIF('Ggl. Korr.'!$B$5:$B$962,$A49,'Ggl. Korr.'!C$5:C$962) -> 0 | H49: =SUMIF('Ggl. Korr.'!$B$5:$B$962,$A49,'Ggl. Korr.'!D$5:D$962) -> 0 | I49: =SUMIF('Ggl. Korr.'!$B$5:$B$962,$A49,'Ggl. Korr.'!E$5:E$962) -> 0 | J49: =SUMIF('Ggl. Korr.'!$B$5:$B$962,$A49,'Ggl. Korr.'!F$5:F$962) -> 0 | K49: =SUMIF('Ggl. Korr.'!$B$5:$B$962,$A49,'Ggl. Korr.'!G$5:G$962) -> 0 | L49: 56101 | M49: 55462 | N49: 54527 | O49: 53725 | P49: 53122 | Q49: =IF((P49-'Ggl. Korr.'!R49)<>0,P49-'Ggl. Korr.'!R49,"") ->  | R49: 1 | S49: 2 | T49: 3 | U49: 4 | V49: 5 | X49: -760.7142857 | Y49: 52361.28571 | Z49: 51600.57143 | AA49: 50839.85714 | AB49: 50079.14286 | AC49: 49318.42857 | AD49: 48557.71429 | AE49: 47797 | AF49: 47036.28571 | AJ49: 53122 | AK49: -6085.714286 | AL49: -0.1145610912 | AM49: 51651.71429 | AN49: -51.14285714 | AP49: =IF(P49='Ggl. Korr.'!R49,0,1) -> 0
A50: =Parameter!B47 -> Ulm | B50: ='Ggl. Historie'!Y50 -> 52398 | C50: ='Ggl. Historie'!Z50 -> 51836 | D50: ='Ggl. Historie'!AA50 -> 51216 | E50: ='Ggl. Historie'!AB50 -> 50465 | F50: ='Ggl. Historie'!AC50 -> 49942 | G50: =SUMIF('Ggl. Korr.'!$B$5:$B$962,$A50,'Ggl. Korr.'!C$5:C$962) -> 0 | H50: =SUMIF('Ggl. Korr.'!$B$5:$B$962,$A50,'Ggl. Korr.'!D$5:D$962) -> 0 | I50: =SUMIF('Ggl. Korr.'!$B$5:$B$962,$A50,'Ggl. Korr.'!E$5:E$962) -> 0 | J50: =SUMIF('Ggl. Korr.'!$B$5:$B$962,$A50,'Ggl. Korr.'!F$5:F$962) -> 0 | K50: =SUMIF('Ggl. Korr.'!$B$5:$B$962,$A50,'Ggl. Korr.'!G$5:G$962) -> 0 | L50: 52398 | M50: 51836 | N50: 51216 | O50: 50465 | P50: 49942 | Q50: =IF((P50-'Ggl. Korr.'!R50)<>0,P50-'Ggl. Korr.'!R50,"") ->  | R50: 1 | S50: 2 | T50: 3 | U50: 4 | V50: 5 | X50: -630.5714286 | Y50: 49311.42857 | Z50: 48680.85714 | AA50: 48050.28571 | AB50: 47419.71429 | AC50: 46789.14286 | AD50: 46158.57143 | AE50: 45528 | AF50: 44897.42857 | AJ50: 49942 | AK50: -5044.571429 | AL50: -0.1010085985 | AM50: 49217.2 | AN50: -536.3428571 | AP50: =IF(P50='Ggl. Korr.'!R50,0,1) -> 0
A51: =Parameter!B48 -> Vaihingen an der Enz | B51: ='Ggl. Historie'!Y51 -> 29330 | C51: ='Ggl. Historie'!Z51 -> 29117 | D51: ='Ggl. Historie'!AA51 -> 28755 | E51: ='Ggl. Historie'!AB51 -> 28214 | F51: ='Ggl. Historie'!AC51 -> 27759 | G51: =SUMIF('Ggl. Korr.'!$B$5:$B$962,$A51,'Ggl. Korr.'!C$5:C$962) -> 0 | H51: =SUMIF('Ggl. Korr.'!$B$5:$B$962,$A51,'Ggl. Korr.'!D$5:D$962) -> 0 | I51: =SUMIF('Ggl. Korr.'!$B$5:$B$962,$A51,'Ggl. Korr.'!E$5:E$962) -> 0 | J51: =SUMIF('Ggl. Korr.'!$B$5:$B$962,$A51,'Ggl. Korr.'!F$5:F$962) -> 0 | K51: =SUMIF('Ggl. Korr.'!$B$5:$B$962,$A51,'Ggl. Korr.'!G$5:G$962) -> 0 | L51: 29330 | M51: 29117 | N51: 28755 | O51: 28214 | P51: 27759 | Q51: =IF((P51-'Ggl. Korr.'!R51)<>0,P51-'Ggl. Korr.'!R51,"") ->  | R51: 1 | S51: 2 | T51: 3 | U51: 4 | V51: 5 | X51: -432.9142857 | Y51: 27326.08571 | Z51: 26893.17143 | AA51: 26460.25714 | AB51: 26027.34286 | AC51: 25594.42857 | AD51: 25161.51429 | AE51: 24728.6 | AF51: 24295.68571 | AJ51: 27759 | AK51: -3463.314286 | AL51: -0.1247636545 | AM51: 27419.14286 | AN51: -525.9714286 | AP51: =IF(P51='Ggl. Korr.'!R51,0,1) -> 0
A52: =Parameter!B49 -> Waiblingen | B52: ='Ggl. Historie'!Y52 -> 71559 | C52: ='Ggl. Historie'!Z52 -> 70606 | D52: ='Ggl. Historie'!AA52 -> 69272 | E52: ='Ggl. Historie'!AB52 -> 68144 | F52: ='Ggl. Historie'!AC52 -> 67043 | G52: =SUMIF('Ggl. Korr.'!$B$5:$B$962,$A52,'Ggl. Korr.'!C$5:C$962) -> 0 | H52: =SUMIF('Ggl. Korr.'!$B$5:$B$962,$A52,'Ggl. Korr.'!D$5:D$962) -> 0 | I52: =SUMIF('Ggl. Korr.'!$B$5:$B$962,$A52,'Ggl. Korr.'!E$5:E$962) -> 0 | J52: =SUMIF('Ggl. Korr.'!$B$5:$B$962,$A52,'Ggl. Korr.'!F$5:F$962) -> 0 | K52: =SUMIF('Ggl. Korr.'!$B$5:$B$962,$A52,'Ggl. Korr.'!G$5:G$962) -> 0 | L52: 71559 | M52: 70606 | N52: 69272 | O52: 68144 | P52: 67043 | Q52: =IF((P52-'Ggl. Korr.'!R52)<>0,P52-'Ggl. Korr.'!R52,"") ->  | R52: 1 | S52: 2 | T52: 3 | U52: 4 | V52: 5 | X52: -1153.257143 | Y52: 65889.74286 | Z52: 64736.48571 | AA52: 63583.22857 | AB52: 62429.97143 | AC52: 61276.71429 | AD52: 60123.45714 | AE52: 58970.2 | AF52: 57816.94286 | AJ52: 67043 | AK52: -9226.057143 | AL52: -0.137614026 | AM52: 65696.37143 | AN52: -959.8857143 | AP52: =IF(P52='Ggl. Korr.'!R52,0,1) -> 0
A53: =Parameter!B50 -> Weikersheim | B53: ='Ggl. Historie'!Y53 -> 18846 | C53: ='Ggl. Historie'!Z53 -> 18768 | D53: ='Ggl. Historie'!AA53 -> 18542 | E53: ='Ggl. Historie'!AB53 -> 18320 | F53: ='Ggl. Historie'!AC53 -> 18094 | G53: =SUMIF('Ggl. Korr.'!$B$5:$B$962,$A53,'Ggl. Korr.'!C$5:C$962) -> 0 | H53: =SUMIF('Ggl. Korr.'!$B$5:$B$962,$A53,'Ggl. Korr.'!D$5:D$962) -> 0 | I53: =SUMIF('Ggl. Korr.'!$B$5:$B$962,$A53,'Ggl. Korr.'!E$5:E$962) -> 0 | J53: =SUMIF('Ggl. Korr.'!$B$5:$B$962,$A53,'Ggl. Korr.'!F$5:F$962) -> 0 | K53: =SUMIF('Ggl. Korr.'!$B$5:$B$962,$A53,'Ggl. Korr.'!G$5:G$962) -> 0 | L53: 18846 | M53: 18768 | N53: 18542 | O53: 18320 | P53: 18094 | Q53: =IF((P53-'Ggl. Korr.'!R53)<>0,P53-'Ggl. Korr.'!R53,"") ->  | R53: 1 | S53: 2 | T53: 3 | U53: 4 | V53: 5 | X53: -207.7142857 | Y53: 17886.28571 | Z53: 17678.57143 | AA53: 17470.85714 | AB53: 17263.14286 | AC53: 17055.42857 | AD53: 16847.71429 | AE53: 16640 | AF53: 16432.28571 | AJ53: 18094 | AK53: -1661.714286 | AL53: -0.09183786259 | AM53: 18099.85714 | AN53: -421.2857143 | AP53: =IF(P53='Ggl. Korr.'!R53,0,1) -> 0
A54: =Parameter!B51 -> Weinsberg | B54: ='Ggl. Historie'!Y54 -> 29794 | C54: ='Ggl. Historie'!Z54 -> 29449 | D54: ='Ggl. Historie'!AA54 -> 28985 | E54: ='Ggl. Historie'!AB54 -> 28653 | F54: ='Ggl. Historie'!AC54 -> 28404 | G54: =SUMIF('Ggl. Korr.'!$B$5:$B$962,$A54,'Ggl. Korr.'!C$5:C$962) -> -51 | H54: =SUMIF('Ggl. Korr.'!$B$5:$B$962,$A54,'Ggl. Korr.'!D$5:D$962) -> 0 | I54: =SUMIF('Ggl. Korr.'!$B$5:$B$962,$A54,'Ggl. Korr.'!E$5:E$962) -> 0 | J54: =SUMIF('Ggl. Korr.'!$B$5:$B$962,$A54,'Ggl. Korr.'!F$5:F$962) -> 0 | K54: =SUMIF('Ggl. Korr.'!$B$5:$B$962,$A54,'Ggl. Korr.'!G$5:G$962) -> 0 | L54: 29743 | M54: 29449 | N54: 28985 | O54: 28653 | P54: 28404 | Q54: =IF((P54-'Ggl. Korr.'!R54)<>0,P54-'Ggl. Korr.'!R54,"") ->  | R54: 1 | S54: 2 | T54: 3 | U54: 4 | V54: 5 | X54: -337.8857143 | Y54: 28066.11429 | Z54: 27728.22857 | AA54: 27390.34286 | AB54: 27052.45714 | AC54: 26714.57143 | AD54: 26376.68571 | AE54: 26038.8 | AF54: 25700.91429 | AJ54: 28404 | AK54: -2703.085714 | AL54: -0.09516567083 | AM54: 27460.62857 | AN54: 267.6 | AP54: =IF(P54='Ggl. Korr.'!R54,0,1) -> 0
A55: =Parameter!B52 -> Zuffenhausen | B55: ='Ggl. Historie'!Y55 -> 30537 | C55: ='Ggl. Historie'!Z55 -> 30000 | D55: ='Ggl. Historie'!AA55 -> 29254 | E55: ='Ggl. Historie'!AB55 -> 28567 | F55: ='Ggl. Historie'!AC55 -> 27867 | G55: =SUMIF('Ggl. Korr.'!$B$5:$B$962,$A55,'Ggl. Korr.'!C$5:C$962) -> 0 | H55: =SUMIF('Ggl. Korr.'!$B$5:$B$962,$A55,'Ggl. Korr.'!D$5:D$962) -> 0 | I55: =SUMIF('Ggl. Korr.'!$B$5:$B$962,$A55,'Ggl. Korr.'!E$5:E$962) -> 0 | J55: =SUMIF('Ggl. Korr.'!$B$5:$B$962,$A55,'Ggl. Korr.'!F$5:F$962) -> 0 | K55: =SUMIF('Ggl. Korr.'!$B$5:$B$962,$A55,'Ggl. Korr.'!G$5:G$962) -> 0 | L55: 30537 | M55: 30000 | N55: 29254 | O55: 28567 | P55: 27867 | Q55: =IF((P55-'Ggl. Korr.'!R55)<>0,P55-'Ggl. Korr.'!R55,"") ->  | R55: 1 | S55: 2 | T55: 3 | U55: 4 | V55: 5 | X55: -688.7428571 | Y55: 27178.25714 | Z55: 26489.51429 | AA55: 25800.77143 | AB55: 25112.02857 | AC55: 24423.28571 | AD55: 23734.54286 | AE55: 23045.8 | AF55: 22357.05714 | AJ55: 27867 | AK55: -5509.942857 | AL55: -0.197722857 | AM55: 26965.82857 | AN55: -476.3142857 | AP55: =IF(P55='Ggl. Korr.'!R55,0,1) -> 0
A56: Landeskirche | B56: =SUM(B5:B55) -> 2170345 | C56: =SUM(C5:C55) -> 2144920 | D56: =SUM(D5:D55) -> 2112033 | E56: =SUM(E5:E55) -> 2081337 | F56: =SUM(F5:F55) -> 2054505 | G56: =SUMIF('Ggl. Korr.'!$B$5:$B$962,$A56,'Ggl. Korr.'!C$5:C$962) -> 0 | H56: =SUMIF('Ggl. Korr.'!$B$5:$B$962,$A56,'Ggl. Korr.'!D$5:D$962) -> 0 | I56: =SUMIF('Ggl. Korr.'!$B$5:$B$962,$A56,'Ggl. Korr.'!E$5:E$962) -> 0 | J56: =SUMIF('Ggl. Korr.'!$B$5:$B$962,$A56,'Ggl. Korr.'!F$5:F$962) -> 0 | K56: =SUMIF('Ggl. Korr.'!$B$5:$B$962,$A56,'Ggl. Korr.'!G$5:G$962) -> 0 | L56: =SUM(L5:L55) -> 2167988 | M56: 2143086 | N56: 2110199 | O56: 2079503 | P56: 2052671 | Q56: =IF((P56-'Ggl. Korr.'!R56)<>0,P56-'Ggl. Korr.'!R56,"") -> 2052671 | R56: 1 | S56: 2 | T56: 3 | U56: 4 | V56: 5 | X56: =(SUM(R56:V56)*(R56*L56+S56*M56*2+T56*N56*3+U56*O56*4+V56*P56*5)-(R56*L56+S56*M56+T56*N56+U56*O56+P56*V56)*(R56+2*S56+3*T56+4*U56+5*V56))/(SUM(R56:V56)*(R56+S56*4+T56*9+U56*16+V56*25)-POWER(R56+S56*2+T56*3+U56*4+V56*5,2)) -> -29493.22857 | Y56: =$P56+($AF56-$P56)/8 -> 2023177.771 | Z56: =$P56+2*($AF56-$P56)/8 -> 1993684.543 | AA56: =$P56+3*($AF56-$P56)/8 -> 1964191.314 | AB56: =$P56+4*($AF56-$P56)/8 -> 1934698.086 | AC56: =$P56+5*($AF56-$P56)/8 -> 1905204.857 | AD56: =$P56+6*($AF56-$P56)/8 -> 1875711.629 | AE56: =$P56+7*($AF56-$P56)/8 -> 1846218.4 | AF56: 1816725.171 | AJ56: =SUM(AJ5:AJ55) -> 2052671 | AK56: =SUM(AK5:AK55) -> -235945.8286 | AL56: -0.1149457602 | AM56: =SUM(AM5:AM55) -> 2016768.4 | AN56: =SUM(AN5:AN55) -> -23083.85714
A58: Testzeile: | L58: 5 | M58: 9 | N58: 15 | O58: 23 | P58: 32 | R58: 1 | S58: 1 | T58: 1 | U58: 1 | V58: 1 | X58: =(SUM(R58:V58)*(R58*L58+S58*M58*2+T58*N58*3+U58*O58*4+V58*P58*5)-(R58*L58+S58*M58+T58*N58+U58*O58+P58*V58)*(R58+2*S58+3*T58+4*U58+5*V58))/(SUM(R58:V58)*(R58+S58*4+T58*9+U58*16+V58*25)-POWER(R58+S58*2+T58*3+U58*4+V58*5,2)) -> 6.8 | AF58: =P58+7*X58 -> 79.6

Sheet Ggl. Grafik
D1: =A48 -> Aalen
A2: Auswahl:
H26: ="Prognostizierte Veränderung der Zahl der Gemeindeglieder zwischen "&Parameter!A8&" und "&Parameter!A2&":" -> Prognostizierte Veränderung der Zahl der Gemeindeglieder zwischen 2016 und 2024: | T26: =VLOOKUP(A48,Gemeindeglieder1,38) -> -0.1012129812
H27: ="Prognostizierte Veränderung der Zahl der Gemeindeglieder zwischen "&Parameter!A8&" und "&Parameter!A2&" pro Jahr:" -> Prognostizierte Veränderung der Zahl der Gemeindeglieder zwischen 2016 und 2024 pro Jahr: | T27: =VLOOKUP(A48,Gemeindeglieder1,38)/8 -> -0.01265162265
E44: Daten aus Tabelle Ggl. Historie | T44: Daten aus Tabelle Ggl. Prognose (Datengrundlage für Prognose)
E45: 1997 | F45: =E45+1 -> 1998 | G45: =F45+1 -> 1999 | H45: 2000 | I45: 2001 | J45: 2002 | K45: 2003 | L45: 2004 | M45: 2005 | N45: 2006 | O45: 2007 | P45: 2008 | Q45: 2009 | R45: 2010 | S45: 2011 | T45: 2012 | U45: 2013 | V45: 2014 | W45: 2015 | X45: 2016 | Y45: 2017 | Z45: 2018 | AA45: 2019 | AB45: 2020 | AC45: 2021 | AD45: 2022 | AE45: 2023 | AF45: 2024 | AG45: 2025 | AH45: 2026 | AI45: 2027 | AJ45: 2028 | AK45: 2029 | AL45: 2030 | AM45: 2031 | AN45: 2032 | AO45: 2033 | AP45: 2034 | AQ45: 2035 | AR45: 2036
E46: =VLOOKUP($A$48,Gemeindeglieder,E45-1987) -> 42787 | F46: 42141 | G46: 42863 | H46: 42743 | I46: 42850 | J46: 42882 | K46: 42826 | L46: 42706 | M46: 42654 | N46: 42399 | O46: 41541 | P46: 41203 | Q46: 40925 | R46: 40430 | S46: 40086 | T46: =VLOOKUP($A$48,Gemeindeglieder1,R45-1998) -> 39317 | U46: =VLOOKUP($A$48,Gemeindeglieder1,S45-1998) -> 38880 | V46: =VLOOKUP($A$48,Gemeindeglieder1,T45-1998) -> 38380 | W46: =VLOOKUP($A$48,Gemeindeglieder1,U45-1998) -> 37852 | X46: =VLOOKUP($A$48,Gemeindeglieder1,V45-1998) -> 37452
Y47: =VLOOKUP($A$48,Gemeindeglieder1,Y45-1992) -> 36978.17143 | Z47: 36504.34286 | AA47: 36030.51429 | AB47: 35556.68571 | AC47: 35082.85714 | AD47: 34609.02857 | AE47: 34135.2 | AF47: 33661.37143
A48: Aalen | Z48: =VLOOKUP($A$48,Gemeindeglieder1,Z45-1979) -> 36942.34286
A62: =Parameter!B2 -> Aalen
A63: =Parameter!B3 -> Backnang
A64: =Parameter!B4 -> Bad Cannstatt
A65: =Parameter!B5 -> Bad Urach-Münsingen
A66: =Parameter!B6 -> Balingen
A67: =Parameter!B7 -> Bernhausen
A68: =Parameter!B8 -> Besigheim
A69: =Parameter!B9 -> Biberach
A70: =Parameter!B10 -> Blaubeuren
A71: =Parameter!B11 -> Blaufelden
A72: =Parameter!B12 -> Böblingen
A73: =Parameter!B13 -> Brackenheim
A74: =Parameter!B14 -> Calw
A75: =Parameter!B15 -> Crailsheim
A76: =Parameter!B16 -> Degerloch
A77: =Parameter!B17 -> Ditzingen
A78: =Parameter!B18 -> Esslingen
A79: =Parameter!B19 -> Freudenstadt
A80: =Parameter!B20 -> Gaildorf
A81: =Parameter!B21 -> Geislingen a.d. Steige
A82: =Parameter!B22 -> Göppingen
A83: =Parameter!B23 -> Heidenheim
A84: =Parameter!B24 -> Heilbronn
A85: =Parameter!B25 -> Herrenberg
A86: =Parameter!B26 -> Kirchheim unter Teck
A87: =Parameter!B27 -> Künzelsau
A88: =Parameter!B28 -> Leonberg
A89: =Parameter!B29 -> Ludwigsburg
A90: =Parameter!B30 -> Marbach a.N.
A91: =Parameter!B31 -> Mühlacker
A92: =Parameter!B32 -> Münsingen (siehe Bad Urach-Münsigen)
A93: =Parameter!B33 -> Nagold
A94: =Parameter!B34 -> Neuenbürg
A95: =Parameter!B35 -> Neuenstadt a.K.
A96: =Parameter!B36 -> Nürtingen
A97: =Parameter!B37 -> Öhringen
A98: =Parameter!B38 -> Ravensburg
A99: =Parameter!B39 -> Reutlingen
A100: =Parameter!B40 -> Schorndorf
A101: =Parameter!B41 -> Schwäbisch Gmünd
A102: =Parameter!B42 -> Schwäbisch Hall
A103: =Parameter!B43 -> Stuttgart
A104: =Parameter!B44 -> Sulz/Neckar
A105: =Parameter!B45 -> Tübingen
A106: =Parameter!B46 -> Tuttlingen
A107: =Parameter!B47 -> Ulm
A108: =Parameter!B48 -> Vaihingen an der Enz
A109: =Parameter!B49 -> Waiblingen
A110: =Parameter!B50 -> Weikersheim
A111: =Parameter!B51 -> Weinsberg
A112: =Parameter!B52 -> Zuffenhausen
A113: ='Ggl. Historie'!A56 -> zz Landeskirche

Sheet KG Korr.
A1: Verwaltung und Rückrechnung der verzögerten Auswirkung von Fusionen.
A2: Fusionen ab 1.1.2011 sollen erst "verzögert" für den "übernächsten" PfarrPlan wirksam werden
B3: Die Daten hier werden auf das Tabellenblatt "KG akt." übernommen
A5: =SUM(A7:A2966) -> 82 | G5: =SUM(G7:G240) -> 0 | M5: =SUM(M7:M2960) -> 12 | N5: Noch nicht (bzw. nicht mehr) relevant für den PfarrPlan 2024, sondern erst für den PfarrPlan 2030
A6: Entfallene Kirchengemeinden | B6: Fortlaufende Nummer | C6: KG (neue [oder erhalten bleibende] KG in der ersten Zeile) | D6: KB/Dekanat (muss in zweite Spalte, nach "KG", damit Auswertung richtig funktioniert) | E6: Zum Nachvollziehen: Rückrechnung in der Anzahl der Kirchengemeinden | F6: Rückrechnung in der gewichteten Zahl der Kirchengemeinden | G6: Rückrechnung/Korrektur sonstige Gemeindeglieder | H6: Stand Ggl. (Datum) | I6: Datum der Fusion | M6: Entfallene Kirchengemeinden | N6: Fortlaufende Nummer | O6: KG (neue [oder erhalten bleibende] KG in der ersten Zeile) | P6: KB/Dekanat (muss in zweite Spalte, nach "KG", damit Auswertung richtig funktioniert) | Q6: Zum Nachvollziehen: Rückrechnung in der Anzahl der Kirchengemeinden | R6: Rückrechnung in der gewichteten Zahl der Kirchengemeinden | S6: Rückrechnung/Korrektur sonstige Gemeindeglieder | T6: Stand Ggl. (Datum) | U6: Datum der Fusion | V6: Eintrag PO?
A7: =IF(D7="",0,IF(B7<>0,0,IF(#REF!<>0,0,1))) -> 0 | B7: 2 | C7: Großerlach/Grab | D7: Backnang | E7: =IF(B7<>"",-1,1) -> -1 | F7: =IF(ABS(G7)<400,0.5,IF(ABS(G7)<2801,1,IF(ABS(G7)<5601,1.5,IF(ABS(G7)<8401,2,IF(ABS(G7)<11201,2.5,1000)))))*(IF(G7<0,-1,1)) -> -1 | G7: -1361 | H7: 2010-12-31 | I7: 2011-01-01 | M7: =IF(P7="",0,IF(N7<>0,0,IF(N6<>0,0,1))) -> 0 | N7: 101 | O7: Manzen-Ursenwang-Schlat | P7: Göppingen | Q7: =IF(N7<>"",-1,1) -> -1 | R7: =IF(ABS(S7)<400,0.5,IF(ABS(S7)<2801,1,IF(ABS(S7)<5601,1.5,IF(ABS(S7)<8401,2,IF(ABS(S7)<11201,2.5,1000)))))*(IF(S7<0,-1,1)) -> -1 | S7: =-SUM(S8:S9) -> -2136 | T7: 2015-12-31 | U7: 2017-01-01 | V7: ok
A8: =IF(D8="",0,IF(B8<>0,0,IF(B7<>0,0,1))) -> 0 | C8: Großerlach | D8: Backnang | E8: =IF(B8<>"",-1,1) -> 1 | F8: 1 | G8: 869 | H8: 2010-12-31 | M8: 0 | O8: Schlat | P8: Göppingen | Q8: 1 | R8: =IF(ABS(S8)<400,0.5,IF(ABS(S8)<2801,1,IF(ABS(S8)<5601,1.5,IF(ABS(S8)<8401,2,IF(ABS(S8)<11201,2.5,1000)))))*(IF(S8<0,-1,1)) -> 1 | S8: 910 | T8: 2015-12-31
A9: 1 | C9: Grab | D9: Backnang | E9: 1 | F9: 1 | G9: 492 | H9: 2010-12-31 | M9: 1 | O9: Manzen-Ursenwang | P9: Göppingen | Q9: 1 | R9: =IF(ABS(S9)<400,0.5,IF(ABS(S9)<2801,1,IF(ABS(S9)<5601,1.5,IF(ABS(S9)<8401,2,IF(ABS(S9)<11201,2.5,1000)))))*(IF(S9<0,-1,1)) -> 1 | S9: 1226 | T9: 2015-12-31
A10: 0 | B10: 3 | C10: Besigheim | D10: Besigheim | E10: -1 | F10: -1.5 | G10: -5270 | H10: 2010-12-31 | I10: 2011-01-01 | M10: 0 | N10: 102 | O10: Großbottwar | P10: Marbach a.N. | Q10: -1 | R10: =IF(ABS(S10)<400,0.5,IF(ABS(S10)<2801,1,IF(ABS(S10)<5601,1.5,IF(ABS(S10)<8401,2,IF(ABS(S10)<11201,2.5,1000)))))*(IF(S10<0,-1,1)) -> -1.5 | S10: =-SUM(S11:S12) -> -4051 | T10: 2015-12-31 | U10: 2017-01-01 | V10: ok
A11: 0 | C11: Ottmarsheim | D11: Besigheim | E11: 1 | F11: 1 | G11: 1020 | H11: 2010-12-31 | M11: 0 | O11: Großbottwar | P11: Marbach a.N. | Q11: 1 | R11: 1.5 | S11: 3351 | T11: 2015-12-31
A12: 1 | C12: Besigheim | D12: Besigheim | E12: 1 | F12: 1.5 | G12: 4250 | H12: 2010-12-31 | M12: 1 | O12: Winzerhausen | P12: Marbach a.N. | Q12: 1 | R12: 1 | S12: 700 | T12: 2015-12-31
A13: 0 | B13: 4 | C13: Böckingen | D13: Heilbronn | E13: -1 | F13: -2 | G13: -8227 | H13: 2010-12-31 | I13: 2011-01-01 | M13: 0 | N13: 103 | O13: Schopfloch-Gutenberg | P13: Kirchheim unter Teck | Q13: -1 | R13: -1 | S13: =-SUM(S14:S15) -> -914 | T13: 2015-12-31 | U13: 2017-01-01 | V13: ok
A14: 0 | C14: Böckingen Stadtkirchengemeinde | D14: Heilbronn | E14: 1 | F14: 1.5 | G14: 3613 | H14: 2010-12-31 | M14: 0 | O14: Schopfloch | P14: Kirchheim unter Teck | Q14: 1 | R14: 1 | S14: 400 | T14: 2015-12-31
A15: 1 | C15: Böckingen Auferstehungskirchengemeinde | D15: Heilbronn | E15: 1 | F15: 1.5 | G15: 4614 | H15: 2010-12-31 | M15: 1 | O15: Gutenberg | P15: Kirchheim unter Teck | Q15: 1 | R15: 1 | S15: 514 | T15: 2015-12-31
A16: 0 | B16: 5 | C16: Untermünkheim | D16: Schwäbisch Hall | E16: -1 | F16: -1 | G16: -1878 | H16: 2010-12-31 | I16: 2011-01-01 | M16: 0 | N16: 104 | O16: Gammesfeld-Hausen-Buch | P16: Blaufelden | Q16: -1 | R16: -1 | S16: =-SUM(S17:S19) -> -708 | T16: 2015-12-31 | U16: 2017-01-01 | V16: ok
A17: 0 | C17: Untermünkheim | D17: Schwäbisch Hall | E17: 1 | F17: 1 | G17: 960 | H17: 2010-12-31 | M17: 0 | O17: Gammesfeld | P17: Blaufelden | Q17: 1 | R17: =IF(ABS(S17)<400,0.5,IF(ABS(S17)<2801,1,IF(ABS(S17)<5601,1.5,IF(ABS(S17)<8401,2,IF(ABS(S17)<11201,2.5,1000)))))*(IF(S17<0,-1,1)) -> 1 | S17: 402 | T17: 2015-12-31
A18: 1 | C18: Enslingen | D18: Schwäbisch Hall | E18: 1 | F18: 1 | G18: 564 | H18: 2010-12-31 | M18: =IF(P18="",0,IF(N18<>0,0,IF(N17<>0,0,1))) -> 1 | O18: Hausen | P18: Blaufelden | Q18: 1 | R18: 0.5 | S18: 246 | T18: 2015-12-31
A19: 1 | C19: Ubrigshausen | D19: Schwäbisch Hall | E19: 1 | F19: 0.5 | G19: 354 | H19: 2010-12-31 | M19: =IF(P19="",0,IF(N19<>0,0,IF(N18<>0,0,1))) -> 1 | O19: Buch | P19: Blaufelden | Q19: 1 | R19: 0.5 | S19: 60 | T19: 2015-12-31
A20: 0 | B20: 6 | C20: Döttingen-Steinkirchen | D20: Schwäbisch Hall | E20: -1 | F20: -0.5 | G20: -372 | H20: 2010-12-31 | I20: 2011-01-01 | M20: =IF(P20="",0,IF(N20<>0,0,IF(N19<>0,0,1))) -> 0 | N20: 105 | O20: Sulzbach-Laufen | P20: Gaildorf | Q20: -1 | R20: =IF(ABS(S20)<400,0.5,IF(ABS(S20)<2801,1,IF(ABS(S20)<5601,1.5,IF(ABS(S20)<8401,2,IF(ABS(S20)<11201,2.5,1000)))))*(IF(S20<0,-1,1)) -> -1 | S20: =-SUM(S21:S22) -> -1612 | T20: 2015-12-31 | U20: 2017-01-01 | V20: ok
A21: 0 | C21: Döttingen | D21: Schwäbisch Hall | E21: 1 | F21: 0.5 | G21: 154 | H21: 2010-12-31 | M21: 0 | O21: Sulzbach am Kocher | P21: Gaildorf | Q21: 1 | R21: 1 | S21: 975 | T21: 2015-12-31
A22: 1 | C22: Steinkirchen | D22: Schwäbisch Hall | E22: 1 | F22: 0.5 | G22: 218 | H22: 2010-12-31 | M22: 1 | O22: Laufen am Kocher | P22: Gaildorf | Q22: 1 | R22: 1 | S22: 637 | T22: 2015-12-31
A23: 0 | B23: 7 | C23: Orlach-Jungholzhausen | D23: Schwäbisch Hall | E23: -1 | F23: -0.5 | G23: -363 | H23: 2010-12-31 | I23: 2011-01-01 | M23: 0 | N23: 106 | O23: Pfullingen | P23: Reutlingen | Q23: -1 | R23: -2 | S23: =-SUM(S24:S26) -> -8146 | T23: 2015-12-31 | U23: 2017-01-01 | V23: ok
A24: 0 | C24: Orlach | D24: Schwäbisch Hall | E24: 1 | F24: 0.5 | G24: 239 | H24: 2010-12-31 | M24: 0 | O24: Pfullingen Martinskirchengemeinde | P24: Reutlingen | Q24: 1 | R24: 1.5 | S24: 4782 | T24: 2015-12-31
A25: 1 | C25: Jungholzhausen | D25: Schwäbisch Hall | E25: 1 | F25: 0.5 | G25: 124 | H25: 2010-12-31 | M25: =IF(P25="",0,IF(N25<>0,0,IF(N24<>0,0,1))) -> 1 | O25: Pfullingen Magdalenenkirchengemeinde | P25: Reutlingen | Q25: 1 | R25: =IF(ABS(S25)<400,0.5,IF(ABS(S25)<2801,1,IF(ABS(S25)<5601,1.5,IF(ABS(S25)<8401,2,IF(ABS(S25)<11201,2.5,1000)))))*(IF(S25<0,-1,1)) -> 1 | S25: 1461 | T25: 2015-12-31
A26: 0 | B26: 8 | C26: Lonsee-Halzhausen-Luizhausen | D26: Ulm | E26: -1 | F26: -1 | G26: -1419 | H26: 2010-12-31 | I26: 2011-01-01 | M26: =IF(P26="",0,IF(N26<>0,0,IF(N24<>0,0,1))) -> 1 | O26: Pfullingen Thomaskirchengemeinde | P26: Reutlingen | Q26: 1 | R26: 1 | S26: 1903 | T26: 2015-12-31
A27: 0 | C27: Lonsee | D27: Ulm | E27: 1 | F27: 1 | G27: 1220 | H27: 2010-12-31 | M27: 0 | N27: 107 | O27: Maisenbach Petruskirchengemeine | P27: Calw | Q27: -1 | R27: -1 | S27: =-SUM(S28:S30) -> -802 | T27: 2015-12-31 | U27: 2017-01-01 | V27: ok
A28: 1 | C28: Luizhausen | D28: Ulm | E28: 1 | F28: 0.5 | G28: 199 | H28: 2010-12-31 | M28: 0 | O28: Maisenbach | P28: Calw | Q28: 1 | R28: 0.5 | S28: 335 | T28: 2015-12-31
A29: 0 | B29: 9 | C29: Bad Cannstatt Lutherkirchengemeinde | D29: Bad Cannstatt | E29: -1 | F29: -1.5 | G29: -3206 | H29: 2010-12-31 | I29: 2012-01-01 | M29: =IF(P29="",0,IF(N29<>0,0,IF(N28<>0,0,1))) -> 1 | O29: Beinberg | P29: Calw | Q29: 1 | R29: =IF(ABS(S29)<400,0.5,IF(ABS(S29)<2801,1,IF(ABS(S29)<5601,1.5,IF(ABS(S29)<8401,2,IF(ABS(S29)<11201,2.5,1000)))))*(IF(S29<0,-1,1)) -> 0.5 | S29: 269 | T29: 2015-12-31
A30: 0 | C30: Bad Cannstatt Lutherkirchengemeinde | D30: Bad Cannstatt | E30: 1 | F30: 1.5 | G30: 2930 | H30: 2010-12-31 | M30: =IF(P30="",0,IF(N30<>0,0,IF(N28<>0,0,1))) -> 1 | O30: Unterlegenhardt | P30: Calw | Q30: 1 | R30: 0.5 | S30: 198 | T30: 2015-12-31
A31: 1 | C31: Bad Cannstatt Blumhardtkirchengemeinde | D31: Bad Cannstatt | E31: 1 | F31: 0.5 | G31: 276 | H31: 2010-12-31 | M31: 0 | N31: 108 | O31: Schwann-Dennach | P31: Neuenbürg | Q31: -1 | R31: -1 | S31: =-SUM(S32:S33) -> -1697 | T31: 2015-12-31 | U31: 2017-01-01 | V31: ok
A32: 0 | B32: 10 | C32: Rotfelden-Wenden | D32: Nagold | E32: -1 | F32: -1 | G32: -872 | H32: 2010-12-31 | I32: 2012-01-01 | M32: 0 | O32: Schwann | P32: Neuenbürg | Q32: 1 | R32: 1 | S32: 1333 | T32: 2015-12-31
A33: 0 | C33: Rotfelden | D33: Nagold | E33: 1 | F33: 1 | G33: 711 | H33: 2010-12-31 | M33: 1 | O33: Dennach | P33: Neuenbürg | Q33: 1 | R33: 0.5 | S33: 364 | T33: 2015-12-31
A34: 1 | C34: Wenden | D34: Nagold | E34: 1 | F34: 0.5 | G34: 161 | H34: 2010-12-31 | M34: 0 | N34: 109 | O34: Langenburg | P34: Blaufelden | Q34: -1 | R34: -1 | S34: =-SUM(S35:S37) -> -1153 | T34: 2015-12-31 | U34: 2017-01-01 | V34: ok
A35: 0 | B35: 11 | C35: Schöntal | D35: Künzelsau | E35: -1 | F35: -1 | G35: -700 | H35: 2010-12-31 | I35: 2012-01-01 | O35: Langenburg | P35: Blaufelden | Q35: 1 | R35: =IF(ABS(S35)<400,0.5,IF(ABS(S35)<2801,1,IF(ABS(S35)<5601,1.5,IF(ABS(S35)<8401,2,IF(ABS(S35)<11201,2.5,1000)))))*(IF(S35<0,-1,1)) -> 1 | S35: 793 | T35: 2015-12-31
A36: 0 | C36: Schöntal | D36: Künzelsau | E36: 1 | F36: 1 | G36: 525 | H36: 2010-12-31 | M36: =IF(P36="",0,IF(N36<>0,0,IF(N34<>0,0,1))) -> 0 | O36: Bächlingen | P36: Blaufelden | Q36: 1 | R36: 0.5 | S36: 209 | T36: 2015-12-31
A37: 1 | C37: Rossach | D37: Künzelsau | E37: 1 | F37: 0.5 | G37: 175 | H37: 2010-12-31 | M37: 1 | O37: Unterregenbach | P37: Blaufelden | Q37: 1 | R37: 0.5 | S37: 151 | T37: 2015-12-31
A38: 0 | B38: 12 | C38: Christuskirchengemeinde im Täle | D38: Geislingen a.d. Steige | E38: -1 | F38: -1 | G38: -2001 | H38: 2010-12-31 | I38: 2012-01-01 | M38: 0 | N38: 110 | Q38: -1 | R38: 0.5 | S38: =-SUM(S39:S40) -> 0
A39: 0 | C39: Deggingen-Bad Ditzenbach | D39: Geislingen a.d. Steige | E39: 1 | F39: =IF(ABS(G39)<400,0.5,IF(ABS(G39)<2801,1,IF(ABS(G39)<5601,1.5,IF(ABS(G39)<8401,2,IF(ABS(G39)<11201,2.5,1000)))))*(IF(G39<0,-1,1)) -> 1 | G39: 1644 | H39: 2010-12-31 | M39: 0 | O39: Achtung, falls relevant, in PO § 30 Abs. 3 PfG entfernen. | Q39: 1 | R39: 0.5
A40: 1 | C40: Auendorf | D40: Geislingen a.d. Steige | E40: 1 | F40: 0.5 | G40: 357 | H40: 2010-12-31 | M40: 0 | O40: Eintrag bei "Errichtet für" löschen | Q40: 1 | R40: 0.5
A41: 0 | B41: 13 | C41: Walddorfhäslach | D41: Tübingen | E41: -1 | F41: -1 | G41: -2785 | H41: 2010-12-31 | I41: 2012-01-01
A42: 0 | C42: Walddorf | D42: Tübingen | E42: 1 | F42: 1 | G42: 1894 | H42: 2010-12-31
A43: 1 | C43: Häslach | D43: Tübingen | E43: 1 | F43: 1 | G43: 891 | H43: 2010-12-31
A44: 0 | B44: 14 | C44: Wendlingen am Neckar | D44: Nürtingen | E44: -1 | F44: -1.5 | G44: -5558 | H44: 2011-12-31 | I44: 2013-01-01
A45: 0 | C45: Wendlingen | D45: Nürtingen | E45: 1 | F45: 1.5 | G45: 3773 | H45: 2011-12-31
A46: 1 | C46: Unterboihingen | D46: Nürtingen | E46: 1 | F46: 1 | G46: 1785 | H46: 2011-12-31
A47: 0 | B47: 15 | C47: Remseck Christuskirchengemeinde | D47: Ludwigsburg | E47: -1 | F47: -1 | G47: -2327 | H47: 2011-12-31 | I47: 2013-12-01
A48: 0 | C48: Hochberg | D48: Ludwigsburg | E48: 1 | F48: 1 | G48: 1360 | H48: 2011-12-31
A49: 1 | C49: Hochdorf | D49: Ludwigsburg | E49: 1 | F49: 1 | G49: 967 | H49: 2011-12-31
A50: 0 | B50: 16 | C50: Finsterlohr-Schmerbach-Lichtel | D50: Weikersheim | E50: -1 | F50: -1 | G50: -844 | H50: 2011-12-31 | I50: 2013-12-01
A51: 0 | C51: Finsterlohr | D51: Weikersheim | E51: 1 | F51: 0.5 | G51: 389 | H51: 2011-12-31
A52: 1 | C52: Schmerbach | D52: Weikersheim | E52: 1 | F52: 0.5 | G52: 204 | H52: 2011-12-31
A53: 1 | C53: Lichtel | D53: Weikersheim | E53: 1 | F53: 0.5 | G53: 251 | H53: 2011-12-31
A54: 0 | B54: 17 | C54: Denkendorf | D54: Esslingen | E54: -1 | F54: -1.5 | G54: -4444 | H54: 2011-12-31 | I54: 2013-01-01
A55: 0 | C55: Denkendorf Auferstehungskirchengemeinde | D55: Esslingen | E55: 1 | F55: 1 | G55: 2677 | H55: 2011-12-31
A56: 1 | C56: Denkendorf Klosterkirchengemeinde | D56: Esslingen | E56: 1 | F56: 1 | G56: 1767 | H56: 2011-12-31
A57: 0 | B57: 18 | C57: Bad Urach und Seeburg | D57: Bad Urach-Münsingen | E57: -1 | F57: -1.5 | G57: -3750 | H57: 2011-12-31 | I57: 2013-01-01
A58: 0 | C58: Bad urach Amanduskirchengemeinde | D58: Bad Urach-Münsingen | E58: 1 | F58: 1 | G58: 1978 | H58: 2011-12-31
A59: 1 | C59: Bad Urach Dietrich-Bonhoeffer-Kirchengemeinde | D59: Bad Urach-Münsingen | E59: 1 | F59: 1 | G59: 1586 | H59: 2011-12-31
A60: 1 | C60: Seeburg | D60: Bad Urach-Münsingen | E60: 1 | F60: 0.5 | G60: 186 | H60: 2011-12-31
A61: 0 | B61: 19 | C61: Heidenheim Paulus-Wald-Kirchengemeinde | D61: Heidenheim | E61: -1 | F61: -1.5 | G61: =-SUM(G62:G63) -> -3204 | H61: 2011-12-31 | I61: 2013-12-01
A62: 0 | C62: Heidenheim Pauluskirchengemeinde | D62: Heidenheim | E62: 1 | F62: 1 | G62: 1912 | H62: 2011-12-31
A63: 1 | C63: Heidenheim Waldkirchengemeinde | D63: Heidenheim | E63: 1 | F63: 1 | G63: 1292 | H63: 2011-12-31
A64: 0 | B64: 20 | C64: Weilimdorf Oswald-Wolfbusch | D64: Zuffenhausen | E64: -1 | F64: -1.5 | G64: =-SUM(G65:G66) -> -5293 | H64: 2011-12-31 | I64: 2013-01-01
A65: 0 | C65: Weilimdorf Oswaldkirchengemeinde | D65: Zuffenhausen | E65: 1 | F65: 1.5 | G65: 3170 | H65: 2011-12-31
A66: 1 | C66: Weilimdorf Wolfbuschkirchengemeinde | D66: Zuffenhausen | E66: 1 | F66: 1 | G66: 2123 | H66: 2011-12-31
A67: 0 | B67: 21 | C67: Stuttgart-Berg Heilandskirchengemeinde | D67: Stuttgart | E67: -1 | F67: -1 | G67: =-SUM(G68:G69) -> -1470 | H67: 2011-12-31 | I67: 2013-01-01
A68: 0 | C68: Berg | D68: Stuttgart | E68: 1 | F68: 1 | G68: 588 | H68: 2011-12-31
A69: =IF(D69="",0,IF(B69<>0,0,IF(B68<>0,0,1))) -> 1 | C69: Stuttgart Heilandskirchengemeinde | D69: Stuttgart | E69: 1 | F69: 1 | G69: 882 | H69: 2011-12-31
A70: 0 | B70: 22 | C70: Pfalzgrafenweiler | D70: Freudenstadt | E70: -1 | F70: -1.5 | G70: =-SUM(G71:G76) -> -3304 | H70: 2011-12-31 | I70: 2013-12-01
A71: 0 | C71: Pfalzgrafenweiler | D71: Freudenstadt | E71: 1 | F71: =IF(ABS(G71)<400,0.5,IF(ABS(G71)<2801,1,IF(ABS(G71)<5601,1.5,IF(ABS(G71)<8401,2,IF(ABS(G71)<11201,2.5,1000)))))*(IF(G71<0,-1,1)) -> 1 | G71: 2156 | H71: 2011-12-31
A72: 1 | C72: Edelweiler | D72: Freudenstadt | E72: =IF(B72<>"",-1,1) -> 1 | F72: 0.5 | G72: 148 | H72: 2011-12-31
A73: 1 | C73: Kälberbronn | D73: Freudenstadt | E73: 1 | F73: 0.5 | G73: 161 | H73: 2011-12-31
A74: 1 | C74: Durrweiler | D74: Freudenstadt | E74: 1 | F74: 0.5 | G74: 372 | H74: 2011-12-31
A75: 1 | C75: Herzogsweiler | D75: Freudenstadt | E75: 1 | F75: 0.5 | G75: 392 | H75: 2011-12-31
A76: 1 | C76: Neunuifra | D76: Freudenstadt | E76: 1 | F76: 0.5 | G76: 75 | H76: 2011-12-31
A77: 0 | B77: 23 | C77: Fellbach | D77: Waiblingen | E77: -1 | F77: -2 | G77: =-SUM(G78:G81) -> -8256 | H77: 2011-12-31 | I77: 2013-12-01
A78: 0 | C78: Fellbach Lutherkirchengemeinde | D78: Waiblingen | E78: 1 | F78: 1.5 | G78: 4154 | H78: 2011-12-31
A79: 1 | C79: Fellbach Pauluskirchengemeinde | D79: Waiblingen | E79: 1 | F79: 1 | G79: 2591 | H79: 2011-12-31
A80: 1 | C80: Fellbach Melanchthonkirchengemeinde | D80: Waiblingen | E80: 1 | F80: 1 | G80: 1154 | H80: 2011-12-31
A81: 1 | C81: Fellbach Johannes-Brenz-Kirchengemeinde | D81: Waiblingen | E81: 1 | F81: 0.5 | G81: 357 | H81: 2011-12-31
A82: 0 | B82: 24 | C82: Neuenstein | D82: Öhringen | E82: -1 | F82: -1.5 | G82: =-SUM(G83:G84) -> -3158 | H82: 2011-12-31 | I82: 2013-01-01
A83: 0 | C83: Neuenstein | D83: Öhringen | E83: 1 | F83: 1 | G83: 2718 | H83: 2011-12-31
A84: 1 | C84: Eschelbach-Kesselfeld | D84: Öhringen | E84: 1 | F84: 1 | G84: 440 | H84: 2011-12-31
A85: 0 | B85: 25 | C85: Nürtingen Stadtkirchengemeinde | D85: Nürtingen | E85: -1 | F85: -1.5 | G85: -3093 | H85: 2011-12-31 | I85: 2013-01-01
A86: 0 | C86: Nürtingen Stadtkirchengemeinde | D86: Nürtingen | E86: 1 | F86: 1 | G86: 2529 | H86: 2011-12-31
A87: 1 | C87: Nürtingen-Enzenhardt | D87: Nürtingen | E87: 1 | F87: 1 | G87: 564 | H87: 2011-12-31
A88: 0 | B88: 26 | C88: Dürnau-Gammelshausen | D88: Göppingen | E88: -1 | F88: -1 | G88: -1625 | H88: 2011-12-31 | I88: 2013-01-01
A89: 0 | C89: Dürnau | D89: Göppingen | E89: 1 | F89: 1 | G89: 998 | H89: 2011-12-31
A90: 1 | C90: Gammelshausen | D90: Göppingen | E90: 1 | F90: 1 | G90: 627 | H90: 2011-12-31
A91: 0 | B91: 27 | C91: Rohr-Dürrlewang | D91: Degerloch | E91: -1 | F91: -1.5 | G91: -3934 | H91: 2011-12-31 | I91: 2013-01-01
A92: 0 | C92: Dürrlewang | D92: Degerloch | E92: 1 | F92: 1 | G92: 1049 | H92: 2011-12-31
A93: 1 | C93: Rohr | D93: Degerloch | E93: 1 | F93: 1.5 | G93: 2885 | H93: 2011-12-31
A94: 0 | B94: 28 | C94: Metzingen-Nord | D94: Bad Urach-Münsingen | E94: -1 | F94: -1 | G94: -2674 | H94: 2011-12-31 | I94: 2013-12-01
A95: 0 | C95: Metzingen Friedenskirchengemeinde | D95: Bad Urach-Münsingen | E95: 1 | F95: 1 | G95: 1898 | H95: 2011-12-31
A96: 1 | C96: Metzingen Neugreuth | D96: Bad Urach-Münsingen | E96: 1 | F96: 1 | G96: 776 | H96: 2011-12-31
A97: 0 | B97: 29 | C97: Monakam-Unterhaugstett | D97: Calw | E97: -1 | F97: -1 | G97: -1322 | H97: 2011-12-31 | I97: 2013-12-01
A98: 0 | C98: Monakam | D98: Calw | E98: 1 | F98: 1 | G98: 775 | H98: 2011-12-31
A99: 1 | C99: Unterhaugstett | D99: Calw | E99: 1 | F99: 1 | G99: 547 | H99: 2011-12-31
A100: 0 | B100: 30 | C100: Wolfenhausen-Nellingsheim | D100: Tübingen | E100: -1 | F100: -1 | G100: -723 | H100: 2012-12-31 | I100: 2013-12-01
A101: 0 | C101: Wolfenhausen | D101: Tübingen | E101: 1 | F101: 1 | G101: 439 | H101: 2012-12-31
A102: 1 | C102: Nellingsheim | D102: Tübingen | E102: 1 | F102: 0.5 | G102: 284 | H102: 2012-12-31
A103: 0 | B103: 31 | C103: Baiersbronn | D103: Freudenstadt | E103: -1 | F103: =IF(ABS(G103)<400,0.5,IF(ABS(G103)<2801,1,IF(ABS(G103)<5601,1.5,IF(ABS(G103)<8401,2,IF(ABS(G103)<11201,2.5,1000)))))*(IF(G103<0,-1,1)) -> -1.5 | G103: -3669 | H103: 2012-12-31 | I103: 2013-12-01
A104: 0 | C104: Baiersbronn | D104: Freudenstadt | E104: 1 | F104: 1.5 | G104: 3493 | H104: 2012-12-31
A105: 1 | C105: Friedrichstal | D105: Freudenstadt | E105: 1 | F105: 0.5 | G105: 176 | H105: 2012-12-31
A106: 0 | B106: 32 | C106: Öhringen | D106: Öhringen | E106: -1 | F106: -2.5 | G106: -9556 | H106: 2012-12-31 | I106: 2013-12-01
A107: 0 | C107: Öhringen | D107: Öhringen | E107: 1 | F107: 2.5 | G107: 8730 | H107: 2012-12-31
A108: 1 | C108: Michelbach am Wald | D108: Öhringen | E108: 1 | F108: 1 | G108: 826 | H108: 2012-12-31
A109: 0 | B109: 33 | C109: Apfelstetten-Buttenhausen | D109: Bad Urach-Münsingen | E109: -1 | F109: -1 | G109: -723 | H109: 2012-12-31 | I109: 2013-12-01
A110: 0 | C110: Buttenhausen | D110: Bad Urach-Münsingen | E110: 1 | F110: 1 | G110: 403 | H110: 2012-12-31
A111: 1 | C111: Apfelstetten | D111: Bad Urach-Münsingen | E111: 1 | F111: 0.5 | G111: 320 | H111: 2012-12-31
A112: 0 | B112: 34 | C112: Nikolaikirchengemeinde Heilbronn | D112: Heilbronn | E112: -1 | F112: -1.5 | G112: -3958 | H112: 2012-12-31 | I112: 2013-12-01
A113: 0 | C113: Wartberg-Au-Kirchengemeinde | D113: Heilbronn | E113: 1 | F113: 1 | G113: 1784 | H113: 2012-12-31
A114: 1 | C114: Nikolaikirchengemeinde Heilbronn | D114: Heilbronn | E114: 1 | F114: 1 | G114: 2174 | H114: 2012-12-31
A115: 0 | B115: 35 | C115: Kirchberg/Jagst | D115: Blaufelden | E115: -1 | F115: -1 | G115: -1113 | H115: 2012-12-31 | I115: 2013-12-01
A116: 0 | C116: Kirchberg | D116: Blaufelden | E116: 1 | F116: 1 | G116: 1015 | H116: 2012-12-31
A117: 1 | C117: Hornberg | D117: Blaufelden | E117: 1 | F117: 0.5 | G117: 98 | H117: 2012-12-31
A118: 0 | B118: 36 | C118: Emmingen-Pfrondorf | D118: Nagold | E118: -1 | F118: -1 | G118: -1281 | H118: 2012-12-31 | I118: 2013-12-01
A119: 0 | C119: Pfrondorf | D119: Nagold | E119: 1 | F119: 0.5 | G119: 387 | H119: 2012-12-31
A120: 1 | C120: Emmingen | D120: Nagold | E120: 1 | F120: 1 | G120: 894 | H120: 2012-12-31
A121: 0 | B121: 37 | C121: Mehrstetten-Sondernach | D121: Bad Urach-Münsingen | E121: -1 | F121: -1 | G121: -1136 | H121: 2012-12-31 | I121: 2013-12-01
A122: 0 | C122: Mehrstetten | D122: Bad Urach-Münsingen | E122: 1 | F122: 1 | G122: 938 | H122: 2012-12-31
A123: 1 | C123: Sondernach | D123: Bad Urach-Münsingen | E123: 1 | F123: 0.5 | G123: 198 | H123: 2012-12-31
A124: 0 | B124: 38 | C124: Ödenwaldstetten-Pfronstetten | D124: Bad Urach-Münsingen | E124: -1 | F124: -1 | G124: =-SUM(G125:G126) -> -657 | H124: 2012-12-31 | I124: 2013-12-01
A125: 0 | C125: Ödenwaldstetten | D125: Bad Urach-Münsingen | E125: 1 | F125: 1 | G125: 461 | H125: 2012-12-31
A126: 1 | C126: Pfronstetten | D126: Bad Urach-Münsingen | E126: 1 | F126: 0.5 | G126: 196 | H126: 2012-12-31
A127: 0 | B127: 39 | C127: Heuchlingen-Heldenfingen | D127: Heidenheim | E127: -1 | F127: -1 | G127: =-SUM(G128:G129) -> -1241 | H127: 2012-12-31 | I127: 2013-12-01
A128: 0 | C128: Heuchlingen | D128: Heidenheim | E128: 1 | F128: 1 | G128: 547 | H128: 2012-12-31
A129: 1 | C129: Heldenfingen | D129: Heidenheim | E129: 1 | F129: 1 | G129: 694 | H129: 2012-12-31
A130: 0 | B130: 40 | C130: Grömbach-Wörnersberg | D130: Nagold | E130: -1 | F130: -1 | G130: =-SUM(G131:G132) -> -764 | H130: 2012-12-31 | I130: 2013-12-01
A131: 0 | C131: Grömbach | D131: Nagold | E131: 1 | F131: 1 | G131: 585 | H131: 2012-12-31
A132: 1 | C132: Wörnersberg | D132: Nagold | E132: 1 | F132: 0.5 | G132: 179 | H132: 2012-12-31
A133: =IF(D133="",0,IF(B133<>0,0,IF(B132<>0,0,1))) -> 0 | B133: 41 | C133: Breitenberg-Oberkollwangen | D133: Calw | E133: -1 | F133: -1 | G133: =-SUM(G134:G135) -> -733 | H133: 2012-12-31 | I133: 2013-12-01
A134: 0 | C134: Breitenberg | D134: Calw | E134: 1 | F134: 1 | G134: 481 | H134: 2012-12-31
A135: 1 | C135: Oberkollwangen | D135: Calw | E135: 1 | F135: =IF(ABS(G135)<400,0.5,IF(ABS(G135)<2801,1,IF(ABS(G135)<5601,1.5,IF(ABS(G135)<8401,2,IF(ABS(G135)<11201,2.5,1000)))))*(IF(G135<0,-1,1)) -> 0.5 | G135: 252 | H135: 2012-12-31
A136: 0 | B136: 42 | C136: Winnenden | D136: Waiblingen | E136: =IF(B136<>"",-1,1) -> -1 | F136: -1.5 | G136: =-SUM(G137:G138) -> -4526 | H136: 2012-12-31 | I136: 2013-12-01
A137: 0 | C137: Stadtkirchengemeinde Winnenden | D137: Waiblingen | E137: 1 | F137: 1.5 | G137: 2946 | H137: 2012-12-31
A138: 1 | C138: Winnenden Paul-Schneider-Haus | D138: Waiblingen | E138: 1 | F138: 1 | G138: 1580 | H138: 2012-12-31
A139: 0 | B139: 43 | C139: Buchenbach-Eberbach | D139: Künzelsau | E139: -1 | F139: -1 | G139: =-SUM(G140:G141) -> -744 | H139: 2012-12-31 | I139: 2013-12-01
A140: 0 | C140: Buchenbach | D140: Künzelsau | E140: 1 | F140: 1 | G140: 632 | H140: 2012-12-31
A141: 1 | C141: Eberbach | D141: Künzelsau | E141: 1 | F141: 0.5 | G141: 112 | H141: 2012-12-31
A142: 0 | B142: 44 | C142: Tuttlingen Friedenskirchengemeinde | D142: Tuttlingen | E142: -1 | F142: -1.5 | G142: =-SUM(G143:G144) -> -2869 | H142: 2012-12-31 | I142: 2013-12-01
A143: 0 | C143: Tuttlingen Martinskirchengemeinde | D143: Tuttlingen | E143: 1 | F143: 1 | G143: 1541 | H143: 2012-12-31
A144: 1 | C144: Tuttlingen Versöhnungskirchengemeinde | D144: Tuttlingen | E144: 1 | F144: 1 | G144: 1328 | H144: 2012-12-31
A145: 0 | B145: 45 | C145: Setzingen-Nerenstetten | D145: Ulm | E145: -1 | F145: -1 | G145: =-SUM(G146:G147) -> -640 | H145: 2012-12-31 | I145: 2013-12-01
A146: 0 | C146: Setzingen | D146: Ulm | E146: 1 | F146: 1 | G146: 449 | H146: 2012-12-31
A147: 1 | C147: Nerenstetten | D147: Ulm | E147: 1 | F147: 0.5 | G147: 191 | H147: 2012-12-31
A148: 0 | B148: 46 | C148: Reutlingen West-Betzingen | D148: Reutlingen | E148: -1 | F148: -1.5 | G148: =-SUM(G149:G150) -> -5259 | H148: 2012-12-31 | I148: 2013-12-01
A149: 0 | C149: Reutlingen Mauritiuskirche | D149: Reutlingen | E149: 1 | F149: 1.5 | G149: 3920 | H149: 2012-12-31
A150: 1 | C150: Reutlingen Christuskirche | D150: Reutlingen | E150: 1 | F150: 1 | G150: 1339 | H150: 2012-12-31
A151: 0 | B151: 47 | C151: Reichenbach/Fils | D151: Esslingen | E151: -1 | F151: -1.5 | G151: =-SUM(G152:G153) -> -3015 | H151: 2012-12-31 | I151: 2013-07-01
A152: 0 | C152: Reichenbach Siegenbergkirchengemeinde | D152: Esslingen | E152: 1 | F152: 1 | G152: 1113 | H152: 2012-12-31
A153: 1 | C153: Reichenbach Mauritiuskirchengemeinde | D153: Esslingen | E153: 1 | F153: 1 | G153: 1902 | H153: 2012-12-31
A154: 0 | B154: 48 | C154: Hertmannsweiler-Bürg | D154: Waiblingen | E154: -1 | F154: -1 | G154: =-SUM(G155:G156) -> -1293 | H154: 2012-12-31 | I154: 2013-12-01
A155: 0 | C155: Hertmannsweiler | D155: Waiblingen | E155: 1 | F155: 1 | G155: 1018 | H155: 2012-12-31
A156: 1 | C156: Bürg | D156: Waiblingen | E156: 1 | F156: 0.5 | G156: 275 | H156: 2012-12-31
A157: 0 | B157: 49 | C157: Dottingen-Rietheim | D157: Bad Urach-Münsingen | E157: -1 | F157: -1 | G157: =-SUM(G158:G159) -> -1137 | H157: 2012-12-31 | I157: 2013-12-01
A158: 0 | C158: Dottingen | D158: Bad Urach-Münsingen | E158: 1 | F158: 1 | G158: 656 | H158: 2012-12-31
A159: 1 | C159: Rietheim | D159: Bad Urach-Münsingen | E159: 1 | F159: 1 | G159: 481 | H159: 2012-12-31
A160: 0 | B160: 50 | C160: Waiblingen | D160: Waiblingen | E160: -1 | F160: -2.5 | G160: =-SUM(G161:G164) -> -9006 | H160: 2011-12-31 | I160: 2013-12-01
A161: 0 | C161: Waiblingen Michaelskirchengemeinde | D161: Waiblingen | E161: 1 | F161: 1.5 | G161: 3166 | H161: 2011-12-31
A162: 1 | C162: Waiblingen Martin-Luther-Kirchengemeine | D162: Waiblingen | E162: 1 | F162: 1 | G162: 1710 | H162: 2011-12-31
A163: 1 | C163: Waiblingen Dietrich-Bonhoeffer-Kirchengemeinde | D163: Waiblingen | E163: 1 | F163: 1 | G163: 1620 | H163: 2011-12-31
A164: 1 | C164: Waiblingen Korber Höhe | D164: Waiblingen | E164: 1 | F164: 1 | G164: 2510 | H164: 2011-12-31
A165: 0 | B165: 51 | C165: Münklingen-Hausen | D165: Leonberg | E165: -1 | F165: -1 | G165: =-SUM(G166:G167) -> -1113 | H165: 2012-12-31 | I165: 2013-12-01
A166: 0 | C166: Münklingen | D166: Leonberg | E166: 1 | F166: 1 | G166: 684 | H166: 2012-12-31
A167: 1 | C167: Hausen | D167: Leonberg | E167: 1 | F167: =IF(ABS(G167)<400,0.5,IF(ABS(G167)<2801,1,IF(ABS(G167)<5601,1.5,IF(ABS(G167)<8401,2,IF(ABS(G167)<11201,2.5,1000)))))*(IF(G167<0,-1,1)) -> 1 | G167: 429 | H167: 2012-12-31
A168: 0 | B168: 52 | C168: Bünzwangen-Sulpach | D168: Göppingen | E168: -1 | F168: -1 | G168: -1601 | H168: 2011-12-31 | I168: 2013-01-01
A169: 0 | C169: Bünzwangen | D169: Göppingen | E169: 1 | F169: 1 | G169: 1050 | H169: 2011-12-31
A170: 1 | C170: Sulpach | D170: Göppingen | E170: 1 | F170: 1 | G170: 551 | H170: 2011-12-31
A171: 0 | B171: 53 | C171: Stuttgart Himmelsleiter | D171: Zuffenhausen | E171: -1 | F171: -1.5 | G171: -5163 | H171: 2011-12-31 | I171: 2013-01-01
A172: 0 | C172: Stuttgart-Rohr | D172: Zuffenhausen | E172: =IF(B172<>"",-1,1) -> 1 | F172: =IF(ABS(G172)<400,0.5,IF(ABS(G172)<2801,1,IF(ABS(G172)<5601,1.5,IF(ABS(G172)<8401,2,IF(ABS(G172)<11201,2.5,1000)))))*(IF(G172<0,-1,1)) -> 1 | G172: 2553 | H172: 2011-12-31
A173: 1 | C173: Suttgart-Freiburg | D173: Zuffenhausen | E173: =IF(B173<>"",-1,1) -> 1 | F173: =IF(ABS(G173)<400,0.5,IF(ABS(G173)<2801,1,IF(ABS(G173)<5601,1.5,IF(ABS(G173)<8401,2,IF(ABS(G173)<11201,2.5,1000)))))*(IF(G173<0,-1,1)) -> 1 | G173: 1722 | H173: 2011-12-31
A174: 1 | C174: Mönchfeld | D174: Zuffenhausen | E174: 1 | F174: 1 | G174: 888 | H174: 2011-12-31
A175: 0 | B175: 54 | C175: Aich-Neuenhaus | D175: Nürtingen | E175: -1 | F175: -1 | G175: -2501 | H175: 2013-12-31 | I175: 2015-01-01
